Workbook

Sheet NOTES
A2: The model has actual and test data to illustrate the workings of the model.
A4: Issue | B4: Location | C4: Item | D4: Comment
A5: 1 | B5: Model update'!F37:F41 | C5: Real Vanilla WACC (rvw) | D5: Values require updating
A7: 2 | B7: Model update'!F54:F58 | C7: DuoS Xt for2018 | D7: Values require updating
A9: 3 | B9: Model update'!F66:F70 | C9: Metering Xt for2018 | D9: Values require updating
A11: 4 | B11: Model update'!F94:F98 | C11: Ifactor (t) 2018 | D11: Values require updating
A13: 5 | B13: Model update'!F105:F109 | C13: S factor (t) 2018 | D13: Values are placeholders - may require updating
A15: 6 | B15: Model update'!F127:F131 | C15: Licence Fee (t-1) 2017 | D15: Values require updating
A17: 7 | B17: The following is test data to illustrate the workings of the model. | D17: Input data required from DNSPs
B18: 2018 Unmetered supply'!G7:I7 | C18: Proposed 2018 Unmetered Supply Tariffs
B19: 2018 Unmetered supply'!K7:M7 | C19: Qt-2 (2016)
B21: Metering!D8:D11 | C21: Proposed Metering Tariffs P(t) for 2018
B22: Metering!F8:F11 | C22: Forecast Quantities (Qt) for 2018
B23: Metering!D80:D83 | C23: Estimated Quantities (Qt-1) for 2017
B25: Prop2018DistTar!D6:P30 | C25: Proposed Distribution Tariffs (Pt) for 2018
B26: Prop2018DistTar!AF6:AR30 | C26: Forecast Quantities (Qt) for 2018
B27: Est2017DistRev!R6:AD30 | C27: Estimated Distribution Quantities for 2017 (Qt-1)
B29: Prop2018TransTar!D6:P30 | C29: Proposed Transmission Tariffs (Pt) for 2018
B30: 2018TransRevCont'!C20:C23 | C30: Table 3 - Transmission charges for year t
B31: 2018TransRevCont'!D42:D45 | C31: Transmission charges for year t-1
B33: Prop2018JSTar!D6:P30 | C33: Proposed Jurisdictional scheme Tariffs (Pt) for 2018
B34: 2018JSRevCont'!C20:C21 | C34: Table 3 - PFIT & TFIT charges for year t
B35: 2018JSRevCont'!D40:D41 | C35: PFIT & TFIT charges for year t-1

Sheet Formulae
B2: DUoS
B3: Figure 14.1 Revenue cap formulae
B4: (1) | H4: i=1,..,n and j=1,..,m and t=1,..,5
B5: (2) | H5: t = 1,2,…,5
B6: (3) | H6: t = 1
B7: (4) | H7: t = 2,…,5
B9: where;
C10: is the total annual revenue in year t.
D11: is the price of component 'j' of tariff 'i' in year t.
D12: is the forecast quantity of component 'j' of tariff 'i' in year t.
C13: is the adjusted annual smoothed revenue requirement for year t.
D14: is the annual adjustment f–factor scheme amount in year t. This amount will be calculated as per the method set out in the relevant f–factor scheme.
D15: is the sum of:
B16: · the final carryover amount from the application of the DMIS from the 2011–15 regulatory control period. This amount will be calculated using the method set out in the DMIS and will be deducted from/added to allowed revenue in the 2017 pricing Proposal.
D17: is the sum of:
B18: · the recovery of license fee charges by the Victorian Essential Services Commission indexed by one and a half years of interest, calculated using the following method:
B20: where:
C21: are the licence fees paid by DNSP to the Victorian Essential Services Commission in the financial year ending in June of regulatory year t–1,
C22: is the approved nominal weighted average cost of capital (WACC) for the relevant regulatory year using the following method:
B25: · any under or over recovery of actual revenue collected through DUoS charges in regulatory year t–2 as calculated using the method in appendix A,
B26: · the AER approved pass through amounts (positive or negative) with respect to regulatory year t.
C27: is the annual smoothed revenue requirement as stated in the Post Tax Revenue Model (PTRM) for year t (when year t is the first year of the 2016–20 regulatory control period).[43]
C28: is the s‑factor determined in accordance with the service target performance incentive scheme (STPIS) for regulatory year t.[44]
C29: is the annual percentage change in the ABS CPI All Groups, Weighted Average of Eight Capital Cities[45] from the June quarter in year t–2 to the June quarter in year t–1, calculated using the following method :
B30: The ABS CPI All Groups, Weighted Average of Eight Capital Cities for the June quarter in regulatory year t–1
B31: divided by
B32: The ABS CPI All Groups, Weighted Average of Eight Capital Cities for the June quarter in regulatory year t–2
B33: minus one.
B34: For example, for the 2017 regulatory year, t–2 is June quarter 2015 and t–1 is June quarter 2016 and for the 2018 regulatory year, t–2 is June quarter 2016 and t–1 is June quarter 2017 and so on.
C35: is the X factor for each year of the 2016–20 regulatory control period as determined in the PTRM, and annually revised for the return on debt update in accordance with the formula specified in attachment 3—rate of return—calculated for the relevant year.
B38: [43] | C38: Our final F&A stated that if necessary an adjustment for inflation may be required to the annual smoothed revenue requirement for year t. However, as the annual smoothed revenue requirement for year t as stated in our preliminary decision PTRM is in nominal dollars there is no need to adjust it for inflation. This approach is consistent with past regulatory practice.
B39: [44] | C39: For the first two regulatory years of the 2016–20 regulatory control period, the value of St is to be adjusted to account for the change in revenue requirements between the regulatory control periods, as explained in attachment 11. In the formulas in the STPIS, the AR(t+1) is equivalent to ARt in this formula. Calculations of the S factor adjustment are to be made accordingly.
B40: [45] | C40: If the ABS does not or ceases to publish the index, then CPI will mean an index which the AER considers is the best available alternative index
B44: Figure 14.2 Side constraints [46]
C50: where each tariff class has "n" tariffs, with each up to "m" components, and where:
D51: is the Proposed price for component ‘j’ of tariff 'i' for year t.
C52: is the price charged for component ‘j’ of tariff 'i' in year t–1.
D53: is the forecast quantity of component ‘j’ of tariff 'i' in year t.
C54: is the annual percentage change in the ABS CPI All Groups, Weighted Average of Eight Capital Cities[4] from the June quarter in year t–2 to the June quarter in year t–1, calculated using the following method :
C55: The ABS CPI All Groups, Weighted Average of Eight Capital Cities[47] for the June quarter in regulatory year t–1
C56: divided by
C57: The ABS CPI All Groups, Weighted Average of Eight Capital Cities for the June quarter in regulatory year t–2
C58: minus one.
B59: For example, for the 2017 regulatory year, t–2 is June quarter 2015 and t–1 is June quarter 2016 and for the 2018 regulatory year, t–2 is June quarter 2016 and t–1 is June quarter 2017 and so on.
D60: is the X factor for each year of the 2016–20 regulatory control period as determined in the PTRM, and annually revised for the return on debt update in accordance with the formula specified in attachment 3—rate of return—calculated for the relevant year. If X>0, then X will be set equal to zero for the purposes of the side constraint formula.
C61: is the s‑factor determined in accordance with the STPIS for regulatory year t.[5]
D62: is the annual percentage change from the f–factor scheme amount in year t. This amount will be calculated as per the method set out in attachment 19—f–factor scheme.
D63: is the annual percentage change from the final carryover amount from the application of the DMIS from the 2011–15 regulatory control period. This amount will be calculated using the method set out in the DMIS and will be deducted from/added to allowed revenue in the 2017 pricing Proposal.
D64: is annual percentage change from the sum of:
B65: · the recovery of license fee charges by the Victorian Essential Services Commission indexed by one and a half years of interest, calculated using the following method:
B67: where:
B68: are the licence fees paid byDNSP to the Victorian Essential Services Commission in the financial year ending in June of regulatory year t–1,
C69: is the approved nominal weighted average cost of capital (WACC) for the relevant regulatory year using the following method:
B72: where the
B73: is as set out in our final decision PTRM and updated annually
B74: · the AER approved pass through amounts (positive or negative) with respect to regulatory year t.
B75: With the exception of the CPI, X factor and S factor, the percentage for each of the other factors above can be calculated by dividing the incremental revenues (as used in the total annual revenue formula) for each factor by the expected revenues for regulatory year t–1 (based on the prices in year t–1 multiplied by the forecast quantities for year t).
B77: [46] | C77: All parameters are in nominal terms unless otherwise specified.
B78: [47] | C78: If the ABS does not or ceases to publish the index, then CPI will mean an index which the AER considers is the best available alternative index.
H83: Table 14.1 | I83: Example calculation of DUoS unders and overs account ($'000, nominal)
I84: Year t–2 | J84: Year t–1 | K84: Year t
I85: (actual) | J85: (estimate) | K85: (forecast)
H86: (A) Revenue from DUoS charges | I86: 46 779 | J86: 40 269 | K86: 39 510
H87: (B) Less TAR for regulatory year = | I87: 43 039 | J87: 41 427 | K87: 44 429
H88: + Adjusted annual smoothed revenues (AARt) | I88: 40 189 | J88: 41 393 | K88: 44 393
H89: + f–factor scheme amount (It) | I89: –12 | J89: 10 | K89: 14
H90: + DMIS carryover amount (Tt) | I90: 1013 | J90: 0 | K90: 0
H91: + Annual adjustments (Bt)a = | I91: 1849 | J91: 24 | K91: 22
H92: + License fee recovery | I92: 25 | J92: 24 | K92: 22
H93: + Approved pass through amounts | I93: 1824 | J93: 0 | K93: 0
H95: (A minus B) Under/over recovery of revenue for regulatory year | I95: 3740 | J95: –1158 | K95: –4919b
H97: DUoS unders and overs account
H98: Nominal WACC (per cent) | I98: 0.05 | J98: 0.055 | K98: 0.06
H99: Opening balance | I99: 1737 | J99: 5656c | K99: 4778
H100: Interest on opening balance | I100: 87 | J100: 311 | K100: 287
H101: Under/over recovery of revenue for regulatory year | I101: 3740 | J101: –1158 | K101: –4919b
H102: Interest on under/over recovery for regulatory year | I102: 92 | J102: –31 | K102: –145
H103: Closing balance | I103: 5656 | J103: 4778 | K103: 0d
G104: Notes: | H104: (a) Bt parameter calculations in the DUoS unders and overs account exclude approved DUoS revenue under/over recovery for regulatory year.
H105: (b) Approved DUoS revenue under/over recovery for regulatory year t.
H106: (c) Opening balance is the previous year's closing balance.
H107: (d) The DNSP is expected to achieve a closing balance as close to zero as practicable in its DUoS unders and overs account in each forecast year in its annual pricing Proposals in the 2016–20 regulatory control period.
H113: Table 14.2 | I113: Example calculation of designated pricing Proposal charges unders and overs account ($'000, nominal)
I114: Year t–2 | J114: Year t–1 | K114: Year t
I115: (actual) | J115: (estimate) | K115: (forecast)
H116: (A) Revenue from designated pricing Proposal charges (DPPC) | I116: 40 077 | J116: 34 944 | K116: 36 609
H117: (B) Less DPPC related payments for regulatory year = | I117: 34 365 | J117: 38 734 | K117: 39 200
H118: + DPPC charges to be paid to TNSP | I118: 33 672 | J118: 37 933 | K118: 38 000
H119: + Avoided TUoS/DPPC payments | I119: 572 | J119: 734 | K119: 800
H120: + Inter–distributor payments | I120: 121 | J120: 67 | K120: 400
H122: (A minus B) Under/over recovery of revenue for regulatory year | I122: 5712 | J122: –3790 | K122: –2540a
H124: DPPC unders and overs account
H125: Nominal WACC (per cent) | I125: 0.05 | J125: 0.055 | K125: 0.06
H126: Opening balance | I126: 167 | J126: 6028b | K126: 2467
H127: Interest on opening balance | I127: 8 | J127: 332 | K127: 148
H128: Under/over recovery of revenue for regulatory year | I128: 5712 | J128: –3790 | K128: –2540a
H129: Interest on under/over recovery for regulatory year | I129: 141 | J129: –103 | K129: –75
H130: Closing balance | I130: 6028 | J130: 2467 | K130: 0c
G131: Notes: | H131: (a) Approved DPPC revenue under/over recovery for regulatory year t.
H132: (b) Opening balance is the previous year's closing balance.
H133: (c)The DNSP is expected to achieve a closing balance as close to zero as practicable in its DPPC unders and overs account in each forecast year in its annual pricing Proposals in the 2016–20 regulatory control period.
H139: Table 14.3 Example calculation of jurisdictional scheme amounts unders and overs account ($'000, nominal)
I140: Year t–2 | J140: Year t–1 | K140: Year t
I141: (actual) | J141: (estimate) | K141: (forecast)
H142: (A) Revenue from jurisdictional schemes | I142: 19 777 | J142: 23 121 | K142: 26 965
H143: (B) Less jurisdictional scheme payments for regulatory year = | I143: 20 272 | J143: 20 959 | K143: 28 641
H144: + Jurisdictional scheme 1 payments | I144: 14 159 | J144: 13 954 | K144: 13 961
H145: + Jurisdictional scheme 2 payments | I145: 6113 | J145: 7005 | K145: 14 680
H147: (A minus B) Under/over recovery of revenue for regulatory year | I147: –495 | J147: 2162 | K147: –1676a
H149: Jurisdictional scheme amount unders and overs account
H150: Nominal WACC (per cent) | I150: 0.05 | J150: 0.055 | K150: 0.06
H151: Opening balance | I151: –52 | J151: –562b | K151: 1628
H152: Interest on opening balance | I152: –3 | J152: –31 | K152: 98
H153: Under/over recovery of revenue for regulatory year | I153: –495 | J153: 2162 | K153: –1676a
H154: Interest on under/over recovery for regulatory year | I154: –12 | J154: 59 | K154: –50
H155: Closing balance | I155: –562 | J155: 1628 | K155: 0c
G156: Notes: | H156: (a) Approved jurisdictional scheme amounts revenue under/over recovery for regulatory year t.
H157: (b) Opening balance is the previous year's closing balance.
H158: (c) The DNSP is expected to achieve a closing balance as close to zero as practicable in its jurisdictional scheme amount unders and overs account in each forecast year in its annual pricing Proposals in the 2016–20 regulatory control period.
B166: Metering
B167: Figure 16.3 | C167: Annual metering charges revenue cap formula
A168: (1) | H168: i=1,..,n and j=1,..,m and t=1,..,5
A170: (2) | H170: t = 1,2,…,5
A172: (3) | H172: t = 1,2,…,5
B175: where;
C176: is the total annual revenue for annual metering charges in year t.
E177: is the price of component 'j' of metering service 'i' in year t.
E178: is the forecast quantity of component 'j' of metering service 'i' in year t.
D179: is the annual revenue requirement for year t. When year t is the first year of the 2016–20 regulatory control period,
D180: is the annual revenue requirement in the annual metering charges Post Tax Revenue Model (PTRM) for year t.
E181: is equal to zero for all years except 2017 and is a once off adjustment to 2017 charges for the unders and overs recoveries relating to Advanced Metering Infrastructure actual revenues and actual costs incurred in 2014 and 2015.
E182: is the sum of annual adjustment factors in year t as calculated in the unders and overs account in appendix C.
D184: is the annual revenue requirement for year t–1.
C185: is the annual percentage change in the ABS CPI All Groups, Weighted Average of Eight Capital Cities[39] from the June quarter in year t–2 to the June quarter in year t–1, calculated using the following method:
B186: The ABS CPI All Groups, Weighted Average of Eight Capital Cities for the June quarter in regulatory year t–1
B187: divided by
B188: The ABS CPI All Groups, Weighted Average of Eight Capital Cities for the June quarter in regulatory year t–2
B189: minus one.
B190: For example, for the 2017 regulatory year, t–2 is June quarter 2015 and t–1 is June quarter 2016 and for the 2018 regulatory year, t–2 is June quarter 2016 and t–1 is June quarter 2017 and so on.
D191: is the X factor for each year of the 2016–20 regulatory control period as determined in the annual metering charges PTRM.
B194: [39] | C194: If the ABS does not or ceases to publish the index, then CPI will mean an index which the AER considers is the best available alternative index
B199: Figure 16.4 Side constraints
B201: where:
E202: is the price of annual metering charges service 'i' in year t.
D203: is the price of annual metering charges service 'i' in year t–1.
C204: is the annual percentage change in the ABS CPI All Groups, Weighted Average of Eight Capital Cities from the June quarter in year t–2 to the June quarter in year t–1, calculated using the following method:
B205: The ABS CPI All Groups, Weighted Average of Eight Capital Cities[40] for the June quarter in regulatory year t–1
B206: divided by
B207: The ABS CPI All Groups, Weighted Average of Eight Capital Cities for the June quarter in regulatory year t–2
B208: minus one.
B209: For example, for the 2017 regulatory year, t–2 is June quarter 2015 and t–1 is June quarter 2016 and for the 2018 regulatory year, t–2 is June quarter 2016 and t–1 is June quarter 2017 and so on.
D210: is the X factor for each year of the 2016–20 regulatory control period as determined in the annual metering charges PTRM.
E211: is the annual percentage change for the unders and overs recoveries relating to Advanced Metering Infrastructure actual revenues and actual costs incurred in 2014 and 2015. It is equal to zero for all years except 2017 and is a once off adjustment to 2017 charges.
E212: is the annual percentage change from the sum of annual adjustment factors in year t as calculated in the unders and overs account in appendix C.
B213: With the exception of the CPI and the X factor, the percentage for each of the other factors above can be calculated by dividing the incremental revenues (as used in the total annual revenue formula) for each factor by the expected revenues for regulatory year t–1 (based on the prices in year t–1 multiplied by the forecast quantities for year t).
B215: [40] | C215: If the ABS does not or ceases to publish the index, then CPI will mean an index which the AER considers is the best available alternative index.
H220: Table 16.xx | I220: Example calculation of annual metering charges unders and overs account ($'000, nominal)
I221: Year t–2 | J221: Year t–1 | K221: Year t
I222: (actual) | J222: (estimate) | K222: (forecast)
H223: (A) Revenue from annual metering charges | I223: 8 449 | J223: 7 389 | K223: 6 460
H224: (B) Less TARM for regulatory year = | I224: 7 366 | J224: 7 422 | K224: 7 573
H225: + Annual revenue requirement (ARt) | I225: 7 349 | J225: 7 412 | K225: 7 559
H226: + T factor (Tt) – true‑ups relating to the AMI–Order in Council | I226: 17 | J226: 10 | K226: 14
H228: (A minus B) Under/over recovery of revenue for regulatory year | I228: 1 083 | J228: –33 | K228: –1 113a
H230: Annual metering charges unders and overs account
H231: Nominal WACC (per cent) | I231: 0.05 | J231: 0.055 | K231: 0.06
H232: Opening balance | I232: –50 | J232: 1 057b | K232: 1 081
H233: Interest on opening balance | I233: –3 | J233: 58 | K233: 65
H234: Under/over recovery of revenue for regulatory year | I234: 1 083 | J234: –33 | K234: –1 113b
H235: Interest on under/over recovery for regulatory year | I235: 27 | J235: –1 | K235: –33
H236: Closing balance | I236: 1 057 | J236: 1 081 | K236: 0c
G237: Notes: | H237: (a) Approved annual metering charges revenue under/over recovery for regulatory year t. This is the Bt parameter in the annual metering charges revenue cap formula.
H238: (b) Opening balance is the previous year's closing balance.
H239: (c) The DNSP is expected to achieve a closing balance as close to zero as practicable in its annual metering charges unders and overs account in each forecast year in its annual pricing Proposals in the 2016–20 regulatory control period.

Sheet Model update
A3: Tariff Approval Template for | C3: =A58 -> United Energy
A5: calendar year commencing | C5: 2018
A7: t | B7: = | C7: =C5 -> 2018
A8: t-1 | B8: = | C8: =C7-1 -> 2017
A9: t-2 | B9: = | C9: =C8-1 -> 2016
A10: t-3 | B10: = | C10: =C9-1 -> 2015
A11: t-4 | B11: = | C11: =C10-1 -> 2014
A13: Please fill in yellow highlighted cells where appropriate
A15: CPI | B15: The ABS changed the index reference base in September 2012 from 1989-90 to 2011-12.
A16: CPI Index Sept 2011 | C16: 99.8
A17: CPI Index Sept 2012 | C17: 101.8 | E17: CPI 2013 | F17: =C17/C16-1 -> 0.02004008016
A18: CPI Index Sept 2013 | C18: 104 | E18: CPI 2014 | F18: =C18/C17-1 -> 0.02161100196
A19: CPI Index Sept 2014 | C19: 106.4 | E19: CPI 2015 | F19: =C19/C18-1 -> 0.02307692308
A20: CPI Index Sept 2015 | C20: 108 | E20: CPI 2016 | F20: =C20/C19-1 -> 0.01503759398
A21: CPI Index June 2015 | C21: 107.5
A22: CPI Index June 2016 | C22: 108.6 | E22: CPI 2017 | F22: =IF(OR(C21="",C22=""),0,C22/C21-1) -> 0.01023255814
A23: CPI Index June 2017 | C23: 110.7 | E23: CPI 2018 | F23: =IF(OR(C22="",C23=""),0,C23/C22-1) -> 0.01933701657
A24: CPI Index June 2018 | E24: CPI 2019 | F24: =IF(OR(C23="",C24=""),0,C24/C23-1) -> 0
A25: CPI Index June 2019 | E25: CPI 2020 | F25: =IF(OR(C24="",C25=""),0,C25/C24-1) -> 0
A28: ="CPI " &$C$9 -> CPI 2016 | C28: =VLOOKUP(A28,E$17:F$25,2,FALSE) -> 0.01503759398 | D28: (t-2)
A29: ="CPI " &$C$8 -> CPI 2017 | C29: =VLOOKUP(A29,E$17:F$25,2,FALSE) -> 0.01023255814 | D29: (t-1)
A30: ="CPI " &$C$5 -> CPI 2018 | C30: =VLOOKUP(A30,E$17:F$25,2,FALSE) -> 0.01933701657 | D30: (t)
A35: Real Vanilla WACC (rvw)
A36: ="rvw for "&C$5 -> rvw for 2018 | D36: rvw for 2016 | E36: rvw for 2017 | F36: rvw for 2018 | G36: rvw for 2019 | H36: rvw for 2020
A37: =$A$54 -> Jemena | B37: =HLOOKUP($A$36,$D$36:$H$41,2,FALSE) -> 0.0384827082 | D37: 0.03959695909 | E37: 0.03899874743 | F37: 0.0384827082 | G37: 0.0384827082 | H37: 0.0384827082
A38: =$A$55 -> CitiPower | B38: =HLOOKUP($A$36,$D$36:$H$41,3,FALSE) -> 0.03589785446 | D38: 0.03696767584 | E38: 0.03639507276 | F38: 0.03589785446 | G38: 0.03589785446 | H38: 0.03589785446
A39: =$A$56 -> Powercor | B39: =HLOOKUP($A$36,$D$36:$H$41,4,FALSE) -> 0.03589785446 | D39: 0.03696767584 | E39: 0.03639507276 | F39: 0.03589785446 | G39: 0.03589785446 | H39: 0.03589785446
A40: =$A$57 -> AusNet Services | B40: =HLOOKUP($A$36,$D$36:$H$41,5,FALSE) -> 0.03828127548 | D40: 0.03898496731 | E40: 0.03853039129 | F40: 0.03828127548 | G40: 0.03828127548 | H40: 0.03828127548
A41: =$A$58 -> United Energy | B41: =HLOOKUP($A$36,$D$36:$H$41,6,FALSE) -> 0.03839184135 | D41: 0.03959852119 | E41: 0.03896319849 | F41: 0.03839184135 | G41: 0.03839184135 | H41: 0.03839184135
A43: ="rvw (t) "&C$5 -> rvw (t) 2018 | B43: =VLOOKUP(C$3,A37:B41,2,FALSE) -> 0.03839184135 | C43: (t) | D43: =VLOOKUP($C$3,$A$37:$H$41,4,FALSE) -> 0.03959852119 | E43: =VLOOKUP($C$3,$A37:$H$41,5,FALSE) -> 0.03896319849 | F43: =VLOOKUP($C$3,$A$37:$H$41,6,FALSE) -> 0.03839184135 | G43: =VLOOKUP($C$3,$A$37:$H$41,7,FALSE) -> 0.03839184135 | H43: =VLOOKUP($C$3,$A$37:$H$41,8,FALSE) -> 0.03839184135
A45: ="rvw for "&C$5-1 -> rvw for 2017 | B45: =IF(C$5=2016,F$183,HLOOKUP($A45,D$36:H$43,8,FALSE)) -> 0.03896319849 | C45: (t-1)
A47: ="rvw for "&C$5-2 -> rvw for 2016 | B47: =IF(OR(C$5=2016,C$5=2017),F$183,HLOOKUP($A47,D$36:H$43,8,FALSE)) -> 0.03959852119 | C47: (t-2)
A52: DuoS
A53: ="Xt for "&C$5 -> Xt for 2018 | D53: AR for 2016 | E53: Xt for 2017 | F53: Xt for 2018 | G53: Xt for 2019 | H53: Xt for 2020
A54: Jemena | B54: =IF(C$5=2016,"n/a",HLOOKUP($A$53,$E$53:$H$58,2,FALSE)) -> 0.0027 | D54: 238498758 | E54: -0.0325 | F54: 0.0027 | G54: -0.0202 | H54: -0.02
A55: CitiPower | B55: =IF(C$5=2016,"n/a",HLOOKUP($A$53,$E$53:$H$58,3,FALSE)) -> -0.0005 | D55: 282881283 | E55: 0.004 | F55: -0.0005 | G55: -0.012 | H55: -0.024
A56: Powercor | B56: =IF(C$5=2016,"n/a",HLOOKUP($A$53,$E$53:$H$58,4,FALSE)) -> -0.0081 | D56: 621773294 | E56: 0.0468 | F56: -0.0081 | G56: -0.018 | H56: -0.026
A57: AusNet Services | B57: =IF(C$5=2016,"n/a",HLOOKUP($A$53,$E$53:$H$58,5,FALSE)) -> -0.0184 | D57: 586045137 | E57: 0.003 | F57: -0.0184 | G57: -0.025 | H57: -0.03
A58: United Energy | B58: =IF(C$5=2016,"n/a",HLOOKUP($A$53,$E$53:$H$58,6,FALSE)) -> -0.0316 | D58: 375069867 | E58: -0.0383 | F58: -0.0316 | G58: -0.035 | H58: 0
A60: ="Xt for"&C$5 -> Xt for2018 | B60: =VLOOKUP(C$3,A54:B58,2,FALSE) -> -0.0316 | D60: =VLOOKUP($C$3,$A$54:$H$58,4,FALSE) -> 375069867 | E60: =VLOOKUP($C$3,$A$54:$H$58,5,FALSE) -> -0.0383 | F60: =VLOOKUP($C$3,$A$54:$H$58,6,FALSE) -> -0.0316 | G60: =VLOOKUP($C$3,$A$54:$H$58,7,FALSE) -> -0.035 | H60: =VLOOKUP($C$3,$A$54:$H$58,8,FALSE) -> 0
A64: Metering
A65: ="Xt for "&C$5 -> Xt for 2018 | D65: AR for 2016 | E65: Xt for 2017 | F65: Xt for 2018 | G65: Xt for 2019 | H65: Xt for 2020
A66: Jemena | B66: =IF(C$5=2016,"n/a",HLOOKUP($A$65,$E$65:$H$70,2,FALSE)) -> -0.0136 | D66: 44212949.02 | E66: 0.3473 | F66: -0.0136 | G66: -0.015 | H66: -0.015
A67: CitiPower | B67: =IF(C$5=2016,"n/a",HLOOKUP($A$65,$E$65:$H$70,3,FALSE)) -> 0.0767 | D67: 32973195.04 | E67: 0.1402 | F67: 0.0767 | G67: 0.075 | H67: 0.075
A68: Powercor | B68: =IF(C$5=2016,"n/a",HLOOKUP($A$65,$E$65:$H$70,4,FALSE)) -> 0.0819 | D68: 79145313.2 | E68: 0.1096 | F68: 0.0819 | G68: 0.08 | H68: 0.08
A69: AusNet Services | B69: =IF(C$5=2016,"n/a",HLOOKUP($A$65,$E$65:$H$70,5,FALSE)) -> 0.1658 | D69: 92754610.44 | E69: 0.0231 | F69: 0.1658 | G69: 0.165 | H69: 0.165
A70: United Energy | B70: =IF(C$5=2016,"n/a",HLOOKUP($A$65,$E$65:$H$70,6,FALSE)) -> 0.057 | D70: 62733316.95 | E70: 0.3081 | F70: 0.057 | G70: 0.055 | H70: 0.055
A72: ="Xt for"&C$5 -> Xt for2018 | B72: =VLOOKUP(C$3,A66:B70,2,FALSE) -> 0.057 | D72: =VLOOKUP($C$3,$A$66:$H$70,4,FALSE) -> 62733316.95 | E72: =VLOOKUP($C$3,$A$66:$H$70,5,FALSE) -> 0.3081 | F72: =VLOOKUP($C$3,$A$66:$H$70,6,FALSE) -> 0.057 | G72: =VLOOKUP($C$3,$A$66:$H$70,7,FALSE) -> 0.055 | H72: =VLOOKUP($C$3,$A$66:$H$70,8,FALSE) -> 0.055
A76: DuoS
A77: Real Pre-tax WACC (rptw)
A78: ="rptw for "&C$5 -> rptw for 2018 | D78: rptw for 2016 | E78: rptw for 2017 | F78: rptw for 2018 | G78: rptw for 2019 | H78: rptw for 2020
A79: =$A$54 -> Jemena | B79: =HLOOKUP($A$78,$D$78:$H$83,2,FALSE) -> 0.04611949618 | D79: 0.04723374708 | E79: 0.04663553542 | F79: 0.04611949618
A80: =$A$55 -> CitiPower | B80: =HLOOKUP($A$78,$D$78:$H$83,3,FALSE) -> 0.0433987454 | D80: 0.04446856678 | E80: 0.0438959637 | F80: 0.0433987454
A81: =$A$56 -> Powercor | B81: =HLOOKUP($A$78,$D$78:$H$83,4,FALSE) -> 0.0424010669 | D81: 0.04347088828 | E81: 0.0428982852 | F81: 0.0424010669
A82: =$A$57 -> AusNet Services | B82: =HLOOKUP($A$78,$D$78:$H$83,5,FALSE) -> 0.04463507863 | D82: 0.04533877046 | E82: 0.04488419444 | F82: 0.04463507863
A83: =$A$58 -> United Energy | B83: =HLOOKUP($A$78,$D$78:$H$83,6,FALSE) -> 0.04698513788 | D83: 0.04819181771 | E83: 0.04755649502 | F83: 0.04698513788
A85: ="rptw (t) "&C$5 -> rptw (t) 2018 | B85: =VLOOKUP(C$3,A79:B83,2,FALSE) -> 0.04698513788 | C85: (t) | D85: =VLOOKUP($C$3,$A$79:$H$83,4,FALSE) -> 0.04819181771 | E85: =VLOOKUP($C$3,$A79:$H$83,5,FALSE) -> 0.04755649502 | F85: =VLOOKUP($C$3,$A$79:$H$83,6,FALSE) -> 0.04698513788 | G85: =VLOOKUP($C$3,$A$79:$H$83,7,FALSE) -> 0 | H85: =VLOOKUP($C$3,$A$79:$H$83,8,FALSE) -> 0
A87: ="rptw for "&C$5-1 -> rptw for 2017 | B87: =IF(C$5=2016,B$183,HLOOKUP($A87,D$78:H$85,8,FALSE)) -> 0.04755649502 | C87: (t-1)
A89: ="rptw for "&C$5-2 -> rptw for 2016 | B89: =IF(OR(C$5=2016,C$5=2017),B$183,HLOOKUP($A89,D$78:H$85,8,FALSE)) -> 0.04819181771 | C89: (t-2)
A93: F factor Scheme | B93: =$C$5 -> 2018 | D93: 2016 | E93: =+D93+1 -> 2017 | F93: =+E93+1 -> 2018 | G93: =+F93+1 -> 2019 | H93: =+G93+1 -> 2020
A94: =$A$54 -> Jemena | B94: =HLOOKUP($B$93,$D$93:$H$98,2,FALSE) -> 655000 | D94: -680000 | E94: 70000 | F94: 655000
A95: =$A$55 -> CitiPower | B95: =HLOOKUP($B$93,$D$93:$H$98,3,FALSE) -> 140000 | D95: -15000 | E95: 410000 | F95: 140000
A96: =$A$56 -> Powercor | B96: =HLOOKUP($B$93,$D$93:$H$98,4,FALSE) -> 1755000 | D96: -1530000 | E96: 1420000 | F96: 1755000
A97: =$A$57 -> AusNet Services | B97: =HLOOKUP($B$93,$D$93:$H$98,5,FALSE) -> 750000 | D97: 1870000 | E97: 3420000 | F97: 750000
A98: =$A$58 -> United Energy | B98: =HLOOKUP($B$93,$D$93:$H$98,6,FALSE) -> 1000000 | D98: -2245000 | E98: 555000 | F98: 1000000
A100: ="Ifactor (t) "&C$5 -> Ifactor (t) 2018 | B100: =VLOOKUP(C$3,A94:B98,2,FALSE) -> 1000000 | D100: =VLOOKUP($C$3,$A$94:$H$98,4,FALSE) -> -2245000 | E100: =VLOOKUP($C$3,$A$94:$H$98,5,FALSE) -> 555000 | F100: =VLOOKUP($C$3,$A$94:$H$98,6,FALSE) -> 1000000 | G100: =VLOOKUP($C$3,$A$94:$H$98,7,FALSE) -> 0 | H100: =VLOOKUP($C$3,$A$94:$H$98,8,FALSE) -> 0
A104: S factor Scheme | B104: =$C$5 -> 2018 | D104: 2016 | E104: =+D104+1 -> 2017 | F104: =+E104+1 -> 2018 | G104: =+F104+1 -> 2019 | H104: =+G104+1 -> 2020
A105: =$A$54 -> Jemena | B105: =HLOOKUP($B$104,$D$104:$H$109,2,FALSE) -> -0.03971153723 | D105: 0.03997406406 | E105: 0.01488310469 | F105: -0.03971153723
A106: =$A$55 -> CitiPower | B106: =HLOOKUP($B$104,$D$104:$H$109,3,FALSE) -> 0.01857052664 | D106: -0.01268789003 | E106: 0.004032145684 | F106: 0.01857052664
A107: =$A$56 -> Powercor | B107: =HLOOKUP($B$104,$D$104:$H$109,4,FALSE) -> -0.01384168227 | D107: -0.01184910821 | E107: 0.05100648542 | F107: -0.01384168227
A108: =$A$57 -> AusNet Services | B108: =HLOOKUP($B$104,$D$104:$H$109,5,FALSE) -> -0.06343364122 | D108: 0.03357397489 | E108: 0.03217876587 | F108: -0.06343364122
A109: =$A$58 -> United Energy | B109: =HLOOKUP($B$104,$D$104:$H$109,6,FALSE) -> 0.02276703882 | D109: -0.02947870448 | E109: 0.02836672327 | F109: 0.02276703882
A111: ="S factor (t) "&C$5 -> S factor (t) 2018 | B111: =VLOOKUP(C$3,A105:B109,2,FALSE) -> 0.02276703882 | D111: =VLOOKUP($C$3,$A$105:$H$109,4,FALSE) -> -0.02947870448 | E111: =VLOOKUP($C$3,$A$105:$H$109,5,FALSE) -> 0.02836672327 | F111: =VLOOKUP($C$3,$A$105:$H$109,6,FALSE) -> 0.02276703882 | G111: =VLOOKUP($C$3,$A$105:$H$109,7,FALSE) -> 0 | H111: =VLOOKUP($C$3,$A$105:$H$109,8,FALSE) -> 0
A115: Pass through Amounts | B115: =$C$5 -> 2018 | D115: 2016 | E115: =+D115+1 -> 2017 | F115: =+E115+1 -> 2018 | G115: =+F115+1 -> 2019 | H115: =+G115+1 -> 2020
A116: =$A$54 -> Jemena | B116: =HLOOKUP($B$115,$D$115:$H$120,2,FALSE) -> 0 | D116: 0 | E116: 0 | F116: 0
A117: =$A$55 -> CitiPower | B117: =HLOOKUP($B$115,$D$115:$H$120,3,FALSE) -> 0 | D117: 0 | E117: 0 | F117: 0
A118: =$A$56 -> Powercor | B118: =HLOOKUP($B$115,$D$115:$H$120,4,FALSE) -> 0 | D118: 0 | E118: 0 | F118: 0
A119: =$A$57 -> AusNet Services | B119: =HLOOKUP($B$115,$D$115:$H$120,5,FALSE) -> 0 | D119: =-(5723000*(1+0.0975)) -> -6280992.5 | E119: 0 | F119: 0
A120: =$A$58 -> United Energy | B120: =HLOOKUP($B$115,$D$115:$H$120,6,FALSE) -> 0 | D120: 0 | E120: 0 | F120: 0
A122: ="Pass through amounts (t) "&C$5 -> Pass through amounts (t) 2018 | B122: =VLOOKUP(C$3,A116:B120,2,FALSE) -> 0 | D122: =VLOOKUP($C$3,$A$116:$H$120,4,FALSE) -> 0 | E122: =VLOOKUP($C$3,$A$116:$H$120,5,FALSE) -> 0 | F122: =VLOOKUP($C$3,$A$116:$H$120,6,FALSE) -> 0 | G122: =VLOOKUP($C$3,$A$116:$H$120,7,FALSE) -> 0 | H122: =VLOOKUP($C$3,$A$116:$H$120,8,FALSE) -> 0
A126: License Fees | B126: =$C$5 -> 2018 | D126: 2016 | E126: =+D126+1 -> 2017 | F126: =+E126+1 -> 2018 | G126: =+F126+1 -> 2019 | H126: =+G126+1 -> 2020
A127: =$A$54 -> Jemena | B127: =HLOOKUP($B$126,$D$126:$H$131,2,FALSE) -> 76545 | D127: 36033 | E127: 39516 | F127: 76545
A128: =$A$55 -> CitiPower | B128: =HLOOKUP($B$126,$D$126:$H$131,3,FALSE) -> 78091 | D128: 36475 | E128: 40445 | F128: 78091
A129: =$A$56 -> Powercor | B129: =HLOOKUP($B$126,$D$126:$H$131,4,FALSE) -> 185081 | D129: 85205 | E129: 94964 | F129: 185081
A130: =$A$57 -> AusNet Services | B130: =HLOOKUP($B$126,$D$126:$H$131,5,FALSE) -> 168235 | D130: 74811 | E130: 85031 | F130: 168235
A131: =$A$58 -> United Energy | B131: =HLOOKUP($B$126,$D$126:$H$131,6,FALSE) -> 158262 | D131: 74197 | E131: 81712 | F131: 158262
A133: ="Licence Fee (t-1) "&C$5-1 -> Licence Fee (t-1) 2017 | B133: =VLOOKUP(C$3,A127:B131,2,FALSE) -> 158262 | D133: =VLOOKUP($C$3,$A$127:$H$131,4,FALSE) -> 74197 | E133: =VLOOKUP($C$3,$A$127:$H$131,5,FALSE) -> 81712 | F133: =VLOOKUP($C$3,$A$127:$H$131,6,FALSE) -> 158262 | G133: =VLOOKUP($C$3,$A$127:$H$131,7,FALSE) -> 0 | H133: =VLOOKUP($C$3,$A$127:$H$131,8,FALSE) -> 0
A137: DMIA Carryover adjustment | B137: =$C$5 -> 2018 | D137: 2016 | E137: =+D137+1 -> 2017 | F137: =+E137+1 -> 2018 | G137: =+F137+1 -> 2019 | H137: =+G137+1 -> 2020
A138: =$A$54 -> Jemena | B138: =HLOOKUP($B$137,$D$137:$H$142,2,FALSE) -> 0 | E138: =H154 -> -91286.96254
A139: =$A$55 -> CitiPower | B139: =HLOOKUP($B$137,$D$137:$H$142,3,FALSE) -> 0
A140: =$A$56 -> Powercor | B140: =HLOOKUP($B$137,$D$137:$H$142,4,FALSE) -> 0
A141: =$A$57 -> AusNet Services | B141: =HLOOKUP($B$137,$D$137:$H$142,5,FALSE) -> 0
A142: =$A$58 -> United Energy | B142: =HLOOKUP($B$137,$D$137:$H$142,6,FALSE) -> 0 | E142: =H163 -> -479908.4001
A144: ="T factor (t) "&C$5 -> T factor (t) 2018 | B144: =VLOOKUP(C$3,A138:B142,2,FALSE) -> 0 | D144: =VLOOKUP($C$3,$A$138:$H$142,4,FALSE) -> 0 | E144: =VLOOKUP($C$3,$A$138:$H$142,5,FALSE) -> -479908.4001 | F144: =VLOOKUP($C$3,$A$138:$H$142,6,FALSE) -> 0 | G144: =VLOOKUP($C$3,$A$138:$H$142,7,FALSE) -> 0 | H144: =VLOOKUP($C$3,$A$138:$H$142,8,FALSE) -> 0
A147: DMIA Carryover adjustment
A148: Jemena | C148: 2011-15 | D148: 2016 | E148: 2017
A149: CPI - PTRM | D149: 0.02323079821 | E149: 0.02323079821
A150: Nominal Vanilla WACC - PTRM | C150: 0.1033058648 | D150: =(1+D149)*(1+D37)-1 -> 0.06374762627 | E150: =(1+E149)*(1+E37)-1 -> 0.06313551768
C152: 2011 | D152: 2012 | E152: 2013 | F152: 2014 | G152: 2015 | H152: Total
A153: Ex-ante revenue minus ex post expenditure ($nominal) | C153: -263938 | D153: -16375.4 | E153: 163676.6714 | F153: 153066.6261 | G153: 125690.5855 | H153: =SUM(C153:G153) -> 162120.4829
A154: DMIA Carryover adjustment | C154: =0-(C153/(1+$C150))*(1+$C150)^5*(1+$D150)*(1+$E150) -> 442295.8453 | D154: =C154-(D153/(1+$C150))*(1+$C150)^4*(1+$D150)*(1+$E150) -> 467167.6289 | E154: =D154-(E153/(1+$C150))*(1+$C150)^3*(1+$D150)*(1+$E150) -> 241844.4502 | F154: =E154-(F153/(1+$C150))*(1+$C150)^2*(1+$D150)*(1+$E150) -> 50857.51142 | G154: =F154-(G153/(1+$C150))*(1+$C150)^1*(1+$D150)*(1+$E150) -> -91286.96254 | H154: =G154 -> -91286.96254
A157: UED | C157: 2011-15 | D157: 2016 | E157: 2017
A158: CPI - PTRM | D158: 0.02323079821 | E158: 0.02323079821
A159: Nominal Vanilla WACC - PTRM | C159: 0.09489772882 | D159: =(1+D158)*(1+D41)-1 -> 0.06374922465 | E159: =(1+E158)*(1+E41)-1 -> 0.0630991429
C161: 2011 | D161: 2012 | E161: 2013 | F161: 2014 | G161: 2015 | H161: Total
A162: Ex-ante revenue minus ex post expenditure ($nominal) | C162: 406960 | D162: 327739.2 | E162: 91075.34272 | F162: -227853.7479 | G162: -450364.8291 | H162: =SUM(C162:G162) -> 147555.9658
A163: DMIA Carryover adjustment | C163: =0-(C162/(1+$C159))*(1+$C159)^5*(1+$D159)*(1+$E159) -> -661392.0476 | D163: =C163-(D162/(1+$C159))*(1+$C159)^4*(1+$D159)*(1+$E159) -> -1147868.786 | E163: =D163-(E162/(1+$C159))*(1+$C159)^3*(1+$D159)*(1+$E159) -> -1271338.644 | F163: =E163-(F162/(1+$C159))*(1+$C159)^2*(1+$D159)*(1+$E159) -> -989212.8748 | G163: =F163-(G162/(1+$C159))*(1+$C159)^1*(1+$D159)*(1+$E159) -> -479908.4001 | H163: =G163 -> -479908.4001
A172: Regulatory Period 2011-15
A174: DuoS
A175: Real Pre-tax WACC for distribution tariffs | D175: Real Vanilla WACC for distribution tariffs
A177: =$A$54 -> Jemena | B177: 0.087 | D177: =$A$54 -> Jemena | F177: 0.0756
A178: =$A$55 -> CitiPower | B178: 0.0786 | D178: =$A$55 -> CitiPower | F178: 0.0674
A179: =$A$56 -> Powercor | B179: 0.0776 | D179: =$A$56 -> Powercor | F179: 0.0674
A180: =$A$57 -> AusNet Services | B180: 0.078 | D180: =$A$57 -> AusNet Services | F180: 0.0699
A181: =$A$58 -> United Energy | B181: 0.0791 | D181: =$A$58 -> United Energy | F181: 0.0674
A183: pretax WACCD | B183: =VLOOKUP($C$3,A177:B181,2,FALSE) -> 0.0791 | D183: Real Vanilla WACCD | F183: =VLOOKUP($C$3,D177:F181,3,FALSE) -> 0.0674
A188: Pass Through Costs | E188: 2014 | F188: 2015
A190: =A204 -> F Factor pass through | E190: =B204 -> 980000 | F190: =C204 -> -70000
A191: VBRC | E191: =B215 -> 0 | F191: =C215 -> 0
A192: Powerline Replacement program | E192: =B226 -> 0 | F192: =C226 -> 0
A193: TOTAL PASS THROUGH AMOUNTS | E193: =SUM(E190:E192) -> 980000 | F193: =SUM(F190:F192) -> -70000
A197: F factor Scheme | B197: 2014 | C197: 2015
A198: =$A$54 -> Jemena | B198: 370000 | C198: -855000
A199: =$A$55 -> CitiPower | B199: 10000 | C199: -65000
A200: =$A$56 -> Powercor | B200: 2470000 | C200: -2405000
A201: =$A$57 -> AusNet Services | B201: 1970000 | C201: 2020000
A202: =$A$58 -> United Energy | B202: 980000 | C202: -70000
A204: F Factor pass through | B204: =VLOOKUP($C$3,$A$198:$C$202,2,FALSE) -> 980000 | C204: =VLOOKUP($C$3,$A$198:$C$202,3,FALSE) -> -70000
A208: VBRC | B208: 2014 | C208: 2015
A209: =$A$54 -> Jemena | B209: 0 | C209: 0
A210: =$A$55 -> CitiPower | B210: 0 | C210: 0
A211: =$A$56 -> Powercor | B211: =H245 -> 7193170.454 | C211: =I245 -> 8768550.378
A212: =$A$57 -> AusNet Services | B212: =H262 -> 6039778.158 | C212: =I262 -> 8341755.212
A213: =$A$58 -> United Energy | B213: 0 | C213: 0
A215: VBRC pass through | B215: =VLOOKUP($C$3,$A$209:$C$213,2,FALSE) -> 0 | C215: =VLOOKUP($C$3,$A$209:$C$213,3,FALSE) -> 0
A219: Powerline Replacement program | B219: 2014 | C219: 2015
A220: =$A$54 -> Jemena | B220: 0 | C220: 0
A221: =$A$55 -> CitiPower | B221: 0 | C221: 0
A222: =$A$56 -> Powercor | B222: =H249 -> 0 | C222: 8777690.455
A223: =$A$57 -> AusNet Services | B223: 0 | C223: 5723419.31
A224: =$A$58 -> United Energy | B224: 0 | C224: 0
A226: Powerline Replacement program | B226: =VLOOKUP($C$3,$A$219:$C$224,2,FALSE) -> 0 | C226: =VLOOKUP($C$3,$A$219:$C$224,3,FALSE) -> 0
A231: VBRC
A233: Powercor | E233: 2011 | F233: 2012 | G233: 2013 | H233: 2014 | I233: 2015
A234: Pass through amounts approved (Nominal $) - Forecast CPI | G234: 10270612 | H234: 7181525 | I234: 8777217
A235: (As per AER's Final Decision on Powercor's VBRC pass through, table 7.2, 7 March 2012)
A236: Forecast CPI in PTRM | E236: 0.0257487534 | F236: 0.0257487534 | G236: 0.0257487534 | H236: 0.0257487534 | I236: 0.0257487534
E237: =1+E236 -> 1.025748753 | F237: =E237*(1+F236) -> 1.052160505 | G237: =F237*(1+G236) -> 1.079252326 | H237: =G237*(1+H236) -> 1.107041729 | I237: =H237*(1+I236) -> 1.135546673
A239: Pass through amounts approved (Real $2010) | G239: =G234/G237 -> 9516414.047 | H239: =H234/H237 -> 6487131.257 | I239: =I234/I237 -> 7729507.918
A242: Actual CPI | E242: =173.3/168.6-1 -> 0.02787663108 | F242: =179.4/173.3-1 -> 0.03519907675 | G242: =C17/C16-1 -> 0.02004008016 | H242: =C18/C17-1 -> 0.02161100196 | I242: =C19/C18-1 -> 0.02307692308
E243: =1+E242 -> 1.027876631 | F243: =E243*(1+F242) -> 1.06405694 | G243: =F243*(1+G242) -> 1.085380726 | H243: =G243*(1+H242) -> 1.108836891 | I243: =H243*(1+I242) -> 1.134425434
A245: Pass through amounts approved (Nominal $) - Actual CPI | G245: =G239*G243 -> 10328932.39 | H245: =H239*H243 -> 7193170.454 | I245: =I239*I243 -> 8768550.378
A250: AusNet Services | E250: 2011 | F250: 2012 | G250: 2013 | H250: 2014 | I250: 2015
A251: Pass through amounts approved (Nominal $) - Forecast CPI | G251: 5790000 | H251: 6030000 | I251: 8350000
A252: As per AER's Final Decision on AusNet Services's VBRC pass through, table 1.3, 19 October 2012
A253: Forecast CPI in PTRM | E253: 0.0257487534 | F253: 0.0257487534 | G253: 0.0257487534 | H253: 0.0257487534 | I253: 0.0257487534
E254: =1+E253 -> 1.025748753 | F254: =E254*(1+F253) -> 1.052160505 | G254: =F254*(1+G253) -> 1.079252326 | H254: =G254*(1+H253) -> 1.107041729 | I254: =H254*(1+I253) -> 1.135546673
A256: Pass through amounts approved (Real $2010) | G256: =G251/G254 -> 5364825.127 | H256: =H251/H254 -> 5446949.148 | I256: =I251/I254 -> 7353286.482
A259: Actual CPI | E259: =173.3/168.6-1 -> 0.02787663108 | F259: =179.4/173.3-1 -> 0.03519907675 | G259: =C17/C16-1 -> 0.02004008016 | H259: =C18/C17-1 -> 0.02161100196 | I259: =C19/C18-1 -> 0.02307692308
E260: =1+E259 -> 1.027876631 | F260: =E260*(1+F259) -> 1.06405694 | G260: =F260*(1+G259) -> 1.085380726 | H260: =G260*(1+H259) -> 1.108836891 | I260: =H260*(1+I259) -> 1.134425434
A262: Pass through amounts approved (Nominal $) - Actual CPI | G262: =G256*G260 -> 5822877.791 | H262: =H256*H260 -> 6039778.158 | I262: =I256*I260 -> 8341755.212
A270: AMI Transitional Adjustment in 2018 prices ($)
A271: =C3 -> United Energy
C272: 2009 | D272: 2010 | E272: 2011 | F272: 2012 | G272: 2013 | H272: 2014 | I272: 2015 | J272: 2016 | K272: 2017 | L272: 2018 | M272: 2019 | N272: 2020
A273: CPI | C273: 0.04981084489 | D273: 0.01261261261 | E273: 0.02787663108 | F273: 0.03519907675 | G273: =$F17 -> 0.02004008016 | H273: =$F18 -> 0.02161100196 | I273: =$F19 -> 0.02307692308 | J273: =$F20 -> 0.01503759398 | K273: =$F22 -> 0.01023255814 | L273: =$F23 -> 0.01933701657 | M273: =$F24 -> 0 | N273: =$F25 -> 0
A275: Vanilla' WACC (Real) | C275: 0.06771645866 | D275: =$C275 -> 0.06771645866 | E275: =$C275 -> 0.06771645866 | F275: 0.06771645866 | G275: 0.06771645866 | H275: 0.05023909437 | I275: =H275 -> 0.05023909437 | J275: =D43 -> 0.03959852119 | K275: =E43 -> 0.03896319849 | L275: =F43 -> 0.03839184135 | M275: =G43 -> 0.03839184135 | N275: =H43 -> 0.03839184135
A276: Vanilla' WACC (nominal) | C276: =(1+C275)*(1+C273)-1 -> 0.1209003176 | D276: 0.08118315273 | E276: 0.09748079647 | F276: 0.1052990922 | G276: 0.08911358208 | H276: 0.0729358135 | I276: 0.07447538116 | J276: 0.05523158166 | K276: 0.04959444983 | L276: 0.0584712416 | M276: 0.03839184135 | N276: 0.03839184135
A278: Future value index | C278: =(1+C276)^0.5 -> 1.058725799 | D278: =C278*(D276+1) -> 1.144676497 | E278: 1.256260474 | F278: 1.388543561 | G278: 1.512281652 | H278: 1.622581145 | I278: 1.743423494 | J278: 1.839715531 | K278: 1.930955211 | L278: 2.043860559 | M278: 2.122328129 | N278: 2.203808214
A280: AMI Transitional Adjustment - Revenue and Costs 2009-2015
A281: Over \ (under) recovery of revenue and costs (000's)
A282: NPV at 1 January 2009 | D282: -481.9237445
A284: AMI Transitional Adjustment in 2018 prices ($) | D284: =-D282*L278*10^3 -> 984984.9339
A286: AMI Transitional Adjustment - Revenue 2016-2020
A287: Increase \ (Reduction) in revenue 2016-2020 (000's)
A288: NPV at 1 January 2016 | D288: -4121.115231
A290: AMI Transitional Adjustment in 2018 prices ($) | D290: =D288*L278/I278*10^3 -> -4831290.223
A292: Total AMI Transitional Adjustment in 2018 prices ($) | D292: =SUM(D284,D290) -> -3846305.289

Sheet 2018 Unmetered supply
B1: ="Tariff Approval - " &'Model update'!C3 -> Tariff Approval - United Energy
B3: ="PROPOSED "&'Model update'!C5&" UNMETERED SUPPLY TARIFF" -> PROPOSED 2018 UNMETERED SUPPLY TARIFF
C4: ="P t-1 ("&'Model update'!$C$8&")" -> P t-1 (2017) | G4: ="Pt ("&'Model update'!$C$7&")" -> Pt (2018) | K4: ="Qt-2 ("&'Model update'!$C$9&")" -> Qt-2 (2016) | O4: P t-1 * Qt-2 | T4: Pt * Qt-2
C5: ($) per NMI | D5: ($) per meter | E5: ($) per light | G5: ($) per NMI | H5: ($) per meter | I5: ($) per light | K5: NMIs | L5: Meters | M5: Lights | O5: $ Comp1 | P5: $ Comp2 | Q5: $ Comp3 | R5: Total $ | T5: NMIs | U5: Meters | V5: Lights
B6: Proposed tariff | C6: ExistTarComp1 | D6: ExistTarComp2 | E6: ExistTarComp3 | G6: PropTarComp1 | H6: PropTarComp2 | I6: PropTarComp3 | K6: ActVolComp1 | L6: ActVolComp2 | M6: ActVolComp3 | O6: $Comp1 | P6: ExistRevComp2 | Q6: ExistRevComp3 | R6: Exist Rev Total | T6: $PropRevComp1 | U6: $PropRevComp2 | V6: $PropRevComp3 | W6: Total $
B7: metering data services - unmetered supplies | E7: 1.322 | I7: =ROUNDDOWN(E7*(1+C14),3) -> 1.347 | M7: 120358 | O7: =IF($B7="","",C7*K7) -> 0 | P7: =IF($B7="","",D7*L7) -> 0 | Q7: =IF($B7="","",E7*M7) -> 159113.276 | R7: =SUM(O7:Q7) -> 159113.276 | T7: =IF($B7="","",G7*K7) -> 0 | U7: =IF($B7="","",H7*L7) -> 0 | V7: =IF($B7="","",I7*M7) -> 162122.226 | W7: =SUM(T7:V7) -> 162122.226
B10: UNMETERED SUPPLY TARIFF CONTROL
B12: CPI
B14: ="CPI "&'Model update'!C5 -> CPI 2018 | C14: ='Model update'!C30 -> 0.01933701657
B19: =""&'Model update'!C5& " Unmetered Supplies price control" -> 2018 Unmetered Supplies price control
B21: Average price movement allowed | G21: =1+C14 -> 1.019337017
B23: Proposed metering tariff revenue (Pt*Qt-2) | G23: ='2018 Unmetered supply'!W7 -> 162122.226
B24: Existing metering tariff revenue (Pt-1*Qt-2) | G24: ='2018 Unmetered supply'!R7 -> 159113.276
B25: Average price movement | G25: =IF(G23>0,G23/G24,"") -> 1.018910741
B27: =IF(G25="","", IF(G25<=G21,"UNMETERED SUPPLIES PRICE CONTROL FORMULA COMPLIANT","UNMETERED SUPPLIES CONTROL FORMULA BREACHED")) -> UNMETERED SUPPLIES PRICE CONTROL FORMULA COMPLIANT

Sheet Metering
B1: ="Tariff Approval - "&'Model update'!C3 -> Tariff Approval - United Energy
B3: ="PROPOSED "&'Model update'!$C$5&" METERING TARIFFS AND REVENUE" -> PROPOSED 2018 METERING TARIFFS AND REVENUE
D5: ="Proposed Metering Tariffs P(t) for " &'Model update'!$C$5 -> Proposed Metering Tariffs P(t) for 2018 | E5: ="Current Metering Tariffs P(t-1) for" &'Model update'!$C$8 -> Current Metering Tariffs P(t-1) for2017 | F5: ="Forecast Quantities (Qt) for "&'Model update'!$C$5 -> Forecast Quantities (Qt) for 2018 | H5: ="Forecast Revenue (Pt "&'Model update'!$C$5&")*(Qt " &'Model update'!$C$5&")" -> Forecast Revenue (Pt 2018)*(Qt 2018) | I5: ="Revenue (Pt-1 "&'Model update'!$C$8&")*(Qt " &'Model update'!$C$5&")" -> Revenue (Pt-1 2017)*(Qt 2018) | K5: Movement | L5: Side Constraint
B6: Proposed tariff | C6: Existing tariff | D6: PropTar $/Cust/year | E6: ExistTar $/Cust/year | F6: FcastVol Cust # | H6: PropRev Fixed | I6: ExistRev Fixed
B8: single phase single element meter | C8: single phase single element meter | D8: 57.581 | E8: 60.88618162 | F8: 531954 | H8: =D8*F8 -> 30630443.27 | I8: =E8*F8 -> 32388647.85 | K8: =IFERROR(H8/I8,"") -> 0.9457154066 | L8: =IF(B8="","",IF(K8<$I$30,"COMPLIANT","BREACHED")) -> COMPLIANT
B9: single phase single element meter with contactor | C9: single phase single element meter with contactor | D9: 57.581 | E9: 60.88618162 | F9: 55062 | H9: 3170525.022 | I9: 3352514.932 | K9: =IFERROR(H9/I9,"") -> 0.9457154066 | L9: COMPLIANT
B10: three phase direct connected meter | C10: three phase direct connected meter | D10: 64.927 | E10: 68.65407458 | F10: 102706 | H10: 6668392.462 | I10: 7051185.384 | K10: 0.9457122595 | L10: COMPLIANT
B11: three phase Current transformer connected meter | C11: three phase Current transformer connected meter | D11: 68.845 | E11: 72.79739421 | F11: 3188 | H11: 219477.86 | I11: 232078.0927 | K11: 0.9457069274 | L11: COMPLIANT
H12: 0 | I12: 0
H13: 0 | I13: 0
H14: 0 | I14: 0
H15: 0 | I15: 0
H16: 0 | I16: 0
H17: =SUM(H7:H16) -> 40688838.62 | I17: =SUM(I7:I16) -> 43024426.26
B22: Year (t) | D22: ='Model update'!C5 -> 2018
B24: Table 1- Compliance with AER Final Determination Total Metering Annual Revenue | H24: Metering tariff rebalancing control
B25: Revenue from Metering charges for year t | D25: =H17 -> 40688838.62 | H25: ="CPI "&'Model update'!$C$5 -> CPI 2018 | I25: =D37 -> 0.01933701657
B26: Total Annual Metering Revenue for year t | D26: =D33 -> 40688838.62 | H26: ="X "& 'Model update'!$C$5 -> X 2018 | I26: =MIN(D38,0) -> 0
D27: =IF(D25="","",IF(D26>=D25,"METERING REVENUE CAP FORMULA COMPLIANT","METERING REVENUE CAP FORMULA BREACHED")) -> METERING REVENUE CAP FORMULA COMPLIANT | E27: =IF(C43=0,"",IF(C42>C43,"MAXIMUM TRANSMISSION REVENUE FORMULA COMPLIANT","MAXIMUM TRANSMISSION REVENUE FORMULA BREACHED")) ->  | H27: ="Tt "&'Model update'!$C$5 -> Tt 2018 | I27: =D31/I17 -> -0.08939817734
H28: ="Bt "&'Model update'!$C$5 -> Bt 2018 | I28: =D32/I17 -> 0.0554485847
B29: Table 2 - Total Annual Revenue for year t (TARMt)
B30: Adjusted Annual Smoothed Metering Revenue for year t | D30: =D39 -> 42149500.36 | I30: =(1+I25)*(1-I26)*(1+0.02)+SUM(I27:I28) -> 1.005774164
B31: T factor for year t | D31: ='Model update'!$D$292 -> -3846305.289
B32: B factor for year t | D32: =F57 -> 2385643.544
B33: Total Annual Revenue for year t | D33: =SUM(D30:D32) -> 40688838.62
B35: Table 3 - Adjusted Annual Revenue for year t (ARt)
B36: Adjusted Annual Smoothed Revenue for year t-1 | D36: 43849328.04
B37: CPI for period t | D37: ='Model update'!C30 -> 0.01933701657
B38: X factor for period t | D38: ='Model update'!B72 -> 0.057
B39: Adjusted Annual Smoothed Revenue for year t | D39: =IF(D22=2016,'Model update'!D72,(D36*(1+D37)*(1-D38))) -> 42149500.36
B44: Table 4 - Metering Services Recovery Arrangements
D45: Year t-2 | E45: Year t-1 | F45: Year t
D46: (actual) | E46: (estimate) | F46: (forecast)
D47: =E47-1 -> 2016 | E47: =F47-1 -> 2017 | F47: =D$22 -> 2018
B49: (A) Revenue from Metering Proposal charges | D49: 61655903.11 | E49: =E89 -> 42719995.36 | F49: =D25 -> 40688838.62
B52: (B) Less TARM for regulatory year = | D52: =SUM(D53:D54) -> 62733316.95 | E52: =SUM(E53:E54) -> 43849328.04 | F52: =SUM(F53:F54) -> 38303195.07
B53: + Adjusted annual smoothed revenue | D53: 62733316.95 | E53: =D36 -> 43849328.04 | F53: =D30 -> 42149500.36
B54: + T factor | D54: 0 | E54: 0 | F54: =D31 -> -3846305.289
B57: (A minus B) Under/over recovery of revenue for regulatory year | D57: =D49-D52 -> -1077413.837 | E57: =E49-E52 -> -1129332.688 | F57: =F49-F52 -> 2385643.544
B61: Table 5 - Metering Services Unders and Overs Account
D62: Year t-2 | E62: Year t-1 | F62: Year t
D63: (actual) | E63: (estimate) | F63: (forecast)
B64: Calendar year | D64: =E64-1 -> 2016 | E64: =F64-1 -> 2017 | F64: =D$22 -> 2018
B66: Nominal WACC | D66: =(1+'Model update'!$B$47)*(1+'Model update'!$C$28)-1 -> 0.05523158166 | E66: =(1+'Model update'!$B$45)*(1+'Model update'!$C$29)-1 -> 0.04959444983 | F66: =(1+'Model update'!$B$43)*(1+'Model update'!$C$30)-1 -> 0.0584712416
B68: Opening balance | D68: 0 | E68: =D72 -> -1106767.606 | F68: =E72 -> -2318655.278
B69: Interest on Opening balance | D69: =D68*D66 -> 0 | E69: =E68*E66 -> -54889.53048 | F69: =F68*F66 -> -135574.6529
B70: Under/over recovery of revenue for regulatory year | D70: =D57 -> -1077413.837 | E70: =E57 -> -1129332.688 | F70: =F57 -> 2385643.544
B71: Interest on under/over recovery for regulatory year | D71: =D70*((1+D66)^0.5-1) -> -29353.76851 | E71: =E70*((1+E66)^0.5-1) -> -27665.45401 | F71: =F70*((1+F66)^0.5-1) -> 68754.99963
B72: Closing balance of Metering Services overs/ (unders) account | D72: =SUM(D68:D71) -> -1106767.606 | E72: =SUM(E68:E71) -> -2318655.278 | F72: =SUM(F68:F71) -> 168.6127076
B74: The DNSP is expected to achieve a closing balance as close to zero as practicable in its annual metering charges unders and overs account in each forecast year in its annual pricing Proposals in the 2016–20 regulatory control period.
C77: ="Current Metering Tariffs P(t-1) for " &'Model update'!$C$8 -> Current Metering Tariffs P(t-1) for 2017 | D77: ="Estimated Quantities (Qt-1) for "&'Model update'!$C$5-1 -> Estimated Quantities (Qt-1) for 2017 | E77: ="Revenue (Pt-1 "&'Model update'!$C$8&")*(Qt-1 " &'Model update'!$C$5-1&")" -> Revenue (Pt-1 2017)*(Qt-1 2017)
B78: Existing tariff | C78: ExistTar $/Cust/year | D78: FcastVol Cust # | E78: ExistRev Fixed
B80: single phase single element meter | C80: =E8 -> 60.88618162 | D80: 526954 | E80: =C80*D80 -> 32084216.95
B81: single phase single element meter with contactor | C81: =E9 -> 60.88618162 | D81: 55062 | E81: 3352514.932
B82: three phase direct connected meter | C82: =E10 -> 68.65407458 | D82: 102706 | E82: 7051185.384
B83: three phase Current transformer connected meter | C83: =E11 -> 72.79739421 | D83: 3188 | E83: 232078.0927
E84: 0
E85: 0
E86: 0
E87: 0
E88: 0
E89: =SUM(E79:E88) -> 42719995.36

Sheet Prop2018DistTar
B1: ="Tariff Approval - "&'Model update'!$C$3 -> Tariff Approval - United Energy
B3: ="PROPOSED "&'Model update'!$C$5&" DISTRIBUTION TARIFFS" -> PROPOSED 2018 DISTRIBUTION TARIFFS
D4: ="Proposed Distribution Tariffs (Pt) for "&'Model update'!$C$5 -> Proposed Distribution Tariffs (Pt) for 2018 | R4: ="Current Distribution Tariffs (Pt-1) for "&'Model update'!$C$8 -> Current Distribution Tariffs (Pt-1) for 2017 | AF4: ="Forecast Quantities (Qt) for "&'Model update'!$C$5 -> Forecast Quantities (Qt) for 2018 | AT4: ="Forecast Revenue (Pt "&'Model update'!$C$5&")*(Qt " &'Model update'!$C$5&")" -> Forecast Revenue (Pt 2018)*(Qt 2018) | BI4: ="Revenue (Pt-1 "&'Model update'!$C$8&")*(Qt " &'Model update'!$C$5&")" -> Revenue (Pt-1 2017)*(Qt 2018)
B5: Proposed tariff | C5: Existing tariff | D5: PropTar Fixed | E5: PropTar PkBlk1 | F5: PropTar PkBlk2 | G5: PropTar PkBlk3 | H5: PropTar PkBlk4 | I5: PropTar OPkBlk1 | J5: PropTar OPkBlk2 | K5: PropTar OPkBlk3 | L5: PropTar OPkBlk4 | M5: PropTar DemBlk1 | N5: PropTar DemBlk2 | O5: PropTar DemBlk3 | P5: PropTar DemBlk4 | R5: ExistTar Fixed | S5: ExistTar PkBlk1 | T5: ExistTar PkBlk2 | U5: ExistTar PkBlk3 | V5: ExistTar PkBlk4 | W5: ExistTar OPkBlk1 | X5: ExistTar OPkBlk2 | Y5: ExistTar OPkBlk3 | Z5: ExistTar OPkBlk4 | AA5: ExistTar DemBlk1 | AB5: ExistTar DemBlk2 | AC5: ExistTar DemBlk3 | AD5: ExistTar DemBlk4 | AF5: FcastVol Fixed | AG5: FcastVol PkBlk1 | AH5: FcastVol PkBlk2 | AI5: FcastVol PkBlk3 | AJ5: FcastVol PkBlk4 | AK5: FcastVol OPkBlk1 | AL5: FcastVol OPkBlk2 | AM5: FcastVol OPkBlk3 | AN5: FcastVol OPkBlk4 | AO5: FcastVol DemBlk1 | AP5: FcastVol DemBlk2 | AQ5: FcastVol DemBlk3 | AR5: FcastVol DemBlk4 | AT5: PropRev Fixed | AU5: PropRev PkBlk1 | AV5: PropRev PkBlk2 | AW5: PropRev PkBlk3 | AX5: PropRev PkBlk4 | AY5: PropRev OPkBlk1 | AZ5: PropRev OPkBlk2 | BA5: PropRev OPkBlk3 | BB5: PropRev OPkBlk4 | BC5: PropRev DemBlk1 | BD5: PropRev DemBlk2 | BE5: PropRev DemBlk3 | BF5: PropRev DemBlk4 | BG5: PropRev Total | BI5: ExistRev Fixed | BJ5: ExistRev PkBlk1 | BK5: ExistRev PkBlk2 | BL5: ExistRev PkBlk3 | BM5: ExistRev PkBlk4 | BN5: ExistRev OPkBlk1 | BO5: ExistRev OPkBlk2 | BP5: ExistRev OPkBlk3 | BQ5: ExistRev OPkBlk4 | BR5: ExistRev DemBlk1 | BS5: ExistRev DemBlk2 | BT5: ExistRev DemBlk3 | BU5: ExistRev DemBlk4 | BV5: ExistRev Total
B6: Low voltage small 1 rate | C6: Low voltage small 1 rate | D6: 6.865 | E6: 8.465 | F6: 0 | G6: 0 | H6: 5.449 | I6: 0 | J6: 0 | K6: 0 | L6: 0 | M6: 0 | N6: 0 | O6: 0 | P6: 0 | R6: 6.652 | S6: 8.202 | T6: 0 | U6: 0 | V6: 5.28 | W6: 0 | X6: 0 | Y6: 0 | Z6: 0 | AA6: 0 | AB6: 0 | AC6: 0 | AD6: 0 | AF6: 205549567.6 | AG6: 885866510.7 | AH6: 0 | AI6: 0 | AJ6: 1445601999 | AK6: 0 | AL6: 0 | AM6: 0 | AN6: 0 | AO6: 0 | AP6: 0 | AQ6: 0 | AT6: =D6/100*AF6 -> 14110977.82 | AU6: =E6/100*AG6 -> 74988600.13 | AV6: =F6/100*AH6 -> 0 | AW6: =G6/100*AI6 -> 0 | AX6: =H6/100*AJ6 -> 78770852.94 | AY6: =I6/100*AK6 -> 0 | AZ6: =J6/100*AL6 -> 0 | BA6: =K6/100*AM6 -> 0 | BB6: =L6/100*AN6 -> 0 | BC6: =M6/100*AO6 -> 0 | BD6: =N6/100*AP6 -> 0 | BE6: =O6/100*AQ6 -> 0 | BF6: =P6/100*AR6 -> 0 | BG6: =SUM(AT6:BF6) -> 167870430.9 | BI6: =R6/100*AF6 -> 13673157.24 | BJ6: =S6/100*AG6 -> 72658771.21 | BK6: =T6/100*AH6 -> 0 | BL6: =U6/100*AI6 -> 0 | BM6: =V6/100*AJ6 -> 76327785.56 | BN6: =W6/100*AK6 -> 0 | BO6: =X6/100*AL6 -> 0 | BP6: =Y6/100*AM6 -> 0 | BQ6: =Z6/100*AN6 -> 0 | BR6: =AA6/100*AO6 -> 0 | BS6: =AB6/100*AP6 -> 0 | BT6: =AC6/100*AQ6 -> 0 | BU6: =AD6/100*AR6 -> 0 | BV6: =SUM(BI6:BU6) -> 162659714
B7: Winter economy tariff | C7: Winter economy tariff | D7: 8.841 | E7: 6.593 | F7: 0 | G7: 0 | H7: 4.885 | I7: 1.831 | J7: 0 | K7: 0 | L7: 0 | M7: 0 | N7: 0 | O7: 0 | P7: 0 | R7: 8.567 | S7: 6.389 | T7: 0 | U7: 0 | V7: 4.734 | W7: 1.774 | X7: 0 | Y7: 0 | Z7: 0 | AA7: 0 | AB7: 0 | AC7: 0 | AD7: 0 | AF7: 50220 | AG7: 265149.0509 | AH7: 0 | AI7: 0 | AJ7: 483663.4531 | AK7: 0 | AL7: 0 | AM7: 0 | AN7: 0 | AO7: 0 | AP7: 0 | AQ7: 0 | AT7: 4439.9502 | AU7: 17481.27693 | AV7: 0 | AW7: 0 | AX7: 23626.95969 | AY7: 0 | AZ7: 0 | BA7: 0 | BB7: 0 | BC7: 0 | BD7: 0 | BE7: 0 | BF7: 0 | BG7: 45548.18681 | BI7: 4302.3474 | BJ7: 16940.37286 | BK7: 0 | BL7: 0 | BM7: 22896.62787 | BN7: 0 | BO7: 0 | BP7: 0 | BQ7: 0 | BR7: 0 | BS7: 0 | BT7: 0 | BU7: 0 | BV7: 44139.34814
B8: Reverse cycle airconditioning time of use | C8: Reverse cycle airconditioning time of use | D8: 0 | E8: 0 | F8: 0 | G8: 0 | H8: 0 | I8: 0 | J8: 0 | K8: 0 | L8: 0 | M8: 0 | N8: 0 | O8: 0 | P8: 0 | R8: 0 | S8: 0 | T8: 0 | U8: 5.553 | V8: 0 | W8: 0 | X8: 1.396 | Y8: 1.371 | Z8: 0 | AA8: 0 | AB8: 69.767 | AC8: 0 | AD8: 0 | AF8: 0 | AG8: 0 | AH8: 0 | AI8: 0 | AJ8: 0 | AK8: 0 | AL8: 0 | AM8: 0 | AN8: 0 | AO8: 0 | AP8: 0 | AQ8: 0 | AT8: 0 | AU8: 0 | AV8: 0 | AW8: 0 | AX8: 0 | AY8: 0 | AZ8: 0 | BA8: 0 | BB8: 0 | BC8: 0 | BD8: 0 | BE8: 0 | BF8: 0 | BG8: 0 | BI8: 0 | BJ8: 0 | BK8: 0 | BL8: 0 | BM8: 0 | BN8: 0 | BO8: 0 | BP8: 0 | BQ8: 0 | BR8: 0 | BS8: 0 | BT8: 0 | BU8: 0 | BV8: 0
B9: Low voltage small 2 rate | C9: Low voltage small 2 rate | D9: 14.02 | E9: 0 | F9: 0 | G9: 10.063 | H9: 0 | I9: 0 | J9: 7.632 | K9: 1.745 | L9: 0 | M9: 0 | N9: 0 | O9: 0 | P9: 0 | R9: 13.586 | S9: 0 | T9: 0 | U9: 9.751 | V9: 0 | W9: 0 | X9: 7.396 | Y9: 1.691 | Z9: 0 | AA9: 0 | AB9: 0 | AC9: 0 | AD9: 0 | AF9: 1500124.836 | AG9: 0 | AH9: 0 | AI9: 4199343.701 | AJ9: 0 | AK9: 0 | AL9: 6958274.449 | AM9: 14004754.29 | AN9: 0 | AO9: 0 | AP9: 0 | AQ9: 0 | AT9: 210317.502 | AU9: 0 | AV9: 0 | AW9: 422579.9566 | AX9: 0 | AY9: 0 | AZ9: 531055.5059 | BA9: 244382.9623 | BB9: 0 | BC9: 0 | BD9: 0 | BE9: 0 | BF9: 0 | BG9: 1408335.927 | BI9: 203806.9603 | BJ9: 0 | BK9: 0 | BL9: 409478.0043 | BM9: 0 | BN9: 0 | BO9: 514633.9782 | BP9: 236820.395 | BQ9: 0 | BR9: 0 | BS9: 0 | BT9: 0 | BU9: 0 | BV9: 1364739.338
B10: Dedicated circuit | C10: Dedicated circuit | D10: 0 | E10: 0 | F10: 0 | G10: 0 | H10: 0 | I10: 0 | J10: 0 | K10: 1.931 | L10: 0 | M10: 0 | N10: 0 | O10: 0 | P10: 0 | R10: 0 | S10: 0 | T10: 0 | U10: 0 | V10: 0 | W10: 0 | X10: 0 | Y10: 1.871 | Z10: 0 | AA10: 0 | AB10: 0 | AC10: 0 | AD10: 0 | AF10: 1899.99 | AG10: 0 | AH10: 0 | AI10: 0 | AJ10: 0 | AK10: 0 | AL10: 0 | AM10: 95116849.23 | AN10: 0 | AO10: 0 | AP10: 0 | AQ10: 0 | AT10: 0 | AU10: 0 | AV10: 0 | AW10: 0 | AX10: 0 | AY10: 0 | AZ10: 0 | BA10: 1836706.359 | BB10: 0 | BC10: 0 | BD10: 0 | BE10: 0 | BF10: 0 | BG10: 1836706.359 | BI10: 0 | BJ10: 0 | BK10: 0 | BL10: 0 | BM10: 0 | BN10: 0 | BO10: 0 | BP10: 1779636.249 | BQ10: 0 | BR10: 0 | BS10: 0 | BT10: 0 | BU10: 0 | BV10: 1779636.249
B11: Low voltage medium 1 rate | C11: Low voltage medium 1 rate | D11: 11.652 | E11: 10.241 | F11: 0 | G11: 0 | H11: 6.391 | I11: 0 | J11: 0 | K11: 0 | L11: 0 | M11: 0 | N11: 0 | O11: 0 | P11: 0 | R11: 10.987 | S11: 9.657 | T11: 0 | U11: 0 | V11: 6.026 | W11: 0 | X11: 0 | Y11: 0 | Z11: 0 | AA11: 0 | AB11: 0 | AC11: 0 | AD11: 0 | AF11: 12033520.76 | AG11: 153338365.9 | AH11: 0 | AI11: 0 | AJ11: 231891372.2 | AK11: 0 | AL11: 0 | AM11: 12 | AN11: 0 | AO11: 0 | AP11: 0 | AQ11: 0 | AT11: 1402145.839 | AU11: 15703382.05 | AV11: 0 | AW11: 0 | AX11: 14820177.59 | AY11: 0 | AZ11: 0 | BA11: 0 | BB11: 0 | BC11: 0 | BD11: 0 | BE11: 0 | BF11: 0 | BG11: 31925705.49 | BI11: 1322122.926 | BJ11: 14807886 | BK11: 0 | BL11: 0 | BM11: 13973774.09 | BN11: 0 | BO11: 0 | BP11: 0 | BQ11: 0 | BR11: 0 | BS11: 0 | BT11: 0 | BU11: 0 | BV11: 30103783.01
B12: Low voltage medium 2 rate 5 day | C12: Low voltage medium 2 rate 5 day | D12: 22.303 | E12: 0 | F12: 0 | G12: 10.83 | H12: 0 | I12: 0 | J12: 8.116 | K12: 2.022 | L12: 0 | M12: 0 | N12: 0 | O12: 0 | P12: 0 | R12: 21.03 | S12: 0 | T12: 0 | U12: 10.212 | V12: 0 | W12: 0 | X12: 7.653 | Y12: 1.907 | Z12: 0 | AA12: 0 | AB12: 0 | AC12: 0 | AD12: 0 | AF12: 3807335.983 | AG12: 0 | AH12: 0 | AI12: 51707044.73 | AJ12: 0 | AK12: 0 | AL12: 74994609.05 | AM12: 77026041.23 | AN12: 0 | AO12: 0 | AP12: 0 | AQ12: 0 | AT12: 849150.1443 | AU12: 0 | AV12: 0 | AW12: 5599872.945 | AX12: 0 | AY12: 0 | AZ12: 6086562.47 | BA12: 1557466.554 | BB12: 0 | BC12: 0 | BD12: 0 | BE12: 0 | BF12: 0 | BG12: 14093052.11 | BI12: 800682.7572 | BJ12: 0 | BK12: 0 | BL12: 5280323.408 | BM12: 0 | BN12: 0 | BO12: 5739337.43 | BP12: 1468886.606 | BQ12: 0 | BR12: 0 | BS12: 0 | BT12: 0 | BU12: 0 | BV12: 13289230.2
B13: Low voltage medium 2 rate 7 day | C13: Low voltage medium 2 rate 7 day | D13: 23.742 | E13: 0 | F13: 0 | G13: 10.307 | H13: 0 | I13: 0 | J13: 7.981 | K13: 1.88 | L13: 0 | M13: 0 | N13: 0 | O13: 0 | P13: 0 | R13: 22.387 | S13: 0 | T13: 0 | U13: 9.719 | V13: 0 | W13: 0 | X13: 7.526 | Y13: 1.773 | Z13: 0 | AA13: 0 | AB13: 0 | AC13: 0 | AD13: 0 | AF13: 1844598.237 | AG13: 0 | AH13: 0 | AI13: 22006070.24 | AJ13: 0 | AK13: 0 | AL13: 33856652.73 | AM13: 14992889.81 | AN13: 0 | AO13: 0 | AP13: 0 | AQ13: 0 | AT13: 437944.5134 | AU13: 0 | AV13: 0 | AW13: 2268165.66 | AX13: 0 | AY13: 0 | AZ13: 2702099.454 | BA13: 281866.3285 | BB13: 0 | BC13: 0 | BD13: 0 | BE13: 0 | BF13: 0 | BG13: 5690075.955 | BI13: 412950.2073 | BJ13: 0 | BK13: 0 | BL13: 2138769.967 | BM13: 0 | BN13: 0 | BO13: 2548051.684 | BP13: 265823.9364 | BQ13: 0 | BR13: 0 | BS13: 0 | BT13: 0 | BU13: 0 | BV13: 5365595.794
B14: Unmetered supplies | C14: Unmetered supplies | D14: 0 | E14: 0 | F14: 0 | G14: 8.459 | H14: 0 | I14: 0 | J14: 6.188 | K14: 1.525 | L14: 0 | M14: 0 | N14: 0 | O14: 0 | P14: 0 | R14: 0 | S14: 0 | T14: 0 | U14: 8.197 | V14: 0 | W14: 0 | X14: 5.996 | Y14: 1.478 | Z14: 0 | AA14: 0 | AB14: 0 | AC14: 0 | AD14: 0 | AF14: 3707289.042 | AG14: 0 | AH14: 0 | AI14: 10816030.73 | AJ14: 0 | AK14: 0 | AL14: 18164542.77 | AM14: 66285006.26 | AN14: 0 | AO14: 0 | AP14: 0 | AQ14: 0 | AT14: 0 | AU14: 0 | AV14: 0 | AW14: 914928.039 | AX14: 0 | AY14: 0 | AZ14: 1124021.907 | BA14: 1010846.345 | BB14: 0 | BC14: 0 | BD14: 0 | BE14: 0 | BF14: 0 | BG14: 3049796.291 | BI14: 0 | BJ14: 0 | BK14: 0 | BL14: 886590.0385 | BM14: 0 | BN14: 0 | BO14: 1089145.984 | BP14: 979692.3925 | BQ14: 0 | BR14: 0 | BS14: 0 | BT14: 0 | BU14: 0 | BV14: 2955428.416
B15: Low voltage large 1 rate | C15: Low voltage large 1 rate | D15: 13.641 | E15: 6.247 | F15: 0 | G15: 0 | H15: 4.929 | I15: 0 | J15: 0 | K15: 0 | L15: 0 | M15: 0 | N15: 0 | O15: 0 | P15: 0 | R15: 12.657 | S15: 5.796 | T15: 0 | U15: 0 | V15: 4.573 | W15: 0 | X15: 0 | Y15: 0 | Z15: 0 | AA15: 0 | AB15: 0 | AC15: 0 | AD15: 0 | AF15: 2621.992917 | AG15: 577413.2539 | AH15: 0 | AI15: 0 | AJ15: 774143.4756 | AK15: 0 | AL15: 0 | AM15: 0 | AN15: 0 | AO15: 0 | AP15: 0 | AQ15: 0 | AT15: 357.6660538 | AU15: 36071.00597 | AV15: 0 | AW15: 0 | AX15: 38157.53191 | AY15: 0 | AZ15: 0 | BA15: 0 | BB15: 0 | BC15: 0 | BD15: 0 | BE15: 0 | BF15: 0 | BG15: 74586.20394 | BI15: 331.8656435 | BJ15: 33466.8722 | BK15: 0 | BL15: 0 | BM15: 35401.58114 | BN15: 0 | BO15: 0 | BP15: 0 | BQ15: 0 | BR15: 0 | BS15: 0 | BT15: 0 | BU15: 0 | BV15: 69200.31898
B16: Low voltage large 2 rate | C16: Low voltage large 2 rate | D16: 19.678 | E16: 0 | F16: 0 | G16: 9.78 | H16: 0 | I16: 0 | J16: 7.776 | K16: 1.861 | L16: 0 | M16: 0 | N16: 0 | O16: 0 | P16: 0 | R16: 18.258 | S16: 0 | T16: 0 | U16: 9.074 | V16: 0 | W16: 0 | X16: 7.215 | Y16: 1.727 | Z16: 0 | AA16: 0 | AB16: 0 | AC16: 0 | AD16: 0 | AF16: 8128.178042 | AG16: 0 | AH16: 0 | AI16: 903588.4994 | AJ16: 0 | AK16: 0 | AL16: 1258017.539 | AM16: 1362054.148 | AN16: 0 | AO16: 0 | AP16: 0 | AQ16: 0 | AT16: 1599.462875 | AU16: 0 | AV16: 0 | AW16: 88370.95524 | AX16: 0 | AY16: 0 | AZ16: 97823.44384 | BA16: 25347.82769 | BB16: 0 | BC16: 0 | BD16: 0 | BE16: 0 | BF16: 0 | BG16: 213141.6896 | BI16: 1484.042747 | BJ16: 0 | BK16: 0 | BL16: 81991.62044 | BM16: 0 | BN16: 0 | BO16: 90765.96545 | BP16: 23522.67513 | BQ16: 0 | BR16: 0 | BS16: 0 | BT16: 0 | BU16: 0 | BV16: 197764.3038
B17: Low voltage KW time of use | C17: Low voltage KW time of use | D17: 0 | E17: 0 | F17: 0 | G17: 8.913 | H17: 0 | I17: 0 | J17: 5.222 | K17: 2.075 | L17: 0 | M17: 0 | N17: 42.68 | O17: 0 | P17: 0 | R17: 0 | S17: 0 | T17: 0 | U17: 8.404 | V17: 0 | W17: 0 | X17: 4.924 | Y17: 1.957 | Z17: 0 | AA17: 0 | AB17: 40.245 | AC17: 0 | AD17: 0 | AF17: 85424.52922 | AG17: 0 | AH17: 0 | AI17: 2797481.715 | AJ17: 0 | AK17: 0 | AL17: 4144236.321 | AM17: 6586209.045 | AN17: 0 | AO17: 0 | AP17: 682957.5693 | AQ17: 0 | AT17: 0 | AU17: 0 | AV17: 0 | AW17: 249339.5452 | AX17: 0 | AY17: 0 | AZ17: 216412.0207 | BA17: 136663.8377 | BB17: 0 | BC17: 0 | BD17: 291486.2906 | BE17: 0 | BF17: 0 | BG17: 893901.6942 | BI17: 0 | BJ17: 0 | BK17: 0 | BL17: 235100.3633 | BM17: 0 | BN17: 0 | BO17: 204062.1965 | BP17: 128892.111 | BQ17: 0 | BR17: 0 | BS17: 274856.2738 | BT17: 0 | BU17: 0 | BV17: 842910.9446
B18: Low voltage KW time of use - HOT | C18: Low voltage KW time of use - HOT | D18: 0 | E18: 0 | F18: 0 | G18: 7.76 | H18: 0 | I18: 0 | J18: 5.965 | K18: 1.753 | L18: 0 | M18: 0 | N18: 68.291 | O18: 0 | P18: 0 | R18: 0 | S18: 0 | T18: 0 | U18: 7.317 | V18: 0 | W18: 0 | X18: 5.625 | Y18: 1.653 | Z18: 0 | AA18: 0 | AB18: 64.394 | AC18: 0 | AD18: 0 | AF18: 3704.501421 | AG18: 0 | AH18: 0 | AI18: 38522.95803 | AJ18: 0 | AK18: 0 | AL18: 57008.2445 | AM18: 138325.9272 | AN18: 0 | AO18: 0 | AP18: 151569.5679 | AQ18: 0 | AT18: 0 | AU18: 0 | AV18: 0 | AW18: 2989.381543 | AX18: 0 | AY18: 0 | AZ18: 3400.541784 | BA18: 2424.853504 | BB18: 0 | BC18: 0 | BD18: 103508.3736 | BE18: 0 | BF18: 0 | BG18: 112323.1504 | BI18: 0 | BJ18: 0 | BK18: 0 | BL18: 2818.724839 | BM18: 0 | BN18: 0 | BO18: 3206.713753 | BP18: 2286.527577 | BQ18: 0 | BR18: 0 | BS18: 97601.70752 | BT18: 0 | BU18: 0 | BV18: 105913.6737
B19: Low voltage large KVA time of use | C19: Low voltage large KVA time of use | D19: 0 | E19: 0 | F19: 0 | G19: 1.406 | H19: 0 | I19: 0 | J19: 1.192 | K19: 1.18 | L19: 0 | M19: 14.196 | N19: 21.178 | O19: 0 | P19: 0 | R19: 0 | S19: 0 | T19: 0 | U19: 1.305 | V19: 0 | W19: 0 | X19: 1.106 | Y19: 1.095 | Z19: 0 | AA19: 13.172 | AB19: 19.65 | AC19: 0 | AD19: 0 | AF19: 1207904.429 | AG19: 0 | AH19: 0 | AI19: 460697092.7 | AJ19: 0 | AK19: 0 | AL19: 653613576.2 | AM19: 1268388147 | AN19: 0 | AO19: 331111136.8 | AP19: 96046797.4 | AQ19: 0 | AT19: 0 | AU19: 0 | AV19: 0 | AW19: 6477401.123 | AX19: 0 | AY19: 0 | AZ19: 7791073.828 | BA19: 14966980.13 | BB19: 0 | BC19: 47004536.98 | BD19: 20340790.75 | BE19: 0 | BF19: 0 | BG19: 96580782.82 | BI19: 0 | BJ19: 0 | BK19: 0 | BL19: 6012097.06 | BM19: 0 | BN19: 0 | BO19: 7228966.153 | BP19: 13888850.21 | BQ19: 0 | BR19: 43613958.94 | BS19: 18873195.69 | BT19: 0 | BU19: 0 | BV19: 89617068.05
B20: Low voltage large KVA time of use - HOT | C20: Low voltage large KVA time of use - HOT | D20: 0 | E20: 0 | F20: 0 | G20: 0 | H20: 0 | I20: 0 | J20: 0 | K20: 0 | L20: 0 | M20: 0 | N20: 0 | O20: 0 | P20: 0 | R20: 0 | S20: 0 | T20: 0 | U20: 1.139 | V20: 0 | W20: 0 | X20: 0.942 | Y20: 0.936 | Z20: 0 | AA20: 13.107 | AB20: 30.917 | AC20: 0 | AD20: 0 | AF20: 3.1e-07 | AG20: 0 | AH20: 0 | AI20: 0 | AJ20: 0 | AK20: 0 | AL20: 0 | AM20: 0 | AN20: 0 | AO20: 0 | AP20: 0 | AQ20: 0 | AT20: 0 | AU20: 0 | AV20: 0 | AW20: 0 | AX20: 0 | AY20: 0 | AZ20: 0 | BA20: 0 | BB20: 0 | BC20: 0 | BD20: 0 | BE20: 0 | BF20: 0 | BG20: 0 | BI20: 0 | BJ20: 0 | BK20: 0 | BL20: 0 | BM20: 0 | BN20: 0 | BO20: 0 | BP20: 0 | BQ20: 0 | BR20: 0 | BS20: 0 | BT20: 0 | BU20: 0 | BV20: 0
B21: High voltage KVA time of use | C21: High voltage KVA time of use | D21: 0 | E21: 0 | F21: 0 | G21: 0.843 | H21: 0 | I21: 0 | J21: 0.744 | K21: 0.731 | L21: 0 | M21: 8.591 | N21: 11.798 | O21: 0 | P21: 0 | R21: 0 | S21: 0 | T21: 0 | U21: 0.786 | V21: 0 | W21: 0 | X21: 0.694 | Y21: 0.682 | Z21: 0 | AA21: 8.012 | AB21: 11.003 | AC21: 0 | AD21: 0 | AF21: 34316.69 | AG21: 0 | AH21: 0 | AI21: 170523448.7 | AJ21: 0 | AK21: 0 | AL21: 248821547.8 | AM21: 637350623.8 | AN21: 0 | AO21: 103610388.3 | AP21: 31102876.48 | AQ21: 0 | AT21: 0 | AU21: 0 | AV21: 0 | AW21: 1437512.673 | AX21: 0 | AY21: 0 | AZ21: 1851232.316 | BA21: 4659033.06 | BB21: 0 | BC21: 8901168.459 | BD21: 3669517.367 | BE21: 0 | BF21: 0 | BG21: 20518463.88 | BI21: 0 | BJ21: 0 | BK21: 0 | BL21: 1340314.307 | BM21: 0 | BN21: 0 | BO21: 1726821.542 | BP21: 4346731.254 | BQ21: 0 | BR21: 8301264.311 | BS21: 3422249.499 | BT21: 0 | BU21: 0 | BV21: 19137380.91
B22: High voltage KVA time of use - HOT | C22: High voltage KVA time of use - HOT | D22: 0 | E22: 0 | F22: 0 | G22: 0 | H22: 0 | I22: 0 | J22: 0 | K22: 0 | L22: 0 | M22: 0 | N22: 0 | O22: 0 | P22: 0 | R22: 0 | S22: 0 | T22: 0 | U22: 0.814 | V22: 0 | W22: 0 | X22: 0.673 | Y22: 0.665 | Z22: 0 | AA22: 9.241 | AB22: 22.377 | AC22: 0 | AD22: 0 | AF22: 0 | AG22: 0 | AH22: 0 | AI22: 0 | AJ22: 0 | AK22: 0 | AL22: 0 | AM22: 0 | AN22: 0 | AO22: 0 | AP22: 0 | AQ22: 0 | AT22: 0 | AU22: 0 | AV22: 0 | AW22: 0 | AX22: 0 | AY22: 0 | AZ22: 0 | BA22: 0 | BB22: 0 | BC22: 0 | BD22: 0 | BE22: 0 | BF22: 0 | BG22: 0 | BI22: 0 | BJ22: 0 | BK22: 0 | BL22: 0 | BM22: 0 | BN22: 0 | BO22: 0 | BP22: 0 | BQ22: 0 | BR22: 0 | BS22: 0 | BT22: 0 | BU22: 0 | BV22: 0
B23: Subtransmission KVA time of use | C23: Subtransmission KVA time of use | D23: 0 | E23: 0 | F23: 0 | G23: 0.48 | H23: 0 | I23: 0 | J23: 0.374 | K23: 0.324 | L23: 0 | M23: 0.841 | N23: 1.232 | O23: 0 | P23: 0 | R23: 0 | S23: 0 | T23: 0 | U23: 0.448 | V23: 0 | W23: 0 | X23: 0.349 | Y23: 0.302 | Z23: 0 | AA23: 0.784 | AB23: 1.149 | AC23: 0 | AD23: 0 | AF23: 372 | AG23: 0 | AH23: 0 | AI23: 8273861.77 | AJ23: 0 | AK23: 0 | AL23: 11602727.6 | AM23: 16115661.39 | AN23: 0 | AO23: 4238689.613 | AP23: 1512895.988 | AQ23: 0 | AT23: 0 | AU23: 0 | AV23: 0 | AW23: 39714.5365 | AX23: 0 | AY23: 0 | AZ23: 43394.20122 | BA23: 52214.74289 | BB23: 0 | BC23: 35647.37964 | BD23: 18638.87857 | BE23: 0 | BF23: 0 | BG23: 189609.7388 | BI23: 0 | BJ23: 0 | BK23: 0 | BL23: 37066.90073 | BM23: 0 | BN23: 0 | BO23: 40493.51932 | BP23: 48669.29739 | BQ23: 0 | BR23: 33231.32656 | BS23: 17383.1749 | BT23: 0 | BU23: 0 | BV23: 176844.2189
B24: TOD | C24: TOD | D24: 6.53 | E24: 0 | F24: 4.424 | G24: 15.698 | H24: 0 | I24: 0 | J24: 9.252 | K24: 3.027 | L24: 3.259 | M24: 0 | N24: 0 | O24: 0 | P24: 0 | R24: 6.328 | S24: 0 | T24: 4.287 | U24: 15.212 | V24: 0 | W24: 0 | X24: 8.965 | Y24: 2.933 | Z24: 3.158 | AA24: 0 | AB24: 0 | AC24: 0 | AD24: 0 | AF24: 15707814.65 | AG24: 0 | AH24: 12080098.6 | AI24: 22156770.54 | AJ24: 0 | AK24: 0 | AL24: 42584001.27 | AM24: 107941636.2 | AN24: 25155080.82 | AO24: 0 | AP24: 0 | AQ24: 0 | AT24: 1025720.296 | AU24: 0 | AV24: 534423.5622 | AW24: 3478169.839 | AX24: 0 | AY24: 0 | AZ24: 3939871.797 | BA24: 3267393.326 | BB24: 819804.0838 | BC24: 0 | BD24: 0 | BE24: 0 | BF24: 0 | BG24: 13065382.91 | BI24: 993990.5109 | BJ24: 0 | BK24: 517873.8271 | BL24: 3370487.935 | BM24: 0 | BN24: 0 | BO24: 3817655.714 | BP24: 3165928.188 | BQ24: 794397.4521 | BR24: 0 | BS24: 0 | BT24: 0 | BU24: 0 | BV24: 12660333.63
B25: TOD9 | C25: TOD9 | D25: 6.774 | E25: 0 | F25: 5.487 | G25: 17.7 | H25: 0 | I25: 0 | J25: 11 | K25: 4.193 | L25: 4.408 | M25: 0 | N25: 0 | O25: 0 | P25: 0 | R25: 6.564 | S25: 0 | T25: 5.317 | U25: 17.152 | V25: 0 | W25: 0 | X25: 10.659 | Y25: 4.063 | Z25: 4.271 | AA25: 0 | AB25: 0 | AC25: 0 | AD25: 0 | AF25: 817673.4375 | AG25: 0 | AH25: 471688.2819 | AI25: 634148.9426 | AJ25: 0 | AK25: 0 | AL25: 1239459.524 | AM25: 4524672.031 | AN25: 942133.8976 | AO25: 0 | AP25: 0 | AQ25: 0 | AT25: 55389.19866 | AU25: 0 | AV25: 25881.53603 | AW25: 112244.3628 | AX25: 0 | AY25: 0 | AZ25: 136340.5476 | BA25: 189719.4982 | BB25: 41529.26221 | BC25: 0 | BD25: 0 | BE25: 0 | BF25: 0 | BG25: 561104.4056 | BI25: 53672.08444 | BJ25: 0 | BK25: 25079.66595 | BL25: 108769.2266 | BM25: 0 | BN25: 0 | BO25: 132113.9906 | BP25: 183837.4246 | BQ25: 40238.53877 | BR25: 0 | BS25: 0 | BT25: 0 | BU25: 0 | BV25: 543710.931
B26: TOU | C26: TOU | D26: 0 | E26: 0 | F26: 0 | G26: 9.646 | H26: 0 | I26: 0 | J26: 5.86 | K26: 2.829 | L26: 0 | M26: 0 | N26: 41.891 | O26: 0 | P26: 0 | R26: 0 | S26: 0 | T26: 0 | U26: 9.096 | V26: 0 | W26: 0 | X26: 5.526 | Y26: 2.668 | Z26: 0 | AA26: 0 | AB26: 39.501 | AC26: 0 | AD26: 0 | AF26: 219431.882 | AG26: 0 | AH26: 0 | AI26: 4014520.953 | AJ26: 0 | AK26: 0 | AL26: 6566809.173 | AM26: 7462286.882 | AN26: 0 | AO26: 0 | AP26: 1110253.604 | AQ26: 0 | AT26: 0 | AU26: 0 | AV26: 0 | AW26: 387240.6912 | AX26: 0 | AY26: 0 | AZ26: 384815.0175 | BA26: 211108.0959 | BB26: 0 | BC26: 0 | BD26: 465096.3371 | BE26: 0 | BF26: 0 | BG26: 1448260.142 | BI26: 0 | BJ26: 0 | BK26: 0 | BL26: 365160.8259 | BM26: 0 | BN26: 0 | BO26: 362881.8749 | BP26: 199093.814 | BQ26: 0 | BR26: 0 | BS26: 438561.276 | BT26: 0 | BU26: 0 | BV26: 1365697.791
B27: TODFLEX | C27: TODFLEX | D27: 7.295 | E27: 0 | F27: 4.729 | G27: 17.414 | H27: 0 | I27: 0 | J27: 9.996 | K27: 4.009 | L27: 4.729 | M27: 0 | N27: 0 | O27: 0 | P27: 0 | R27: 7.069 | S27: 0 | T27: 4.582 | U27: 16.874 | V27: 0 | W27: 0 | X27: 9.686 | Y27: 3.885 | Z27: 4.582 | AA27: 0 | AB27: 0 | AC27: 0 | AD27: 0 | AF27: 762427.33 | AG27: 0 | AH27: 1766358.341 | AI27: 897799.5996 | AJ27: 0 | AK27: 0 | AL27: 1502959.085 | AM27: 3382265.656 | AN27: 2942300.104 | AO27: 0 | AP27: 0 | AQ27: 0 | AT27: 55619.07372 | AU27: 0 | AV27: 83531.08595 | AW27: 156342.8223 | AX27: 0 | AY27: 0 | AZ27: 150235.7902 | BA27: 135595.0302 | BB27: 139141.3719 | BC27: 0 | BD27: 0 | BE27: 0 | BF27: 0 | BG27: 720465.1742 | BI27: 53895.98796 | BJ27: 0 | BK27: 80934.53919 | BL27: 151494.7044 | BM27: 0 | BN27: 0 | BO27: 145576.617 | BP27: 131401.0207 | BQ27: 134816.1907 | BR27: 0 | BS27: 0 | BT27: 0 | BU27: 0 | BV27: 698119.0601
B28: Low Voltage KW 1 rate | C28: Low Voltage KW 1 rate | D28: 0 | E28: 2.712 | F28: 2.712 | G28: 2.712 | H28: 2.712 | I28: 2.712 | J28: 2.712 | K28: 2.712 | L28: 2.712 | M28: 0 | N28: 0 | O28: 26.13 | P28: 10.311 | R28: 0 | S28: 2.628 | T28: 2.628 | U28: 2.628 | V28: 2.628 | W28: 2.628 | X28: 2.628 | Y28: 2.628 | Z28: 2.628 | AA28: 0 | AB28: 0 | AC28: 25.32 | AD28: 9.992 | AF28: 1115018.793 | AG28: 0 | AH28: 0 | AI28: 5256477.629 | AJ28: 0 | AK28: 0 | AL28: 7359068.681 | AM28: 0 | AN28: 0 | AO28: 0 | AP28: 0 | AQ28: 779540.5869 | AR28: 2537178.516 | AT28: 0 | AU28: 0 | AV28: 0 | AW28: 142555.6733 | AX28: 0 | AY28: 0 | AZ28: 199577.9426 | BA28: 0 | BB28: 0 | BC28: 0 | BD28: 0 | BE28: 203693.9554 | BF28: 261608.4768 | BG28: 807436.0481 | BI28: 0 | BJ28: 0 | BK28: 0 | BL28: 138140.2321 | BM28: 0 | BN28: 0 | BO28: 193396.3249 | BP28: 0 | BQ28: 0 | BR28: 0 | BS28: 0 | BT28: 197379.6766 | BU28: 253514.8773 | BV28: 782431.111
B29: Low voltage medium KW time of use (opt-in) | C29: Low voltage medium KW time of use (opt-in) | D29: 0 | E29: 3.686 | F29: 3.686 | G29: 3.686 | H29: 3.686 | I29: 3.686 | J29: 3.686 | K29: 3.686 | L29: 3.686 | M29: 0 | N29: 0 | O29: 30.492 | P29: 20.328 | R29: 0 | S29: 3.476 | T29: 3.476 | U29: 3.476 | V29: 3.476 | W29: 3.476 | X29: 3.476 | Y29: 3.476 | Z29: 3.476 | AA29: 0 | AB29: 0 | AC29: 28.752 | AD29: 19.168 | AF29: 175817.1458 | AG29: 0 | AH29: 0 | AI29: 8362481.464 | AJ29: 0 | AK29: 0 | AL29: 12391679.13 | AM29: 0 | AN29: 0 | AO29: 0 | AP29: 0 | AQ29: 616176.6983 | AR29: 1472922.252 | AT29: 0 | AU29: 0 | AV29: 0 | AW29: 308241.0668 | AX29: 0 | AY29: 0 | AZ29: 456757.2928 | BA29: 0 | BB29: 0 | BC29: 0 | BD29: 0 | BE29: 187884.5989 | BF29: 299415.6354 | BG29: 1252298.594 | BI29: 0 | BJ29: 0 | BK29: 0 | BL29: 290679.8557 | BM29: 0 | BN29: 0 | BO29: 430734.7667 | BP29: 0 | BQ29: 0 | BR29: 0 | BS29: 0 | BT29: 177163.1243 | BU29: 282329.7372 | BV29: 1180907.484
B30: Low voltage medium KW 1 rate (mandatory) | C30: Low voltage medium KW 1 rate (mandatory) | D30: 0 | E30: 5.657 | F30: 5.657 | G30: 5.657 | H30: 5.657 | I30: 5.657 | J30: 5.657 | K30: 5.657 | L30: 5.657 | M30: 0 | N30: 0 | O30: 18.955 | P30: 12.636 | R30: 0 | S30: 5.334 | T30: 5.334 | U30: 5.334 | V30: 5.334 | W30: 5.334 | X30: 5.334 | Y30: 5.334 | Z30: 5.334 | AA30: 0 | AB30: 0 | AC30: 17.873 | AD30: 11.915 | AF30: 2702828.705 | AG30: 0 | AH30: 0 | AI30: 283403271.2 | AJ30: 0 | AK30: 0 | AL30: 388617179.9 | AM30: 0 | AN30: 0 | AO30: 0 | AP30: 0 | AQ30: 25908737.34 | AR30: 46484440.59 | AT30: 0 | AU30: 0 | AV30: 0 | AW30: 16032123.05 | AX30: 0 | AY30: 0 | AZ30: 21984073.87 | BA30: 0 | BB30: 0 | BC30: 0 | BD30: 0 | BE30: 4911001.163 | BF30: 5873773.914 | BG30: 48800971.99 | BI30: 0 | BJ30: 0 | BK30: 0 | BL30: 15116730.48 | BM30: 0 | BN30: 0 | BO30: 20728840.38 | BP30: 0 | BQ30: 0 | BR30: 0 | BS30: 0 | BT30: 4630668.625 | BU30: 5538621.097 | BV30: 46014860.58
AT31: 0 | AU31: 0 | AV31: 0 | AW31: 0 | AX31: 0 | AY31: 0 | AZ31: 0 | BA31: 0 | BB31: 0 | BC31: 0 | BD31: 0 | BE31: 0 | BF31: 0 | BG31: 0 | BI31: 0 | BJ31: 0 | BK31: 0 | BL31: 0 | BM31: 0 | BN31: 0 | BO31: 0 | BP31: 0 | BQ31: 0 | BR31: 0 | BS31: 0 | BT31: 0 | BU31: 0 | BV31: 0
AT32: 0 | AU32: 0 | AV32: 0 | AW32: 0 | AX32: 0 | AY32: 0 | AZ32: 0 | BA32: 0 | BB32: 0 | BC32: 0 | BD32: 0 | BE32: 0 | BF32: 0 | BG32: 0 | BI32: 0 | BJ32: 0 | BK32: 0 | BL32: 0 | BM32: 0 | BN32: 0 | BO32: 0 | BP32: 0 | BQ32: 0 | BR32: 0 | BS32: 0 | BT32: 0 | BU32: 0 | BV32: 0
AT33: 0 | AU33: 0 | AV33: 0 | AW33: 0 | AX33: 0 | AY33: 0 | AZ33: 0 | BA33: 0 | BB33: 0 | BC33: 0 | BD33: 0 | BE33: 0 | BF33: 0 | BG33: 0 | BI33: 0 | BJ33: 0 | BK33: 0 | BL33: 0 | BM33: 0 | BN33: 0 | BO33: 0 | BP33: 0 | BQ33: 0 | BR33: 0 | BS33: 0 | BT33: 0 | BU33: 0 | BV33: 0
AT34: 0 | AU34: 0 | AV34: 0 | AW34: 0 | AX34: 0 | AY34: 0 | AZ34: 0 | BA34: 0 | BB34: 0 | BC34: 0 | BD34: 0 | BE34: 0 | BF34: 0 | BG34: 0 | BI34: 0 | BJ34: 0 | BK34: 0 | BL34: 0 | BM34: 0 | BN34: 0 | BO34: 0 | BP34: 0 | BQ34: 0 | BR34: 0 | BS34: 0 | BT34: 0 | BU34: 0 | BV34: 0
AT35: 0 | AU35: 0 | AV35: 0 | AW35: 0 | AX35: 0 | AY35: 0 | AZ35: 0 | BA35: 0 | BB35: 0 | BC35: 0 | BD35: 0 | BE35: 0 | BF35: 0 | BG35: 0 | BI35: 0 | BJ35: 0 | BK35: 0 | BL35: 0 | BM35: 0 | BN35: 0 | BO35: 0 | BP35: 0 | BQ35: 0 | BR35: 0 | BS35: 0 | BT35: 0 | BU35: 0 | BV35: 0
AT36: 0 | AU36: 0 | AV36: 0 | AW36: 0 | AX36: 0 | AY36: 0 | AZ36: 0 | BA36: 0 | BB36: 0 | BC36: 0 | BD36: 0 | BE36: 0 | BF36: 0 | BG36: 0 | BI36: 0 | BJ36: 0 | BK36: 0 | BL36: 0 | BM36: 0 | BN36: 0 | BO36: 0 | BP36: 0 | BQ36: 0 | BR36: 0 | BS36: 0 | BT36: 0 | BU36: 0 | BV36: 0
AT37: 0 | AU37: 0 | AV37: 0 | AW37: 0 | AX37: 0 | AY37: 0 | AZ37: 0 | BA37: 0 | BB37: 0 | BC37: 0 | BD37: 0 | BE37: 0 | BF37: 0 | BG37: 0 | BI37: 0 | BJ37: 0 | BK37: 0 | BL37: 0 | BM37: 0 | BN37: 0 | BO37: 0 | BP37: 0 | BQ37: 0 | BR37: 0 | BS37: 0 | BT37: 0 | BU37: 0 | BV37: 0
AT38: 0 | AU38: 0 | AV38: 0 | AW38: 0 | AX38: 0 | AY38: 0 | AZ38: 0 | BA38: 0 | BB38: 0 | BC38: 0 | BD38: 0 | BE38: 0 | BF38: 0 | BG38: 0 | BI38: =R38/100*AF38 -> 0 | BJ38: 0 | BK38: 0 | BL38: 0 | BM38: 0 | BN38: 0 | BO38: 0 | BP38: 0 | BQ38: 0 | BR38: 0 | BS38: 0 | BT38: 0 | BU38: 0 | BV38: 0
AT39: 0 | AU39: 0 | AV39: 0 | AW39: 0 | AX39: 0 | AY39: 0 | AZ39: 0 | BA39: 0 | BB39: 0 | BC39: 0 | BD39: 0 | BE39: 0 | BF39: 0 | BG39: 0 | BI39: 0 | BJ39: 0 | BK39: 0 | BL39: 0 | BM39: 0 | BN39: 0 | BO39: 0 | BP39: 0 | BQ39: 0 | BR39: 0 | BS39: 0 | BT39: 0 | BU39: 0 | BV39: 0
AT40: 0 | AU40: 0 | AV40: 0 | AW40: 0 | AX40: 0 | AY40: 0 | AZ40: 0 | BA40: 0 | BB40: 0 | BC40: 0 | BD40: 0 | BE40: 0 | BF40: 0 | BG40: 0 | BI40: 0 | BJ40: 0 | BK40: 0 | BL40: 0 | BM40: 0 | BN40: 0 | BO40: 0 | BP40: 0 | BQ40: 0 | BR40: 0 | BS40: 0 | BT40: 0 | BU40: 0 | BV40: 0
AT41: 0 | AU41: 0 | AV41: 0 | AW41: 0 | AX41: 0 | AY41: 0 | AZ41: 0 | BA41: 0 | BB41: 0 | BC41: 0 | BD41: 0 | BE41: 0 | BF41: 0 | BG41: 0 | BI41: 0 | BJ41: 0 | BK41: 0 | BL41: 0 | BM41: 0 | BN41: 0 | BO41: 0 | BP41: 0 | BQ41: 0 | BR41: 0 | BS41: 0 | BT41: 0 | BU41: 0 | BV41: 0
AT42: 0 | AU42: 0 | AV42: 0 | AW42: 0 | AX42: 0 | AY42: 0 | AZ42: 0 | BA42: 0 | BB42: 0 | BC42: 0 | BD42: 0 | BE42: 0 | BF42: 0 | BG42: 0 | BI42: 0 | BJ42: 0 | BK42: 0 | BL42: 0 | BM42: 0 | BN42: 0 | BO42: 0 | BP42: 0 | BQ42: 0 | BR42: 0 | BS42: 0 | BT42: 0 | BU42: 0 | BV42: 0
AT43: 0 | AU43: 0 | AV43: 0 | AW43: 0 | AX43: 0 | AY43: 0 | AZ43: 0 | BA43: 0 | BB43: 0 | BC43: 0 | BD43: 0 | BE43: 0 | BF43: 0 | BG43: 0 | BI43: 0 | BJ43: 0 | BK43: 0 | BL43: 0 | BM43: 0 | BN43: 0 | BO43: 0 | BP43: 0 | BQ43: 0 | BR43: 0 | BS43: 0 | BT43: 0 | BU43: 0 | BV43: 0
AT44: 0 | AU44: 0 | AV44: 0 | AW44: 0 | AX44: 0 | AY44: 0 | AZ44: 0 | BA44: 0 | BB44: 0 | BC44: 0 | BD44: 0 | BE44: 0 | BF44: 0 | BG44: 0 | BI44: 0 | BJ44: 0 | BK44: 0 | BL44: 0 | BM44: 0 | BN44: 0 | BO44: 0 | BP44: 0 | BQ44: 0 | BR44: 0 | BS44: 0 | BT44: 0 | BU44: 0 | BV44: 0
AT45: 0 | AU45: 0 | AV45: 0 | AW45: 0 | AX45: 0 | AY45: 0 | AZ45: 0 | BA45: 0 | BB45: 0 | BC45: 0 | BD45: 0 | BE45: 0 | BF45: 0 | BG45: 0 | BI45: 0 | BJ45: 0 | BK45: 0 | BL45: 0 | BM45: 0 | BN45: 0 | BO45: 0 | BP45: 0 | BQ45: 0 | BR45: 0 | BS45: 0 | BT45: 0 | BU45: 0 | BV45: 0
AT46: 0 | AU46: 0 | AV46: 0 | AW46: 0 | AX46: 0 | AY46: 0 | AZ46: 0 | BA46: 0 | BB46: 0 | BC46: 0 | BD46: 0 | BE46: 0 | BF46: 0 | BG46: 0 | BI46: 0 | BJ46: 0 | BK46: 0 | BL46: 0 | BM46: 0 | BN46: 0 | BO46: 0 | BP46: 0 | BQ46: 0 | BR46: 0 | BS46: 0 | BT46: 0 | BU46: 0 | BV46: 0
AT47: 0 | AU47: 0 | AV47: 0 | AW47: 0 | AX47: 0 | AY47: 0 | AZ47: 0 | BA47: 0 | BB47: 0 | BC47: 0 | BD47: 0 | BE47: 0 | BF47: 0 | BG47: 0 | BI47: 0 | BJ47: 0 | BK47: 0 | BL47: 0 | BM47: 0 | BN47: 0 | BO47: 0 | BP47: 0 | BQ47: 0 | BR47: 0 | BS47: 0 | BT47: 0 | BU47: 0 | BV47: 0
AT48: 0 | AU48: 0 | AV48: 0 | AW48: 0 | AX48: 0 | AY48: 0 | AZ48: 0 | BA48: 0 | BB48: 0 | BC48: 0 | BD48: 0 | BE48: 0 | BF48: 0 | BG48: 0 | BI48: 0 | BJ48: 0 | BK48: 0 | BL48: 0 | BM48: 0 | BN48: 0 | BO48: 0 | BP48: 0 | BQ48: 0 | BR48: 0 | BS48: 0 | BT48: 0 | BU48: 0 | BV48: 0
AT49: 0 | AU49: 0 | AV49: 0 | AW49: 0 | AX49: 0 | AY49: 0 | AZ49: 0 | BA49: 0 | BB49: 0 | BC49: 0 | BD49: 0 | BE49: 0 | BF49: 0 | BG49: 0 | BI49: 0 | BJ49: 0 | BK49: 0 | BL49: 0 | BM49: 0 | BN49: 0 | BO49: 0 | BP49: 0 | BQ49: 0 | BR49: 0 | BS49: 0 | BT49: 0 | BU49: 0 | BV49: 0
AT50: 0 | AU50: 0 | AV50: 0 | AW50: 0 | AX50: 0 | AY50: 0 | AZ50: 0 | BA50: 0 | BB50: 0 | BC50: 0 | BD50: 0 | BE50: 0 | BF50: 0 | BG50: 0 | BI50: 0 | BJ50: 0 | BK50: 0 | BL50: 0 | BM50: 0 | BN50: 0 | BO50: 0 | BP50: 0 | BQ50: 0 | BR50: 0 | BS50: 0 | BT50: 0 | BU50: 0 | BV50: 0
AT51: 0 | AU51: 0 | AV51: 0 | AW51: 0 | AX51: 0 | AY51: 0 | AZ51: 0 | BA51: 0 | BB51: 0 | BC51: 0 | BD51: 0 | BE51: 0 | BF51: 0 | BG51: 0 | BI51: 0 | BJ51: 0 | BK51: 0 | BL51: 0 | BM51: 0 | BN51: 0 | BO51: 0 | BP51: 0 | BQ51: 0 | BR51: 0 | BS51: 0 | BT51: 0 | BU51: 0 | BV51: 0
AT52: 0 | AU52: 0 | AV52: 0 | AW52: 0 | AX52: 0 | AY52: 0 | AZ52: 0 | BA52: 0 | BB52: 0 | BC52: 0 | BD52: 0 | BE52: 0 | BF52: 0 | BG52: 0 | BI52: 0 | BJ52: 0 | BK52: 0 | BL52: 0 | BM52: 0 | BN52: 0 | BO52: 0 | BP52: 0 | BQ52: 0 | BR52: 0 | BS52: 0 | BT52: 0 | BU52: 0 | BV52: 0
AT53: 0 | AU53: 0 | AV53: 0 | AW53: 0 | AX53: 0 | AY53: 0 | AZ53: 0 | BA53: 0 | BB53: 0 | BC53: 0 | BD53: 0 | BE53: 0 | BF53: 0 | BG53: 0 | BI53: 0 | BJ53: 0 | BK53: 0 | BL53: 0 | BM53: 0 | BN53: 0 | BO53: 0 | BP53: 0 | BQ53: 0 | BR53: 0 | BS53: 0 | BT53: 0 | BU53: 0 | BV53: 0
AT54: 0 | AU54: 0 | AV54: 0 | AW54: 0 | AX54: 0 | AY54: 0 | AZ54: 0 | BA54: 0 | BB54: 0 | BC54: 0 | BD54: 0 | BE54: 0 | BF54: 0 | BG54: 0 | BI54: 0 | BJ54: 0 | BK54: 0 | BL54: 0 | BM54: 0 | BN54: 0 | BO54: 0 | BP54: 0 | BQ54: 0 | BR54: 0 | BS54: 0 | BT54: 0 | BU54: 0 | BV54: 0
AT55: 0 | AU55: 0 | AV55: 0 | AW55: 0 | AX55: 0 | AY55: 0 | AZ55: 0 | BA55: 0 | BB55: 0 | BC55: 0 | BD55: 0 | BE55: 0 | BF55: 0 | BG55: 0 | BI55: 0 | BJ55: 0 | BK55: 0 | BL55: 0 | BM55: 0 | BN55: 0 | BO55: 0 | BP55: 0 | BQ55: 0 | BR55: 0 | BS55: 0 | BT55: 0 | BU55: 0 | BV55: 0
AT56: 0 | AU56: 0 | AV56: 0 | AW56: 0 | AX56: 0 | AY56: 0 | AZ56: 0 | BA56: 0 | BB56: 0 | BC56: 0 | BD56: 0 | BE56: 0 | BF56: 0 | BG56: 0 | BI56: 0 | BJ56: 0 | BK56: 0 | BL56: 0 | BM56: 0 | BN56: 0 | BO56: 0 | BP56: 0 | BQ56: 0 | BR56: 0 | BS56: 0 | BT56: 0 | BU56: 0 | BV56: 0
AT57: 0 | AU57: 0 | AV57: 0 | AW57: 0 | AX57: 0 | AY57: 0 | AZ57: 0 | BA57: 0 | BB57: 0 | BC57: 0 | BD57: 0 | BE57: 0 | BF57: 0 | BG57: 0 | BI57: 0 | BJ57: 0 | BK57: 0 | BL57: 0 | BM57: 0 | BN57: 0 | BO57: 0 | BP57: 0 | BQ57: 0 | BR57: 0 | BS57: 0 | BT57: 0 | BU57: 0 | BV57: 0
AT58: 0 | AU58: 0 | AV58: 0 | AW58: 0 | AX58: 0 | AY58: 0 | AZ58: 0 | BA58: 0 | BB58: 0 | BC58: 0 | BD58: 0 | BE58: 0 | BF58: 0 | BG58: 0 | BI58: 0 | BJ58: 0 | BK58: 0 | BL58: 0 | BM58: 0 | BN58: 0 | BO58: 0 | BP58: 0 | BQ58: 0 | BR58: 0 | BS58: 0 | BT58: 0 | BU58: 0 | BV58: 0
AT59: 0 | AU59: 0 | AV59: 0 | AW59: 0 | AX59: 0 | AY59: 0 | AZ59: 0 | BA59: 0 | BB59: 0 | BC59: 0 | BD59: 0 | BE59: 0 | BF59: 0 | BG59: 0 | BI59: 0 | BJ59: 0 | BK59: 0 | BL59: 0 | BM59: 0 | BN59: 0 | BO59: 0 | BP59: 0 | BQ59: 0 | BR59: 0 | BS59: 0 | BT59: 0 | BU59: 0 | BV59: 0
AT60: 0 | AU60: 0 | AV60: 0 | AW60: 0 | AX60: 0 | AY60: 0 | AZ60: 0 | BA60: 0 | BB60: 0 | BC60: 0 | BD60: 0 | BE60: 0 | BF60: 0 | BG60: 0 | BI60: 0 | BJ60: 0 | BK60: 0 | BL60: 0 | BM60: 0 | BN60: 0 | BO60: 0 | BP60: 0 | BQ60: 0 | BR60: 0 | BS60: 0 | BT60: 0 | BU60: 0 | BV60: 0
AT61: 0 | AU61: 0 | AV61: 0 | AW61: 0 | AX61: 0 | AY61: 0 | AZ61: 0 | BA61: 0 | BB61: 0 | BC61: 0 | BD61: 0 | BE61: 0 | BF61: 0 | BG61: 0 | BI61: 0 | BJ61: 0 | BK61: 0 | BL61: 0 | BM61: 0 | BN61: 0 | BO61: 0 | BP61: 0 | BQ61: 0 | BR61: 0 | BS61: 0 | BT61: 0 | BU61: 0 | BV61: 0
AT62: 0 | AU62: 0 | AV62: 0 | AW62: 0 | AX62: 0 | AY62: 0 | AZ62: 0 | BA62: 0 | BB62: 0 | BC62: 0 | BD62: 0 | BE62: 0 | BF62: 0 | BG62: 0 | BI62: 0 | BJ62: 0 | BK62: 0 | BL62: 0 | BM62: 0 | BN62: 0 | BO62: 0 | BP62: 0 | BQ62: 0 | BR62: 0 | BS62: 0 | BT62: 0 | BU62: 0 | BV62: 0
AT63: 0 | AU63: 0 | AV63: 0 | AW63: 0 | AX63: 0 | AY63: 0 | AZ63: 0 | BA63: 0 | BB63: 0 | BC63: 0 | BD63: 0 | BE63: 0 | BF63: 0 | BG63: 0 | BI63: 0 | BJ63: 0 | BK63: 0 | BL63: 0 | BM63: 0 | BN63: 0 | BO63: 0 | BP63: 0 | BQ63: 0 | BR63: 0 | BS63: 0 | BT63: 0 | BU63: 0 | BV63: 0
AT64: 0 | AU64: 0 | AV64: 0 | AW64: 0 | AX64: 0 | AY64: 0 | AZ64: 0 | BA64: 0 | BB64: 0 | BC64: 0 | BD64: 0 | BE64: 0 | BF64: 0 | BG64: 0 | BI64: 0 | BJ64: 0 | BK64: 0 | BL64: 0 | BM64: 0 | BN64: 0 | BO64: 0 | BP64: 0 | BQ64: 0 | BR64: 0 | BS64: 0 | BT64: 0 | BU64: 0 | BV64: 0
AT65: 0 | AU65: 0 | AV65: 0 | AW65: 0 | AX65: 0 | AY65: 0 | AZ65: 0 | BA65: 0 | BB65: 0 | BC65: 0 | BD65: 0 | BE65: 0 | BF65: 0 | BG65: 0 | BI65: 0 | BJ65: 0 | BK65: 0 | BL65: 0 | BM65: 0 | BN65: 0 | BO65: 0 | BP65: 0 | BQ65: 0 | BR65: 0 | BS65: 0 | BT65: 0 | BU65: 0 | BV65: 0
AF66: =SUM(AF6:AF65) -> 251338040.7 | AG66: 1040047439 | AH66: 14318145.23 | AI66: 1056687956 | AJ66: 1678751178 | AK66: 0 | AL66: 1513732349 | AM66: 2320677435 | AN66: 29039514.82 | AO66: 438960214.7 | AP66: 130607350.6 | AQ66: 27304454.63 | AR66: 50494541.36 | AT66: =SUM(AT6:AT65) -> 18153661.46 | AU66: 90745534.47 | AV66: 643836.1842 | AW66: 38117792.32 | AX66: 93652815.02 | AY66: 0 | AZ66: 47698747.94 | BA66: 28577748.96 | BB66: 1000474.718 | BC66: 55941352.81 | BD66: 24889038 | BE66: 5302579.717 | BF66: 6434798.026 | BG66: 411158379.6 | BI66: =SUM(BI6:BI65) -> 17520396.93 | BJ66: 87517064.45 | BK66: 623888.0322 | BL66: 35966013.66 | BM66: 90359857.85 | BN66: 0 | BO66: 44996684.83 | BP66: 26850072.1 | BQ66: 969452.1817 | BR66: 51948454.57 | BS66: 23123847.62 | BT66: 5005211.426 | BU66: 6074465.711 | BV66: 390955409.4

Sheet 2018DistRevCapForm
B2: ="Tariff Approval - "&'Model update'!$C$3 -> Tariff Approval - United Energy
B4: DUoS
B6: Year (t) | C6: ='Model update'!C5 -> 2018 | H6: =C6-1 -> 2017
B8: Table 1- Compliance with AER Final Determination Total Annual Revenue
B9: Revenue from DUoS charges for year t | C9: =Prop2018DistTar!BG66 -> 411158379.6
B10: Total Annual Revenue for year t | C10: =C18 -> 411158379.6
C11: =IF(C9="","",IF(C10>=C9,"DUoS REVENUE CAP FORMULA COMPLIANT","DUoS REVENUE CAP FORMULA BREACHED")) -> DUoS REVENUE CAP FORMULA COMPLIANT
B13: Table 2 - Total Annual Revenue for year t (TARt)
B14: Adjusted Annual Smoothed Revenue for year t | C14: =C25 -> 422294403.7 | H14: =H25 -> 392653500.6
B15: I factor for year t (F factor Scheme) | C15: ='Model update'!B$100 -> 1000000 | H15: =INDEX('Model update'!$D$100:$H$100,1,MATCH($H$6,'Model update'!$D$93:$H$93,0)) -> 555000
B16: T factor for year t (DMIS carry over amount) | C16: ='Model update'!B144 -> 0 | H16: =INDEX('Model update'!$D$144:$H$144,1,MATCH($H$6,'Model update'!$D$137:$H$137,0)) -> -479908.4001
B17: B factor for year t | C17: =C32 -> -12136024.09 | H17: =H32 -> -3697992.119
B18: Total Annual Revenue for year t | C18: =C14+C15+C16+C17 -> 411158379.6 | H18: =H14+H15+H16+H17 -> 389030600.1
B20: Table 3 - Adjusted Annual Revenue for year t (AARt)
B21: Adjusted Annual Smoothed Revenue for year t-1 | C21: =H25 -> 392653500.6 | H21: 364013293.2
B22: CPI for period t | C22: ='Model update'!C30 -> 0.01933701657 | H22: ='Model update'!C29 -> 0.01023255814
B23: X factor for period t | C23: ='Model update'!B60 -> -0.0316 | H23: =INDEX('Model update'!$E$60:$H$60,1,MATCH("Xt for "&$H$6,'Model update'!$E$53:$H$53,0)) -> -0.0383
B24: S factor for period t | C24: ='Model update'!B111 -> 0.02276703882 | H24: =INDEX('Model update'!$D$111:$H$111,1,MATCH($H$6,'Model update'!$D$104:$H$104,0)) -> 0.02836672327
B25: Adjusted Annual Smoothed Revenue for year t | C25: =IF(C6=2016,'Model update'!D60*(1+C24),(C21*(1+C22)*(1-C23)*(1+C24))) -> 422294403.7 | H25: =IF(H6=2016,'Model update'!D60*(1+H24),(H21*(1+H22)*(1-H23)*(1+H24))) -> 392653500.6
B27: Table 4- B factor for year t
B28: DUoS revenue under/over recovery approved | C28: =E60 -> -12307643.53 | H28: -3646193.937
B29: License Fee Recovery Amount for year t | C29: =C38 -> 171619.4379 | H29: =H38 -> 88101.08487
B30: Approved Pass through Amount for year t | C30: ='Model update'!B122 -> 0 | H30: =INDEX('Model update'!$D$122:$H$122,1,MATCH($H$6,'Model update'!$D$115:$H$115,0)) -> 0
B31: Pass Through revenue under/over recovery for years 2014 and 2015 | H31: -139899.2668
B32: B factor for year t | C32: =SUM(C28:C31) -> -12136024.09 | H32: =SUM(H28:H31) -> -3697992.119
B34: Table 5 - License Fee Recovery Amount for year t
B35: Lt-1 | C35: ='Model update'!B133 -> 158262 | H35: =INDEX('Model update'!$D$133:$H$133,1,MATCH($H$6,'Model update'!$D$126:$H$126,0)) -> 81712
B36: Nominal WACC t | C36: =(1+'Model update'!$B$43)*(1+'Model update'!$C$30)-1 -> 0.0584712416 | H36: =(1+'Model update'!$B$45)*(1+'Model update'!$C$29)-1 -> 0.04959444983
B37: Nominal WACC t-1 | C37: =(1+'Model update'!$B$45)*(1+'Model update'!$C$29)-1 -> 0.04959444983 | H37: =(1+'Model update'!$B$47)*(1+'Model update'!$C$28)-1 -> 0.05523158166
B38: License Fee Recovery Amount for year t | C38: =C35*(1+C36)*(1+C37)^0.5 -> 171619.4379 | H38: =H35*(1+H36)*(1+H37)^0.5 -> 88101.08487
B42: Table 6 - DUoS Recovery Arrangements
C43: Year t-2 | D43: Year t-1 | E43: Year t
C44: (actual) | D44: (estimate) | E44: (forecast)
C45: =D45-1 -> 2016 | D45: =E45-1 -> 2017 | E45: =C$6 -> 2018
B47: (A) Revenue from DUoS Charges | C47: 370195702.2 | D47: =Est2017DistRev!AS66 -> 395656128.4 | E47: =C9 -> 411158379.6
B50: (B) Less TAR for regulatory year = | C50: =SUM(C51:C54) -> 361928144.1 | D50: =SUM(D51:D54) -> 392676794.1 | E50: =SUM(E51:E54) -> 423466023.2
B51: + Adjusted annual smoothed revenue | C51: =H21 -> 364013293.2 | D51: =C21 -> 392653500.6 | E51: =C14 -> 422294403.7
B52: +It | C52: -2289171.308 | D52: =H15 -> 555000 | E52: =C15 -> 1000000
B53: +Tt | C53: =INDEX('Model update'!$D$144:$H$144,1,MATCH($C$45,'Model update'!$D$137:$H$137,0)) -> 0 | D53: =H16 -> -479908.4001 | E53: =C16 -> 0
B54: +Bt = | C54: =SUM(C55:C57) -> 204022.1894 | D54: =SUM(D55:D57) -> -51798.18195 | E54: =SUM(E55:E57) -> 171619.4379
B55: +Licence fee recovery | C55: 81303.34357 | D55: =H29 -> 88101.08487 | E55: =C29 -> 171619.4379
B56: +Approved pass throughs | C56: =INDEX('Model update'!$D$122:$H$122,1,MATCH($C$45,'Model update'!$D$115:$H$115,0)) -> 0 | D56: =H30 -> 0 | E56: =C30 -> 0
B57: +Pass Through revenue under/over recovery for years 2014 and 2015 | C57: 122718.8458 | D57: =H31 -> -139899.2668 | E57: =C31 -> 0
B60: (A minus B) Under/over recovery of revenue for regulatory year | C60: =C47-C50 -> 8267558.044 | D60: =D47-D50 -> 2979334.37 | E60: =E47-E50 -> -12307643.53
B64: Table 7 - DUoS Unders and Overs Account
C65: Year t-2 | D65: Year t-1 | E65: Year t
C66: (actual) | D66: (estimate) | E66: (forecast)
B67: Calendar year | C67: =D67-1 -> 2016 | D67: =E67-1 -> 2017 | E67: =C$6 -> 2018
B69: Nominal WACC | C69: =(1+'Model update'!$B$47)*(1+'Model update'!$C$28)-1 -> 0.05523158166 | D69: =(1+'Model update'!$B$45)*(1+'Model update'!$C$29)-1 -> 0.04959444983 | E69: =(1+'Model update'!$B$43)*(1+'Model update'!$C$30)-1 -> 0.0584712416
B71: Opening balance | C71: 0 | D71: =C75 -> 8492804.812 | E71: =D75 -> 11966320.42
B72: Interest on Opening balance | C72: =C71*C69 -> 0 | D72: =D71*D69 -> 421195.9821 | E72: =E71*E69 -> 699685.6125
B73: Under/over recovery of revenue for regulatory year | C73: =C60 -> 8267558.044 | D73: =D60 -> 2979334.37 | E73: =E60 -> -12307643.53
B74: Interest on under/over recovery for regulatory year | C74: =C73*((1+C69)^0.5-1) -> 225246.7683 | D74: =D73*((1+D69)^0.5-1) -> 72985.25835 | E74: =E73*((1+E69)^0.5-1) -> -354710.1696
B75: Closing balance of DUoS overs/ (unders) account | C75: =SUM(C71:C74) -> 8492804.812 | D75: =SUM(D71:D74) -> 11966320.42 | E75: =SUM(E71:E74) -> 3652.337653
B77: The DNSP is expected to achieve a closing balance as close to zero as practicable in its DUoS unders and overs account in each forecast year in its annual pricing Proposals in the 2016–20 regulatory control period.

Sheet 2018DistTarRebalCont
B1: ="Tariff Approval - "&'Model update'!C3 -> Tariff Approval - United Energy
B3: ='Model update'!C5&" DISTRIBUTION TARIFF REBALANCING CONTROL" -> 2018 DISTRIBUTION TARIFF REBALANCING CONTROL
B6: Distribution tariff rebalancing control
B8: ="CPI "&'Model update'!$C$5 -> CPI 2018 | C8: ='2018DistRevCapForm'!C22 -> 0.01933701657
B9: ="X "& 'Model update'!$C$5 -> X 2018 | C9: =MIN('2018DistRevCapForm'!C23,0) -> -0.0316
B10: ="St "&'Model update'!$C$5 -> St 2018 | C10: ='2018DistRevCapForm'!C24 -> 0.02276703882
B11: ="It "&'Model update'!$C$5 -> It 2018 | C11: =('2018DistRevCapForm'!C15-'2018DistRevCapForm'!H15)/Prop2018DistTar!$BV$66 -> 0.001138237224
B12: ="Tt "&'Model update'!$C$5 -> Tt 2018 | C12: =('2018DistRevCapForm'!C16-'2018DistRevCapForm'!H16)/Prop2018DistTar!$BV$66 -> 0.001227527203
B13: ="Bt "&'Model update'!$C$5 -> Bt 2018 | C13: =('2018DistRevCapForm'!C17-'2018DistRevCapForm'!H17)/Prop2018DistTar!$BV$66 -> -0.02158310582
C16: =(1+C8)*(1-C9)*(1+0.02)*(1+C10)+SUM(C11:C13) -> 1.077781135
B20: Rebalancing control summary | C20: ="Pt-1*(Qt " &'Model update'!$C$5&")" -> Pt-1*(Qt 2018) | D20: ="Pt-1*(Qt " &'Model update'!$C$5&")" -> Pt-1*(Qt 2018)
B21: Tariff Class (Input Class Name) | C21: Existing ($) | D21: Proposed ($) | E21: Movement
B22: Low Voltage Small | C22: =IF(B22="","",SUMIF($B$39:$B$98,$B22,$I$39:$I$98)) -> 183488252.1 | D22: =IF(B22="","",SUMIF($B$39:$B$98,$B22,$F$39:$F$98)) -> 189365206.2 | E22: =IF(B22="","",D22/C22) -> 1.032029048 | F22: =IF(B22="","",IF(E22<$C$16,"COMPLIANT","BREACHED")) -> COMPLIANT
B23: Low Voltage Medium | C23: 98268899.48 | D23: 104216589.1 | E23: 1.060524639 | F23: =IF(B23="","",IF(E23<$C$16,"COMPLIANT","BREACHED")) -> COMPLIANT
B24: Low Voltage Large | C24: 89884032.67 | D24: 96868510.71 | E24: 1.077705437 | F24: COMPLIANT
B25: High Voltage Large | C25: 19137380.91 | D25: 20518463.88 | E25: 1.07216677 | F25: COMPLIANT
B26: Subtransmission Large | C26: 176844.2189 | D26: 189609.7388 | E26: 1.072185113 | F26: COMPLIANT
B34: Check Total | C34: =IF(ABS(SUM(C22:C33)-I99)<0.01,"Ok","Error") -> Ok | D34: =IF(ABS(SUM(D22:D33)-F99)<0.01,"Ok","Error") -> Ok
C35: =IF(ABS(SUM(C22:C33)-Prop2018DistTar!BV66)<0.01,"Ok","Error") -> Ok | D35: =IF(ABS(SUM(D22:D33)-Prop2018DistTar!BG66)<0.01,"Ok","Error") -> Ok
F37: ="Forecast Revenue (Pt "&'Model update'!$C$5&")*(Qt " &'Model update'!$C$5&")" -> Forecast Revenue (Pt 2018)*(Qt 2018) | I37: ="Revenue (Pt-1 "&'Model update'!$C$8&")*(Qt " &'Model update'!$C$5&")" -> Revenue (Pt-1 2017)*(Qt 2018)
A38: New Tariff Test | B38: Destination tariff class | C38: Source tariff class | D38: Proposed tariff | E38: Existing tariff | F38: PropRev Total | I38: ExistRev Total
A39: =OR(EXACT(D39,Prop2018DistTar!C$6:C$65)) -> TRUE | B39: Low Voltage Small | C39: Low Voltage Small | D39: =IF(Prop2018DistTar!B6="","",Prop2018DistTar!B6) -> Low voltage small 1 rate | E39: =IF(Prop2018DistTar!C6="","",Prop2018DistTar!C6) -> Low voltage small 1 rate | F39: =Prop2018DistTar!BG6 -> 167870430.9 | I39: =Prop2018DistTar!BV6 -> 162659714
A40: =OR(EXACT(D40,Prop2018DistTar!C$6:C$65)) -> TRUE | B40: Low Voltage Small | C40: Low Voltage Small | D40: =IF(Prop2018DistTar!B7="","",Prop2018DistTar!B7) -> Winter economy tariff | E40: =IF(Prop2018DistTar!C7="","",Prop2018DistTar!C7) -> Winter economy tariff | F40: =Prop2018DistTar!BG7 -> 45548.18681 | I40: =Prop2018DistTar!BV7 -> 44139.34814
A41: =OR(EXACT(D41,Prop2018DistTar!C$6:C$65)) -> TRUE | B41: Low Voltage Medium | C41: Low Voltage Medium | D41: =IF(Prop2018DistTar!B8="","",Prop2018DistTar!B8) -> Reverse cycle airconditioning time of use | E41: =IF(Prop2018DistTar!C8="","",Prop2018DistTar!C8) -> Reverse cycle airconditioning time of use | F41: =Prop2018DistTar!BG8 -> 0 | I41: =Prop2018DistTar!BV8 -> 0
A42: =OR(EXACT(D42,Prop2018DistTar!C$6:C$65)) -> TRUE | B42: Low Voltage Small | C42: Low Voltage Small | D42: =IF(Prop2018DistTar!B9="","",Prop2018DistTar!B9) -> Low voltage small 2 rate | E42: =IF(Prop2018DistTar!C9="","",Prop2018DistTar!C9) -> Low voltage small 2 rate | F42: =Prop2018DistTar!BG9 -> 1408335.927 | I42: =Prop2018DistTar!BV9 -> 1364739.338
A43: =OR(EXACT(D43,Prop2018DistTar!C$6:C$65)) -> TRUE | B43: Low Voltage Small | C43: Low Voltage Small | D43: =IF(Prop2018DistTar!B10="","",Prop2018DistTar!B10) -> Dedicated circuit | E43: =IF(Prop2018DistTar!C10="","",Prop2018DistTar!C10) -> Dedicated circuit | F43: =Prop2018DistTar!BG10 -> 1836706.359 | I43: =Prop2018DistTar!BV10 -> 1779636.249
A44: =OR(EXACT(D44,Prop2018DistTar!C$6:C$65)) -> TRUE | B44: Low Voltage Medium | C44: Low Voltage Medium | D44: =IF(Prop2018DistTar!B11="","",Prop2018DistTar!B11) -> Low voltage medium 1 rate | E44: =IF(Prop2018DistTar!C11="","",Prop2018DistTar!C11) -> Low voltage medium 1 rate | F44: =Prop2018DistTar!BG11 -> 31925705.49 | I44: =Prop2018DistTar!BV11 -> 30103783.01
A45: =OR(EXACT(D45,Prop2018DistTar!C$6:C$65)) -> TRUE | B45: Low Voltage Medium | C45: Low Voltage Medium | D45: =IF(Prop2018DistTar!B12="","",Prop2018DistTar!B12) -> Low voltage medium 2 rate 5 day | E45: =IF(Prop2018DistTar!C12="","",Prop2018DistTar!C12) -> Low voltage medium 2 rate 5 day | F45: =Prop2018DistTar!BG12 -> 14093052.11 | I45: =Prop2018DistTar!BV12 -> 13289230.2
A46: =OR(EXACT(D46,Prop2018DistTar!C$6:C$65)) -> TRUE | B46: Low Voltage Medium | C46: Low Voltage Medium | D46: =IF(Prop2018DistTar!B13="","",Prop2018DistTar!B13) -> Low voltage medium 2 rate 7 day | E46: =IF(Prop2018DistTar!C13="","",Prop2018DistTar!C13) -> Low voltage medium 2 rate 7 day | F46: =Prop2018DistTar!BG13 -> 5690075.955 | I46: =Prop2018DistTar!BV13 -> 5365595.794
A47: =OR(EXACT(D47,Prop2018DistTar!C$6:C$65)) -> TRUE | B47: Low Voltage Small | C47: Low Voltage Small | D47: =IF(Prop2018DistTar!B14="","",Prop2018DistTar!B14) -> Unmetered supplies | E47: =IF(Prop2018DistTar!C14="","",Prop2018DistTar!C14) -> Unmetered supplies | F47: =Prop2018DistTar!BG14 -> 3049796.291 | I47: =Prop2018DistTar!BV14 -> 2955428.416
A48: =OR(EXACT(D48,Prop2018DistTar!C$6:C$65)) -> TRUE | B48: Low Voltage Large | C48: Low Voltage Large | D48: =IF(Prop2018DistTar!B15="","",Prop2018DistTar!B15) -> Low voltage large 1 rate | E48: =IF(Prop2018DistTar!C15="","",Prop2018DistTar!C15) -> Low voltage large 1 rate | F48: =Prop2018DistTar!BG15 -> 74586.20394 | I48: =Prop2018DistTar!BV15 -> 69200.31898
A49: =OR(EXACT(D49,Prop2018DistTar!C$6:C$65)) -> TRUE | B49: Low Voltage Large | C49: Low Voltage Large | D49: =IF(Prop2018DistTar!B16="","",Prop2018DistTar!B16) -> Low voltage large 2 rate | E49: =IF(Prop2018DistTar!C16="","",Prop2018DistTar!C16) -> Low voltage large 2 rate | F49: =Prop2018DistTar!BG16 -> 213141.6896 | I49: =Prop2018DistTar!BV16 -> 197764.3038
A50: =OR(EXACT(D50,Prop2018DistTar!C$6:C$65)) -> TRUE | B50: Low Voltage Medium | C50: Low Voltage Medium | D50: =IF(Prop2018DistTar!B17="","",Prop2018DistTar!B17) -> Low voltage KW time of use | E50: =IF(Prop2018DistTar!C17="","",Prop2018DistTar!C17) -> Low voltage KW time of use | F50: =Prop2018DistTar!BG17 -> 893901.6942 | I50: =Prop2018DistTar!BV17 -> 842910.9446
A51: =OR(EXACT(D51,Prop2018DistTar!C$6:C$65)) -> TRUE | B51: Low Voltage Medium | C51: Low Voltage Medium | D51: =IF(Prop2018DistTar!B18="","",Prop2018DistTar!B18) -> Low voltage KW time of use - HOT | E51: =IF(Prop2018DistTar!C18="","",Prop2018DistTar!C18) -> Low voltage KW time of use - HOT | F51: =Prop2018DistTar!BG18 -> 112323.1504 | I51: =Prop2018DistTar!BV18 -> 105913.6737
A52: =OR(EXACT(D52,Prop2018DistTar!C$6:C$65)) -> TRUE | B52: Low Voltage Large | C52: Low Voltage Large | D52: =IF(Prop2018DistTar!B19="","",Prop2018DistTar!B19) -> Low voltage large KVA time of use | E52: =IF(Prop2018DistTar!C19="","",Prop2018DistTar!C19) -> Low voltage large KVA time of use | F52: =Prop2018DistTar!BG19 -> 96580782.82 | I52: =Prop2018DistTar!BV19 -> 89617068.05
A53: =OR(EXACT(D53,Prop2018DistTar!C$6:C$65)) -> TRUE | B53: Low Voltage Large | C53: Low Voltage Large | D53: =IF(Prop2018DistTar!B20="","",Prop2018DistTar!B20) -> Low voltage large KVA time of use - HOT | E53: =IF(Prop2018DistTar!C20="","",Prop2018DistTar!C20) -> Low voltage large KVA time of use - HOT | F53: =Prop2018DistTar!BG20 -> 0 | I53: =Prop2018DistTar!BV20 -> 0
A54: =OR(EXACT(D54,Prop2018DistTar!C$6:C$65)) -> TRUE | B54: High Voltage Large | C54: High Voltage Large | D54: =IF(Prop2018DistTar!B21="","",Prop2018DistTar!B21) -> High voltage KVA time of use | E54: =IF(Prop2018DistTar!C21="","",Prop2018DistTar!C21) -> High voltage KVA time of use | F54: =Prop2018DistTar!BG21 -> 20518463.88 | I54: =Prop2018DistTar!BV21 -> 19137380.91
A55: =OR(EXACT(D55,Prop2018DistTar!C$6:C$65)) -> TRUE | B55: High Voltage Large | C55: High Voltage Large | D55: =IF(Prop2018DistTar!B22="","",Prop2018DistTar!B22) -> High voltage KVA time of use - HOT | E55: =IF(Prop2018DistTar!C22="","",Prop2018DistTar!C22) -> High voltage KVA time of use - HOT | F55: =Prop2018DistTar!BG22 -> 0 | I55: =Prop2018DistTar!BV22 -> 0
A56: =OR(EXACT(D56,Prop2018DistTar!C$6:C$65)) -> TRUE | B56: Subtransmission Large | C56: Subtransmission Large | D56: =IF(Prop2018DistTar!B23="","",Prop2018DistTar!B23) -> Subtransmission KVA time of use | E56: =IF(Prop2018DistTar!C23="","",Prop2018DistTar!C23) -> Subtransmission KVA time of use | F56: =Prop2018DistTar!BG23 -> 189609.7388 | I56: =Prop2018DistTar!BV23 -> 176844.2189
A57: =OR(EXACT(D57,Prop2018DistTar!C$6:C$65)) -> TRUE | B57: Low Voltage Small | C57: Low Voltage Small | D57: =IF(Prop2018DistTar!B24="","",Prop2018DistTar!B24) -> TOD | E57: =IF(Prop2018DistTar!C24="","",Prop2018DistTar!C24) -> TOD | F57: =Prop2018DistTar!BG24 -> 13065382.91 | I57: =Prop2018DistTar!BV24 -> 12660333.63
A58: =OR(EXACT(D58,Prop2018DistTar!C$6:C$65)) -> TRUE | B58: Low Voltage Small | C58: Low Voltage Small | D58: =IF(Prop2018DistTar!B25="","",Prop2018DistTar!B25) -> TOD9 | E58: =IF(Prop2018DistTar!C25="","",Prop2018DistTar!C25) -> TOD9 | F58: =Prop2018DistTar!BG25 -> 561104.4056 | I58: =Prop2018DistTar!BV25 -> 543710.931
A59: =OR(EXACT(D59,Prop2018DistTar!C$6:C$65)) -> TRUE | B59: Low Voltage Medium | C59: Low Voltage Medium | D59: =IF(Prop2018DistTar!B26="","",Prop2018DistTar!B26) -> TOU | E59: =IF(Prop2018DistTar!C26="","",Prop2018DistTar!C26) -> TOU | F59: =Prop2018DistTar!BG26 -> 1448260.142 | I59: =Prop2018DistTar!BV26 -> 1365697.791
A60: =OR(EXACT(D60,Prop2018DistTar!C$6:C$65)) -> TRUE | B60: Low Voltage Small | C60: Low Voltage Small | D60: =IF(Prop2018DistTar!B27="","",Prop2018DistTar!B27) -> TODFLEX | E60: =IF(Prop2018DistTar!C27="","",Prop2018DistTar!C27) -> TODFLEX | F60: =Prop2018DistTar!BG27 -> 720465.1742 | I60: =Prop2018DistTar!BV27 -> 698119.0601
A61: =OR(EXACT(D61,Prop2018DistTar!C$6:C$65)) -> TRUE | B61: Low Voltage Small | C61: Low Voltage Small | D61: =IF(Prop2018DistTar!B28="","",Prop2018DistTar!B28) -> Low Voltage KW 1 rate | E61: =IF(Prop2018DistTar!C28="","",Prop2018DistTar!C28) -> Low Voltage KW 1 rate | F61: =Prop2018DistTar!BG28 -> 807436.0481 | I61: =Prop2018DistTar!BV28 -> 782431.111
A62: =OR(EXACT(D62,Prop2018DistTar!C$6:C$65)) -> TRUE | B62: Low Voltage Medium | C62: Low Voltage Medium | D62: =IF(Prop2018DistTar!B29="","",Prop2018DistTar!B29) -> Low voltage medium KW time of use (opt-in) | E62: =IF(Prop2018DistTar!C29="","",Prop2018DistTar!C29) -> Low voltage medium KW time of use (opt-in) | F62: =Prop2018DistTar!BG29 -> 1252298.594 | I62: =Prop2018DistTar!BV29 -> 1180907.484
A63: =OR(EXACT(D63,Prop2018DistTar!C$6:C$65)) -> TRUE | B63: Low Voltage Medium | C63: Low Voltage Medium | D63: =IF(Prop2018DistTar!B30="","",Prop2018DistTar!B30) -> Low voltage medium KW 1 rate (mandatory) | E63: =IF(Prop2018DistTar!C30="","",Prop2018DistTar!C30) -> Low voltage medium KW 1 rate (mandatory) | F63: =Prop2018DistTar!BG30 -> 48800971.99 | I63: =Prop2018DistTar!BV30 -> 46014860.58
A64: =OR(EXACT(D64,Prop2018DistTar!C$6:C$65)) -> TRUE | D64: =IF(Prop2018DistTar!B31="","",Prop2018DistTar!B31) ->  | E64: =IF(Prop2018DistTar!C31="","",Prop2018DistTar!C31) ->  | F64: =Prop2018DistTar!BG31 -> 0 | I64: =Prop2018DistTar!BV31 -> 0
A65: =OR(EXACT(D65,Prop2018DistTar!C$6:C$65)) -> TRUE | D65: =IF(Prop2018DistTar!B32="","",Prop2018DistTar!B32) ->  | E65: =IF(Prop2018DistTar!C32="","",Prop2018DistTar!C32) ->  | F65: =Prop2018DistTar!BG32 -> 0 | I65: =Prop2018DistTar!BV32 -> 0
A66: =OR(EXACT(D66,Prop2018DistTar!C$6:C$65)) -> TRUE | D66: =IF(Prop2018DistTar!B33="","",Prop2018DistTar!B33) ->  | E66: =IF(Prop2018DistTar!C33="","",Prop2018DistTar!C33) ->  | F66: =Prop2018DistTar!BG33 -> 0 | I66: =Prop2018DistTar!BV33 -> 0
A67: =OR(EXACT(D67,Prop2018DistTar!C$6:C$65)) -> TRUE | D67: =IF(Prop2018DistTar!B34="","",Prop2018DistTar!B34) ->  | E67: =IF(Prop2018DistTar!C34="","",Prop2018DistTar!C34) ->  | F67: =Prop2018DistTar!BG34 -> 0 | I67: =Prop2018DistTar!BV34 -> 0
A68: =OR(EXACT(D68,Prop2018DistTar!C$6:C$65)) -> TRUE | D68: =IF(Prop2018DistTar!B35="","",Prop2018DistTar!B35) ->  | E68: =IF(Prop2018DistTar!C35="","",Prop2018DistTar!C35) ->  | F68: =Prop2018DistTar!BG35 -> 0 | I68: =Prop2018DistTar!BV35 -> 0
A69: =OR(EXACT(D69,Prop2018DistTar!C$6:C$65)) -> TRUE | D69: =IF(Prop2018DistTar!B36="","",Prop2018DistTar!B36) ->  | E69: =IF(Prop2018DistTar!C36="","",Prop2018DistTar!C36) ->  | F69: =Prop2018DistTar!BG36 -> 0 | I69: =Prop2018DistTar!BV36 -> 0
A70: =OR(EXACT(D70,Prop2018DistTar!C$6:C$65)) -> TRUE | D70: =IF(Prop2018DistTar!B37="","",Prop2018DistTar!B37) ->  | E70: =IF(Prop2018DistTar!C37="","",Prop2018DistTar!C37) ->  | F70: =Prop2018DistTar!BG37 -> 0 | I70: =Prop2018DistTar!BV37 -> 0
A71: =OR(EXACT(D71,Prop2018DistTar!C$6:C$65)) -> TRUE | D71: =IF(Prop2018DistTar!B38="","",Prop2018DistTar!B38) ->  | E71: =IF(Prop2018DistTar!C38="","",Prop2018DistTar!C38) ->  | F71: =Prop2018DistTar!BG38 -> 0 | I71: =Prop2018DistTar!BV38 -> 0
A72: =OR(EXACT(D72,Prop2018DistTar!C$6:C$65)) -> TRUE | D72: =IF(Prop2018DistTar!B39="","",Prop2018DistTar!B39) ->  | E72: =IF(Prop2018DistTar!C39="","",Prop2018DistTar!C39) ->  | F72: =Prop2018DistTar!BG39 -> 0 | I72: =Prop2018DistTar!BV39 -> 0
A73: =OR(EXACT(D73,Prop2018DistTar!C$6:C$65)) -> TRUE | D73: =IF(Prop2018DistTar!B40="","",Prop2018DistTar!B40) ->  | E73: =IF(Prop2018DistTar!C40="","",Prop2018DistTar!C40) ->  | F73: =Prop2018DistTar!BG40 -> 0 | I73: =Prop2018DistTar!BV40 -> 0
A74: =OR(EXACT(D74,Prop2018DistTar!C$6:C$65)) -> TRUE | D74: =IF(Prop2018DistTar!B41="","",Prop2018DistTar!B41) ->  | E74: =IF(Prop2018DistTar!C41="","",Prop2018DistTar!C41) ->  | F74: =Prop2018DistTar!BG41 -> 0 | I74: =Prop2018DistTar!BV41 -> 0
A75: =OR(EXACT(D75,Prop2018DistTar!C$6:C$65)) -> TRUE | D75: =IF(Prop2018DistTar!B42="","",Prop2018DistTar!B42) ->  | E75: =IF(Prop2018DistTar!C42="","",Prop2018DistTar!C42) ->  | F75: =Prop2018DistTar!BG42 -> 0 | I75: =Prop2018DistTar!BV42 -> 0
A76: =OR(EXACT(D76,Prop2018DistTar!C$6:C$65)) -> TRUE | D76: =IF(Prop2018DistTar!B43="","",Prop2018DistTar!B43) ->  | E76: =IF(Prop2018DistTar!C43="","",Prop2018DistTar!C43) ->  | F76: =Prop2018DistTar!BG43 -> 0 | I76: =Prop2018DistTar!BV43 -> 0
A77: =OR(EXACT(D77,Prop2018DistTar!C$6:C$65)) -> TRUE | D77: =IF(Prop2018DistTar!B44="","",Prop2018DistTar!B44) ->  | E77: =IF(Prop2018DistTar!C44="","",Prop2018DistTar!C44) ->  | F77: =Prop2018DistTar!BG44 -> 0 | I77: =Prop2018DistTar!BV44 -> 0
A78: =OR(EXACT(D78,Prop2018DistTar!C$6:C$65)) -> TRUE | D78: =IF(Prop2018DistTar!B45="","",Prop2018DistTar!B45) ->  | E78: =IF(Prop2018DistTar!C45="","",Prop2018DistTar!C45) ->  | F78: =Prop2018DistTar!BG45 -> 0 | I78: =Prop2018DistTar!BV45 -> 0
A79: =OR(EXACT(D79,Prop2018DistTar!C$6:C$65)) -> TRUE | D79: =IF(Prop2018DistTar!B46="","",Prop2018DistTar!B46) ->  | E79: =IF(Prop2018DistTar!C46="","",Prop2018DistTar!C46) ->  | F79: =Prop2018DistTar!BG46 -> 0 | I79: =Prop2018DistTar!BV46 -> 0
A80: =OR(EXACT(D80,Prop2018DistTar!C$6:C$65)) -> TRUE | D80: =IF(Prop2018DistTar!B47="","",Prop2018DistTar!B47) ->  | E80: =IF(Prop2018DistTar!C47="","",Prop2018DistTar!C47) ->  | F80: =Prop2018DistTar!BG47 -> 0 | I80: =Prop2018DistTar!BV47 -> 0
A81: =OR(EXACT(D81,Prop2018DistTar!C$6:C$65)) -> TRUE | D81: =IF(Prop2018DistTar!B48="","",Prop2018DistTar!B48) ->  | E81: =IF(Prop2018DistTar!C48="","",Prop2018DistTar!C48) ->  | F81: =Prop2018DistTar!BG48 -> 0 | I81: =Prop2018DistTar!BV48 -> 0
A82: =OR(EXACT(D82,Prop2018DistTar!C$6:C$65)) -> TRUE | D82: =IF(Prop2018DistTar!B49="","",Prop2018DistTar!B49) ->  | E82: =IF(Prop2018DistTar!C49="","",Prop2018DistTar!C49) ->  | F82: =Prop2018DistTar!BG49 -> 0 | I82: =Prop2018DistTar!BV49 -> 0
A83: =OR(EXACT(D83,Prop2018DistTar!C$6:C$65)) -> TRUE | D83: =IF(Prop2018DistTar!B50="","",Prop2018DistTar!B50) ->  | E83: =IF(Prop2018DistTar!C50="","",Prop2018DistTar!C50) ->  | F83: =Prop2018DistTar!BG50 -> 0 | I83: =Prop2018DistTar!BV50 -> 0
A84: =OR(EXACT(D84,Prop2018DistTar!C$6:C$65)) -> TRUE | D84: =IF(Prop2018DistTar!B51="","",Prop2018DistTar!B51) ->  | E84: =IF(Prop2018DistTar!C51="","",Prop2018DistTar!C51) ->  | F84: =Prop2018DistTar!BG51 -> 0 | I84: =Prop2018DistTar!BV51 -> 0
A85: =OR(EXACT(D85,Prop2018DistTar!C$6:C$65)) -> TRUE | D85: =IF(Prop2018DistTar!B52="","",Prop2018DistTar!B52) ->  | E85: =IF(Prop2018DistTar!C52="","",Prop2018DistTar!C52) ->  | F85: =Prop2018DistTar!BG52 -> 0 | I85: =Prop2018DistTar!BV52 -> 0
A86: =OR(EXACT(D86,Prop2018DistTar!C$6:C$65)) -> TRUE | D86: =IF(Prop2018DistTar!B53="","",Prop2018DistTar!B53) ->  | E86: =IF(Prop2018DistTar!C53="","",Prop2018DistTar!C53) ->  | F86: =Prop2018DistTar!BG53 -> 0 | I86: =Prop2018DistTar!BV53 -> 0
A87: =OR(EXACT(D87,Prop2018DistTar!C$6:C$65)) -> TRUE | D87: =IF(Prop2018DistTar!B54="","",Prop2018DistTar!B54) ->  | E87: =IF(Prop2018DistTar!C54="","",Prop2018DistTar!C54) ->  | F87: =Prop2018DistTar!BG54 -> 0 | I87: =Prop2018DistTar!BV54 -> 0
A88: =OR(EXACT(D88,Prop2018DistTar!C$6:C$65)) -> TRUE | D88: =IF(Prop2018DistTar!B55="","",Prop2018DistTar!B55) ->  | E88: =IF(Prop2018DistTar!C55="","",Prop2018DistTar!C55) ->  | F88: =Prop2018DistTar!BG55 -> 0 | I88: =Prop2018DistTar!BV55 -> 0
A89: =OR(EXACT(D89,Prop2018DistTar!C$6:C$65)) -> TRUE | D89: =IF(Prop2018DistTar!B56="","",Prop2018DistTar!B56) ->  | E89: =IF(Prop2018DistTar!C56="","",Prop2018DistTar!C56) ->  | F89: =Prop2018DistTar!BG56 -> 0 | I89: =Prop2018DistTar!BV56 -> 0
A90: =OR(EXACT(D90,Prop2018DistTar!C$6:C$65)) -> TRUE | D90: =IF(Prop2018DistTar!B57="","",Prop2018DistTar!B57) ->  | E90: =IF(Prop2018DistTar!C57="","",Prop2018DistTar!C57) ->  | F90: =Prop2018DistTar!BG57 -> 0 | I90: =Prop2018DistTar!BV57 -> 0
A91: =OR(EXACT(D91,Prop2018DistTar!C$6:C$65)) -> TRUE | D91: =IF(Prop2018DistTar!B58="","",Prop2018DistTar!B58) ->  | E91: =IF(Prop2018DistTar!C58="","",Prop2018DistTar!C58) ->  | F91: =Prop2018DistTar!BG58 -> 0 | I91: =Prop2018DistTar!BV58 -> 0
A92: =OR(EXACT(D92,Prop2018DistTar!C$6:C$65)) -> TRUE | D92: =IF(Prop2018DistTar!B59="","",Prop2018DistTar!B59) ->  | E92: =IF(Prop2018DistTar!C59="","",Prop2018DistTar!C59) ->  | F92: =Prop2018DistTar!BG59 -> 0 | I92: =Prop2018DistTar!BV59 -> 0
A93: =OR(EXACT(D93,Prop2018DistTar!C$6:C$65)) -> TRUE | D93: =IF(Prop2018DistTar!B60="","",Prop2018DistTar!B60) ->  | E93: =IF(Prop2018DistTar!C60="","",Prop2018DistTar!C60) ->  | F93: =Prop2018DistTar!BG60 -> 0 | I93: =Prop2018DistTar!BV60 -> 0
A94: =OR(EXACT(D94,Prop2018DistTar!C$6:C$65)) -> TRUE | D94: =IF(Prop2018DistTar!B61="","",Prop2018DistTar!B61) ->  | E94: =IF(Prop2018DistTar!C61="","",Prop2018DistTar!C61) ->  | F94: =Prop2018DistTar!BG61 -> 0 | I94: =Prop2018DistTar!BV61 -> 0
A95: =OR(EXACT(D95,Prop2018DistTar!C$6:C$65)) -> TRUE | D95: =IF(Prop2018DistTar!B62="","",Prop2018DistTar!B62) ->  | E95: =IF(Prop2018DistTar!C62="","",Prop2018DistTar!C62) ->  | F95: =Prop2018DistTar!BG62 -> 0 | I95: =Prop2018DistTar!BV62 -> 0
A96: =OR(EXACT(D96,Prop2018DistTar!C$6:C$65)) -> TRUE | D96: =IF(Prop2018DistTar!B63="","",Prop2018DistTar!B63) ->  | E96: =IF(Prop2018DistTar!C63="","",Prop2018DistTar!C63) ->  | F96: =Prop2018DistTar!BG63 -> 0 | I96: =Prop2018DistTar!BV63 -> 0
A97: =OR(EXACT(D97,Prop2018DistTar!C$6:C$65)) -> TRUE | D97: =IF(Prop2018DistTar!B64="","",Prop2018DistTar!B64) ->  | E97: =IF(Prop2018DistTar!C64="","",Prop2018DistTar!C64) ->  | F97: =Prop2018DistTar!BG64 -> 0 | I97: =Prop2018DistTar!BV64 -> 0
A98: =OR(EXACT(D98,Prop2018DistTar!C$6:C$65)) -> TRUE | D98: =IF(Prop2018DistTar!B65="","",Prop2018DistTar!B65) ->  | E98: =IF(Prop2018DistTar!C65="","",Prop2018DistTar!C65) ->  | F98: =Prop2018DistTar!BG65 -> 0 | I98: =Prop2018DistTar!BV65 -> 0
F99: =SUM(F39:F98) -> 411158379.6 | I99: =SUM(I39:I98) -> 390955409.4

Sheet Est2017DistRev
B1: ="Tariff Approval - "&'Model update'!C3 -> Tariff Approval - United Energy
B3: ="ESTIMATED "&'Model update'!$C$8&" Distribution Revenue" -> ESTIMATED 2017 Distribution Revenue
D4: ="Current Distribution Tariffs (Pt-1) for "&'Model update'!$C$8 -> Current Distribution Tariffs (Pt-1) for 2017 | R4: =" Estimated Distribution Quantities for "&'Model update'!$C$8&" (Qt-1)" -> Estimated Distribution Quantities for 2017 (Qt-1) | AF4: ="Estimated Revenue (Pt-1 "&'Model update'!$C$8&")*(Qt-1 " &'Model update'!$C$8&")" -> Estimated Revenue (Pt-1 2017)*(Qt-1 2017)
B5: ="Tariffs "&'Model update'!C8 -> Tariffs 2017 | D5: Current Fixed | E5: CurrentPkBlk1 | F5: CurrentPkBlk2 | G5: Current PkBlk3 | H5: Current PkBlk4 | I5: Current OPkBlk1 | J5: Current OPkBlk2 | K5: Current OPkBlk3 | L5: Current OPkBlk4 | M5: Current DemBlk1 | N5: Current DemBlk2 | O5: Current DemBlk3 | P5: Current DemBlk4 | R5: EstVol Fixed | S5: EstVol PkBlk1 | T5: EstVol PkBlk2 | U5: EstVol PkBlk3 | V5: EstVol PkBlk4 | W5: EstVol OPkBlk1 | X5: EstVol OPkBlk2 | Y5: EstVol OPkBlk3 | Z5: EstVol OPkBlk4 | AA5: EstVol DemBlk1 | AB5: EstVol DemBlk2 | AC5: EstVol DemBlk3 | AD5: EstVol DemBlk4 | AF5: EstRev Fixed | AG5: EstRev PkBlk1 | AH5: EstRev PkBlk2 | AI5: EstRev PkBlk3 | AJ5: EstRev PkBlk4 | AK5: EstRev OPkBlk1 | AL5: EstRev OPkBlk2 | AM5: EstRev OPkBlk3 | AN5: EstRev OPkBlk4 | AO5: EstRev DemBlk1 | AP5: EstRev DemBlk2 | AQ5: EstRev DemBlk3 | AR5: EstRev DemBlk4 | AS5: EstRev Total
B6: =Prop2018DistTar!B6 -> Low voltage small 1 rate | D6: 6.652 | E6: 8.202 | F6: 0 | G6: 0 | H6: 5.28 | I6: 0 | J6: 0 | K6: 0 | L6: 0 | M6: 0 | N6: 0 | O6: 0 | P6: 0 | R6: 201584381.1 | S6: 908301740.9 | T6: 0 | U6: 0 | V6: 1512903697 | W6: 0 | X6: 0 | Y6: 0 | Z6: 0 | AA6: 0 | AB6: 0 | AC6: 0 | AF6: =D6/100*R6 -> 13409393.03 | AG6: =E6/100*S6 -> 74498908.79 | AH6: =F6/100*T6 -> 0 | AI6: =G6/100*U6 -> 0 | AJ6: =H6/100*V6 -> 79881315.19 | AK6: =I6/100*W6 -> 0 | AL6: =J6/100*X6 -> 0 | AM6: =K6/100*Y6 -> 0 | AN6: =L6/100*Z6 -> 0 | AO6: =M6/100*AA6 -> 0 | AP6: =N6/100*AB6 -> 0 | AQ6: =O6/100*AC6 -> 0 | AR6: =P6/100*AD6 -> 0 | AS6: =SUM(AF6:AR6) -> 167789617
B7: =Prop2018DistTar!B7 -> Winter economy tariff | D7: 8.567 | E7: 6.389 | F7: 0 | G7: 0 | H7: 4.734 | I7: 1.774 | J7: 0 | K7: 0 | L7: 0 | M7: 0 | N7: 0 | O7: 0 | P7: 0 | R7: 48925.3741 | S7: 190882.7343 | T7: 0 | U7: 0 | V7: 434825.1494 | W7: 0 | X7: 0 | Y7: 0 | Z7: 0 | AA7: 0 | AB7: 0 | AC7: 0 | AF7: 4191.436799 | AG7: 12195.4979 | AH7: 0 | AI7: 0 | AJ7: 20584.62257 | AK7: 0 | AL7: 0 | AM7: 0 | AN7: 0 | AO7: 0 | AP7: 0 | AQ7: 0 | AR7: 0 | AS7: 36971.55727
B8: =Prop2018DistTar!B8 -> Reverse cycle airconditioning time of use | D8: 0 | E8: 0 | F8: 0 | G8: 5.553 | H8: 0 | I8: 0 | J8: 1.396 | K8: 1.371 | L8: 0 | M8: 0 | N8: 69.767 | O8: 0 | P8: 0 | R8: 0 | S8: 0 | T8: 0 | U8: 0 | V8: 0 | W8: 0 | X8: 0 | Y8: 0 | Z8: 0 | AA8: 0 | AB8: 0 | AC8: 0 | AF8: 0 | AG8: 0 | AH8: 0 | AI8: 0 | AJ8: 0 | AK8: 0 | AL8: 0 | AM8: 0 | AN8: 0 | AO8: 0 | AP8: 0 | AQ8: 0 | AR8: 0 | AS8: 0
B9: =Prop2018DistTar!B9 -> Low voltage small 2 rate | D9: 13.586 | E9: 0 | F9: 0 | G9: 9.751 | H9: 0 | I9: 0 | J9: 7.396 | K9: 1.691 | L9: 0 | M9: 0 | N9: 0 | O9: 0 | P9: 0 | R9: 1561827.967 | S9: 0 | T9: 0 | U9: 4402929.961 | V9: 0 | W9: 0 | X9: 7259168.65 | Y9: 15381833.08 | Z9: 0 | AA9: 0 | AB9: 0 | AC9: 0 | AF9: 212189.9475 | AG9: 0 | AH9: 0 | AI9: 429329.7005 | AJ9: 0 | AK9: 0 | AL9: 536888.1134 | AM9: 260106.7974 | AN9: 0 | AO9: 0 | AP9: 0 | AQ9: 0 | AR9: 0 | AS9: 1438514.559
B10: =Prop2018DistTar!B10 -> Dedicated circuit | D10: 0 | E10: 0 | F10: 0 | G10: 0 | H10: 0 | I10: 0 | J10: 0 | K10: 1.871 | L10: 0 | M10: 0 | N10: 0 | O10: 0 | P10: 0 | R10: 667.9 | S10: 0 | T10: 0 | U10: 0 | V10: 0 | W10: 0 | X10: 0 | Y10: 98711981.43 | Z10: 0 | AA10: 0 | AB10: 0 | AC10: 0 | AF10: 0 | AG10: 0 | AH10: 0 | AI10: 0 | AJ10: 0 | AK10: 0 | AL10: 0 | AM10: 1846901.173 | AN10: 0 | AO10: 0 | AP10: 0 | AQ10: 0 | AR10: 0 | AS10: 1846901.173
B11: =Prop2018DistTar!B11 -> Low voltage medium 1 rate | D11: 10.987 | E11: 9.657 | F11: 0 | G11: 0 | H11: 6.026 | I11: 0 | J11: 0 | K11: 0 | L11: 0 | M11: 0 | N11: 0 | O11: 0 | P11: 0 | R11: 11864291.38 | S11: 155269969.6 | T11: 0 | U11: 0 | V11: 233793484.5 | W11: 0 | X11: 0 | Y11: 4 | Z11: 0 | AA11: 0 | AB11: 0 | AC11: 0 | AF11: 1303529.694 | AG11: 14994420.97 | AH11: 0 | AI11: 0 | AJ11: 14088395.37 | AK11: 0 | AL11: 0 | AM11: 0 | AN11: 0 | AO11: 0 | AP11: 0 | AQ11: 0 | AR11: 0 | AS11: 30386346.04
B12: =Prop2018DistTar!B12 -> Low voltage medium 2 rate 5 day | D12: 21.03 | E12: 0 | F12: 0 | G12: 10.212 | H12: 0 | I12: 0 | J12: 7.653 | K12: 1.907 | L12: 0 | M12: 0 | N12: 0 | O12: 0 | P12: 0 | R12: 3762110.124 | S12: 0 | T12: 0 | U12: 52750944.99 | V12: 0 | W12: 0 | X12: 73732469.08 | Y12: 78832208.17 | Z12: 0 | AA12: 0 | AB12: 0 | AC12: 0 | AF12: 791171.759 | AG12: 0 | AH12: 0 | AI12: 5386926.502 | AJ12: 0 | AK12: 0 | AL12: 5642745.859 | AM12: 1503330.21 | AN12: 0 | AO12: 0 | AP12: 0 | AQ12: 0 | AR12: 0 | AS12: 13324174.33
B13: =Prop2018DistTar!B13 -> Low voltage medium 2 rate 7 day | D13: 22.387 | E13: 0 | F13: 0 | G13: 9.719 | H13: 0 | I13: 0 | J13: 7.526 | K13: 1.773 | L13: 0 | M13: 0 | N13: 0 | O13: 0 | P13: 0 | R13: 1819379.414 | S13: 0 | T13: 0 | U13: 22682579.56 | V13: 0 | W13: 0 | X13: 34109458.96 | Y13: 15078122.19 | Z13: 0 | AA13: 0 | AB13: 0 | AC13: 0 | AF13: 407304.4694 | AG13: 0 | AH13: 0 | AI13: 2204519.907 | AJ13: 0 | AK13: 0 | AL13: 2567077.881 | AM13: 267335.1064 | AN13: 0 | AO13: 0 | AP13: 0 | AQ13: 0 | AR13: 0 | AS13: 5446237.364
B14: =Prop2018DistTar!B14 -> Unmetered supplies | D14: 0 | E14: 0 | F14: 0 | G14: 8.197 | H14: 0 | I14: 0 | J14: 5.996 | K14: 1.478 | L14: 0 | M14: 0 | N14: 0 | O14: 0 | P14: 0 | R14: 1207792.623 | S14: 0 | T14: 0 | U14: 10724484.11 | V14: 0 | W14: 0 | X14: 18203252.79 | Y14: 66747582.58 | Z14: 0 | AA14: 0 | AB14: 0 | AC14: 0 | AF14: 0 | AG14: 0 | AH14: 0 | AI14: 879085.9628 | AJ14: 0 | AK14: 0 | AL14: 1091467.037 | AM14: 986529.2706 | AN14: 0 | AO14: 0 | AP14: 0 | AQ14: 0 | AR14: 0 | AS14: 2957082.271
B15: =Prop2018DistTar!B15 -> Low voltage large 1 rate | D15: 12.657 | E15: 5.796 | F15: 0 | G15: 0 | H15: 4.573 | I15: 0 | J15: 0 | K15: 0 | L15: 0 | M15: 0 | N15: 0 | O15: 0 | P15: 0 | R15: 2527.382942 | S15: 597942.0407 | T15: 0 | U15: 0 | V15: 774047.2155 | W15: 0 | X15: 0 | Y15: 0 | Z15: 0 | AA15: 0 | AB15: 0 | AC15: 0 | AF15: 319.890859 | AG15: 34656.72068 | AH15: 0 | AI15: 0 | AJ15: 35397.17917 | AK15: 0 | AL15: 0 | AM15: 0 | AN15: 0 | AO15: 0 | AP15: 0 | AQ15: 0 | AR15: 0 | AS15: 70373.79071
B16: =Prop2018DistTar!B16 -> Low voltage large 2 rate | D16: 18.258 | E16: 0 | F16: 0 | G16: 9.074 | H16: 0 | I16: 0 | J16: 7.215 | K16: 1.727 | L16: 0 | M16: 0 | N16: 0 | O16: 0 | P16: 0 | R16: 8044.888029 | S16: 0 | T16: 0 | U16: 1050283.811 | V16: 0 | W16: 0 | X16: 1490905.35 | Y16: 1781684.618 | Z16: 0 | AA16: 0 | AB16: 0 | AC16: 0 | AF16: 1468.835656 | AG16: 0 | AH16: 0 | AI16: 95302.75302 | AJ16: 0 | AK16: 0 | AL16: 107568.821 | AM16: 30769.69335 | AN16: 0 | AO16: 0 | AP16: 0 | AQ16: 0 | AR16: 0 | AS16: 235110.103
B17: =Prop2018DistTar!B17 -> Low voltage KW time of use | D17: 0 | E17: 0 | F17: 0 | G17: 8.404 | H17: 0 | I17: 0 | J17: 4.924 | K17: 1.957 | L17: 0 | M17: 0 | N17: 40.245 | O17: 0 | P17: 0 | R17: 27933.549 | S17: 0 | T17: 0 | U17: 2946856.879 | V17: 0 | W17: 0 | X17: 4098087.328 | Y17: 6713595.561 | Z17: 0 | AA17: 0 | AB17: 681904.8849 | AC17: 0 | AF17: 0 | AG17: 0 | AH17: 0 | AI17: 247653.8521 | AJ17: 0 | AK17: 0 | AL17: 201789.82 | AM17: 131385.0651 | AN17: 0 | AO17: 0 | AP17: 274432.6209 | AQ17: 0 | AR17: 0 | AS17: 855261.3582
B18: =Prop2018DistTar!B18 -> Low voltage KW time of use - HOT | D18: 0 | E18: 0 | F18: 0 | G18: 7.317 | H18: 0 | I18: 0 | J18: 5.625 | K18: 1.653 | L18: 0 | M18: 0 | N18: 64.394 | O18: 0 | P18: 0 | R18: 1211.360167 | S18: 0 | T18: 0 | U18: 528234.4511 | V18: 0 | W18: 0 | X18: 47405.28414 | Y18: 824959.3551 | Z18: 0 | AA18: 0 | AB18: 147592.397 | AC18: 0 | AF18: 0 | AG18: 0 | AH18: 0 | AI18: 38650.91478 | AJ18: 0 | AK18: 0 | AL18: 2666.547233 | AM18: 13636.57814 | AN18: 0 | AO18: 0 | AP18: 95040.64813 | AQ18: 0 | AR18: 0 | AS18: 149994.6883
B19: =Prop2018DistTar!B19 -> Low voltage large KVA time of use | D19: 0 | E19: 0 | F19: 0 | G19: 1.305 | H19: 0 | I19: 0 | J19: 1.106 | K19: 1.095 | L19: 0 | M19: 13.172 | N19: 19.65 | O19: 0 | P19: 0 | R19: 393917 | S19: 0 | T19: 0 | U19: 470238596.6 | V19: 0 | W19: 0 | X19: 644313381.3 | Y19: 1280147668 | Z19: 0 | AA19: 326079395.9 | AB19: 95406197.36 | AC19: 0 | AF19: 0 | AG19: 0 | AH19: 0 | AI19: 6136613.685 | AJ19: 0 | AK19: 0 | AL19: 7126105.997 | AM19: 14017616.97 | AN19: 0 | AO19: 42951178.03 | AP19: 18747317.78 | AQ19: 0 | AR19: 0 | AS19: 88978832.46
B20: =Prop2018DistTar!B20 -> Low voltage large KVA time of use - HOT | D20: 0 | E20: 0 | F20: 0 | G20: 1.139 | H20: 0 | I20: 0 | J20: 0.942 | K20: 0.936 | L20: 0 | M20: 13.107 | N20: 30.917 | O20: 0 | P20: 0 | R20: 122 | S20: 0 | T20: 0 | U20: 188523.4438 | V20: 0 | W20: 0 | X20: 250916.264 | Y20: 851041.2182 | Z20: 0 | AA20: 101243.676 | AB20: 35569.13953 | AC20: 0 | AF20: 0 | AG20: 0 | AH20: 0 | AI20: 2147.282025 | AJ20: 0 | AK20: 0 | AL20: 2363.631207 | AM20: 7965.745802 | AN20: 0 | AO20: 13270.00862 | AP20: 10996.91087 | AQ20: 0 | AR20: 0 | AS20: 36743.57852
B21: =Prop2018DistTar!B21 -> High voltage KVA time of use | D21: 0 | E21: 0 | F21: 0 | G21: 0.786 | H21: 0 | I21: 0 | J21: 0.694 | K21: 0.682 | L21: 0 | M21: 8.012 | N21: 11.003 | O21: 0 | P21: 0 | R21: 11224 | S21: 0 | T21: 0 | U21: 170765372.5 | V21: 0 | W21: 0 | X21: 244972690.6 | Y21: 637251511.6 | Z21: 0 | AA21: 102140766.4 | AB21: 31103115.87 | AC21: 0 | AF21: 0 | AG21: 0 | AH21: 0 | AI21: 1342215.828 | AJ21: 0 | AK21: 0 | AL21: 1700110.473 | AM21: 4346055.309 | AN21: 0 | AO21: 8183518.202 | AP21: 3422275.839 | AQ21: 0 | AR21: 0 | AS21: 18994175.65
B22: =Prop2018DistTar!B22 -> High voltage KVA time of use - HOT | D22: 0 | E22: 0 | F22: 0 | G22: 0.814 | H22: 0 | I22: 0 | J22: 0.673 | K22: 0.665 | L22: 0 | M22: 9.241 | N22: 22.377 | O22: 0 | P22: 0 | R22: 0 | S22: 0 | T22: 0 | U22: 0 | V22: 0 | W22: 0 | X22: 0 | Y22: 0 | Z22: 0 | AA22: 0 | AB22: 0 | AC22: 0 | AF22: 0 | AG22: 0 | AH22: 0 | AI22: 0 | AJ22: 0 | AK22: 0 | AL22: 0 | AM22: 0 | AN22: 0 | AO22: 0 | AP22: 0 | AQ22: 0 | AR22: 0 | AS22: 0
B23: =Prop2018DistTar!B23 -> Subtransmission KVA time of use | D23: 0 | E23: 0 | F23: 0 | G23: 0.448 | H23: 0 | I23: 0 | J23: 0.349 | K23: 0.302 | L23: 0 | M23: 0.784 | N23: 1.149 | O23: 0 | P23: 0 | R23: 122 | S23: 0 | T23: 0 | U23: 8375947.461 | V23: 0 | W23: 0 | X23: 10969980.42 | Y23: 16019608.1 | Z23: 0 | AA23: 4212706.539 | AB23: 1491519.652 | AC23: 0 | AF23: 0 | AG23: 0 | AH23: 0 | AI23: 37524.24462 | AJ23: 0 | AK23: 0 | AL23: 38285.23167 | AM23: 48379.21645 | AN23: 0 | AO23: 33027.61926 | AP23: 17137.5608 | AQ23: 0 | AR23: 0 | AS23: 174353.8728
B24: =Prop2018DistTar!B24 -> TOD | D24: 6.328 | E24: 0 | F24: 4.287 | G24: 15.212 | H24: 0 | I24: 0 | J24: 8.965 | K24: 2.933 | L24: 3.158 | M24: 0 | N24: 0 | O24: 0 | P24: 0 | R24: 15198052 | S24: 0 | T24: 12731795.32 | U24: 23296164.49 | V24: 0 | W24: 0 | X24: 43672101.32 | Y24: 113014927.8 | Z24: 25410429.37 | AA24: 0 | AB24: 0 | AC24: 0 | AF24: 961732.7309 | AG24: 0 | AH24: 545812.0655 | AI24: 3543812.542 | AJ24: 0 | AK24: 0 | AL24: 3915203.883 | AM24: 3314727.832 | AN24: 802461.3595 | AO24: 0 | AP24: 0 | AQ24: 0 | AR24: 0 | AS24: 13083750.41
B25: =Prop2018DistTar!B25 -> TOD9 | D25: 6.564 | E25: 0 | F25: 5.317 | G25: 17.152 | H25: 0 | I25: 0 | J25: 10.659 | K25: 4.063 | L25: 4.271 | M25: 0 | N25: 0 | O25: 0 | P25: 0 | R25: 507569.125 | S25: 0 | T25: 414508.7721 | U25: 566017.934 | V25: 0 | W25: 0 | X25: 1129836.465 | Y25: 4122935.413 | Z25: 837207.5388 | AA25: 0 | AB25: 0 | AC25: 0 | AF25: 33316.83736 | AG25: 0 | AH25: 22039.43141 | AI25: 97083.39603 | AJ25: 0 | AK25: 0 | AL25: 120429.2688 | AM25: 167514.8658 | AN25: 35757.13398 | AO25: 0 | AP25: 0 | AQ25: 0 | AR25: 0 | AS25: 476140.9334
B26: =Prop2018DistTar!B26 -> TOU | D26: 0 | E26: 0 | F26: 0 | G26: 9.096 | H26: 0 | I26: 0 | J26: 5.526 | K26: 2.668 | L26: 0 | M26: 0 | N26: 39.501 | O26: 0 | P26: 0 | R26: 69979.84775 | S26: 0 | T26: 0 | U26: 4185987.602 | V26: 0 | W26: 0 | X26: 6328508.68 | Y26: 7803457.309 | Z26: 0 | AA26: 0 | AB26: 1107863.227 | AC26: 0 | AF26: 0 | AG26: 0 | AH26: 0 | AI26: 380757.4323 | AJ26: 0 | AK26: 0 | AL26: 349713.3897 | AM26: 208196.241 | AN26: 0 | AO26: 0 | AP26: 437617.0532 | AQ26: 0 | AR26: 0 | AS26: 1376284.116
B27: =Prop2018DistTar!B27 -> TODFLEX | D27: 7.069 | E27: 0 | F27: 4.582 | G27: 16.874 | H27: 0 | I27: 0 | J27: 9.686 | K27: 3.885 | L27: 4.582 | M27: 0 | N27: 0 | O27: 0 | P27: 0 | R27: 737072.0053 | S27: 0 | T27: 1783010.147 | U27: 906586.5433 | V27: 0 | W27: 0 | X27: 1458281.754 | Y27: 3606690.18 | Z27: 3051735.809 | AA27: 0 | AB27: 0 | AC27: 0 | AF27: 52103.62006 | AG27: 0 | AH27: 81697.52495 | AI27: 152977.4133 | AJ27: 0 | AK27: 0 | AL27: 141249.1707 | AM27: 140119.9135 | AN27: 139830.5348 | AO27: 0 | AP27: 0 | AQ27: 0 | AR27: 0 | AS27: 707978.1773
B28: =Prop2018DistTar!B28 -> Low Voltage KW 1 rate | D28: 0 | E28: 2.628 | F28: 2.628 | G28: 2.628 | H28: 2.628 | I28: 2.628 | J28: 2.628 | K28: 2.628 | L28: 2.628 | M28: 0 | N28: 0 | O28: 25.32 | P28: 9.992 | R28: 1144.166667 | S28: 0 | T28: 0 | U28: 8858.602203 | V28: 0 | W28: 0 | X28: 15647.93247 | Y28: 0 | Z28: 0 | AA28: 0 | AB28: 0 | AC28: 2496.3872 | AD28: 5053.389136 | AF28: 0 | AG28: 0 | AH28: 0 | AI28: 232.8040659 | AJ28: 0 | AK28: 0 | AL28: 411.2276652 | AM28: 0 | AN28: 0 | AO28: 0 | AP28: 0 | AQ28: 632.085239 | AR28: 504.9346424 | AS28: 1781.051613
B29: =Prop2018DistTar!B29 -> Low voltage medium KW time of use (opt-in) | D29: 0 | E29: 3.476 | F29: 3.476 | G29: 3.476 | H29: 3.476 | I29: 3.476 | J29: 3.476 | K29: 3.476 | L29: 3.476 | M29: 0 | N29: 0 | O29: 28.752 | P29: 19.168 | R29: 47608.16667 | S29: 0 | T29: 0 | U29: 4039834.912 | V29: 0 | W29: 0 | X29: 10179811.63 | Y29: 0 | Z29: 0 | AA29: 0 | AB29: 0 | AC29: 250018.8879 | AD29: 1076707.631 | AF29: =D29/100*R29 -> 0 | AG29: 0 | AH29: 0 | AI29: 140424.6616 | AJ29: 0 | AK29: 0 | AL29: 353850.2523 | AM29: 0 | AN29: 0 | AO29: 0 | AP29: 0 | AQ29: 71885.43064 | AR29: 206383.3187 | AS29: =SUM(AF29:AR29) -> 772543.6631
B30: =Prop2018DistTar!B30 -> Low voltage medium KW 1 rate (mandatory) | D30: 0 | E30: 5.334 | F30: 5.334 | G30: 5.334 | H30: 5.334 | I30: 5.334 | J30: 5.334 | K30: 5.334 | L30: 5.334 | M30: 0 | N30: 0 | O30: 17.873 | P30: 11.915 | R30: 887309.8635 | S30: 0 | T30: 0 | U30: 291747036.8 | V30: 0 | W30: 0 | X30: 385398691.4 | Y30: 0 | Z30: 0 | AA30: 0 | AB30: 0 | AC30: 26661191.23 | AD30: 47275303.63 | AF30: 0 | AG30: 0 | AH30: 0 | AI30: 15561786.94 | AJ30: 0 | AK30: 0 | AL30: 20557166.2 | AM30: 0 | AN30: 0 | AO30: 0 | AP30: 0 | AQ30: 4765154.708 | AR30: 5632852.428 | AS30: 46516960.28
AF31: 0 | AG31: 0 | AH31: 0 | AI31: 0 | AJ31: 0 | AK31: 0 | AL31: 0 | AM31: 0 | AN31: 0 | AO31: 0 | AP31: 0 | AQ31: 0 | AR31: 0 | AS31: 0
AF32: 0 | AG32: 0 | AH32: 0 | AI32: 0 | AJ32: 0 | AK32: 0 | AL32: 0 | AM32: 0 | AN32: 0 | AO32: 0 | AP32: 0 | AQ32: 0 | AR32: 0 | AS32: 0
AF33: 0 | AG33: 0 | AH33: 0 | AI33: 0 | AJ33: 0 | AK33: 0 | AL33: 0 | AM33: 0 | AN33: 0 | AO33: 0 | AP33: 0 | AQ33: 0 | AR33: 0 | AS33: 0
AF34: 0 | AG34: 0 | AH34: 0 | AI34: 0 | AJ34: 0 | AK34: 0 | AL34: 0 | AM34: 0 | AN34: 0 | AO34: 0 | AP34: 0 | AQ34: 0 | AR34: 0 | AS34: 0
AF35: 0 | AG35: 0 | AH35: 0 | AI35: 0 | AJ35: 0 | AK35: 0 | AL35: 0 | AM35: 0 | AN35: 0 | AO35: 0 | AP35: 0 | AQ35: 0 | AR35: 0 | AS35: 0
AF36: 0 | AG36: 0 | AH36: 0 | AI36: 0 | AJ36: 0 | AK36: 0 | AL36: 0 | AM36: 0 | AN36: 0 | AO36: 0 | AP36: 0 | AQ36: 0 | AR36: 0 | AS36: 0
AF37: 0 | AG37: 0 | AH37: 0 | AI37: 0 | AJ37: 0 | AK37: 0 | AL37: 0 | AM37: 0 | AN37: 0 | AO37: 0 | AP37: 0 | AQ37: 0 | AR37: 0 | AS37: 0
AF38: 0 | AG38: 0 | AH38: 0 | AI38: 0 | AJ38: 0 | AK38: 0 | AL38: 0 | AM38: 0 | AN38: 0 | AO38: 0 | AP38: 0 | AQ38: 0 | AR38: 0 | AS38: 0
AF39: 0 | AG39: 0 | AH39: 0 | AI39: 0 | AJ39: 0 | AK39: 0 | AL39: 0 | AM39: 0 | AN39: 0 | AO39: 0 | AP39: 0 | AQ39: 0 | AR39: 0 | AS39: 0
AF40: 0 | AG40: 0 | AH40: 0 | AI40: 0 | AJ40: 0 | AK40: 0 | AL40: 0 | AM40: 0 | AN40: 0 | AO40: 0 | AP40: 0 | AQ40: 0 | AR40: 0 | AS40: 0
AF41: 0 | AG41: 0 | AH41: 0 | AI41: 0 | AJ41: 0 | AK41: 0 | AL41: 0 | AM41: 0 | AN41: 0 | AO41: 0 | AP41: 0 | AQ41: 0 | AR41: 0 | AS41: 0
AF42: 0 | AG42: 0 | AH42: 0 | AI42: 0 | AJ42: 0 | AK42: 0 | AL42: 0 | AM42: 0 | AN42: 0 | AO42: 0 | AP42: 0 | AQ42: 0 | AR42: 0 | AS42: 0
AF43: 0 | AG43: 0 | AH43: 0 | AI43: 0 | AJ43: 0 | AK43: 0 | AL43: 0 | AM43: 0 | AN43: 0 | AO43: 0 | AP43: 0 | AQ43: 0 | AR43: 0 | AS43: 0
AF44: 0 | AG44: 0 | AH44: 0 | AI44: 0 | AJ44: 0 | AK44: 0 | AL44: 0 | AM44: 0 | AN44: 0 | AO44: 0 | AP44: 0 | AQ44: 0 | AR44: 0 | AS44: 0
AF45: 0 | AG45: 0 | AH45: 0 | AI45: 0 | AJ45: 0 | AK45: 0 | AL45: 0 | AM45: 0 | AN45: 0 | AO45: 0 | AP45: 0 | AQ45: 0 | AR45: 0 | AS45: 0
AF46: 0 | AG46: 0 | AH46: 0 | AI46: 0 | AJ46: 0 | AK46: 0 | AL46: 0 | AM46: 0 | AN46: 0 | AO46: 0 | AP46: 0 | AQ46: 0 | AR46: 0 | AS46: 0
AF47: 0 | AG47: 0 | AH47: 0 | AI47: 0 | AJ47: 0 | AK47: 0 | AL47: 0 | AM47: 0 | AN47: 0 | AO47: 0 | AP47: 0 | AQ47: 0 | AR47: 0 | AS47: 0
AF48: 0 | AG48: 0 | AH48: 0 | AI48: 0 | AJ48: 0 | AK48: 0 | AL48: 0 | AM48: 0 | AN48: 0 | AO48: 0 | AP48: 0 | AQ48: 0 | AR48: 0 | AS48: 0
AF49: 0 | AG49: 0 | AH49: 0 | AI49: 0 | AJ49: 0 | AK49: 0 | AL49: 0 | AM49: 0 | AN49: 0 | AO49: 0 | AP49: 0 | AQ49: 0 | AR49: 0 | AS49: 0
AF50: 0 | AG50: 0 | AH50: 0 | AI50: 0 | AJ50: 0 | AK50: 0 | AL50: 0 | AM50: 0 | AN50: 0 | AO50: 0 | AP50: 0 | AQ50: 0 | AR50: 0 | AS50: 0
AF51: 0 | AG51: 0 | AH51: 0 | AI51: 0 | AJ51: 0 | AK51: 0 | AL51: 0 | AM51: 0 | AN51: 0 | AO51: 0 | AP51: 0 | AQ51: 0 | AR51: 0 | AS51: 0
AF52: 0 | AG52: 0 | AH52: 0 | AI52: 0 | AJ52: 0 | AK52: 0 | AL52: 0 | AM52: 0 | AN52: 0 | AO52: 0 | AP52: 0 | AQ52: 0 | AR52: 0 | AS52: 0
AF53: 0 | AG53: 0 | AH53: 0 | AI53: 0 | AJ53: 0 | AK53: 0 | AL53: 0 | AM53: 0 | AN53: 0 | AO53: 0 | AP53: 0 | AQ53: 0 | AR53: 0 | AS53: 0
AF54: 0 | AG54: 0 | AH54: 0 | AI54: 0 | AJ54: 0 | AK54: 0 | AL54: 0 | AM54: 0 | AN54: 0 | AO54: 0 | AP54: 0 | AQ54: 0 | AR54: 0 | AS54: 0
AF55: 0 | AG55: 0 | AH55: 0 | AI55: 0 | AJ55: 0 | AK55: 0 | AL55: 0 | AM55: 0 | AN55: 0 | AO55: 0 | AP55: 0 | AQ55: 0 | AR55: 0 | AS55: 0
AF56: 0 | AG56: 0 | AH56: 0 | AI56: 0 | AJ56: 0 | AK56: 0 | AL56: 0 | AM56: 0 | AN56: 0 | AO56: 0 | AP56: 0 | AQ56: 0 | AR56: 0 | AS56: 0
AF57: 0 | AG57: 0 | AH57: 0 | AI57: 0 | AJ57: 0 | AK57: 0 | AL57: 0 | AM57: 0 | AN57: 0 | AO57: 0 | AP57: 0 | AQ57: 0 | AR57: 0 | AS57: 0
AF58: 0 | AG58: 0 | AH58: 0 | AI58: 0 | AJ58: 0 | AK58: 0 | AL58: 0 | AM58: 0 | AN58: 0 | AO58: 0 | AP58: 0 | AQ58: 0 | AR58: 0 | AS58: 0
AF59: 0 | AG59: 0 | AH59: 0 | AI59: 0 | AJ59: 0 | AK59: 0 | AL59: 0 | AM59: 0 | AN59: 0 | AO59: 0 | AP59: 0 | AQ59: 0 | AR59: 0 | AS59: 0
AF60: 0 | AG60: 0 | AH60: 0 | AI60: 0 | AJ60: 0 | AK60: 0 | AL60: 0 | AM60: 0 | AN60: 0 | AO60: 0 | AP60: 0 | AQ60: 0 | AR60: 0 | AS60: 0
AF61: 0 | AG61: 0 | AH61: 0 | AI61: 0 | AJ61: 0 | AK61: 0 | AL61: 0 | AM61: 0 | AN61: 0 | AO61: 0 | AP61: 0 | AQ61: 0 | AR61: 0 | AS61: 0
AF62: 0 | AG62: 0 | AH62: 0 | AI62: 0 | AJ62: 0 | AK62: 0 | AL62: 0 | AM62: 0 | AN62: 0 | AO62: 0 | AP62: 0 | AQ62: 0 | AR62: 0 | AS62: 0
AF63: 0 | AG63: 0 | AH63: 0 | AI63: 0 | AJ63: 0 | AK63: 0 | AL63: 0 | AM63: 0 | AN63: 0 | AO63: 0 | AP63: 0 | AQ63: 0 | AR63: 0 | AS63: 0
AF64: 0 | AG64: 0 | AH64: 0 | AI64: 0 | AJ64: 0 | AK64: 0 | AL64: 0 | AM64: 0 | AN64: 0 | AO64: 0 | AP64: 0 | AQ64: 0 | AR64: 0 | AS64: 0
AF65: 0 | AG65: 0 | AH65: 0 | AI65: 0 | AJ65: 0 | AK65: 0 | AL65: 0 | AM65: 0 | AN65: 0 | AO65: 0 | AP65: 0 | AQ65: 0 | AR65: 0 | AS65: 0
R66: =SUM(R6:R65) -> 239743213.3 | S66: 1064360535 | T66: 14929314.24 | U66: 1069405241 | V66: 1747906054 | W66: 0 | X66: 1487630595 | Y66: 2346889811 | Z66: 29299372.72 | AA66: 432534112.5 | AB66: 129973762.5 | AC66: 26913706.5 | AD66: 48357064.65 | AF66: =SUM(AF6:AF65) -> 17176722.26 | AG66: 89540181.98 | AH66: 649549.0219 | AI66: 36677045.82 | AJ66: 94025692.37 | AK66: 0 | AL66: 44455092.8 | AM66: =SUM(AM6:AM65) -> 27290569.98 | AN66: 978049.0283 | AO66: 51180993.86 | AP66: 23004818.41 | AQ66: 4837672.224 | AR66: 5839740.681 | AS66: 395656128.4

Sheet Prop2018TransTar
B1: ="Tariff Approval - "&'Model update'!C3 -> Tariff Approval - United Energy
B3: ="PROPOSED "&'Model update'!$C$5&" TRANSMISSION TARIFFS" -> PROPOSED 2018 TRANSMISSION TARIFFS
D4: ="Proposed Transmission Tariffs (Pt) for "&'Model update'!$C$5 -> Proposed Transmission Tariffs (Pt) for 2018 | R4: ="Forecast Quantities (Qt) for "&'Model update'!$C$5 -> Forecast Quantities (Qt) for 2018 | AF4: ="Forecast Revenue (Pt "&'Model update'!$C$5&")*(Qt " &'Model update'!$C$5&")" -> Forecast Revenue (Pt 2018)*(Qt 2018)
B5: Proposed tariff | D5: PropTar Fixed | E5: PropTar PkBlk1 | F5: PropTar PkBlk2 | G5: PropTar PkBlk3 | H5: PropTar PkBlk4 | I5: PropTar OPkBlk1 | J5: PropTar OPkBlk2 | K5: PropTar OPkBlk3 | L5: PropTar OPkBlk4 | M5: PropTar DemBlk1 | N5: PropTar DemBlk2 | O5: PropTar DemBlk3 | P5: PropTar DemBlk4 | R5: FcastVol Fixed | S5: FcastVol PkBlk1 | T5: FcastVol PkBlk2 | U5: FcastVol PkBlk3 | V5: FcastVol PkBlk4 | W5: FcastVol OPkBlk1 | X5: FcastVol OPkBlk2 | Y5: FcastVol OPkBlk3 | Z5: FcastVol OPkBlk4 | AA5: FcastVol DemBlk1 | AB5: FcastVol DemBlk2 | AC5: FcastVol DemBlk3 | AD5: FcastVol DemBlk4 | AF5: PropRev Fixed | AG5: PropRev PkBlk1 | AH5: PropRev PkBlk2 | AI5: PropRev PkBlk3 | AJ5: PropRev PkBlk4 | AK5: PropRev OPkBlk1 | AL5: PropRev OPkBlk2 | AM5: PropRev OPkBlk3 | AN5: PropRev OPkBlk4 | AO5: PropRev DemBlk1 | AP5: PropRev DemBlk2 | AQ5: PropRev DemBlk3 | AR5: PropRev DemBlk4 | AS5: PropRev SumBlk1
B6: =Prop2018DistTar!B6 -> Low voltage small 1 rate | D6: 0 | E6: 1.755 | F6: 0 | G6: 0 | H6: 1.467 | I6: 0 | J6: 0 | K6: 0 | L6: 0 | M6: 0 | N6: 0 | O6: 0 | P6: 0 | R6: =Prop2018DistTar!AF6 -> 205549567.6 | S6: =Prop2018DistTar!AG6 -> 885866510.7 | T6: =Prop2018DistTar!AH6 -> 0 | U6: =Prop2018DistTar!AI6 -> 0 | V6: =Prop2018DistTar!AJ6 -> 1445601999 | W6: =Prop2018DistTar!AK6 -> 0 | X6: =Prop2018DistTar!AL6 -> 0 | Y6: =Prop2018DistTar!AM6 -> 0 | Z6: =Prop2018DistTar!AN6 -> 0 | AA6: =Prop2018DistTar!AO6 -> 0 | AB6: =Prop2018DistTar!AP6 -> 0 | AC6: =Prop2018DistTar!AQ6 -> 0 | AD6: =Prop2018DistTar!AR6 -> 0 | AF6: =D6/100*R6 -> 0 | AG6: =E6/100*S6 -> 15546957.26 | AH6: =F6/100*T6 -> 0 | AI6: =G6/100*U6 -> 0 | AJ6: =H6/100*V6 -> 21206981.33 | AK6: =I6/100*W6 -> 0 | AL6: =J6/100*X6 -> 0 | AM6: =K6/100*Y6 -> 0 | AN6: =L6/100*Z6 -> 0 | AO6: =M6/100*AA6 -> 0 | AP6: =N6/100*AB6 -> 0 | AQ6: =O6/100*AC6 -> 0 | AR6: =P6/100*AD6 -> 0 | AS6: =SUM(AF6:AR6) -> 36753938.59
B7: =Prop2018DistTar!B7 -> Winter economy tariff | D7: 0 | E7: 1.964 | F7: 0 | G7: 0 | H7: 1.571 | I7: 1.571 | J7: 0 | K7: 0 | L7: 0 | M7: 0 | N7: 0 | O7: 0 | P7: 0 | R7: =Prop2018DistTar!AF7 -> 50220 | S7: =Prop2018DistTar!AG7 -> 265149.0509 | T7: =Prop2018DistTar!AH7 -> 0 | U7: =Prop2018DistTar!AI7 -> 0 | V7: =Prop2018DistTar!AJ7 -> 483663.4531 | W7: =Prop2018DistTar!AK7 -> 0 | X7: =Prop2018DistTar!AL7 -> 0 | Y7: =Prop2018DistTar!AM7 -> 0 | Z7: =Prop2018DistTar!AN7 -> 0 | AA7: =Prop2018DistTar!AO7 -> 0 | AB7: =Prop2018DistTar!AP7 -> 0 | AC7: =Prop2018DistTar!AQ7 -> 0 | AD7: =Prop2018DistTar!AR7 -> 0 | AF7: 0 | AG7: 5207.52736 | AH7: 0 | AI7: 0 | AJ7: 7598.352849 | AK7: 0 | AL7: 0 | AM7: 0 | AN7: 0 | AO7: 0 | AP7: 0 | AQ7: 0 | AR7: 0 | AS7: 12805.88021
B8: =Prop2018DistTar!B8 -> Reverse cycle airconditioning time of use | D8: 0 | E8: 0 | F8: 0 | G8: 0 | H8: 0 | I8: 0 | J8: 0 | K8: 0 | L8: 0 | M8: 0 | N8: 0 | O8: 0 | P8: 0 | R8: =Prop2018DistTar!AF8 -> 0 | S8: =Prop2018DistTar!AG8 -> 0 | T8: =Prop2018DistTar!AH8 -> 0 | U8: =Prop2018DistTar!AI8 -> 0 | V8: =Prop2018DistTar!AJ8 -> 0 | W8: =Prop2018DistTar!AK8 -> 0 | X8: =Prop2018DistTar!AL8 -> 0 | Y8: =Prop2018DistTar!AM8 -> 0 | Z8: =Prop2018DistTar!AN8 -> 0 | AA8: =Prop2018DistTar!AO8 -> 0 | AB8: =Prop2018DistTar!AP8 -> 0 | AC8: =Prop2018DistTar!AQ8 -> 0 | AD8: =Prop2018DistTar!AR8 -> 0 | AF8: 0 | AG8: 0 | AH8: 0 | AI8: 0 | AJ8: 0 | AK8: 0 | AL8: 0 | AM8: 0 | AN8: 0 | AO8: 0 | AP8: 0 | AQ8: 0 | AR8: 0 | AS8: 0
B9: =Prop2018DistTar!B9 -> Low voltage small 2 rate | D9: 0 | E9: 0 | F9: 0 | G9: 2.947 | H9: 0 | I9: 0 | J9: 2.359 | K9: 0 | L9: 0 | M9: 0 | N9: 0 | O9: 0 | P9: 0 | R9: =Prop2018DistTar!AF9 -> 1500124.836 | S9: =Prop2018DistTar!AG9 -> 0 | T9: =Prop2018DistTar!AH9 -> 0 | U9: =Prop2018DistTar!AI9 -> 4199343.701 | V9: =Prop2018DistTar!AJ9 -> 0 | W9: =Prop2018DistTar!AK9 -> 0 | X9: =Prop2018DistTar!AL9 -> 6958274.449 | Y9: =Prop2018DistTar!AM9 -> 14004754.29 | Z9: =Prop2018DistTar!AN9 -> 0 | AA9: =Prop2018DistTar!AO9 -> 0 | AB9: =Prop2018DistTar!AP9 -> 0 | AC9: =Prop2018DistTar!AQ9 -> 0 | AD9: =Prop2018DistTar!AR9 -> 0 | AF9: 0 | AG9: 0 | AH9: 0 | AI9: 123754.6589 | AJ9: 0 | AK9: 0 | AL9: 164145.6942 | AM9: 0 | AN9: 0 | AO9: 0 | AP9: 0 | AQ9: 0 | AR9: 0 | AS9: 287900.3531
B10: =Prop2018DistTar!B10 -> Dedicated circuit | D10: 0 | E10: 0 | F10: 0 | G10: 0 | H10: 0 | I10: 0 | J10: 0 | K10: 0 | L10: 0 | M10: 0 | N10: 0 | O10: 0 | P10: 0 | R10: =Prop2018DistTar!AF10 -> 1899.99 | S10: =Prop2018DistTar!AG10 -> 0 | T10: =Prop2018DistTar!AH10 -> 0 | U10: =Prop2018DistTar!AI10 -> 0 | V10: =Prop2018DistTar!AJ10 -> 0 | W10: =Prop2018DistTar!AK10 -> 0 | X10: =Prop2018DistTar!AL10 -> 0 | Y10: =Prop2018DistTar!AM10 -> 95116849.23 | Z10: =Prop2018DistTar!AN10 -> 0 | AA10: =Prop2018DistTar!AO10 -> 0 | AB10: =Prop2018DistTar!AP10 -> 0 | AC10: =Prop2018DistTar!AQ10 -> 0 | AD10: =Prop2018DistTar!AR10 -> 0 | AF10: 0 | AG10: 0 | AH10: 0 | AI10: 0 | AJ10: 0 | AK10: 0 | AL10: 0 | AM10: 0 | AN10: 0 | AO10: 0 | AP10: 0 | AQ10: 0 | AR10: 0 | AS10: 0
B11: =Prop2018DistTar!B11 -> Low voltage medium 1 rate | D11: 0 | E11: 2.062 | F11: 0 | G11: 0 | H11: 1.647 | I11: 0 | J11: 0 | K11: 0 | L11: 0 | M11: 0 | N11: 0 | O11: 0 | P11: 0 | R11: =Prop2018DistTar!AF11 -> 12033520.76 | S11: =Prop2018DistTar!AG11 -> 153338365.9 | T11: =Prop2018DistTar!AH11 -> 0 | U11: =Prop2018DistTar!AI11 -> 0 | V11: =Prop2018DistTar!AJ11 -> 231891372.2 | W11: =Prop2018DistTar!AK11 -> 0 | X11: =Prop2018DistTar!AL11 -> 0 | Y11: =Prop2018DistTar!AM11 -> 12 | Z11: =Prop2018DistTar!AN11 -> 0 | AA11: =Prop2018DistTar!AO11 -> 0 | AB11: =Prop2018DistTar!AP11 -> 0 | AC11: =Prop2018DistTar!AQ11 -> 0 | AD11: =Prop2018DistTar!AR11 -> 0 | AF11: 0 | AG11: 3161837.105 | AH11: 0 | AI11: 0 | AJ11: 3819250.9 | AK11: 0 | AL11: 0 | AM11: 0 | AN11: 0 | AO11: 0 | AP11: 0 | AQ11: 0 | AR11: 0 | AS11: 6981088.005
B12: =Prop2018DistTar!B12 -> Low voltage medium 2 rate 5 day | D12: 0 | E12: 0 | F12: 0 | G12: 1.786 | H12: 0 | I12: 0 | J12: 1.428 | K12: 0 | L12: 0 | M12: 0 | N12: 0 | O12: 0 | P12: 0 | R12: =Prop2018DistTar!AF12 -> 3807335.983 | S12: =Prop2018DistTar!AG12 -> 0 | T12: =Prop2018DistTar!AH12 -> 0 | U12: =Prop2018DistTar!AI12 -> 51707044.73 | V12: =Prop2018DistTar!AJ12 -> 0 | W12: =Prop2018DistTar!AK12 -> 0 | X12: =Prop2018DistTar!AL12 -> 74994609.05 | Y12: =Prop2018DistTar!AM12 -> 77026041.23 | Z12: =Prop2018DistTar!AN12 -> 0 | AA12: =Prop2018DistTar!AO12 -> 0 | AB12: =Prop2018DistTar!AP12 -> 0 | AC12: =Prop2018DistTar!AQ12 -> 0 | AD12: =Prop2018DistTar!AR12 -> 0 | AF12: 0 | AG12: 0 | AH12: 0 | AI12: 923487.8189 | AJ12: 0 | AK12: 0 | AL12: 1070923.017 | AM12: 0 | AN12: 0 | AO12: 0 | AP12: 0 | AQ12: 0 | AR12: 0 | AS12: 1994410.836
B13: =Prop2018DistTar!B13 -> Low voltage medium 2 rate 7 day | D13: 0 | E13: 0 | F13: 0 | G13: 2.126 | H13: 0 | I13: 0 | J13: 1.702 | K13: 0 | L13: 0 | M13: 0 | N13: 0 | O13: 0 | P13: 0 | R13: =Prop2018DistTar!AF13 -> 1844598.237 | S13: =Prop2018DistTar!AG13 -> 0 | T13: =Prop2018DistTar!AH13 -> 0 | U13: =Prop2018DistTar!AI13 -> 22006070.24 | V13: =Prop2018DistTar!AJ13 -> 0 | W13: =Prop2018DistTar!AK13 -> 0 | X13: =Prop2018DistTar!AL13 -> 33856652.73 | Y13: =Prop2018DistTar!AM13 -> 14992889.81 | Z13: =Prop2018DistTar!AN13 -> 0 | AA13: =Prop2018DistTar!AO13 -> 0 | AB13: =Prop2018DistTar!AP13 -> 0 | AC13: =Prop2018DistTar!AQ13 -> 0 | AD13: =Prop2018DistTar!AR13 -> 0 | AF13: 0 | AG13: 0 | AH13: 0 | AI13: 467849.0533 | AJ13: 0 | AK13: 0 | AL13: 576240.2294 | AM13: 0 | AN13: 0 | AO13: 0 | AP13: 0 | AQ13: 0 | AR13: 0 | AS13: 1044089.283
B14: =Prop2018DistTar!B14 -> Unmetered supplies | D14: 0 | E14: 0 | F14: 0 | G14: 2.761 | H14: 0 | I14: 0 | J14: 2.207 | K14: 0 | L14: 0 | M14: 0 | N14: 0 | O14: 0 | P14: 0 | R14: =Prop2018DistTar!AF14 -> 3707289.042 | S14: =Prop2018DistTar!AG14 -> 0 | T14: =Prop2018DistTar!AH14 -> 0 | U14: =Prop2018DistTar!AI14 -> 10816030.73 | V14: =Prop2018DistTar!AJ14 -> 0 | W14: =Prop2018DistTar!AK14 -> 0 | X14: =Prop2018DistTar!AL14 -> 18164542.77 | Y14: =Prop2018DistTar!AM14 -> 66285006.26 | Z14: =Prop2018DistTar!AN14 -> 0 | AA14: =Prop2018DistTar!AO14 -> 0 | AB14: =Prop2018DistTar!AP14 -> 0 | AC14: =Prop2018DistTar!AQ14 -> 0 | AD14: =Prop2018DistTar!AR14 -> 0 | AF14: 0 | AG14: 0 | AH14: 0 | AI14: 298630.6083 | AJ14: 0 | AK14: 0 | AL14: 400891.4589 | AM14: 0 | AN14: 0 | AO14: 0 | AP14: 0 | AQ14: 0 | AR14: 0 | AS14: 699522.0672
B15: =Prop2018DistTar!B15 -> Low voltage large 1 rate | D15: 0 | E15: 2.056 | F15: 0 | G15: 0 | H15: 1.643 | I15: 0 | J15: 0 | K15: 0 | L15: 0 | M15: 0 | N15: 0 | O15: 0 | P15: 0 | R15: =Prop2018DistTar!AF15 -> 2621.992917 | S15: =Prop2018DistTar!AG15 -> 577413.2539 | T15: =Prop2018DistTar!AH15 -> 0 | U15: =Prop2018DistTar!AI15 -> 0 | V15: =Prop2018DistTar!AJ15 -> 774143.4756 | W15: =Prop2018DistTar!AK15 -> 0 | X15: =Prop2018DistTar!AL15 -> 0 | Y15: =Prop2018DistTar!AM15 -> 0 | Z15: =Prop2018DistTar!AN15 -> 0 | AA15: =Prop2018DistTar!AO15 -> 0 | AB15: =Prop2018DistTar!AP15 -> 0 | AC15: =Prop2018DistTar!AQ15 -> 0 | AD15: =Prop2018DistTar!AR15 -> 0 | AF15: 0 | AG15: 11871.6165 | AH15: 0 | AI15: 0 | AJ15: 12719.1773 | AK15: 0 | AL15: 0 | AM15: 0 | AN15: 0 | AO15: 0 | AP15: 0 | AQ15: 0 | AR15: 0 | AS15: 24590.79381
B16: =Prop2018DistTar!B16 -> Low voltage large 2 rate | D16: 0 | E16: 0 | F16: 0 | G16: 1.58 | H16: 0 | I16: 0 | J16: 1.266 | K16: 0 | L16: 0 | M16: 0 | N16: 0 | O16: 0 | P16: 0 | R16: =Prop2018DistTar!AF16 -> 8128.178042 | S16: =Prop2018DistTar!AG16 -> 0 | T16: =Prop2018DistTar!AH16 -> 0 | U16: =Prop2018DistTar!AI16 -> 903588.4994 | V16: =Prop2018DistTar!AJ16 -> 0 | W16: =Prop2018DistTar!AK16 -> 0 | X16: =Prop2018DistTar!AL16 -> 1258017.539 | Y16: =Prop2018DistTar!AM16 -> 1362054.148 | Z16: =Prop2018DistTar!AN16 -> 0 | AA16: =Prop2018DistTar!AO16 -> 0 | AB16: =Prop2018DistTar!AP16 -> 0 | AC16: =Prop2018DistTar!AQ16 -> 0 | AD16: =Prop2018DistTar!AR16 -> 0 | AF16: 0 | AG16: 0 | AH16: 0 | AI16: 14276.69829 | AJ16: 0 | AK16: 0 | AL16: 15926.50205 | AM16: 0 | AN16: 0 | AO16: 0 | AP16: 0 | AQ16: 0 | AR16: 0 | AS16: 30203.20034
B17: =Prop2018DistTar!B17 -> Low voltage KW time of use | D17: 0 | E17: 0 | F17: 0 | G17: 1.654 | H17: 0 | I17: 0 | J17: 1.323 | K17: 0 | L17: 0 | M17: 0 | N17: 7.715 | O17: 0 | P17: 0 | R17: =Prop2018DistTar!AF17 -> 85424.52922 | S17: =Prop2018DistTar!AG17 -> 0 | T17: =Prop2018DistTar!AH17 -> 0 | U17: =Prop2018DistTar!AI17 -> 2797481.715 | V17: =Prop2018DistTar!AJ17 -> 0 | W17: =Prop2018DistTar!AK17 -> 0 | X17: =Prop2018DistTar!AL17 -> 4144236.321 | Y17: =Prop2018DistTar!AM17 -> 6586209.045 | Z17: =Prop2018DistTar!AN17 -> 0 | AA17: =Prop2018DistTar!AO17 -> 0 | AB17: =Prop2018DistTar!AP17 -> 682957.5693 | AC17: =Prop2018DistTar!AQ17 -> 0 | AD17: =Prop2018DistTar!AR17 -> 0 | AF17: 0 | AG17: 0 | AH17: 0 | AI17: 46270.34756 | AJ17: 0 | AK17: 0 | AL17: 54828.24653 | AM17: 0 | AN17: 0 | AO17: 0 | AP17: 52690.17647 | AQ17: 0 | AR17: 0 | AS17: 153788.7706
B18: =Prop2018DistTar!B18 -> Low voltage KW time of use - HOT | D18: 0 | E18: 0 | F18: 0 | G18: 0.905 | H18: 0 | I18: 0 | J18: 0.723 | K18: 0 | L18: 0 | M18: 0 | N18: 8.108 | O18: 0 | P18: 0 | R18: =Prop2018DistTar!AF18 -> 3704.501421 | S18: =Prop2018DistTar!AG18 -> 0 | T18: =Prop2018DistTar!AH18 -> 0 | U18: =Prop2018DistTar!AI18 -> 38522.95803 | V18: =Prop2018DistTar!AJ18 -> 0 | W18: =Prop2018DistTar!AK18 -> 0 | X18: =Prop2018DistTar!AL18 -> 57008.2445 | Y18: =Prop2018DistTar!AM18 -> 138325.9272 | Z18: =Prop2018DistTar!AN18 -> 0 | AA18: =Prop2018DistTar!AO18 -> 0 | AB18: =Prop2018DistTar!AP18 -> 151569.5679 | AC18: =Prop2018DistTar!AQ18 -> 0 | AD18: =Prop2018DistTar!AR18 -> 0 | AF18: 0 | AG18: 0 | AH18: 0 | AI18: 348.6327701 | AJ18: 0 | AK18: 0 | AL18: 412.1696077 | AM18: 0 | AN18: 0 | AO18: 0 | AP18: 12289.26056 | AQ18: 0 | AR18: 0 | AS18: 13050.06294
B19: =Prop2018DistTar!B19 -> Low voltage large KVA time of use | D19: 0 | E19: 0 | F19: 0 | G19: 0.902 | H19: 0 | I19: 0 | J19: 0.723 | K19: 0 | L19: 0 | M19: 3.679 | N19: 5.029 | O19: 0 | P19: 0 | R19: =Prop2018DistTar!AF19 -> 1207904.429 | S19: =Prop2018DistTar!AG19 -> 0 | T19: =Prop2018DistTar!AH19 -> 0 | U19: =Prop2018DistTar!AI19 -> 460697092.7 | V19: =Prop2018DistTar!AJ19 -> 0 | W19: =Prop2018DistTar!AK19 -> 0 | X19: =Prop2018DistTar!AL19 -> 653613576.2 | Y19: =Prop2018DistTar!AM19 -> 1268388147 | Z19: =Prop2018DistTar!AN19 -> 0 | AA19: =Prop2018DistTar!AO19 -> 331111136.8 | AB19: =Prop2018DistTar!AP19 -> 96046797.4 | AC19: =Prop2018DistTar!AQ19 -> 0 | AD19: =Prop2018DistTar!AR19 -> 0 | AF19: 0 | AG19: 0 | AH19: 0 | AI19: 4155487.776 | AJ19: 0 | AK19: 0 | AL19: 4725626.156 | AM19: 0 | AN19: 0 | AO19: 12181578.72 | AP19: 4830193.441 | AQ19: 0 | AR19: 0 | AS19: 25892886.09
B20: =Prop2018DistTar!B20 -> Low voltage large KVA time of use - HOT | D20: 0 | E20: 0 | F20: 0 | G20: 0 | H20: 0 | I20: 0 | J20: 0 | K20: 0 | L20: 0 | M20: 0 | N20: 0 | O20: 0 | P20: 0 | R20: =Prop2018DistTar!AF20 -> 3.1e-07 | S20: =Prop2018DistTar!AG20 -> 0 | T20: =Prop2018DistTar!AH20 -> 0 | U20: =Prop2018DistTar!AI20 -> 0 | V20: =Prop2018DistTar!AJ20 -> 0 | W20: =Prop2018DistTar!AK20 -> 0 | X20: =Prop2018DistTar!AL20 -> 0 | Y20: =Prop2018DistTar!AM20 -> 0 | Z20: =Prop2018DistTar!AN20 -> 0 | AA20: =Prop2018DistTar!AO20 -> 0 | AB20: =Prop2018DistTar!AP20 -> 0 | AC20: =Prop2018DistTar!AQ20 -> 0 | AD20: =Prop2018DistTar!AR20 -> 0 | AF20: 0 | AG20: 0 | AH20: 0 | AI20: 0 | AJ20: 0 | AK20: 0 | AL20: 0 | AM20: 0 | AN20: 0 | AO20: 0 | AP20: 0 | AQ20: 0 | AR20: 0 | AS20: 0
B21: =Prop2018DistTar!B21 -> High voltage KVA time of use | D21: 0 | E21: 0 | F21: 0 | G21: 0.633 | H21: 0 | I21: 0 | J21: 0.507 | K21: 0 | L21: 0 | M21: 4.213 | N21: 4.422 | O21: 0 | P21: 0 | R21: =Prop2018DistTar!AF21 -> 34316.69 | S21: =Prop2018DistTar!AG21 -> 0 | T21: =Prop2018DistTar!AH21 -> 0 | U21: =Prop2018DistTar!AI21 -> 170523448.7 | V21: =Prop2018DistTar!AJ21 -> 0 | W21: =Prop2018DistTar!AK21 -> 0 | X21: =Prop2018DistTar!AL21 -> 248821547.8 | Y21: =Prop2018DistTar!AM21 -> 637350623.8 | Z21: =Prop2018DistTar!AN21 -> 0 | AA21: =Prop2018DistTar!AO21 -> 103610388.3 | AB21: =Prop2018DistTar!AP21 -> 31102876.48 | AC21: =Prop2018DistTar!AQ21 -> 0 | AD21: =Prop2018DistTar!AR21 -> 0 | AF21: 0 | AG21: 0 | AH21: 0 | AI21: 1079413.431 | AJ21: 0 | AK21: 0 | AL21: 1261525.248 | AM21: 0 | AN21: 0 | AO21: 4365105.659 | AP21: 1375369.198 | AQ21: 0 | AR21: 0 | AS21: 8081413.535
B22: =Prop2018DistTar!B22 -> High voltage KVA time of use - HOT | D22: 0 | E22: 0 | F22: 0 | G22: 0 | H22: 0 | I22: 0 | J22: 0 | K22: 0 | L22: 0 | M22: 0 | N22: 0 | O22: 0 | P22: 0 | R22: =Prop2018DistTar!AF22 -> 0 | S22: =Prop2018DistTar!AG22 -> 0 | T22: =Prop2018DistTar!AH22 -> 0 | U22: =Prop2018DistTar!AI22 -> 0 | V22: =Prop2018DistTar!AJ22 -> 0 | W22: =Prop2018DistTar!AK22 -> 0 | X22: =Prop2018DistTar!AL22 -> 0 | Y22: =Prop2018DistTar!AM22 -> 0 | Z22: =Prop2018DistTar!AN22 -> 0 | AA22: =Prop2018DistTar!AO22 -> 0 | AB22: =Prop2018DistTar!AP22 -> 0 | AC22: =Prop2018DistTar!AQ22 -> 0 | AD22: =Prop2018DistTar!AR22 -> 0 | AF22: 0 | AG22: 0 | AH22: 0 | AI22: 0 | AJ22: 0 | AK22: 0 | AL22: 0 | AM22: 0 | AN22: 0 | AO22: 0 | AP22: 0 | AQ22: 0 | AR22: 0 | AS22: 0
B23: =Prop2018DistTar!B23 -> Subtransmission KVA time of use | D23: 0 | E23: 0 | F23: 0 | G23: 0.427 | H23: 0 | I23: 0 | J23: 0.344 | K23: 0 | L23: 0 | M23: 3.029 | N23: 3.675 | O23: 0 | P23: 0 | R23: =Prop2018DistTar!AF23 -> 372 | S23: =Prop2018DistTar!AG23 -> 0 | T23: =Prop2018DistTar!AH23 -> 0 | U23: =Prop2018DistTar!AI23 -> 8273861.77 | V23: =Prop2018DistTar!AJ23 -> 0 | W23: =Prop2018DistTar!AK23 -> 0 | X23: =Prop2018DistTar!AL23 -> 11602727.6 | Y23: =Prop2018DistTar!AM23 -> 16115661.39 | Z23: =Prop2018DistTar!AN23 -> 0 | AA23: =Prop2018DistTar!AO23 -> 4238689.613 | AB23: =Prop2018DistTar!AP23 -> 1512895.988 | AC23: =Prop2018DistTar!AQ23 -> 0 | AD23: =Prop2018DistTar!AR23 -> 0 | AF23: 0 | AG23: 0 | AH23: 0 | AI23: 35329.38976 | AJ23: 0 | AK23: 0 | AL23: 39913.38294 | AM23: 0 | AN23: 0 | AO23: 128389.9084 | AP23: 55598.92755 | AQ23: 0 | AR23: 0 | AS23: 259231.6086
B24: =Prop2018DistTar!B24 -> TOD | D24: 0 | E24: 0 | F24: 2.413 | G24: 2.843 | H24: 0 | I24: 0 | J24: 2.413 | K24: 0 | L24: 2.131 | M24: 0 | N24: 0 | O24: 0 | P24: 0 | R24: =Prop2018DistTar!AF24 -> 15707814.65 | S24: =Prop2018DistTar!AG24 -> 0 | T24: =Prop2018DistTar!AH24 -> 12080098.6 | U24: =Prop2018DistTar!AI24 -> 22156770.54 | V24: =Prop2018DistTar!AJ24 -> 0 | W24: =Prop2018DistTar!AK24 -> 0 | X24: =Prop2018DistTar!AL24 -> 42584001.27 | Y24: =Prop2018DistTar!AM24 -> 107941636.2 | Z24: =Prop2018DistTar!AN24 -> 25155080.82 | AA24: =Prop2018DistTar!AO24 -> 0 | AB24: =Prop2018DistTar!AP24 -> 0 | AC24: =Prop2018DistTar!AQ24 -> 0 | AD24: =Prop2018DistTar!AR24 -> 0 | AF24: 0 | AG24: 0 | AH24: 291492.7793 | AI24: 629916.9865 | AJ24: 0 | AK24: 0 | AL24: 1027551.951 | AM24: 0 | AN24: 536054.7722 | AO24: 0 | AP24: 0 | AQ24: 0 | AR24: 0 | AS24: 2485016.489
B25: =Prop2018DistTar!B25 -> TOD9 | D25: 0 | E25: 0 | F25: 3.547 | G25: 3.815 | H25: 0 | I25: 0 | J25: 3.547 | K25: 0 | L25: 3.37 | M25: 0 | N25: 0 | O25: 0 | P25: 0 | R25: =Prop2018DistTar!AF25 -> 817673.4375 | S25: =Prop2018DistTar!AG25 -> 0 | T25: =Prop2018DistTar!AH25 -> 471688.2819 | U25: =Prop2018DistTar!AI25 -> 634148.9426 | V25: =Prop2018DistTar!AJ25 -> 0 | W25: =Prop2018DistTar!AK25 -> 0 | X25: =Prop2018DistTar!AL25 -> 1239459.524 | Y25: =Prop2018DistTar!AM25 -> 4524672.031 | Z25: =Prop2018DistTar!AN25 -> 942133.8976 | AA25: =Prop2018DistTar!AO25 -> 0 | AB25: =Prop2018DistTar!AP25 -> 0 | AC25: =Prop2018DistTar!AQ25 -> 0 | AD25: =Prop2018DistTar!AR25 -> 0 | AF25: 0 | AG25: 0 | AH25: 16730.78336 | AI25: 24192.78216 | AJ25: 0 | AK25: 0 | AL25: 43963.6293 | AM25: 0 | AN25: 31749.91235 | AO25: 0 | AP25: 0 | AQ25: 0 | AR25: 0 | AS25: 116637.1072
B26: =Prop2018DistTar!B26 -> TOU | D26: 0 | E26: 0 | F26: 0 | G26: 2.112 | H26: 0 | I26: 0 | J26: 0.97 | K26: 0 | L26: 0 | M26: 0 | N26: 5.534 | O26: 0 | P26: 0 | R26: =Prop2018DistTar!AF26 -> 219431.882 | S26: =Prop2018DistTar!AG26 -> 0 | T26: =Prop2018DistTar!AH26 -> 0 | U26: =Prop2018DistTar!AI26 -> 4014520.953 | V26: =Prop2018DistTar!AJ26 -> 0 | W26: =Prop2018DistTar!AK26 -> 0 | X26: =Prop2018DistTar!AL26 -> 6566809.173 | Y26: =Prop2018DistTar!AM26 -> 7462286.882 | Z26: =Prop2018DistTar!AN26 -> 0 | AA26: =Prop2018DistTar!AO26 -> 0 | AB26: =Prop2018DistTar!AP26 -> 1110253.604 | AC26: =Prop2018DistTar!AQ26 -> 0 | AD26: =Prop2018DistTar!AR26 -> 0 | AF26: 0 | AG26: 0 | AH26: 0 | AI26: 84786.68254 | AJ26: 0 | AK26: 0 | AL26: 63698.04897 | AM26: 0 | AN26: 0 | AO26: 0 | AP26: 61441.43443 | AQ26: 0 | AR26: 0 | AS26: 209926.1659
B27: =Prop2018DistTar!B27 -> TODFLEX | D27: 0 | E27: 0 | F27: 1.612 | G27: 3.226 | H27: 0 | I27: 0 | J27: 3.009 | K27: 0 | L27: 1.422 | M27: 0 | N27: 0 | O27: 0 | P27: 0 | R27: =Prop2018DistTar!AF27 -> 762427.33 | S27: =Prop2018DistTar!AG27 -> 0 | T27: =Prop2018DistTar!AH27 -> 1766358.341 | U27: =Prop2018DistTar!AI27 -> 897799.5996 | V27: =Prop2018DistTar!AJ27 -> 0 | W27: =Prop2018DistTar!AK27 -> 0 | X27: =Prop2018DistTar!AL27 -> 1502959.085 | Y27: =Prop2018DistTar!AM27 -> 3382265.656 | Z27: =Prop2018DistTar!AN27 -> 2942300.104 | AA27: =Prop2018DistTar!AO27 -> 0 | AB27: =Prop2018DistTar!AP27 -> 0 | AC27: =Prop2018DistTar!AQ27 -> 0 | AD27: =Prop2018DistTar!AR27 -> 0 | AF27: 0 | AG27: 0 | AH27: 28473.69646 | AI27: 28963.01508 | AJ27: 0 | AK27: 0 | AL27: 45224.03888 | AM27: 0 | AN27: 41839.50747 | AO27: 0 | AP27: 0 | AQ27: 0 | AR27: 0 | AS27: 144500.2579
B28: =Prop2018DistTar!B28 -> Low Voltage KW 1 rate | D28: 0 | E28: 0.593 | F28: 0.593 | G28: 0.593 | H28: 0.593 | I28: 0.593 | J28: 0.593 | K28: 0.593 | L28: 0.593 | M28: 0 | N28: 0 | O28: 4.441 | P28: 2.887 | R28: =Prop2018DistTar!AF28 -> 1115018.793 | S28: =Prop2018DistTar!AG28 -> 0 | T28: =Prop2018DistTar!AH28 -> 0 | U28: =Prop2018DistTar!AI28 -> 5256477.629 | V28: =Prop2018DistTar!AJ28 -> 0 | W28: =Prop2018DistTar!AK28 -> 0 | X28: =Prop2018DistTar!AL28 -> 7359068.681 | Y28: =Prop2018DistTar!AM28 -> 0 | Z28: =Prop2018DistTar!AN28 -> 0 | AA28: =Prop2018DistTar!AO28 -> 0 | AB28: =Prop2018DistTar!AP28 -> 0 | AC28: =Prop2018DistTar!AQ28 -> 779540.5869 | AD28: =Prop2018DistTar!AR28 -> 2537178.516 | AF28: 0 | AG28: 0 | AH28: 0 | AI28: 31170.91234 | AJ28: 0 | AK28: 0 | AL28: 43639.27728 | AM28: 0 | AN28: 0 | AO28: 0 | AP28: 0 | AQ28: 34619.39747 | AR28: 73248.34376 | AS28: 182677.9308
B29: =Prop2018DistTar!B29 -> Low voltage medium KW time of use (opt-in) | D29: 0 | E29: 0.75 | F29: 0.75 | G29: 0.75 | H29: 0.75 | I29: 0.75 | J29: 0.75 | K29: 0.75 | L29: 0.75 | M29: 0 | N29: 0 | O29: 6.198 | P29: 4.132 | R29: =Prop2018DistTar!AF29 -> 175817.1458 | S29: =Prop2018DistTar!AG29 -> 0 | T29: =Prop2018DistTar!AH29 -> 0 | U29: =Prop2018DistTar!AI29 -> 8362481.464 | V29: =Prop2018DistTar!AJ29 -> 0 | W29: =Prop2018DistTar!AK29 -> 0 | X29: =Prop2018DistTar!AL29 -> 12391679.13 | Y29: =Prop2018DistTar!AM29 -> 0 | Z29: =Prop2018DistTar!AN29 -> 0 | AA29: =Prop2018DistTar!AO29 -> 0 | AB29: =Prop2018DistTar!AP29 -> 0 | AC29: =Prop2018DistTar!AQ29 -> 616176.6983 | AD29: =Prop2018DistTar!AR29 -> 1472922.252 | AF29: 0 | AG29: 0 | AH29: 0 | AI29: 62718.61098 | AJ29: 0 | AK29: 0 | AL29: 92937.5935 | AM29: 0 | AN29: 0 | AO29: 0 | AP29: 0 | AQ29: 38190.63176 | AR29: 60861.14745 | AS29: 254707.9837
B30: =Prop2018DistTar!B30 -> Low voltage medium KW 1 rate (mandatory) | D30: 0 | E30: 1.129 | F30: 1.129 | G30: 1.129 | H30: 1.129 | I30: 1.129 | J30: 1.129 | K30: 1.129 | L30: 1.129 | M30: 0 | N30: 0 | O30: 3.785 | P30: 2.523 | R30: =Prop2018DistTar!AF30 -> 2702828.705 | S30: =Prop2018DistTar!AG30 -> 0 | T30: =Prop2018DistTar!AH30 -> 0 | U30: =Prop2018DistTar!AI30 -> 283403271.2 | V30: =Prop2018DistTar!AJ30 -> 0 | W30: =Prop2018DistTar!AK30 -> 0 | X30: =Prop2018DistTar!AL30 -> 388617179.9 | Y30: =Prop2018DistTar!AM30 -> 0 | Z30: =Prop2018DistTar!AN30 -> 0 | AA30: =Prop2018DistTar!AO30 -> 0 | AB30: =Prop2018DistTar!AP30 -> 0 | AC30: =Prop2018DistTar!AQ30 -> 25908737.34 | AD30: =Prop2018DistTar!AR30 -> 46484440.59 | AF30: 0 | AG30: 0 | AH30: 0 | AI30: 3199622.932 | AJ30: 0 | AK30: 0 | AL30: 4387487.961 | AM30: 0 | AN30: 0 | AO30: 0 | AP30: 0 | AQ30: 980645.7084 | AR30: 1172802.436 | AS30: 9740559.037
AF31: 0 | AG31: 0 | AH31: 0 | AI31: 0 | AJ31: 0 | AK31: 0 | AL31: 0 | AM31: 0 | AN31: 0 | AO31: 0 | AP31: 0 | AQ31: 0 | AR31: 0 | AS31: 0
AF32: 0 | AG32: 0 | AH32: 0 | AI32: 0 | AJ32: 0 | AK32: 0 | AL32: 0 | AM32: 0 | AN32: 0 | AO32: 0 | AP32: 0 | AQ32: 0 | AR32: 0 | AS32: 0
AF33: 0 | AG33: 0 | AH33: 0 | AI33: 0 | AJ33: 0 | AK33: 0 | AL33: 0 | AM33: 0 | AN33: 0 | AO33: 0 | AP33: 0 | AQ33: 0 | AR33: 0 | AS33: 0
AF34: 0 | AG34: 0 | AH34: 0 | AI34: 0 | AJ34: 0 | AK34: 0 | AL34: 0 | AM34: 0 | AN34: 0 | AO34: 0 | AP34: 0 | AQ34: 0 | AR34: 0 | AS34: 0
AF35: 0 | AG35: 0 | AH35: 0 | AI35: 0 | AJ35: 0 | AK35: 0 | AL35: 0 | AM35: 0 | AN35: 0 | AO35: 0 | AP35: 0 | AQ35: 0 | AR35: 0 | AS35: 0
AF36: 0 | AG36: 0 | AH36: 0 | AI36: 0 | AJ36: 0 | AK36: 0 | AL36: 0 | AM36: 0 | AN36: 0 | AO36: 0 | AP36: 0 | AQ36: 0 | AR36: 0 | AS36: 0
AF37: 0 | AG37: 0 | AH37: 0 | AI37: 0 | AJ37: 0 | AK37: 0 | AL37: 0 | AM37: 0 | AN37: 0 | AO37: 0 | AP37: 0 | AQ37: 0 | AR37: 0 | AS37: 0
AF38: 0 | AG38: 0 | AH38: 0 | AI38: 0 | AJ38: 0 | AK38: 0 | AL38: 0 | AM38: 0 | AN38: 0 | AO38: 0 | AP38: 0 | AQ38: 0 | AR38: 0 | AS38: 0
AF39: 0 | AG39: 0 | AH39: 0 | AI39: 0 | AJ39: 0 | AK39: 0 | AL39: 0 | AM39: 0 | AN39: 0 | AO39: 0 | AP39: 0 | AQ39: 0 | AR39: 0 | AS39: 0
AF40: 0 | AG40: 0 | AH40: 0 | AI40: 0 | AJ40: 0 | AK40: 0 | AL40: 0 | AM40: 0 | AN40: 0 | AO40: 0 | AP40: 0 | AQ40: 0 | AR40: 0 | AS40: 0
AF41: 0 | AG41: 0 | AH41: 0 | AI41: 0 | AJ41: 0 | AK41: 0 | AL41: 0 | AM41: 0 | AN41: 0 | AO41: 0 | AP41: 0 | AQ41: 0 | AR41: 0 | AS41: 0
AF42: 0 | AG42: 0 | AH42: 0 | AI42: 0 | AJ42: 0 | AK42: 0 | AL42: 0 | AM42: 0 | AN42: 0 | AO42: 0 | AP42: 0 | AQ42: 0 | AR42: 0 | AS42: 0
AF43: 0 | AG43: 0 | AH43: 0 | AI43: 0 | AJ43: 0 | AK43: 0 | AL43: 0 | AM43: 0 | AN43: 0 | AO43: 0 | AP43: 0 | AQ43: 0 | AR43: 0 | AS43: 0
AF44: 0 | AG44: 0 | AH44: 0 | AI44: 0 | AJ44: 0 | AK44: 0 | AL44: 0 | AM44: 0 | AN44: 0 | AO44: 0 | AP44: 0 | AQ44: 0 | AR44: 0 | AS44: 0
AF45: 0 | AG45: 0 | AH45: 0 | AI45: 0 | AJ45: 0 | AK45: 0 | AL45: 0 | AM45: 0 | AN45: 0 | AO45: 0 | AP45: 0 | AQ45: 0 | AR45: 0 | AS45: 0
AF46: 0 | AG46: 0 | AH46: 0 | AI46: 0 | AJ46: 0 | AK46: 0 | AL46: 0 | AM46: 0 | AN46: 0 | AO46: 0 | AP46: 0 | AQ46: 0 | AR46: 0 | AS46: 0
AF47: 0 | AG47: 0 | AH47: 0 | AI47: 0 | AJ47: 0 | AK47: 0 | AL47: 0 | AM47: 0 | AN47: 0 | AO47: 0 | AP47: 0 | AQ47: 0 | AR47: 0 | AS47: 0
AF48: 0 | AG48: 0 | AH48: 0 | AI48: 0 | AJ48: 0 | AK48: 0 | AL48: 0 | AM48: 0 | AN48: 0 | AO48: 0 | AP48: 0 | AQ48: 0 | AR48: 0 | AS48: 0
AF49: 0 | AG49: 0 | AH49: 0 | AI49: 0 | AJ49: 0 | AK49: 0 | AL49: 0 | AM49: 0 | AN49: 0 | AO49: 0 | AP49: 0 | AQ49: 0 | AR49: 0 | AS49: 0
AF50: 0 | AG50: 0 | AH50: 0 | AI50: 0 | AJ50: 0 | AK50: 0 | AL50: 0 | AM50: 0 | AN50: 0 | AO50: 0 | AP50: 0 | AQ50: 0 | AR50: 0 | AS50: 0
AF51: 0 | AG51: 0 | AH51: 0 | AI51: 0 | AJ51: 0 | AK51: 0 | AL51: 0 | AM51: 0 | AN51: 0 | AO51: 0 | AP51: 0 | AQ51: 0 | AR51: 0 | AS51: 0
AF52: 0 | AG52: 0 | AH52: 0 | AI52: 0 | AJ52: 0 | AK52: 0 | AL52: 0 | AM52: 0 | AN52: 0 | AO52: 0 | AP52: 0 | AQ52: 0 | AR52: 0 | AS52: 0
AF53: 0 | AG53: 0 | AH53: 0 | AI53: 0 | AJ53: 0 | AK53: 0 | AL53: 0 | AM53: 0 | AN53: 0 | AO53: 0 | AP53: 0 | AQ53: 0 | AR53: 0 | AS53: 0
AF54: 0 | AG54: 0 | AH54: 0 | AI54: 0 | AJ54: 0 | AK54: 0 | AL54: 0 | AM54: 0 | AN54: 0 | AO54: 0 | AP54: 0 | AQ54: 0 | AR54: 0 | AS54: 0
AF55: 0 | AG55: 0 | AH55: 0 | AI55: 0 | AJ55: 0 | AK55: 0 | AL55: 0 | AM55: 0 | AN55: 0 | AO55: 0 | AP55: 0 | AQ55: 0 | AR55: 0 | AS55: 0
AF56: 0 | AG56: 0 | AH56: 0 | AI56: 0 | AJ56: 0 | AK56: 0 | AL56: 0 | AM56: 0 | AN56: 0 | AO56: 0 | AP56: 0 | AQ56: 0 | AR56: 0 | AS56: 0
AF57: 0 | AG57: 0 | AH57: 0 | AI57: 0 | AJ57: 0 | AK57: 0 | AL57: 0 | AM57: 0 | AN57: 0 | AO57: 0 | AP57: 0 | AQ57: 0 | AR57: 0 | AS57: 0
AF58: 0 | AG58: 0 | AH58: 0 | AI58: 0 | AJ58: 0 | AK58: 0 | AL58: 0 | AM58: 0 | AN58: 0 | AO58: 0 | AP58: 0 | AQ58: 0 | AR58: 0 | AS58: 0
AF59: 0 | AG59: 0 | AH59: 0 | AI59: 0 | AJ59: 0 | AK59: 0 | AL59: 0 | AM59: 0 | AN59: 0 | AO59: 0 | AP59: 0 | AQ59: 0 | AR59: 0 | AS59: 0
AF60: 0 | AG60: 0 | AH60: 0 | AI60: 0 | AJ60: 0 | AK60: 0 | AL60: 0 | AM60: 0 | AN60: 0 | AO60: 0 | AP60: 0 | AQ60: 0 | AR60: 0 | AS60: 0
AF61: 0 | AG61: 0 | AH61: 0 | AI61: 0 | AJ61: 0 | AK61: 0 | AL61: 0 | AM61: 0 | AN61: 0 | AO61: 0 | AP61: 0 | AQ61: 0 | AR61: 0 | AS61: 0
AF62: 0 | AG62: 0 | AH62: 0 | AI62: 0 | AJ62: 0 | AK62: 0 | AL62: 0 | AM62: 0 | AN62: 0 | AO62: 0 | AP62: 0 | AQ62: 0 | AR62: 0 | AS62: 0
AF63: 0 | AG63: 0 | AH63: 0 | AI63: 0 | AJ63: 0 | AK63: 0 | AL63: 0 | AM63: 0 | AN63: 0 | AO63: 0 | AP63: 0 | AQ63: 0 | AR63: 0 | AS63: 0
AF64: 0 | AG64: 0 | AH64: 0 | AI64: 0 | AJ64: 0 | AK64: 0 | AL64: 0 | AM64: 0 | AN64: 0 | AO64: 0 | AP64: 0 | AQ64: 0 | AR64: 0 | AS64: 0
AF65: 0 | AG65: 0 | AH65: 0 | AI65: 0 | AJ65: 0 | AK65: 0 | AL65: 0 | AM65: 0 | AN65: 0 | AO65: 0 | AP65: 0 | AQ65: 0 | AR65: 0 | AS65: 0
R66: =SUM(R6:R65) -> 251338040.7 | S66: 1040047439 | T66: 14318145.23 | U66: 1056687956 | V66: 1678751178 | W66: 0 | X66: 1513732349 | Y66: =SUM(Y6:Y65) -> 2320677435 | Z66: 29039514.82 | AA66: 438960214.7 | AB66: 130607350.6 | AC66: 27304454.63 | AD66: 50494541.36 | AF66: =SUM(AF6:AF65) -> 0 | AG66: 18725873.51 | AH66: 336697.2591 | AI66: 11206220.34 | AJ66: 25046549.76 | AK66: 0 | AL66: 14014934.6 | AM66: =SUM(AM6:AM65) -> 0 | AN66: 609644.192 | AO66: 16675074.29 | AP66: 6387582.438 | AQ66: 1053455.738 | AR66: 1306911.927 | AS66: 95362944.05

Sheet Est2017TransRev
B1: ="Tariff Approval - "&'Model update'!C3 -> Tariff Approval - United Energy
B3: ="ESTIMATED "&'Model update'!C8&" TRANSMISSION TARIFF REVENUE" -> ESTIMATED 2017 TRANSMISSION TARIFF REVENUE
D4: ="Current Transmission Tariffs (Pt-1) for "&'Model update'!$C$8 -> Current Transmission Tariffs (Pt-1) for 2017 | R4: ="Estimated Quantities (Qt-1) for "&'Model update'!$C$8 -> Estimated Quantities (Qt-1) for 2017 | AF4: ="Estimated Revenue (Pt-1 "&'Model update'!$C$8&")*(Qt-1 " &'Model update'!$C$8&")" -> Estimated Revenue (Pt-1 2017)*(Qt-1 2017)
B5: ="Tariffs "&'Model update'!C8 -> Tariffs 2017 | D5: Current Fixed | E5: CurrentPkBlk1 | F5: CurrentPkBlk2 | G5: Current PkBlk3 | H5: Current PkBlk4 | I5: Current OPkBlk1 | J5: Current OPkBlk2 | K5: Current OPkBlk3 | L5: Current OPkBlk4 | M5: Current DemBlk1 | N5: Current DemBlk2 | O5: Current DemBlk3 | P5: Current DemBlk4 | R5: EstVol Fixed | S5: EstVol PkBlk1 | T5: EstVol PkBlk2 | U5: EstVol PkBlk3 | V5: EstVol PkBlk4 | W5: EstVol OPkBlk1 | X5: EstVol OPkBlk2 | Y5: EstVol OPkBlk3 | Z5: EstVol OPkBlk4 | AA5: EstVol DemBlk1 | AB5: EstVol DemBlk2 | AC5: EstVol DemBlk3 | AD5: EstVol DemBlk4 | AF5: EstRev Fixed | AG5: EstRev PkBlk1 | AH5: EstRev PkBlk2 | AI5: EstRev PkBlk3 | AJ5: EstRev PkBlk4 | AK5: EstRev OPkBlk1 | AL5: EstRev OPkBlk2 | AM5: EstRev OPkBlk3 | AN5: EstRev OPkBlk4 | AO5: EstRev DemBlk1 | AP5: EstRev DemBlk2 | AQ5: EstRev DemBlk3 | AR5: EstRev DemBlk4 | AS5: EstRev Total
B6: =Est2017DistRev!B6 -> Low voltage small 1 rate | D6: 0 | E6: 2.07 | F6: 0 | G6: 0 | H6: 1.73 | I6: 0 | J6: 0 | K6: 0 | L6: 0 | M6: 0 | N6: 0 | O6: 0 | P6: 0 | R6: =Est2017DistRev!R6 -> 201584381.1 | S6: =Est2017DistRev!S6 -> 908301740.9 | T6: =Est2017DistRev!T6 -> 0 | U6: =Est2017DistRev!U6 -> 0 | V6: =Est2017DistRev!V6 -> 1512903697 | W6: =Est2017DistRev!W6 -> 0 | X6: =Est2017DistRev!X6 -> 0 | Y6: =Est2017DistRev!Y6 -> 0 | Z6: =Est2017DistRev!Z6 -> 0 | AA6: =Est2017DistRev!AA6 -> 0 | AB6: =Est2017DistRev!AB6 -> 0 | AC6: =Est2017DistRev!AC6 -> 0 | AD6: =Est2017DistRev!AD6 -> 0 | AF6: =D6/100*R6 -> 0 | AG6: =E6/100*S6 -> 18801846.04 | AH6: =F6/100*T6 -> 0 | AI6: =G6/100*U6 -> 0 | AJ6: =H6/100*V6 -> 26173233.95 | AK6: =I6/100*W6 -> 0 | AL6: =J6/100*X6 -> 0 | AM6: =K6/100*Y6 -> 0 | AN6: =L6/100*Z6 -> 0 | AO6: =M6/100*AA6 -> 0 | AP6: =N6/100*AB6 -> 0 | AQ6: =O6/100*AC6 -> 0 | AR6: =P6/100*AD6 -> 0 | AS6: =SUM(AF6:AR6) -> 44975079.99
B7: =Est2017DistRev!B7 -> Winter economy tariff | D7: 0 | E7: 2.316 | F7: 0 | G7: 0 | H7: 1.853 | I7: 1.853 | J7: 0 | K7: 0 | L7: 0 | M7: 0 | N7: 0 | O7: 0 | P7: 0 | R7: =Est2017DistRev!R7 -> 48925.3741 | S7: =Est2017DistRev!S7 -> 190882.7343 | T7: =Est2017DistRev!T7 -> 0 | U7: =Est2017DistRev!U7 -> 0 | V7: =Est2017DistRev!V7 -> 434825.1494 | W7: =Est2017DistRev!W7 -> 0 | X7: =Est2017DistRev!X7 -> 0 | Y7: =Est2017DistRev!Y7 -> 0 | Z7: =Est2017DistRev!Z7 -> 0 | AA7: =Est2017DistRev!AA7 -> 0 | AB7: =Est2017DistRev!AB7 -> 0 | AC7: =Est2017DistRev!AC7 -> 0 | AD7: =Est2017DistRev!AD7 -> 0 | AF7: 0 | AG7: 4420.844127 | AH7: 0 | AI7: 0 | AJ7: 8057.310018 | AK7: 0 | AL7: 0 | AM7: 0 | AN7: 0 | AO7: 0 | AP7: 0 | AQ7: 0 | AR7: 0 | AS7: 12478.15414
B8: =Est2017DistRev!B8 -> Reverse cycle airconditioning time of use | D8: 0 | E8: 0 | F8: 0 | G8: 15.694 | H8: 0 | I8: 0 | J8: 3.495 | K8: 0 | L8: 0 | M8: 0 | N8: 9.952 | O8: 0 | P8: 0 | R8: =Est2017DistRev!R8 -> 0 | S8: =Est2017DistRev!S8 -> 0 | T8: =Est2017DistRev!T8 -> 0 | U8: =Est2017DistRev!U8 -> 0 | V8: =Est2017DistRev!V8 -> 0 | W8: =Est2017DistRev!W8 -> 0 | X8: =Est2017DistRev!X8 -> 0 | Y8: =Est2017DistRev!Y8 -> 0 | Z8: =Est2017DistRev!Z8 -> 0 | AA8: =Est2017DistRev!AA8 -> 0 | AB8: =Est2017DistRev!AB8 -> 0 | AC8: =Est2017DistRev!AC8 -> 0 | AD8: =Est2017DistRev!AD8 -> 0 | AF8: 0 | AG8: 0 | AH8: 0 | AI8: 0 | AJ8: 0 | AK8: 0 | AL8: 0 | AM8: 0 | AN8: 0 | AO8: 0 | AP8: 0 | AQ8: 0 | AR8: 0 | AS8: 0
B9: =Est2017DistRev!B9 -> Low voltage small 2 rate | D9: 0 | E9: 0 | F9: 0 | G9: 3.476 | H9: 0 | I9: 0 | J9: 2.782 | K9: 0 | L9: 0 | M9: 0 | N9: 0 | O9: 0 | P9: 0 | R9: =Est2017DistRev!R9 -> 1561827.967 | S9: =Est2017DistRev!S9 -> 0 | T9: =Est2017DistRev!T9 -> 0 | U9: =Est2017DistRev!U9 -> 4402929.961 | V9: =Est2017DistRev!V9 -> 0 | W9: =Est2017DistRev!W9 -> 0 | X9: =Est2017DistRev!X9 -> 7259168.65 | Y9: =Est2017DistRev!Y9 -> 15381833.08 | Z9: =Est2017DistRev!Z9 -> 0 | AA9: =Est2017DistRev!AA9 -> 0 | AB9: =Est2017DistRev!AB9 -> 0 | AC9: =Est2017DistRev!AC9 -> 0 | AD9: =Est2017DistRev!AD9 -> 0 | AF9: 0 | AG9: 0 | AH9: 0 | AI9: 153045.8454 | AJ9: 0 | AK9: 0 | AL9: 201950.0719 | AM9: 0 | AN9: 0 | AO9: 0 | AP9: 0 | AQ9: 0 | AR9: 0 | AS9: 354995.9173
B10: =Est2017DistRev!B10 -> Dedicated circuit | D10: 0 | E10: 0 | F10: 0 | G10: 0 | H10: 0 | I10: 0 | J10: 0 | K10: 0 | L10: 0 | M10: 0 | N10: 0 | O10: 0 | P10: 0 | R10: =Est2017DistRev!R10 -> 667.9 | S10: =Est2017DistRev!S10 -> 0 | T10: =Est2017DistRev!T10 -> 0 | U10: =Est2017DistRev!U10 -> 0 | V10: =Est2017DistRev!V10 -> 0 | W10: =Est2017DistRev!W10 -> 0 | X10: =Est2017DistRev!X10 -> 0 | Y10: =Est2017DistRev!Y10 -> 98711981.43 | Z10: =Est2017DistRev!Z10 -> 0 | AA10: =Est2017DistRev!AA10 -> 0 | AB10: =Est2017DistRev!AB10 -> 0 | AC10: =Est2017DistRev!AC10 -> 0 | AD10: =Est2017DistRev!AD10 -> 0 | AF10: 0 | AG10: 0 | AH10: 0 | AI10: 0 | AJ10: 0 | AK10: 0 | AL10: 0 | AM10: 0 | AN10: 0 | AO10: 0 | AP10: 0 | AQ10: 0 | AR10: 0 | AS10: 0
B11: =Est2017DistRev!B11 -> Low voltage medium 1 rate | D11: 0 | E11: 2.432 | F11: 0 | G11: 0 | H11: 1.942 | I11: 0 | J11: 0 | K11: 0 | L11: 0 | M11: 0 | N11: 0 | O11: 0 | P11: 0 | R11: =Est2017DistRev!R11 -> 11864291.38 | S11: =Est2017DistRev!S11 -> 155269969.6 | T11: =Est2017DistRev!T11 -> 0 | U11: =Est2017DistRev!U11 -> 0 | V11: =Est2017DistRev!V11 -> 233793484.5 | W11: =Est2017DistRev!W11 -> 0 | X11: =Est2017DistRev!X11 -> 0 | Y11: =Est2017DistRev!Y11 -> 4 | Z11: =Est2017DistRev!Z11 -> 0 | AA11: =Est2017DistRev!AA11 -> 0 | AB11: =Est2017DistRev!AB11 -> 0 | AC11: =Est2017DistRev!AC11 -> 0 | AD11: =Est2017DistRev!AD11 -> 0 | AF11: 0 | AG11: 3776165.661 | AH11: 0 | AI11: 0 | AJ11: 4540269.469 | AK11: 0 | AL11: 0 | AM11: 0 | AN11: 0 | AO11: 0 | AP11: 0 | AQ11: 0 | AR11: 0 | AS11: 8316435.13
B12: =Est2017DistRev!B12 -> Low voltage medium 2 rate 5 day | D12: 0 | E12: 0 | F12: 0 | G12: 2.106 | H12: 0 | I12: 0 | J12: 1.684 | K12: 0 | L12: 0 | M12: 0 | N12: 0 | O12: 0 | P12: 0 | R12: =Est2017DistRev!R12 -> 3762110.124 | S12: =Est2017DistRev!S12 -> 0 | T12: =Est2017DistRev!T12 -> 0 | U12: =Est2017DistRev!U12 -> 52750944.99 | V12: =Est2017DistRev!V12 -> 0 | W12: =Est2017DistRev!W12 -> 0 | X12: =Est2017DistRev!X12 -> 73732469.08 | Y12: =Est2017DistRev!Y12 -> 78832208.17 | Z12: =Est2017DistRev!Z12 -> 0 | AA12: =Est2017DistRev!AA12 -> 0 | AB12: =Est2017DistRev!AB12 -> 0 | AC12: =Est2017DistRev!AC12 -> 0 | AD12: =Est2017DistRev!AD12 -> 0 | AF12: 0 | AG12: 0 | AH12: 0 | AI12: 1110934.901 | AJ12: 0 | AK12: 0 | AL12: 1241654.779 | AM12: 0 | AN12: 0 | AO12: 0 | AP12: 0 | AQ12: 0 | AR12: 0 | AS12: 2352589.681
B13: =Est2017DistRev!B13 -> Low voltage medium 2 rate 7 day | D13: 0 | E13: 0 | F13: 0 | G13: 2.507 | H13: 0 | I13: 0 | J13: 2.007 | K13: 0 | L13: 0 | M13: 0 | N13: 0 | O13: 0 | P13: 0 | R13: =Est2017DistRev!R13 -> 1819379.414 | S13: =Est2017DistRev!S13 -> 0 | T13: =Est2017DistRev!T13 -> 0 | U13: =Est2017DistRev!U13 -> 22682579.56 | V13: =Est2017DistRev!V13 -> 0 | W13: =Est2017DistRev!W13 -> 0 | X13: =Est2017DistRev!X13 -> 34109458.96 | Y13: =Est2017DistRev!Y13 -> 15078122.19 | Z13: =Est2017DistRev!Z13 -> 0 | AA13: =Est2017DistRev!AA13 -> 0 | AB13: =Est2017DistRev!AB13 -> 0 | AC13: =Est2017DistRev!AC13 -> 0 | AD13: =Est2017DistRev!AD13 -> 0 | AF13: 0 | AG13: 0 | AH13: 0 | AI13: 568652.2695 | AJ13: 0 | AK13: 0 | AL13: 684576.8412 | AM13: 0 | AN13: 0 | AO13: 0 | AP13: 0 | AQ13: 0 | AR13: 0 | AS13: 1253229.111
B14: =Est2017DistRev!B14 -> Unmetered supplies | D14: 0 | E14: 0 | F14: 0 | G14: 3.257 | H14: 0 | I14: 0 | J14: 2.603 | K14: 0 | L14: 0 | M14: 0 | N14: 0 | O14: 0 | P14: 0 | R14: =Est2017DistRev!R14 -> 1207792.623 | S14: =Est2017DistRev!S14 -> 0 | T14: =Est2017DistRev!T14 -> 0 | U14: =Est2017DistRev!U14 -> 10724484.11 | V14: =Est2017DistRev!V14 -> 0 | W14: =Est2017DistRev!W14 -> 0 | X14: =Est2017DistRev!X14 -> 18203252.79 | Y14: =Est2017DistRev!Y14 -> 66747582.58 | Z14: =Est2017DistRev!Z14 -> 0 | AA14: =Est2017DistRev!AA14 -> 0 | AB14: =Est2017DistRev!AB14 -> 0 | AC14: =Est2017DistRev!AC14 -> 0 | AD14: =Est2017DistRev!AD14 -> 0 | AF14: 0 | AG14: 0 | AH14: 0 | AI14: 349296.4476 | AJ14: 0 | AK14: 0 | AL14: 473830.6701 | AM14: 0 | AN14: 0 | AO14: 0 | AP14: 0 | AQ14: 0 | AR14: 0 | AS14: 823127.1177
B15: =Est2017DistRev!B15 -> Low voltage large 1 rate | D15: 0 | E15: 2.425 | F15: 0 | G15: 0 | H15: 1.938 | I15: 0 | J15: 0 | K15: 0 | L15: 0 | M15: 0 | N15: 0 | O15: 0 | P15: 0 | R15: =Est2017DistRev!R15 -> 2527.382942 | S15: =Est2017DistRev!S15 -> 597942.0407 | T15: =Est2017DistRev!T15 -> 0 | U15: =Est2017DistRev!U15 -> 0 | V15: =Est2017DistRev!V15 -> 774047.2155 | W15: =Est2017DistRev!W15 -> 0 | X15: =Est2017DistRev!X15 -> 0 | Y15: =Est2017DistRev!Y15 -> 0 | Z15: =Est2017DistRev!Z15 -> 0 | AA15: =Est2017DistRev!AA15 -> 0 | AB15: =Est2017DistRev!AB15 -> 0 | AC15: =Est2017DistRev!AC15 -> 0 | AD15: =Est2017DistRev!AD15 -> 0 | AF15: 0 | AG15: 14500.09449 | AH15: 0 | AI15: 0 | AJ15: 15001.03504 | AK15: 0 | AL15: 0 | AM15: 0 | AN15: 0 | AO15: 0 | AP15: 0 | AQ15: 0 | AR15: 0 | AS15: 29501.12952
B16: =Est2017DistRev!B16 -> Low voltage large 2 rate | D16: 0 | E16: 0 | F16: 0 | G16: 1.864 | H16: 0 | I16: 0 | J16: 1.493 | K16: 0 | L16: 0 | M16: 0 | N16: 0 | O16: 0 | P16: 0 | R16: =Est2017DistRev!R16 -> 8044.888029 | S16: =Est2017DistRev!S16 -> 0 | T16: =Est2017DistRev!T16 -> 0 | U16: =Est2017DistRev!U16 -> 1050283.811 | V16: =Est2017DistRev!V16 -> 0 | W16: =Est2017DistRev!W16 -> 0 | X16: =Est2017DistRev!X16 -> 1490905.35 | Y16: =Est2017DistRev!Y16 -> 1781684.618 | Z16: =Est2017DistRev!Z16 -> 0 | AA16: =Est2017DistRev!AA16 -> 0 | AB16: =Est2017DistRev!AB16 -> 0 | AC16: =Est2017DistRev!AC16 -> 0 | AD16: =Est2017DistRev!AD16 -> 0 | AF16: 0 | AG16: 0 | AH16: 0 | AI16: 19577.29024 | AJ16: 0 | AK16: 0 | AL16: 22259.21687 | AM16: 0 | AN16: 0 | AO16: 0 | AP16: 0 | AQ16: 0 | AR16: 0 | AS16: 41836.50711
B17: =Est2017DistRev!B17 -> Low voltage KW time of use | D17: 0 | E17: 0 | F17: 0 | G17: 1.951 | H17: 0 | I17: 0 | J17: 1.56 | K17: 0 | L17: 0 | M17: 0 | N17: 9.1 | O17: 0 | P17: 0 | R17: =Est2017DistRev!R17 -> 27933.549 | S17: =Est2017DistRev!S17 -> 0 | T17: =Est2017DistRev!T17 -> 0 | U17: =Est2017DistRev!U17 -> 2946856.879 | V17: =Est2017DistRev!V17 -> 0 | W17: =Est2017DistRev!W17 -> 0 | X17: =Est2017DistRev!X17 -> 4098087.328 | Y17: =Est2017DistRev!Y17 -> 6713595.561 | Z17: =Est2017DistRev!Z17 -> 0 | AA17: =Est2017DistRev!AA17 -> 0 | AB17: =Est2017DistRev!AB17 -> 681904.8849 | AC17: =Est2017DistRev!AC17 -> 0 | AD17: =Est2017DistRev!AD17 -> 0 | AF17: 0 | AG17: 0 | AH17: 0 | AI17: 57493.17771 | AJ17: 0 | AK17: 0 | AL17: 63930.16232 | AM17: 0 | AN17: 0 | AO17: 0 | AP17: 62053.34452 | AQ17: 0 | AR17: 0 | AS17: 183476.6845
B18: =Est2017DistRev!B18 -> Low voltage KW time of use - HOT | D18: 0 | E18: 0 | F18: 0 | G18: 1.067 | H18: 0 | I18: 0 | J18: 0.853 | K18: 0 | L18: 0 | M18: 0 | N18: 9.563 | O18: 0 | P18: 0 | R18: =Est2017DistRev!R18 -> 1211.360167 | S18: =Est2017DistRev!S18 -> 0 | T18: =Est2017DistRev!T18 -> 0 | U18: =Est2017DistRev!U18 -> 528234.4511 | V18: =Est2017DistRev!V18 -> 0 | W18: =Est2017DistRev!W18 -> 0 | X18: =Est2017DistRev!X18 -> 47405.28414 | Y18: =Est2017DistRev!Y18 -> 824959.3551 | Z18: =Est2017DistRev!Z18 -> 0 | AA18: =Est2017DistRev!AA18 -> 0 | AB18: =Est2017DistRev!AB18 -> 147592.397 | AC18: =Est2017DistRev!AC18 -> 0 | AD18: =Est2017DistRev!AD18 -> 0 | AF18: 0 | AG18: 0 | AH18: 0 | AI18: 5636.261593 | AJ18: 0 | AK18: 0 | AL18: 404.3670738 | AM18: 0 | AN18: 0 | AO18: 0 | AP18: 14114.26093 | AQ18: 0 | AR18: 0 | AS18: 20154.88959
B19: =Est2017DistRev!B19 -> Low voltage large KVA time of use | D19: 0 | E19: 0 | F19: 0 | G19: 1.063 | H19: 0 | I19: 0 | J19: 0.853 | K19: 0 | L19: 0 | M19: 4.339 | N19: 5.931 | O19: 0 | P19: 0 | R19: =Est2017DistRev!R19 -> 393917 | S19: =Est2017DistRev!S19 -> 0 | T19: =Est2017DistRev!T19 -> 0 | U19: =Est2017DistRev!U19 -> 470238596.6 | V19: =Est2017DistRev!V19 -> 0 | W19: =Est2017DistRev!W19 -> 0 | X19: =Est2017DistRev!X19 -> 644313381.3 | Y19: =Est2017DistRev!Y19 -> 1280147668 | Z19: =Est2017DistRev!Z19 -> 0 | AA19: =Est2017DistRev!AA19 -> 326079395.9 | AB19: =Est2017DistRev!AB19 -> 95406197.36 | AC19: =Est2017DistRev!AC19 -> 0 | AD19: =Est2017DistRev!AD19 -> 0 | AF19: 0 | AG19: 0 | AH19: 0 | AI19: 4998636.281 | AJ19: 0 | AK19: 0 | AL19: 5495993.142 | AM19: 0 | AN19: 0 | AO19: 14148584.99 | AP19: 5658541.565 | AQ19: 0 | AR19: 0 | AS19: 30301755.98
B20: =Est2017DistRev!B20 -> Low voltage large KVA time of use - HOT | D20: 0 | E20: 0 | F20: 0 | G20: 0.671 | H20: 0 | I20: 0 | J20: 0.538 | K20: 0 | L20: 0 | M20: 2.738 | N20: 7.2 | O20: 0 | P20: 0 | R20: =Est2017DistRev!R20 -> 122 | S20: =Est2017DistRev!S20 -> 0 | T20: =Est2017DistRev!T20 -> 0 | U20: =Est2017DistRev!U20 -> 188523.4438 | V20: =Est2017DistRev!V20 -> 0 | W20: =Est2017DistRev!W20 -> 0 | X20: =Est2017DistRev!X20 -> 250916.264 | Y20: =Est2017DistRev!Y20 -> 851041.2182 | Z20: =Est2017DistRev!Z20 -> 0 | AA20: =Est2017DistRev!AA20 -> 101243.676 | AB20: =Est2017DistRev!AB20 -> 35569.13953 | AC20: =Est2017DistRev!AC20 -> 0 | AD20: =Est2017DistRev!AD20 -> 0 | AF20: 0 | AG20: 0 | AH20: 0 | AI20: 1264.992308 | AJ20: 0 | AK20: 0 | AL20: 1349.9295 | AM20: 0 | AN20: 0 | AO20: 2772.051849 | AP20: 2560.978046 | AQ20: 0 | AR20: 0 | AS20: 7947.951704
B21: =Est2017DistRev!B21 -> High voltage KVA time of use | D21: 0 | E21: 0 | F21: 0 | G21: 0.747 | H21: 0 | I21: 0 | J21: 0.598 | K21: 0 | L21: 0 | M21: 4.969 | N21: 5.216 | O21: 0 | P21: 0 | R21: =Est2017DistRev!R21 -> 11224 | S21: =Est2017DistRev!S21 -> 0 | T21: =Est2017DistRev!T21 -> 0 | U21: =Est2017DistRev!U21 -> 170765372.5 | V21: =Est2017DistRev!V21 -> 0 | W21: =Est2017DistRev!W21 -> 0 | X21: =Est2017DistRev!X21 -> 244972690.6 | Y21: =Est2017DistRev!Y21 -> 637251511.6 | Z21: =Est2017DistRev!Z21 -> 0 | AA21: =Est2017DistRev!AA21 -> 102140766.4 | AB21: =Est2017DistRev!AB21 -> 31103115.87 | AC21: =Est2017DistRev!AC21 -> 0 | AD21: =Est2017DistRev!AD21 -> 0 | AF21: 0 | AG21: 0 | AH21: 0 | AI21: 1275617.333 | AJ21: 0 | AK21: 0 | AL21: 1464936.69 | AM21: 0 | AN21: 0 | AO21: 5075374.681 | AP21: 1622338.524 | AQ21: 0 | AR21: 0 | AS21: 9438267.228
B22: =Est2017DistRev!B22 -> High voltage KVA time of use - HOT | D22: 0 | E22: 0 | F22: 0 | G22: 0.43 | H22: 0 | I22: 0 | J22: 0.342 | K22: 0 | L22: 0 | M22: 2.849 | N22: 5.751 | O22: 0 | P22: 0 | R22: =Est2017DistRev!R22 -> 0 | S22: =Est2017DistRev!S22 -> 0 | T22: =Est2017DistRev!T22 -> 0 | U22: =Est2017DistRev!U22 -> 0 | V22: =Est2017DistRev!V22 -> 0 | W22: =Est2017DistRev!W22 -> 0 | X22: =Est2017DistRev!X22 -> 0 | Y22: =Est2017DistRev!Y22 -> 0 | Z22: =Est2017DistRev!Z22 -> 0 | AA22: =Est2017DistRev!AA22 -> 0 | AB22: =Est2017DistRev!AB22 -> 0 | AC22: =Est2017DistRev!AC22 -> 0 | AD22: =Est2017DistRev!AD22 -> 0 | AF22: 0 | AG22: 0 | AH22: 0 | AI22: 0 | AJ22: 0 | AK22: 0 | AL22: 0 | AM22: 0 | AN22: 0 | AO22: 0 | AP22: 0 | AQ22: 0 | AR22: 0 | AS22: 0
B23: =Est2017DistRev!B23 -> Subtransmission KVA time of use | D23: 0 | E23: 0 | F23: 0 | G23: 0.504 | H23: 0 | I23: 0 | J23: 0.406 | K23: 0 | L23: 0 | M23: 3.572 | N23: 4.334 | O23: 0 | P23: 0 | R23: =Est2017DistRev!R23 -> 122 | S23: =Est2017DistRev!S23 -> 0 | T23: =Est2017DistRev!T23 -> 0 | U23: =Est2017DistRev!U23 -> 8375947.461 | V23: =Est2017DistRev!V23 -> 0 | W23: =Est2017DistRev!W23 -> 0 | X23: =Est2017DistRev!X23 -> 10969980.42 | Y23: =Est2017DistRev!Y23 -> 16019608.1 | Z23: =Est2017DistRev!Z23 -> 0 | AA23: =Est2017DistRev!AA23 -> 4212706.539 | AB23: =Est2017DistRev!AB23 -> 1491519.652 | AC23: =Est2017DistRev!AC23 -> 0 | AD23: =Est2017DistRev!AD23 -> 0 | AF23: 0 | AG23: 0 | AH23: 0 | AI23: 42214.7752 | AJ23: 0 | AK23: 0 | AL23: 44538.12051 | AM23: 0 | AN23: 0 | AO23: 150477.8776 | AP23: 64642.4617 | AQ23: 0 | AR23: 0 | AS23: 301873.235
B24: =Est2017DistRev!B24 -> TOD | D24: 0 | E24: 0 | F24: 2.846 | G24: 3.353 | H24: 0 | I24: 0 | J24: 2.846 | K24: 0 | L24: 2.513 | M24: 0 | N24: 0 | O24: 0 | P24: 0 | R24: =Est2017DistRev!R24 -> 15198052 | S24: =Est2017DistRev!S24 -> 0 | T24: =Est2017DistRev!T24 -> 12731795.32 | U24: =Est2017DistRev!U24 -> 23296164.49 | V24: =Est2017DistRev!V24 -> 0 | W24: =Est2017DistRev!W24 -> 0 | X24: =Est2017DistRev!X24 -> 43672101.32 | Y24: =Est2017DistRev!Y24 -> 113014927.8 | Z24: =Est2017DistRev!Z24 -> 25410429.37 | AA24: =Est2017DistRev!AA24 -> 0 | AB24: =Est2017DistRev!AB24 -> 0 | AC24: =Est2017DistRev!AC24 -> 0 | AD24: =Est2017DistRev!AD24 -> 0 | AF24: 0 | AG24: 0 | AH24: 362346.8949 | AI24: 781120.3953 | AJ24: 0 | AK24: 0 | AL24: 1242908.004 | AM24: 0 | AN24: 638564.0901 | AO24: 0 | AP24: 0 | AQ24: 0 | AR24: 0 | AS24: 3024939.384
B25: =Est2017DistRev!B25 -> TOD9 | D25: 0 | E25: 0 | F25: 4.183 | G25: 4.5 | H25: 0 | I25: 0 | J25: 4.183 | K25: 0 | L25: 3.975 | M25: 0 | N25: 0 | O25: 0 | P25: 0 | R25: =Est2017DistRev!R25 -> 507569.125 | S25: =Est2017DistRev!S25 -> 0 | T25: =Est2017DistRev!T25 -> 414508.7721 | U25: =Est2017DistRev!U25 -> 566017.934 | V25: =Est2017DistRev!V25 -> 0 | W25: =Est2017DistRev!W25 -> 0 | X25: =Est2017DistRev!X25 -> 1129836.465 | Y25: =Est2017DistRev!Y25 -> 4122935.413 | Z25: =Est2017DistRev!Z25 -> 837207.5388 | AA25: =Est2017DistRev!AA25 -> 0 | AB25: =Est2017DistRev!AB25 -> 0 | AC25: =Est2017DistRev!AC25 -> 0 | AD25: =Est2017DistRev!AD25 -> 0 | AF25: 0 | AG25: 0 | AH25: 17338.90194 | AI25: 25470.80703 | AJ25: 0 | AK25: 0 | AL25: 47261.05931 | AM25: 0 | AN25: 33278.99967 | AO25: 0 | AP25: 0 | AQ25: 0 | AR25: 0 | AS25: 123349.7679
B26: =Est2017DistRev!B26 -> TOU | D26: 0 | E26: 0 | F26: 0 | G26: 2.491 | H26: 0 | I26: 0 | J26: 1.144 | K26: 0 | L26: 0 | M26: 0 | N26: 6.527 | O26: 0 | P26: 0 | R26: =Est2017DistRev!R26 -> 69979.84775 | S26: =Est2017DistRev!S26 -> 0 | T26: =Est2017DistRev!T26 -> 0 | U26: =Est2017DistRev!U26 -> 4185987.602 | V26: =Est2017DistRev!V26 -> 0 | W26: =Est2017DistRev!W26 -> 0 | X26: =Est2017DistRev!X26 -> 6328508.68 | Y26: =Est2017DistRev!Y26 -> 7803457.309 | Z26: =Est2017DistRev!Z26 -> 0 | AA26: =Est2017DistRev!AA26 -> 0 | AB26: =Est2017DistRev!AB26 -> 1107863.227 | AC26: =Est2017DistRev!AC26 -> 0 | AD26: =Est2017DistRev!AD26 -> 0 | AF26: 0 | AG26: 0 | AH26: 0 | AI26: 104272.9512 | AJ26: 0 | AK26: 0 | AL26: 72398.1393 | AM26: 0 | AN26: 0 | AO26: 0 | AP26: 72310.23282 | AQ26: 0 | AR26: 0 | AS26: 248981.3233
B27: =Est2017DistRev!B27 -> TODFLEX | D27: 0 | E27: 0 | F27: 1.901 | G27: 3.805 | H27: 0 | I27: 0 | J27: 3.549 | K27: 0 | L27: 1.677 | M27: 0 | N27: 0 | O27: 0 | P27: 0 | R27: =Est2017DistRev!R27 -> 737072.0053 | S27: =Est2017DistRev!S27 -> 0 | T27: =Est2017DistRev!T27 -> 1783010.147 | U27: =Est2017DistRev!U27 -> 906586.5433 | V27: =Est2017DistRev!V27 -> 0 | W27: =Est2017DistRev!W27 -> 0 | X27: =Est2017DistRev!X27 -> 1458281.754 | Y27: =Est2017DistRev!Y27 -> 3606690.18 | Z27: =Est2017DistRev!Z27 -> 3051735.809 | AA27: =Est2017DistRev!AA27 -> 0 | AB27: =Est2017DistRev!AB27 -> 0 | AC27: =Est2017DistRev!AC27 -> 0 | AD27: =Est2017DistRev!AD27 -> 0 | AF27: 0 | AG27: 0 | AH27: 33895.0229 | AI27: 34495.61797 | AJ27: 0 | AK27: 0 | AL27: 51754.41945 | AM27: 0 | AN27: 51177.60953 | AO27: 0 | AP27: 0 | AQ27: 0 | AR27: 0 | AS27: 171322.6699
B28: =Est2017DistRev!B28 -> Low Voltage KW 1 rate | D28: 0 | E28: 0.699 | F28: 0.699 | G28: 0.699 | H28: 0.699 | I28: 0.699 | J28: 0.699 | K28: 0.699 | L28: 0.699 | M28: 0 | N28: 0 | O28: 5.238 | P28: 3.405 | R28: =Est2017DistRev!R28 -> 1144.166667 | S28: =Est2017DistRev!S28 -> 0 | T28: =Est2017DistRev!T28 -> 0 | U28: =Est2017DistRev!U28 -> 8858.602203 | V28: =Est2017DistRev!V28 -> 0 | W28: =Est2017DistRev!W28 -> 0 | X28: =Est2017DistRev!X28 -> 15647.93247 | Y28: =Est2017DistRev!Y28 -> 0 | Z28: =Est2017DistRev!Z28 -> 0 | AA28: =Est2017DistRev!AA28 -> 0 | AB28: =Est2017DistRev!AB28 -> 0 | AC28: =Est2017DistRev!AC28 -> 2496.3872 | AD28: =Est2017DistRev!AD28 -> 5053.389136 | AF28: 0 | AG28: 0 | AH28: 0 | AI28: 61.9216294 | AJ28: 0 | AK28: 0 | AL28: 109.3790479 | AM28: 0 | AN28: 0 | AO28: 0 | AP28: 0 | AQ28: 130.7607615 | AR28: 172.0679001 | AS28: 474.1293389
B29: =Est2017DistRev!B29 -> Low voltage medium KW time of use (opt-in) | D29: 0 | E29: 0.884 | F29: 0.884 | G29: 0.884 | H29: 0.884 | I29: 0.884 | J29: 0.884 | K29: 0.884 | L29: 0.884 | M29: 0 | N29: 0 | O29: 7.31 | P29: 4.874 | R29: =Est2017DistRev!R29 -> 47608.16667 | S29: =Est2017DistRev!S29 -> 0 | T29: =Est2017DistRev!T29 -> 0 | U29: =Est2017DistRev!U29 -> 4039834.912 | V29: =Est2017DistRev!V29 -> 0 | W29: =Est2017DistRev!W29 -> 0 | X29: =Est2017DistRev!X29 -> 10179811.63 | Y29: =Est2017DistRev!Y29 -> 0 | Z29: =Est2017DistRev!Z29 -> 0 | AA29: =Est2017DistRev!AA29 -> 0 | AB29: =Est2017DistRev!AB29 -> 0 | AC29: =Est2017DistRev!AC29 -> 250018.8879 | AD29: =Est2017DistRev!AD29 -> 1076707.631 | AF29: 0 | AG29: 0 | AH29: 0 | AI29: 35712.14063 | AJ29: 0 | AK29: 0 | AL29: 89989.53481 | AM29: 0 | AN29: 0 | AO29: 0 | AP29: 0 | AQ29: 18276.3807 | AR29: 52478.72993 | AS29: 196456.7861
B30: =Est2017DistRev!B30 -> Low voltage medium KW 1 rate (mandatory) | D30: 0 | E30: 1.332 | F30: 1.332 | G30: 1.332 | H30: 1.332 | I30: 1.332 | J30: 1.332 | K30: 1.332 | L30: 1.332 | M30: 0 | N30: 0 | O30: 4.464 | P30: 2.976 | R30: =Est2017DistRev!R30 -> 887309.8635 | S30: =Est2017DistRev!S30 -> 0 | T30: =Est2017DistRev!T30 -> 0 | U30: =Est2017DistRev!U30 -> 291747036.8 | V30: =Est2017DistRev!V30 -> 0 | W30: =Est2017DistRev!W30 -> 0 | X30: =Est2017DistRev!X30 -> 385398691.4 | Y30: =Est2017DistRev!Y30 -> 0 | Z30: =Est2017DistRev!Z30 -> 0 | AA30: =Est2017DistRev!AA30 -> 0 | AB30: =Est2017DistRev!AB30 -> 0 | AC30: =Est2017DistRev!AC30 -> 26661191.23 | AD30: =Est2017DistRev!AD30 -> 47275303.63 | AF30: 0 | AG30: 0 | AH30: 0 | AI30: 3886070.53 | AJ30: 0 | AK30: 0 | AL30: 5133510.569 | AM30: 0 | AN30: 0 | AO30: 0 | AP30: 0 | AQ30: 1190155.576 | AR30: 1406913.036 | AS30: 11616649.71
AF31: 0 | AG31: 0 | AH31: 0 | AI31: 0 | AJ31: 0 | AK31: 0 | AL31: 0 | AM31: 0 | AN31: 0 | AO31: 0 | AP31: 0 | AQ31: 0 | AR31: 0 | AS31: 0
AF32: 0 | AG32: 0 | AH32: 0 | AI32: 0 | AJ32: 0 | AK32: 0 | AL32: 0 | AM32: 0 | AN32: 0 | AO32: 0 | AP32: 0 | AQ32: 0 | AR32: 0 | AS32: 0
AF33: 0 | AG33: 0 | AH33: 0 | AI33: 0 | AJ33: 0 | AK33: 0 | AL33: 0 | AM33: 0 | AN33: 0 | AO33: 0 | AP33: 0 | AQ33: 0 | AR33: 0 | AS33: 0
AF34: 0 | AG34: 0 | AH34: 0 | AI34: 0 | AJ34: 0 | AK34: 0 | AL34: 0 | AM34: 0 | AN34: 0 | AO34: 0 | AP34: 0 | AQ34: 0 | AR34: 0 | AS34: 0
AF35: 0 | AG35: 0 | AH35: 0 | AI35: 0 | AJ35: 0 | AK35: 0 | AL35: 0 | AM35: 0 | AN35: 0 | AO35: 0 | AP35: 0 | AQ35: 0 | AR35: 0 | AS35: 0
AF36: 0 | AG36: 0 | AH36: 0 | AI36: 0 | AJ36: 0 | AK36: 0 | AL36: 0 | AM36: 0 | AN36: 0 | AO36: 0 | AP36: 0 | AQ36: 0 | AR36: 0 | AS36: 0
AF37: 0 | AG37: 0 | AH37: 0 | AI37: 0 | AJ37: 0 | AK37: 0 | AL37: 0 | AM37: 0 | AN37: 0 | AO37: 0 | AP37: 0 | AQ37: 0 | AR37: 0 | AS37: 0
AF38: 0 | AG38: 0 | AH38: 0 | AI38: 0 | AJ38: 0 | AK38: 0 | AL38: 0 | AM38: 0 | AN38: 0 | AO38: 0 | AP38: 0 | AQ38: 0 | AR38: 0 | AS38: 0
AF39: 0 | AG39: 0 | AH39: 0 | AI39: 0 | AJ39: 0 | AK39: 0 | AL39: 0 | AM39: 0 | AN39: 0 | AO39: 0 | AP39: 0 | AQ39: 0 | AR39: 0 | AS39: 0
AF40: 0 | AG40: 0 | AH40: 0 | AI40: 0 | AJ40: 0 | AK40: 0 | AL40: 0 | AM40: 0 | AN40: 0 | AO40: 0 | AP40: 0 | AQ40: 0 | AR40: 0 | AS40: 0
AF41: 0 | AG41: 0 | AH41: 0 | AI41: 0 | AJ41: 0 | AK41: 0 | AL41: 0 | AM41: 0 | AN41: 0 | AO41: 0 | AP41: 0 | AQ41: 0 | AR41: 0 | AS41: 0
AF42: 0 | AG42: 0 | AH42: 0 | AI42: 0 | AJ42: 0 | AK42: 0 | AL42: 0 | AM42: 0 | AN42: 0 | AO42: 0 | AP42: 0 | AQ42: 0 | AR42: 0 | AS42: 0
AF43: 0 | AG43: 0 | AH43: 0 | AI43: 0 | AJ43: 0 | AK43: 0 | AL43: 0 | AM43: 0 | AN43: 0 | AO43: 0 | AP43: 0 | AQ43: 0 | AR43: 0 | AS43: 0
AF44: 0 | AG44: 0 | AH44: 0 | AI44: 0 | AJ44: 0 | AK44: 0 | AL44: 0 | AM44: 0 | AN44: 0 | AO44: 0 | AP44: 0 | AQ44: 0 | AR44: 0 | AS44: 0
AF45: 0 | AG45: 0 | AH45: 0 | AI45: 0 | AJ45: 0 | AK45: 0 | AL45: 0 | AM45: 0 | AN45: 0 | AO45: 0 | AP45: 0 | AQ45: 0 | AR45: 0 | AS45: 0
AF46: 0 | AG46: 0 | AH46: 0 | AI46: 0 | AJ46: 0 | AK46: 0 | AL46: 0 | AM46: 0 | AN46: 0 | AO46: 0 | AP46: 0 | AQ46: 0 | AR46: 0 | AS46: 0
AF47: 0 | AG47: 0 | AH47: 0 | AI47: 0 | AJ47: 0 | AK47: 0 | AL47: 0 | AM47: 0 | AN47: 0 | AO47: 0 | AP47: 0 | AQ47: 0 | AR47: 0 | AS47: 0
AF48: 0 | AG48: 0 | AH48: 0 | AI48: 0 | AJ48: 0 | AK48: 0 | AL48: 0 | AM48: 0 | AN48: 0 | AO48: 0 | AP48: 0 | AQ48: 0 | AR48: 0 | AS48: 0
AF49: 0 | AG49: 0 | AH49: 0 | AI49: 0 | AJ49: 0 | AK49: 0 | AL49: 0 | AM49: 0 | AN49: 0 | AO49: 0 | AP49: 0 | AQ49: 0 | AR49: 0 | AS49: 0
AF50: 0 | AG50: 0 | AH50: 0 | AI50: 0 | AJ50: 0 | AK50: 0 | AL50: 0 | AM50: 0 | AN50: 0 | AO50: 0 | AP50: 0 | AQ50: 0 | AR50: 0 | AS50: 0
AF51: 0 | AG51: 0 | AH51: 0 | AI51: 0 | AJ51: 0 | AK51: 0 | AL51: 0 | AM51: 0 | AN51: 0 | AO51: 0 | AP51: 0 | AQ51: 0 | AR51: 0 | AS51: 0
AF52: 0 | AG52: 0 | AH52: 0 | AI52: 0 | AJ52: 0 | AK52: 0 | AL52: 0 | AM52: 0 | AN52: 0 | AO52: 0 | AP52: 0 | AQ52: 0 | AR52: 0 | AS52: 0
AF53: 0 | AG53: 0 | AH53: 0 | AI53: 0 | AJ53: 0 | AK53: 0 | AL53: 0 | AM53: 0 | AN53: 0 | AO53: 0 | AP53: 0 | AQ53: 0 | AR53: 0 | AS53: 0
AF54: 0 | AG54: 0 | AH54: 0 | AI54: 0 | AJ54: 0 | AK54: 0 | AL54: 0 | AM54: 0 | AN54: 0 | AO54: 0 | AP54: 0 | AQ54: 0 | AR54: 0 | AS54: 0
AF55: 0 | AG55: 0 | AH55: 0 | AI55: 0 | AJ55: 0 | AK55: 0 | AL55: 0 | AM55: 0 | AN55: 0 | AO55: 0 | AP55: 0 | AQ55: 0 | AR55: 0 | AS55: 0
AF56: 0 | AG56: 0 | AH56: 0 | AI56: 0 | AJ56: 0 | AK56: 0 | AL56: 0 | AM56: 0 | AN56: 0 | AO56: 0 | AP56: 0 | AQ56: 0 | AR56: 0 | AS56: 0
AF57: 0 | AG57: 0 | AH57: 0 | AI57: 0 | AJ57: 0 | AK57: 0 | AL57: 0 | AM57: 0 | AN57: 0 | AO57: 0 | AP57: 0 | AQ57: 0 | AR57: 0 | AS57: 0
AF58: 0 | AG58: 0 | AH58: 0 | AI58: 0 | AJ58: 0 | AK58: 0 | AL58: 0 | AM58: 0 | AN58: 0 | AO58: 0 | AP58: 0 | AQ58: 0 | AR58: 0 | AS58: 0
AF59: 0 | AG59: 0 | AH59: 0 | AI59: 0 | AJ59: 0 | AK59: 0 | AL59: 0 | AM59: 0 | AN59: 0 | AO59: 0 | AP59: 0 | AQ59: 0 | AR59: 0 | AS59: 0
AF60: 0 | AG60: 0 | AH60: 0 | AI60: 0 | AJ60: 0 | AK60: 0 | AL60: 0 | AM60: 0 | AN60: 0 | AO60: 0 | AP60: 0 | AQ60: 0 | AR60: 0 | AS60: 0
AF61: 0 | AG61: 0 | AH61: 0 | AI61: 0 | AJ61: 0 | AK61: 0 | AL61: 0 | AM61: 0 | AN61: 0 | AO61: 0 | AP61: 0 | AQ61: 0 | AR61: 0 | AS61: 0
AF62: 0 | AG62: 0 | AH62: 0 | AI62: 0 | AJ62: 0 | AK62: 0 | AL62: 0 | AM62: 0 | AN62: 0 | AO62: 0 | AP62: 0 | AQ62: 0 | AR62: 0 | AS62: 0
AF63: 0 | AG63: 0 | AH63: 0 | AI63: 0 | AJ63: 0 | AK63: 0 | AL63: 0 | AM63: 0 | AN63: 0 | AO63: 0 | AP63: 0 | AQ63: 0 | AR63: 0 | AS63: 0
AF64: 0 | AG64: 0 | AH64: 0 | AI64: 0 | AJ64: 0 | AK64: 0 | AL64: 0 | AM64: 0 | AN64: 0 | AO64: 0 | AP64: 0 | AQ64: 0 | AR64: 0 | AS64: 0
AF65: 0 | AG65: 0 | AH65: 0 | AI65: 0 | AJ65: 0 | AK65: 0 | AL65: 0 | AM65: 0 | AN65: 0 | AO65: 0 | AP65: 0 | AQ65: 0 | AR65: 0 | AS65: 0
R66: =SUM(R6:R65) -> 239743213.3 | S66: 1064360535 | T66: 14929314.24 | U66: 1069405241 | V66: 1747906054 | W66: 0 | X66: 1487630595 | Y66: 2346889811 | Z66: 29299372.72 | AA66: 432534112.5 | AB66: 129973762.5 | AC66: 26913706.5 | AD66: 48357064.65 | AF66: =SUM(AF6:AF65) -> 0 | AG66: 22596932.64 | AH66: 413580.8198 | AI66: 13449573.94 | AJ66: 30736561.77 | AK66: 0 | AL66: 16333355.1 | AM66: =SUM(AM6:AM65) -> 0 | AN66: 723020.6993 | AO66: 19377209.6 | AP66: 7496561.367 | AQ66: 1208562.718 | AR66: 1459563.834 | AS66: 113794922.5

Sheet 2018TransRevCont
B2: ="Tariff Approval - "&'Model update'!$C$3 -> Tariff Approval - United Energy
B4: Designated pricing proposal charges (DPPC)
B6: Year (t) | C6: ='Model update'!C5 -> 2018
B8: Table 1- Compliance with DPPC Revenue Formula
B9: Revenue from designated pricing proposal charges for year t | C9: =Prop2018TransTar!AS66 -> 95362944.05
B10: Total DPPC related payments for year t | C10: =C17 -> 95362944.05
C11: =IF(C9="","",IF(C10>=C9,"DPPC REVENUE FORMULA COMPLIANT","DPPC REVENUE FORMULA BREACHED")) -> DPPC REVENUE FORMULA COMPLIANT
B13: Table 2 - Total DPPC related payments for year t
B14: Transmission charges for year t | C14: =C24 -> 107501080.3
B15: DPPC revenue under/over recovery approved | C15: =E49 -> -12138136.3
B16: Transmission revenue under/over recovery for years 2014 and 2015
B17: Total DPPC related payments for year t | C17: =SUM(C14:C16) -> 95362944.05
B19: Table 3 - Transmission charges for year t
B20: AEMO (TCt) | C20: 95962384.97
B21: Transmission connection (TCt) | C21: 9929732.83
B22: Embedded generators (Gt) | C22: 214764.2276
B23: Inter-network (Dt) | C23: -1394198.322
B24: TC + G - D | C24: =C20+C21+C22-C23 -> 107501080.3
B29: Table 4 - DPPC Recovery Arrangements
C30: Year t-2 | D30: Year t-1 | E30: Year t
C31: (actual) | D31: (estimate) | E31: (forecast)
C32: =D32-1 -> 2016 | D32: =E32-1 -> 2017 | E32: =C$6 -> 2018
B34: (A) Revenue from designated pricing proposal charges | C34: 120724059.5 | D34: =Est2017TransRev!AS66 -> 113794922.5 | E34: =C9 -> 95362944.05
B37: (B) Less Total DPPC related payments = | C37: =SUM(C39:C41) -> 115098121.7 | D37: =SUM(D39:D41) -> 108195521.2 | E37: =SUM(E39:E41) -> 107501080.3
B39: + Transmission revenue under/over recovery for years 2014 and 2015 | C39: 3853188.197 | D39: -86801.76941 | E39: =C16 -> 0
B41: +Transmission charges = | C41: =C42+C43+C44-C45 -> 111244933.5 | D41: =D42+D43+D44-D45 -> 108282323 | E41: =E42+E43+E44-E45 -> 107501080.3
B42: +AEMO | C42: ='TUoS cost audit template'!F7 -> 96488879.73 | D42: 96738970.36 | E42: =C20 -> 95962384.97
B43: +Transmission connection | C43: ='TUoS cost audit template'!F14 -> 13094345.9 | D43: 10097368.68 | E43: =C21 -> 9929732.83
B44: +Embedded generators | C44: ='TUoS cost audit template'!F42 -> 367248.79 | D44: 210553.1643 | E44: =C22 -> 214764.2276
B45: -Inter-network | C45: ='TUoS cost audit template'!F24 -> -1294459.088 | D45: -1235430.795 | E45: =C23 -> -1394198.322
B49: (A minus B) Under/over recovery of revenue for regulatory year | C49: =C34-C37 -> 5625937.791 | D49: =D34-D37 -> 5599401.245 | E49: =E34-E37 -> -12138136.3
B53: Table 5 - DPPC Unders and Overs Account
C54: Year t-2 | D54: Year t-1 | E54: Year t
C55: (actual) | D55: (estimate) | E55: (forecast)
B56: Calendar year | C56: =D56-1 -> 2016 | D56: =E56-1 -> 2017 | E56: =C$6 -> 2018
B58: Nominal WACC | C58: =(1+'Model update'!$B$47)*(1+'Model update'!$C$28)-1 -> 0.05523158166 | D58: =(1+'Model update'!$B$45)*(1+'Model update'!$C$29)-1 -> 0.04959444983 | E58: =(1+'Model update'!$B$43)*(1+'Model update'!$C$30)-1 -> 0.0584712416
B60: Opening balance | C60: 0 | D60: =C64 -> 5779214.526 | E60: =D64 -> 11802402.22
B61: Interest on Opening balance | C61: =C60*C58 -> 0 | D61: =D60*D58 -> 286616.9649 | E61: =E60*E58 -> 690101.1115
B62: Under/over recovery of revenue for regulatory year | C62: =C49 -> 5625937.791 | D62: =D49 -> 5599401.245 | E62: =E49 -> -12138136.3
B63: Interest on under/over recovery for regulatory year | C63: =C62*((1+C58)^0.5-1) -> 153276.7353 | D63: =D62*((1+D58)^0.5-1) -> 137169.4801 | E63: =E62*((1+E58)^0.5-1) -> -349824.9177
B64: Closing balance of DPPC overs/ (unders) account | C64: =SUM(C60:C63) -> 5779214.526 | D64: =SUM(D60:D63) -> 11802402.22 | E64: =SUM(E60:E63) -> 4542.113584
B66: The DNSP is expected to achieve a closing balance as close to zero as practicable in its DPPC unders and overs account in each forecast year in its annual pricing proposals in the 2016–20 regulatory control period.

Sheet TUoS cost audit template
B1: ="Tariff Approval - "&'Model update'!C3 -> Tariff Approval - United Energy
B2: TUOS charges (AEMO) | F2: t-2 actual
B4: AEMO (TUOS Locational Charge) | F4: 27503217.48
B5: AEMO (TUOS Non Locational and Common Service) | F5: 63842064.27
B6: Grid equalisation | F6: 5143597.98
E7: Total | F7: =SUM(F3:F6) -> 96488879.73
B9: Transmission connection fees | F9: t-2 actual
B11: AusNet (Connection) | F11: 9064646.01
B12: AusNet & AEMO (Augmentation) | F12: 4029699.89
E14: Total | F14: =SUM(F10:F13) -> 13094345.9
B16: Cross boundary network charges (internetwork charges) | F16: t-2 actual
B17: Distribution Business | C17: Amount (payable)/receivable
C18: HV crossings | D18: Subtransmission crossings | E18: TUoS Adjustment | F18: Total
B20: Citipower invoiced for 2013/14 | D20: 539433.24 | F20: 539433.24
B21: Ausnet invoiced for 2013/14 | D21: -354745.2281 | F21: -354745.2281
B22: Ausnet invoiced for 2014/15 | D22: -1479147.1 | F22: -1479147.1
B24: Total | F24: =SUM(F19:F23) -> -1294459.088
B26: Payments to embedded generators | F26: t-2 actual
B27: Avoided transmission costs
B30: Energy Australia avoided TUOS | F30: 367248.79
B33: Total | F33: =SUM(F28:F32) -> 367248.79
B35: Avoided TUoS usage charges
B41: Total | F41: =SUM(F36:F40) -> 0
B42: Total payments to embedded generators | F42: =F41+F33 -> 367248.79
B44: Where the following definitions apply
B45: HV Crossings | C45: Payments/Receipts for energy transferred utilising the distributor’s HV and LV line assets.
B46: Sub-transmission Crossings | C46: Payments/Receipts for the Sub-transmission assets in shared loops that support each distributor’s Zone Substation capacity to ensure N-1 reliability is maintained.
B47: TuoS Adjustment | C47: Payments/Receipts for the adjustment of TuoS paid by a distributor for energy delivered to another distribution business through a shared loop.

Sheet Prop2018JSTar
B1: ="Tariff Approval - "&'Model update'!C3 -> Tariff Approval - United Energy
B3: ="PROPOSED "&'Model update'!$C$5&" JURISDICTIONAL SCHEME TARIFFS" -> PROPOSED 2018 JURISDICTIONAL SCHEME TARIFFS
D4: ="Proposed Jurisdictional scheme Tariffs (Pt) for "&'Model update'!$C$5 -> Proposed Jurisdictional scheme Tariffs (Pt) for 2018 | R4: ="Forecast Quantities (Qt) for "&'Model update'!$C$5 -> Forecast Quantities (Qt) for 2018 | AF4: ="Forecast Revenue (Pt "&'Model update'!$C$5&")*(Qt " &'Model update'!$C$5&")" -> Forecast Revenue (Pt 2018)*(Qt 2018)
B5: Proposed tariff | D5: PropTar Fixed | E5: PropTar PkBlk1 | F5: PropTar PkBlk2 | G5: PropTar PkBlk3 | H5: PropTar PkBlk4 | I5: PropTar OPkBlk1 | J5: PropTar OPkBlk2 | K5: PropTar OPkBlk3 | L5: PropTar OPkBlk4 | M5: PropTar DemBlk1 | N5: PropTar DemBlk2 | O5: PropTar DemBlk3 | P5: PropTar DemBlk4 | R5: FcastVol Fixed | S5: FcastVol PkBlk1 | T5: FcastVol PkBlk2 | U5: FcastVol PkBlk3 | V5: FcastVol PkBlk4 | W5: FcastVol OPkBlk1 | X5: FcastVol OPkBlk2 | Y5: FcastVol OPkBlk3 | Z5: FcastVol OPkBlk4 | AA5: FcastVol DemBlk1 | AB5: FcastVol DemBlk2 | AC5: FcastVol DemBlk3 | AD5: FcastVol DemBlk4 | AF5: PropRev Fixed | AG5: PropRev PkBlk1 | AH5: PropRev PkBlk2 | AI5: PropRev PkBlk3 | AJ5: PropRev PkBlk4 | AK5: PropRev OPkBlk1 | AL5: PropRev OPkBlk2 | AM5: PropRev OPkBlk3 | AN5: PropRev OPkBlk4 | AO5: PropRev DemBlk1 | AP5: PropRev DemBlk2 | AQ5: PropRev DemBlk3 | AR5: PropRev DemBlk4 | AS5: PropRev SumBlk1
B6: =Prop2018DistTar!B6 -> Low voltage small 1 rate | D6: 5.409 | E6: 0 | F6: 0 | G6: 0 | H6: 0 | I6: 0 | J6: 0 | K6: 0 | L6: 0 | M6: 0 | N6: 0 | O6: 0 | P6: 0 | R6: =Prop2018TransTar!R6 -> 205549567.6 | S6: =Prop2018TransTar!S6 -> 885866510.7 | T6: =Prop2018TransTar!T6 -> 0 | U6: =Prop2018TransTar!U6 -> 0 | V6: =Prop2018TransTar!V6 -> 1445601999 | W6: =Prop2018TransTar!W6 -> 0 | X6: =Prop2018TransTar!X6 -> 0 | Y6: =Prop2018TransTar!Y6 -> 0 | Z6: =Prop2018TransTar!Z6 -> 0 | AA6: =Prop2018TransTar!AA6 -> 0 | AB6: =Prop2018TransTar!AB6 -> 0 | AC6: =Prop2018TransTar!AC6 -> 0 | AD6: =Prop2018TransTar!AD6 -> 0 | AF6: =D6/100*R6 -> 11118176.11 | AG6: =E6/100*S6 -> 0 | AH6: =F6/100*T6 -> 0 | AI6: =G6/100*U6 -> 0 | AJ6: =H6/100*V6 -> 0 | AK6: =I6/100*W6 -> 0 | AL6: =J6/100*X6 -> 0 | AM6: =K6/100*Y6 -> 0 | AN6: =L6/100*Z6 -> 0 | AO6: =M6/100*AA6 -> 0 | AP6: =N6/100*AB6 -> 0 | AQ6: =O6/100*AC6 -> 0 | AR6: =P6/100*AD6 -> 0 | AS6: =SUM(AF6:AR6) -> 11118176.11
B7: =Prop2018DistTar!B7 -> Winter economy tariff | D7: 5.409 | E7: 0 | F7: 0 | G7: 0 | H7: 0 | I7: 0 | J7: 0 | K7: 0 | L7: 0 | M7: 0 | N7: 0 | O7: 0 | P7: 0 | R7: =Prop2018TransTar!R7 -> 50220 | S7: =Prop2018TransTar!S7 -> 265149.0509 | T7: =Prop2018TransTar!T7 -> 0 | U7: =Prop2018TransTar!U7 -> 0 | V7: =Prop2018TransTar!V7 -> 483663.4531 | W7: =Prop2018TransTar!W7 -> 0 | X7: =Prop2018TransTar!X7 -> 0 | Y7: =Prop2018TransTar!Y7 -> 0 | Z7: =Prop2018TransTar!Z7 -> 0 | AA7: =Prop2018TransTar!AA7 -> 0 | AB7: =Prop2018TransTar!AB7 -> 0 | AC7: =Prop2018TransTar!AC7 -> 0 | AD7: =Prop2018TransTar!AD7 -> 0 | AF7: 2716.3998 | AG7: 0 | AH7: 0 | AI7: 0 | AJ7: 0 | AK7: 0 | AL7: 0 | AM7: 0 | AN7: 0 | AO7: 0 | AP7: 0 | AQ7: 0 | AR7: 0 | AS7: 2716.3998
B8: =Prop2018DistTar!B8 -> Reverse cycle airconditioning time of use | D8: 5.409 | E8: 0 | F8: 0 | G8: 0 | H8: 0 | I8: 0 | J8: 0 | K8: 0 | L8: 0 | M8: 0 | N8: 0 | O8: 0 | P8: 0 | R8: =Prop2018TransTar!R8 -> 0 | S8: =Prop2018TransTar!S8 -> 0 | T8: =Prop2018TransTar!T8 -> 0 | U8: =Prop2018TransTar!U8 -> 0 | V8: =Prop2018TransTar!V8 -> 0 | W8: =Prop2018TransTar!W8 -> 0 | X8: =Prop2018TransTar!X8 -> 0 | Y8: =Prop2018TransTar!Y8 -> 0 | Z8: =Prop2018TransTar!Z8 -> 0 | AA8: =Prop2018TransTar!AA8 -> 0 | AB8: =Prop2018TransTar!AB8 -> 0 | AC8: =Prop2018TransTar!AC8 -> 0 | AD8: =Prop2018TransTar!AD8 -> 0 | AF8: 0 | AG8: 0 | AH8: 0 | AI8: 0 | AJ8: 0 | AK8: 0 | AL8: 0 | AM8: 0 | AN8: 0 | AO8: 0 | AP8: 0 | AQ8: 0 | AR8: 0 | AS8: 0
B9: =Prop2018DistTar!B9 -> Low voltage small 2 rate | D9: 5.409 | E9: 0 | F9: 0 | G9: 0 | H9: 0 | I9: 0 | J9: 0 | K9: 0 | L9: 0 | M9: 0 | N9: 0 | O9: 0 | P9: 0 | R9: =Prop2018TransTar!R9 -> 1500124.836 | S9: =Prop2018TransTar!S9 -> 0 | T9: =Prop2018TransTar!T9 -> 0 | U9: =Prop2018TransTar!U9 -> 4199343.701 | V9: =Prop2018TransTar!V9 -> 0 | W9: =Prop2018TransTar!W9 -> 0 | X9: =Prop2018TransTar!X9 -> 6958274.449 | Y9: =Prop2018TransTar!Y9 -> 14004754.29 | Z9: =Prop2018TransTar!Z9 -> 0 | AA9: =Prop2018TransTar!AA9 -> 0 | AB9: =Prop2018TransTar!AB9 -> 0 | AC9: =Prop2018TransTar!AC9 -> 0 | AD9: =Prop2018TransTar!AD9 -> 0 | AF9: 81141.75239 | AG9: 0 | AH9: 0 | AI9: 0 | AJ9: 0 | AK9: 0 | AL9: 0 | AM9: 0 | AN9: 0 | AO9: 0 | AP9: 0 | AQ9: 0 | AR9: 0 | AS9: 81141.75239
B10: =Prop2018DistTar!B10 -> Dedicated circuit | D10: 0 | E10: 0 | F10: 0 | G10: 0 | H10: 0 | I10: 0 | J10: 0 | K10: 0 | L10: 0 | M10: 0 | N10: 0 | O10: 0 | P10: 0 | R10: =Prop2018TransTar!R10 -> 1899.99 | S10: =Prop2018TransTar!S10 -> 0 | T10: =Prop2018TransTar!T10 -> 0 | U10: =Prop2018TransTar!U10 -> 0 | V10: =Prop2018TransTar!V10 -> 0 | W10: =Prop2018TransTar!W10 -> 0 | X10: =Prop2018TransTar!X10 -> 0 | Y10: =Prop2018TransTar!Y10 -> 95116849.23 | Z10: =Prop2018TransTar!Z10 -> 0 | AA10: =Prop2018TransTar!AA10 -> 0 | AB10: =Prop2018TransTar!AB10 -> 0 | AC10: =Prop2018TransTar!AC10 -> 0 | AD10: =Prop2018TransTar!AD10 -> 0 | AF10: 0 | AG10: 0 | AH10: 0 | AI10: 0 | AJ10: 0 | AK10: 0 | AL10: 0 | AM10: 0 | AN10: 0 | AO10: 0 | AP10: 0 | AQ10: 0 | AR10: 0 | AS10: 0
B11: =Prop2018DistTar!B11 -> Low voltage medium 1 rate | D11: 5.409 | E11: 0 | F11: 0 | G11: 0 | H11: 0 | I11: 0 | J11: 0 | K11: 0 | L11: 0 | M11: 0 | N11: 0 | O11: 0 | P11: 0 | R11: =Prop2018TransTar!R11 -> 12033520.76 | S11: =Prop2018TransTar!S11 -> 153338365.9 | T11: =Prop2018TransTar!T11 -> 0 | U11: =Prop2018TransTar!U11 -> 0 | V11: =Prop2018TransTar!V11 -> 231891372.2 | W11: =Prop2018TransTar!W11 -> 0 | X11: =Prop2018TransTar!X11 -> 0 | Y11: =Prop2018TransTar!Y11 -> 12 | Z11: =Prop2018TransTar!Z11 -> 0 | AA11: =Prop2018TransTar!AA11 -> 0 | AB11: =Prop2018TransTar!AB11 -> 0 | AC11: =Prop2018TransTar!AC11 -> 0 | AD11: =Prop2018TransTar!AD11 -> 0 | AF11: 650893.1378 | AG11: 0 | AH11: 0 | AI11: 0 | AJ11: 0 | AK11: 0 | AL11: 0 | AM11: 0 | AN11: 0 | AO11: 0 | AP11: 0 | AQ11: 0 | AR11: 0 | AS11: 650893.1378
B12: =Prop2018DistTar!B12 -> Low voltage medium 2 rate 5 day | D12: 5.409 | E12: 0 | F12: 0 | G12: 0 | H12: 0 | I12: 0 | J12: 0 | K12: 0 | L12: 0 | M12: 0 | N12: 0 | O12: 0 | P12: 0 | R12: =Prop2018TransTar!R12 -> 3807335.983 | S12: =Prop2018TransTar!S12 -> 0 | T12: =Prop2018TransTar!T12 -> 0 | U12: =Prop2018TransTar!U12 -> 51707044.73 | V12: =Prop2018TransTar!V12 -> 0 | W12: =Prop2018TransTar!W12 -> 0 | X12: =Prop2018TransTar!X12 -> 74994609.05 | Y12: =Prop2018TransTar!Y12 -> 77026041.23 | Z12: =Prop2018TransTar!Z12 -> 0 | AA12: =Prop2018TransTar!AA12 -> 0 | AB12: =Prop2018TransTar!AB12 -> 0 | AC12: =Prop2018TransTar!AC12 -> 0 | AD12: =Prop2018TransTar!AD12 -> 0 | AF12: 205938.8033 | AG12: 0 | AH12: 0 | AI12: 0 | AJ12: 0 | AK12: 0 | AL12: 0 | AM12: 0 | AN12: 0 | AO12: 0 | AP12: 0 | AQ12: 0 | AR12: 0 | AS12: 205938.8033
B13: =Prop2018DistTar!B13 -> Low voltage medium 2 rate 7 day | D13: 5.409 | E13: 0 | F13: 0 | G13: 0 | H13: 0 | I13: 0 | J13: 0 | K13: 0 | L13: 0 | M13: 0 | N13: 0 | O13: 0 | P13: 0 | R13: =Prop2018TransTar!R13 -> 1844598.237 | S13: =Prop2018TransTar!S13 -> 0 | T13: =Prop2018TransTar!T13 -> 0 | U13: =Prop2018TransTar!U13 -> 22006070.24 | V13: =Prop2018TransTar!V13 -> 0 | W13: =Prop2018TransTar!W13 -> 0 | X13: =Prop2018TransTar!X13 -> 33856652.73 | Y13: =Prop2018TransTar!Y13 -> 14992889.81 | Z13: =Prop2018TransTar!Z13 -> 0 | AA13: =Prop2018TransTar!AA13 -> 0 | AB13: =Prop2018TransTar!AB13 -> 0 | AC13: =Prop2018TransTar!AC13 -> 0 | AD13: =Prop2018TransTar!AD13 -> 0 | AF13: 99774.31863 | AG13: 0 | AH13: 0 | AI13: 0 | AJ13: 0 | AK13: 0 | AL13: 0 | AM13: 0 | AN13: 0 | AO13: 0 | AP13: 0 | AQ13: 0 | AR13: 0 | AS13: 99774.31863
B14: =Prop2018DistTar!B14 -> Unmetered supplies | D14: 0 | E14: 0 | F14: 0 | G14: 0 | H14: 0 | I14: 0 | J14: 0 | K14: 0 | L14: 0 | M14: 0 | N14: 0 | O14: 0 | P14: 0 | R14: =Prop2018TransTar!R14 -> 3707289.042 | S14: =Prop2018TransTar!S14 -> 0 | T14: =Prop2018TransTar!T14 -> 0 | U14: =Prop2018TransTar!U14 -> 10816030.73 | V14: =Prop2018TransTar!V14 -> 0 | W14: =Prop2018TransTar!W14 -> 0 | X14: =Prop2018TransTar!X14 -> 18164542.77 | Y14: =Prop2018TransTar!Y14 -> 66285006.26 | Z14: =Prop2018TransTar!Z14 -> 0 | AA14: =Prop2018TransTar!AA14 -> 0 | AB14: =Prop2018TransTar!AB14 -> 0 | AC14: =Prop2018TransTar!AC14 -> 0 | AD14: =Prop2018TransTar!AD14 -> 0 | AF14: 0 | AG14: 0 | AH14: 0 | AI14: 0 | AJ14: 0 | AK14: 0 | AL14: 0 | AM14: 0 | AN14: 0 | AO14: 0 | AP14: 0 | AQ14: 0 | AR14: 0 | AS14: 0
B15: =Prop2018DistTar!B15 -> Low voltage large 1 rate | D15: 5.409 | E15: 0 | F15: 0 | G15: 0 | H15: 0 | I15: 0 | J15: 0 | K15: 0 | L15: 0 | M15: 0 | N15: 0 | O15: 0 | P15: 0 | R15: =Prop2018TransTar!R15 -> 2621.992917 | S15: =Prop2018TransTar!S15 -> 577413.2539 | T15: =Prop2018TransTar!T15 -> 0 | U15: =Prop2018TransTar!U15 -> 0 | V15: =Prop2018TransTar!V15 -> 774143.4756 | W15: =Prop2018TransTar!W15 -> 0 | X15: =Prop2018TransTar!X15 -> 0 | Y15: =Prop2018TransTar!Y15 -> 0 | Z15: =Prop2018TransTar!Z15 -> 0 | AA15: =Prop2018TransTar!AA15 -> 0 | AB15: =Prop2018TransTar!AB15 -> 0 | AC15: =Prop2018TransTar!AC15 -> 0 | AD15: =Prop2018TransTar!AD15 -> 0 | AF15: 141.8235969 | AG15: 0 | AH15: 0 | AI15: 0 | AJ15: 0 | AK15: 0 | AL15: 0 | AM15: 0 | AN15: 0 | AO15: 0 | AP15: 0 | AQ15: 0 | AR15: 0 | AS15: 141.8235969
B16: =Prop2018DistTar!B16 -> Low voltage large 2 rate | D16: 5.409 | E16: 0 | F16: 0 | G16: 0 | H16: 0 | I16: 0 | J16: 0 | K16: 0 | L16: 0 | M16: 0 | N16: 0 | O16: 0 | P16: 0 | R16: =Prop2018TransTar!R16 -> 8128.178042 | S16: =Prop2018TransTar!S16 -> 0 | T16: =Prop2018TransTar!T16 -> 0 | U16: =Prop2018TransTar!U16 -> 903588.4994 | V16: =Prop2018TransTar!V16 -> 0 | W16: =Prop2018TransTar!W16 -> 0 | X16: =Prop2018TransTar!X16 -> 1258017.539 | Y16: =Prop2018TransTar!Y16 -> 1362054.148 | Z16: =Prop2018TransTar!Z16 -> 0 | AA16: =Prop2018TransTar!AA16 -> 0 | AB16: =Prop2018TransTar!AB16 -> 0 | AC16: =Prop2018TransTar!AC16 -> 0 | AD16: =Prop2018TransTar!AD16 -> 0 | AF16: 439.6531503 | AG16: 0 | AH16: 0 | AI16: 0 | AJ16: 0 | AK16: 0 | AL16: 0 | AM16: 0 | AN16: 0 | AO16: 0 | AP16: 0 | AQ16: 0 | AR16: 0 | AS16: 439.6531503
B17: =Prop2018DistTar!B17 -> Low voltage KW time of use | D17: 5.409 | E17: 0 | F17: 0 | G17: 0 | H17: 0 | I17: 0 | J17: 0 | K17: 0 | L17: 0 | M17: 0 | N17: 0 | O17: 0 | P17: 0 | R17: =Prop2018TransTar!R17 -> 85424.52922 | S17: =Prop2018TransTar!S17 -> 0 | T17: =Prop2018TransTar!T17 -> 0 | U17: =Prop2018TransTar!U17 -> 2797481.715 | V17: =Prop2018TransTar!V17 -> 0 | W17: =Prop2018TransTar!W17 -> 0 | X17: =Prop2018TransTar!X17 -> 4144236.321 | Y17: =Prop2018TransTar!Y17 -> 6586209.045 | Z17: =Prop2018TransTar!Z17 -> 0 | AA17: =Prop2018TransTar!AA17 -> 0 | AB17: =Prop2018TransTar!AB17 -> 682957.5693 | AC17: =Prop2018TransTar!AC17 -> 0 | AD17: =Prop2018TransTar!AD17 -> 0 | AF17: 4620.612786 | AG17: 0 | AH17: 0 | AI17: 0 | AJ17: 0 | AK17: 0 | AL17: 0 | AM17: 0 | AN17: 0 | AO17: 0 | AP17: 0 | AQ17: 0 | AR17: 0 | AS17: 4620.612786
B18: =Prop2018DistTar!B18 -> Low voltage KW time of use - HOT | D18: 5.409 | E18: 0 | F18: 0 | G18: 0 | H18: 0 | I18: 0 | J18: 0 | K18: 0 | L18: 0 | M18: 0 | N18: 0 | O18: 0 | P18: 0 | R18: =Prop2018TransTar!R18 -> 3704.501421 | S18: =Prop2018TransTar!S18 -> 0 | T18: =Prop2018TransTar!T18 -> 0 | U18: =Prop2018TransTar!U18 -> 38522.95803 | V18: =Prop2018TransTar!V18 -> 0 | W18: =Prop2018TransTar!W18 -> 0 | X18: =Prop2018TransTar!X18 -> 57008.2445 | Y18: =Prop2018TransTar!Y18 -> 138325.9272 | Z18: =Prop2018TransTar!Z18 -> 0 | AA18: =Prop2018TransTar!AA18 -> 0 | AB18: =Prop2018TransTar!AB18 -> 151569.5679 | AC18: =Prop2018TransTar!AC18 -> 0 | AD18: =Prop2018TransTar!AD18 -> 0 | AF18: 200.3764819 | AG18: 0 | AH18: 0 | AI18: 0 | AJ18: 0 | AK18: 0 | AL18: 0 | AM18: 0 | AN18: 0 | AO18: 0 | AP18: 0 | AQ18: 0 | AR18: 0 | AS18: 200.3764819
B19: =Prop2018DistTar!B19 -> Low voltage large KVA time of use | D19: 5.409 | E19: 0 | F19: 0 | G19: 0 | H19: 0 | I19: 0 | J19: 0 | K19: 0 | L19: 0 | M19: 0 | N19: 0 | O19: 0 | P19: 0 | R19: =Prop2018TransTar!R19 -> 1207904.429 | S19: =Prop2018TransTar!S19 -> 0 | T19: =Prop2018TransTar!T19 -> 0 | U19: =Prop2018TransTar!U19 -> 460697092.7 | V19: =Prop2018TransTar!V19 -> 0 | W19: =Prop2018TransTar!W19 -> 0 | X19: =Prop2018TransTar!X19 -> 653613576.2 | Y19: =Prop2018TransTar!Y19 -> 1268388147 | Z19: =Prop2018TransTar!Z19 -> 0 | AA19: =Prop2018TransTar!AA19 -> 331111136.8 | AB19: =Prop2018TransTar!AB19 -> 96046797.4 | AC19: =Prop2018TransTar!AC19 -> 0 | AD19: =Prop2018TransTar!AD19 -> 0 | AF19: 65335.55056 | AG19: 0 | AH19: 0 | AI19: 0 | AJ19: 0 | AK19: 0 | AL19: 0 | AM19: 0 | AN19: 0 | AO19: 0 | AP19: 0 | AQ19: 0 | AR19: 0 | AS19: 65335.55056
B20: =Prop2018DistTar!B20 -> Low voltage large KVA time of use - HOT | D20: 5.409 | E20: 0 | F20: 0 | G20: 0 | H20: 0 | I20: 0 | J20: 0 | K20: 0 | L20: 0 | M20: 0 | N20: 0 | O20: 0 | P20: 0 | R20: =Prop2018TransTar!R20 -> 3.1e-07 | S20: =Prop2018TransTar!S20 -> 0 | T20: =Prop2018TransTar!T20 -> 0 | U20: =Prop2018TransTar!U20 -> 0 | V20: =Prop2018TransTar!V20 -> 0 | W20: =Prop2018TransTar!W20 -> 0 | X20: =Prop2018TransTar!X20 -> 0 | Y20: =Prop2018TransTar!Y20 -> 0 | Z20: =Prop2018TransTar!Z20 -> 0 | AA20: =Prop2018TransTar!AA20 -> 0 | AB20: =Prop2018TransTar!AB20 -> 0 | AC20: =Prop2018TransTar!AC20 -> 0 | AD20: =Prop2018TransTar!AD20 -> 0 | AF20: 1.67679e-08 | AG20: 0 | AH20: 0 | AI20: 0 | AJ20: 0 | AK20: 0 | AL20: 0 | AM20: 0 | AN20: 0 | AO20: 0 | AP20: 0 | AQ20: 0 | AR20: 0 | AS20: 1.67679e-08
B21: =Prop2018DistTar!B21 -> High voltage KVA time of use | D21: 5.409 | E21: 0 | F21: 0 | G21: 0 | H21: 0 | I21: 0 | J21: 0 | K21: 0 | L21: 0 | M21: 0 | N21: 0 | O21: 0 | P21: 0 | R21: =Prop2018TransTar!R21 -> 34316.69 | S21: =Prop2018TransTar!S21 -> 0 | T21: =Prop2018TransTar!T21 -> 0 | U21: =Prop2018TransTar!U21 -> 170523448.7 | V21: =Prop2018TransTar!V21 -> 0 | W21: =Prop2018TransTar!W21 -> 0 | X21: =Prop2018TransTar!X21 -> 248821547.8 | Y21: =Prop2018TransTar!Y21 -> 637350623.8 | Z21: =Prop2018TransTar!Z21 -> 0 | AA21: =Prop2018TransTar!AA21 -> 103610388.3 | AB21: =Prop2018TransTar!AB21 -> 31102876.48 | AC21: =Prop2018TransTar!AC21 -> 0 | AD21: =Prop2018TransTar!AD21 -> 0 | AF21: 1856.189762 | AG21: 0 | AH21: 0 | AI21: 0 | AJ21: 0 | AK21: 0 | AL21: 0 | AM21: 0 | AN21: 0 | AO21: 0 | AP21: 0 | AQ21: 0 | AR21: 0 | AS21: 1856.189762
B22: =Prop2018DistTar!B22 -> High voltage KVA time of use - HOT | D22: 5.409 | E22: 0 | F22: 0 | G22: 0 | H22: 0 | I22: 0 | J22: 0 | K22: 0 | L22: 0 | M22: 0 | N22: 0 | O22: 0 | P22: 0 | R22: =Prop2018TransTar!R22 -> 0 | S22: =Prop2018TransTar!S22 -> 0 | T22: =Prop2018TransTar!T22 -> 0 | U22: =Prop2018TransTar!U22 -> 0 | V22: =Prop2018TransTar!V22 -> 0 | W22: =Prop2018TransTar!W22 -> 0 | X22: =Prop2018TransTar!X22 -> 0 | Y22: =Prop2018TransTar!Y22 -> 0 | Z22: =Prop2018TransTar!Z22 -> 0 | AA22: =Prop2018TransTar!AA22 -> 0 | AB22: =Prop2018TransTar!AB22 -> 0 | AC22: =Prop2018TransTar!AC22 -> 0 | AD22: =Prop2018TransTar!AD22 -> 0 | AF22: 0 | AG22: 0 | AH22: 0 | AI22: 0 | AJ22: 0 | AK22: 0 | AL22: 0 | AM22: 0 | AN22: 0 | AO22: 0 | AP22: 0 | AQ22: 0 | AR22: 0 | AS22: 0
B23: =Prop2018DistTar!B23 -> Subtransmission KVA time of use | D23: 5.409 | E23: 0 | F23: 0 | G23: 0 | H23: 0 | I23: 0 | J23: 0 | K23: 0 | L23: 0 | M23: 0 | N23: 0 | O23: 0 | P23: 0 | R23: =Prop2018TransTar!R23 -> 372 | S23: =Prop2018TransTar!S23 -> 0 | T23: =Prop2018TransTar!T23 -> 0 | U23: =Prop2018TransTar!U23 -> 8273861.77 | V23: =Prop2018TransTar!V23 -> 0 | W23: =Prop2018TransTar!W23 -> 0 | X23: =Prop2018TransTar!X23 -> 11602727.6 | Y23: =Prop2018TransTar!Y23 -> 16115661.39 | Z23: =Prop2018TransTar!Z23 -> 0 | AA23: =Prop2018TransTar!AA23 -> 4238689.613 | AB23: =Prop2018TransTar!AB23 -> 1512895.988 | AC23: =Prop2018TransTar!AC23 -> 0 | AD23: =Prop2018TransTar!AD23 -> 0 | AF23: 20.12148 | AG23: 0 | AH23: 0 | AI23: 0 | AJ23: 0 | AK23: 0 | AL23: 0 | AM23: 0 | AN23: 0 | AO23: 0 | AP23: 0 | AQ23: 0 | AR23: 0 | AS23: 20.12148
B24: =Prop2018DistTar!B24 -> TOD | D24: 5.409 | E24: 0 | F24: 0 | G24: 0 | H24: 0 | I24: 0 | J24: 0 | K24: 0 | L24: 0 | M24: 0 | N24: 0 | O24: 0 | P24: 0 | R24: =Prop2018TransTar!R24 -> 15707814.65 | S24: =Prop2018TransTar!S24 -> 0 | T24: =Prop2018TransTar!T24 -> 12080098.6 | U24: =Prop2018TransTar!U24 -> 22156770.54 | V24: =Prop2018TransTar!V24 -> 0 | W24: =Prop2018TransTar!W24 -> 0 | X24: =Prop2018TransTar!X24 -> 42584001.27 | Y24: =Prop2018TransTar!Y24 -> 107941636.2 | Z24: =Prop2018TransTar!Z24 -> 25155080.82 | AA24: =Prop2018TransTar!AA24 -> 0 | AB24: =Prop2018TransTar!AB24 -> 0 | AC24: =Prop2018TransTar!AC24 -> 0 | AD24: =Prop2018TransTar!AD24 -> 0 | AF24: 849635.6943 | AG24: 0 | AH24: 0 | AI24: 0 | AJ24: 0 | AK24: 0 | AL24: 0 | AM24: 0 | AN24: 0 | AO24: 0 | AP24: 0 | AQ24: 0 | AR24: 0 | AS24: 849635.6943
B25: =Prop2018DistTar!B25 -> TOD9 | D25: 5.409 | E25: 0 | F25: 0 | G25: 0 | H25: 0 | I25: 0 | J25: 0 | K25: 0 | L25: 0 | M25: 0 | N25: 0 | O25: 0 | P25: 0 | R25: =Prop2018TransTar!R25 -> 817673.4375 | S25: =Prop2018TransTar!S25 -> 0 | T25: =Prop2018TransTar!T25 -> 471688.2819 | U25: =Prop2018TransTar!U25 -> 634148.9426 | V25: =Prop2018TransTar!V25 -> 0 | W25: =Prop2018TransTar!W25 -> 0 | X25: =Prop2018TransTar!X25 -> 1239459.524 | Y25: =Prop2018TransTar!Y25 -> 4524672.031 | Z25: =Prop2018TransTar!Z25 -> 942133.8976 | AA25: =Prop2018TransTar!AA25 -> 0 | AB25: =Prop2018TransTar!AB25 -> 0 | AC25: =Prop2018TransTar!AC25 -> 0 | AD25: =Prop2018TransTar!AD25 -> 0 | AF25: 44227.95623 | AG25: 0 | AH25: 0 | AI25: 0 | AJ25: 0 | AK25: 0 | AL25: 0 | AM25: 0 | AN25: 0 | AO25: 0 | AP25: 0 | AQ25: 0 | AR25: 0 | AS25: 44227.95623
B26: =Prop2018DistTar!B26 -> TOU | D26: 5.409 | E26: 0 | F26: 0 | G26: 0 | H26: 0 | I26: 0 | J26: 0 | K26: 0 | L26: 0 | M26: 0 | N26: 0 | O26: 0 | P26: 0 | R26: =Prop2018TransTar!R26 -> 219431.882 | S26: =Prop2018TransTar!S26 -> 0 | T26: =Prop2018TransTar!T26 -> 0 | U26: =Prop2018TransTar!U26 -> 4014520.953 | V26: =Prop2018TransTar!V26 -> 0 | W26: =Prop2018TransTar!W26 -> 0 | X26: =Prop2018TransTar!X26 -> 6566809.173 | Y26: =Prop2018TransTar!Y26 -> 7462286.882 | Z26: =Prop2018TransTar!Z26 -> 0 | AA26: =Prop2018TransTar!AA26 -> 0 | AB26: =Prop2018TransTar!AB26 -> 1110253.604 | AC26: =Prop2018TransTar!AC26 -> 0 | AD26: =Prop2018TransTar!AD26 -> 0 | AF26: 11869.0705 | AG26: 0 | AH26: 0 | AI26: 0 | AJ26: 0 | AK26: 0 | AL26: 0 | AM26: 0 | AN26: 0 | AO26: 0 | AP26: 0 | AQ26: 0 | AR26: 0 | AS26: 11869.0705
B27: =Prop2018DistTar!B27 -> TODFLEX | D27: 5.409 | E27: 0 | F27: 0 | G27: 0 | H27: 0 | I27: 0 | J27: 0 | K27: 0 | L27: 0 | M27: 0 | N27: 0 | O27: 0 | P27: 0 | R27: =Prop2018TransTar!R27 -> 762427.33 | S27: =Prop2018TransTar!S27 -> 0 | T27: =Prop2018TransTar!T27 -> 1766358.341 | U27: =Prop2018TransTar!U27 -> 897799.5996 | V27: =Prop2018TransTar!V27 -> 0 | W27: =Prop2018TransTar!W27 -> 0 | X27: =Prop2018TransTar!X27 -> 1502959.085 | Y27: =Prop2018TransTar!Y27 -> 3382265.656 | Z27: =Prop2018TransTar!Z27 -> 2942300.104 | AA27: =Prop2018TransTar!AA27 -> 0 | AB27: =Prop2018TransTar!AB27 -> 0 | AC27: =Prop2018TransTar!AC27 -> 0 | AD27: =Prop2018TransTar!AD27 -> 0 | AF27: 41239.69428 | AG27: 0 | AH27: 0 | AI27: 0 | AJ27: 0 | AK27: 0 | AL27: 0 | AM27: 0 | AN27: 0 | AO27: 0 | AP27: 0 | AQ27: 0 | AR27: 0 | AS27: 41239.69428
B28: =Prop2018DistTar!B28 -> Low Voltage KW 1 rate | D28: 5.409 | E28: 0 | F28: 0 | G28: 0 | H28: 0 | I28: 0 | J28: 0 | K28: 0 | L28: 0 | M28: 0 | N28: 0 | O28: 0 | P28: 0 | R28: =Prop2018TransTar!R28 -> 1115018.793 | S28: =Prop2018TransTar!S28 -> 0 | T28: =Prop2018TransTar!T28 -> 0 | U28: =Prop2018TransTar!U28 -> 5256477.629 | V28: =Prop2018TransTar!V28 -> 0 | W28: =Prop2018TransTar!W28 -> 0 | X28: =Prop2018TransTar!X28 -> 7359068.681 | Y28: =Prop2018TransTar!Y28 -> 0 | Z28: =Prop2018TransTar!Z28 -> 0 | AA28: =Prop2018TransTar!AA28 -> 0 | AB28: =Prop2018TransTar!AB28 -> 0 | AC28: =Prop2018TransTar!AC28 -> 779540.5869 | AD28: =Prop2018TransTar!AD28 -> 2537178.516 | AF28: 60311.36649 | AG28: 0 | AH28: 0 | AI28: 0 | AJ28: 0 | AK28: 0 | AL28: 0 | AM28: 0 | AN28: 0 | AO28: 0 | AP28: 0 | AQ28: 0 | AR28: 0 | AS28: 60311.36649
B29: =Prop2018DistTar!B29 -> Low voltage medium KW time of use (opt-in) | D29: 5.409 | E29: 0 | F29: 0 | G29: 0 | H29: 0 | I29: 0 | J29: 0 | K29: 0 | L29: 0 | M29: 0 | N29: 0 | O29: 0 | P29: 0 | R29: =Prop2018TransTar!R29 -> 175817.1458 | S29: =Prop2018TransTar!S29 -> 0 | T29: =Prop2018TransTar!T29 -> 0 | U29: =Prop2018TransTar!U29 -> 8362481.464 | V29: =Prop2018TransTar!V29 -> 0 | W29: =Prop2018TransTar!W29 -> 0 | X29: =Prop2018TransTar!X29 -> 12391679.13 | Y29: =Prop2018TransTar!Y29 -> 0 | Z29: =Prop2018TransTar!Z29 -> 0 | AA29: =Prop2018TransTar!AA29 -> 0 | AB29: =Prop2018TransTar!AB29 -> 0 | AC29: =Prop2018TransTar!AC29 -> 616176.6983 | AD29: =Prop2018TransTar!AD29 -> 1472922.252 | AF29: 9509.949418 | AG29: 0 | AH29: 0 | AI29: 0 | AJ29: 0 | AK29: 0 | AL29: 0 | AM29: 0 | AN29: 0 | AO29: 0 | AP29: 0 | AQ29: 0 | AR29: 0 | AS29: 9509.949418
B30: =Prop2018DistTar!B30 -> Low voltage medium KW 1 rate (mandatory) | D30: 5.409 | E30: 0 | F30: 0 | G30: 0 | H30: 0 | I30: 0 | J30: 0 | K30: 0 | L30: 0 | M30: 0 | N30: 0 | O30: 0 | P30: 0 | R30: =Prop2018TransTar!R30 -> 2702828.705 | S30: =Prop2018TransTar!S30 -> 0 | T30: =Prop2018TransTar!T30 -> 0 | U30: =Prop2018TransTar!U30 -> 283403271.2 | V30: =Prop2018TransTar!V30 -> 0 | W30: =Prop2018TransTar!W30 -> 0 | X30: =Prop2018TransTar!X30 -> 388617179.9 | Y30: =Prop2018TransTar!Y30 -> 0 | Z30: =Prop2018TransTar!Z30 -> 0 | AA30: =Prop2018TransTar!AA30 -> 0 | AB30: =Prop2018TransTar!AB30 -> 0 | AC30: =Prop2018TransTar!AC30 -> 25908737.34 | AD30: =Prop2018TransTar!AD30 -> 46484440.59 | AF30: 146196.0046 | AG30: 0 | AH30: 0 | AI30: 0 | AJ30: 0 | AK30: 0 | AL30: 0 | AM30: 0 | AN30: 0 | AO30: 0 | AP30: 0 | AQ30: 0 | AR30: 0 | AS30: 146196.0046
AF31: 0 | AG31: 0 | AH31: 0 | AI31: 0 | AJ31: 0 | AK31: 0 | AL31: 0 | AM31: 0 | AN31: 0 | AO31: 0 | AP31: 0 | AQ31: 0 | AR31: 0 | AS31: 0
AF32: 0 | AG32: 0 | AH32: 0 | AI32: 0 | AJ32: 0 | AK32: 0 | AL32: 0 | AM32: 0 | AN32: 0 | AO32: 0 | AP32: 0 | AQ32: 0 | AR32: 0 | AS32: 0
AF33: 0 | AG33: 0 | AH33: 0 | AI33: 0 | AJ33: 0 | AK33: 0 | AL33: 0 | AM33: 0 | AN33: 0 | AO33: 0 | AP33: 0 | AQ33: 0 | AR33: 0 | AS33: 0
AF34: 0 | AG34: 0 | AH34: 0 | AI34: 0 | AJ34: 0 | AK34: 0 | AL34: 0 | AM34: 0 | AN34: 0 | AO34: 0 | AP34: 0 | AQ34: 0 | AR34: 0 | AS34: 0
AF35: 0 | AG35: 0 | AH35: 0 | AI35: 0 | AJ35: 0 | AK35: 0 | AL35: 0 | AM35: 0 | AN35: 0 | AO35: 0 | AP35: 0 | AQ35: 0 | AR35: 0 | AS35: 0
AF36: 0 | AG36: 0 | AH36: 0 | AI36: 0 | AJ36: 0 | AK36: 0 | AL36: 0 | AM36: 0 | AN36: 0 | AO36: 0 | AP36: 0 | AQ36: 0 | AR36: 0 | AS36: 0
AF37: 0 | AG37: 0 | AH37: 0 | AI37: 0 | AJ37: 0 | AK37: 0 | AL37: 0 | AM37: 0 | AN37: 0 | AO37: 0 | AP37: 0 | AQ37: 0 | AR37: 0 | AS37: 0
AF38: 0 | AG38: 0 | AH38: 0 | AI38: 0 | AJ38: 0 | AK38: 0 | AL38: 0 | AM38: 0 | AN38: 0 | AO38: 0 | AP38: 0 | AQ38: 0 | AR38: 0 | AS38: 0
AF39: 0 | AG39: 0 | AH39: 0 | AI39: 0 | AJ39: 0 | AK39: 0 | AL39: 0 | AM39: 0 | AN39: 0 | AO39: 0 | AP39: 0 | AQ39: 0 | AR39: 0 | AS39: 0
AF40: 0 | AG40: 0 | AH40: 0 | AI40: 0 | AJ40: 0 | AK40: 0 | AL40: 0 | AM40: 0 | AN40: 0 | AO40: 0 | AP40: 0 | AQ40: 0 | AR40: 0 | AS40: 0
AF41: 0 | AG41: 0 | AH41: 0 | AI41: 0 | AJ41: 0 | AK41: 0 | AL41: 0 | AM41: 0 | AN41: 0 | AO41: 0 | AP41: 0 | AQ41: 0 | AR41: 0 | AS41: 0
AF42: 0 | AG42: 0 | AH42: 0 | AI42: 0 | AJ42: 0 | AK42: 0 | AL42: 0 | AM42: 0 | AN42: 0 | AO42: 0 | AP42: 0 | AQ42: 0 | AR42: 0 | AS42: 0
AF43: 0 | AG43: 0 | AH43: 0 | AI43: 0 | AJ43: 0 | AK43: 0 | AL43: 0 | AM43: 0 | AN43: 0 | AO43: 0 | AP43: 0 | AQ43: 0 | AR43: 0 | AS43: 0
AF44: 0 | AG44: 0 | AH44: 0 | AI44: 0 | AJ44: 0 | AK44: 0 | AL44: 0 | AM44: 0 | AN44: 0 | AO44: 0 | AP44: 0 | AQ44: 0 | AR44: 0 | AS44: 0
AF45: 0 | AG45: 0 | AH45: 0 | AI45: 0 | AJ45: 0 | AK45: 0 | AL45: 0 | AM45: 0 | AN45: 0 | AO45: 0 | AP45: 0 | AQ45: 0 | AR45: 0 | AS45: 0
AF46: 0 | AG46: 0 | AH46: 0 | AI46: 0 | AJ46: 0 | AK46: 0 | AL46: 0 | AM46: 0 | AN46: 0 | AO46: 0 | AP46: 0 | AQ46: 0 | AR46: 0 | AS46: 0
AF47: 0 | AG47: 0 | AH47: 0 | AI47: 0 | AJ47: 0 | AK47: 0 | AL47: 0 | AM47: 0 | AN47: 0 | AO47: 0 | AP47: 0 | AQ47: 0 | AR47: 0 | AS47: 0
AF48: 0 | AG48: 0 | AH48: 0 | AI48: 0 | AJ48: 0 | AK48: 0 | AL48: 0 | AM48: 0 | AN48: 0 | AO48: 0 | AP48: 0 | AQ48: 0 | AR48: 0 | AS48: 0
AF49: 0 | AG49: 0 | AH49: 0 | AI49: 0 | AJ49: 0 | AK49: 0 | AL49: 0 | AM49: 0 | AN49: 0 | AO49: 0 | AP49: 0 | AQ49: 0 | AR49: 0 | AS49: 0
AF50: 0 | AG50: 0 | AH50: 0 | AI50: 0 | AJ50: 0 | AK50: 0 | AL50: 0 | AM50: 0 | AN50: 0 | AO50: 0 | AP50: 0 | AQ50: 0 | AR50: 0 | AS50: 0
AF51: 0 | AG51: 0 | AH51: 0 | AI51: 0 | AJ51: 0 | AK51: 0 | AL51: 0 | AM51: 0 | AN51: 0 | AO51: 0 | AP51: 0 | AQ51: 0 | AR51: 0 | AS51: 0
AF52: 0 | AG52: 0 | AH52: 0 | AI52: 0 | AJ52: 0 | AK52: 0 | AL52: 0 | AM52: 0 | AN52: 0 | AO52: 0 | AP52: 0 | AQ52: 0 | AR52: 0 | AS52: 0
AF53: 0 | AG53: 0 | AH53: 0 | AI53: 0 | AJ53: 0 | AK53: 0 | AL53: 0 | AM53: 0 | AN53: 0 | AO53: 0 | AP53: 0 | AQ53: 0 | AR53: 0 | AS53: 0
AF54: 0 | AG54: 0 | AH54: 0 | AI54: 0 | AJ54: 0 | AK54: 0 | AL54: 0 | AM54: 0 | AN54: 0 | AO54: 0 | AP54: 0 | AQ54: 0 | AR54: 0 | AS54: 0
AF55: 0 | AG55: 0 | AH55: 0 | AI55: 0 | AJ55: 0 | AK55: 0 | AL55: 0 | AM55: 0 | AN55: 0 | AO55: 0 | AP55: 0 | AQ55: 0 | AR55: 0 | AS55: 0
AF56: 0 | AG56: 0 | AH56: 0 | AI56: 0 | AJ56: 0 | AK56: 0 | AL56: 0 | AM56: 0 | AN56: 0 | AO56: 0 | AP56: 0 | AQ56: 0 | AR56: 0 | AS56: 0
AF57: 0 | AG57: 0 | AH57: 0 | AI57: 0 | AJ57: 0 | AK57: 0 | AL57: 0 | AM57: 0 | AN57: 0 | AO57: 0 | AP57: 0 | AQ57: 0 | AR57: 0 | AS57: 0
AF58: 0 | AG58: 0 | AH58: 0 | AI58: 0 | AJ58: 0 | AK58: 0 | AL58: 0 | AM58: 0 | AN58: 0 | AO58: 0 | AP58: 0 | AQ58: 0 | AR58: 0 | AS58: 0
AF59: 0 | AG59: 0 | AH59: 0 | AI59: 0 | AJ59: 0 | AK59: 0 | AL59: 0 | AM59: 0 | AN59: 0 | AO59: 0 | AP59: 0 | AQ59: 0 | AR59: 0 | AS59: 0
AF60: 0 | AG60: 0 | AH60: 0 | AI60: 0 | AJ60: 0 | AK60: 0 | AL60: 0 | AM60: 0 | AN60: 0 | AO60: 0 | AP60: 0 | AQ60: 0 | AR60: 0 | AS60: 0
AF61: 0 | AG61: 0 | AH61: 0 | AI61: 0 | AJ61: 0 | AK61: 0 | AL61: 0 | AM61: 0 | AN61: 0 | AO61: 0 | AP61: 0 | AQ61: 0 | AR61: 0 | AS61: 0
AF62: 0 | AG62: 0 | AH62: 0 | AI62: 0 | AJ62: 0 | AK62: 0 | AL62: 0 | AM62: 0 | AN62: 0 | AO62: 0 | AP62: 0 | AQ62: 0 | AR62: 0 | AS62: 0
AF63: 0 | AG63: 0 | AH63: 0 | AI63: 0 | AJ63: 0 | AK63: 0 | AL63: 0 | AM63: 0 | AN63: 0 | AO63: 0 | AP63: 0 | AQ63: 0 | AR63: 0 | AS63: 0
AF64: 0 | AG64: 0 | AH64: 0 | AI64: 0 | AJ64: 0 | AK64: 0 | AL64: 0 | AM64: 0 | AN64: 0 | AO64: 0 | AP64: 0 | AQ64: 0 | AR64: 0 | AS64: 0
AF65: 0 | AG65: 0 | AH65: 0 | AI65: 0 | AJ65: 0 | AK65: 0 | AL65: 0 | AM65: 0 | AN65: 0 | AO65: 0 | AP65: 0 | AQ65: 0 | AR65: 0 | AS65: 0
R66: =SUM(R6:R65) -> 251338040.7 | S66: 1040047439 | T66: 14318145.23 | U66: 1056687956 | V66: 1678751178 | W66: 0 | X66: 1513732349 | Y66: =SUM(Y6:Y65) -> 2320677435 | Z66: 29039514.82 | AA66: 438960214.7 | AB66: 130607350.6 | AC66: 27304454.63 | AD66: 50494541.36 | AF66: =SUM(AF6:AF65) -> 13394244.59 | AG66: 0 | AH66: 0 | AI66: 0 | AJ66: 0 | AK66: 0 | AL66: 0 | AM66: =SUM(AM6:AM65) -> 0 | AN66: 0 | AO66: 0 | AP66: 0 | AQ66: 0 | AR66: 0 | AS66: 13394244.59

Sheet Est2017JSRev
B1: ="Tariff Approval - "&'Model update'!C3 -> Tariff Approval - United Energy
B3: ="ESTIMATED "&'Model update'!C8&" JURISDICTIONAL SCHEME REVENUE" -> ESTIMATED 2017 JURISDICTIONAL SCHEME REVENUE
D4: ="Current Jurisdictional scheme Tariffs (Pt-1) for "&'Model update'!$C$8 -> Current Jurisdictional scheme Tariffs (Pt-1) for 2017 | R4: ="Estimated Quantities (Qt-1) for "&'Model update'!$C$8 -> Estimated Quantities (Qt-1) for 2017 | AF4: ="Estimated Revenue (Pt-1 "&'Model update'!$C$8&")*(Qt-1 " &'Model update'!$C$8&")" -> Estimated Revenue (Pt-1 2017)*(Qt-1 2017)
B5: ="Tariffs "&'Model update'!C8 -> Tariffs 2017 | D5: Current Fixed | E5: CurrentPkBlk1 | F5: CurrentPkBlk2 | G5: Current PkBlk3 | H5: Current PkBlk4 | I5: Current OPkBlk1 | J5: Current OPkBlk2 | K5: Current OPkBlk3 | L5: Current OPkBlk4 | M5: Current DemBlk1 | N5: Current DemBlk2 | O5: Current DemBlk3 | P5: Current DemBlk4 | R5: EstVol Fixed | S5: EstVol PkBlk1 | T5: EstVol PkBlk2 | U5: EstVol PkBlk3 | V5: EstVol PkBlk4 | W5: EstVol OPkBlk1 | X5: EstVol OPkBlk2 | Y5: EstVol OPkBlk3 | Z5: EstVol OPkBlk4 | AA5: EstVol DemBlk1 | AB5: EstVol DemBlk2 | AC5: EstVol DemBlk3 | AD5: EstVol DemBlk4 | AF5: EstRev Fixed | AG5: EstRev PkBlk1 | AH5: EstRev PkBlk2 | AI5: EstRev PkBlk3 | AJ5: EstRev PkBlk4 | AK5: EstRev OPkBlk1 | AL5: EstRev OPkBlk2 | AM5: EstRev OPkBlk3 | AN5: EstRev OPkBlk4 | AO5: EstRev DemBlk1 | AP5: EstRev DemBlk2 | AQ5: EstRev DemBlk3 | AR5: EstRev DemBlk4 | AS5: EstRev Total
B6: =Est2017TransRev!B6 -> Low voltage small 1 rate | D6: 6.247 | E6: 0 | F6: 0 | G6: 0 | H6: 0 | I6: 0 | J6: 0 | K6: 0 | L6: 0 | M6: 0 | N6: 0 | O6: 0 | P6: 0 | R6: =Est2017TransRev!R6 -> 201584381.1 | S6: =Est2017TransRev!S6 -> 908301740.9 | T6: =Est2017TransRev!T6 -> 0 | U6: =Est2017TransRev!U6 -> 0 | V6: =Est2017TransRev!V6 -> 1512903697 | W6: =Est2017TransRev!W6 -> 0 | X6: =Est2017TransRev!X6 -> 0 | Y6: =Est2017TransRev!Y6 -> 0 | Z6: =Est2017TransRev!Z6 -> 0 | AA6: =Est2017TransRev!AA6 -> 0 | AB6: =Est2017TransRev!AB6 -> 0 | AC6: =Est2017TransRev!AC6 -> 0 | AD6: =Est2017TransRev!AD6 -> 0 | AF6: =D6/100*R6 -> 12592976.29 | AG6: =E6/100*S6 -> 0 | AH6: =F6/100*T6 -> 0 | AI6: =G6/100*U6 -> 0 | AJ6: =H6/100*V6 -> 0 | AK6: =I6/100*W6 -> 0 | AL6: =J6/100*X6 -> 0 | AM6: =K6/100*Y6 -> 0 | AN6: =L6/100*Z6 -> 0 | AO6: =M6/100*AA6 -> 0 | AP6: =N6/100*AB6 -> 0 | AQ6: =O6/100*AC6 -> 0 | AR6: =P6/100*AD6 -> 0 | AS6: =SUM(AF6:AR6) -> 12592976.29
B7: =Est2017TransRev!B7 -> Winter economy tariff | D7: 6.247 | E7: 0 | F7: 0 | G7: 0 | H7: 0 | I7: 0 | J7: 0 | K7: 0 | L7: 0 | M7: 0 | N7: 0 | O7: 0 | P7: 0 | R7: =Est2017TransRev!R7 -> 48925.3741 | S7: =Est2017TransRev!S7 -> 190882.7343 | T7: =Est2017TransRev!T7 -> 0 | U7: =Est2017TransRev!U7 -> 0 | V7: =Est2017TransRev!V7 -> 434825.1494 | W7: =Est2017TransRev!W7 -> 0 | X7: =Est2017TransRev!X7 -> 0 | Y7: =Est2017TransRev!Y7 -> 0 | Z7: =Est2017TransRev!Z7 -> 0 | AA7: =Est2017TransRev!AA7 -> 0 | AB7: =Est2017TransRev!AB7 -> 0 | AC7: =Est2017TransRev!AC7 -> 0 | AD7: =Est2017TransRev!AD7 -> 0 | AF7: 3056.36812 | AG7: 0 | AH7: 0 | AI7: 0 | AJ7: 0 | AK7: 0 | AL7: 0 | AM7: 0 | AN7: 0 | AO7: 0 | AP7: 0 | AQ7: 0 | AR7: 0 | AS7: 3056.36812
B8: =Est2017TransRev!B8 -> Reverse cycle airconditioning time of use | D8: 6.247 | E8: 0 | F8: 0 | G8: 0 | H8: 0 | I8: 0 | J8: 0 | K8: 0 | L8: 0 | M8: 0 | N8: 0 | O8: 0 | P8: 0 | R8: =Est2017TransRev!R8 -> 0 | S8: =Est2017TransRev!S8 -> 0 | T8: =Est2017TransRev!T8 -> 0 | U8: =Est2017TransRev!U8 -> 0 | V8: =Est2017TransRev!V8 -> 0 | W8: =Est2017TransRev!W8 -> 0 | X8: =Est2017TransRev!X8 -> 0 | Y8: =Est2017TransRev!Y8 -> 0 | Z8: =Est2017TransRev!Z8 -> 0 | AA8: =Est2017TransRev!AA8 -> 0 | AB8: =Est2017TransRev!AB8 -> 0 | AC8: =Est2017TransRev!AC8 -> 0 | AD8: =Est2017TransRev!AD8 -> 0 | AF8: 0 | AG8: 0 | AH8: 0 | AI8: 0 | AJ8: 0 | AK8: 0 | AL8: 0 | AM8: 0 | AN8: 0 | AO8: 0 | AP8: 0 | AQ8: 0 | AR8: 0 | AS8: 0
B9: =Est2017TransRev!B9 -> Low voltage small 2 rate | D9: 6.247 | E9: 0 | F9: 0 | G9: 0 | H9: 0 | I9: 0 | J9: 0 | K9: 0 | L9: 0 | M9: 0 | N9: 0 | O9: 0 | P9: 0 | R9: =Est2017TransRev!R9 -> 1561827.967 | S9: =Est2017TransRev!S9 -> 0 | T9: =Est2017TransRev!T9 -> 0 | U9: =Est2017TransRev!U9 -> 4402929.961 | V9: =Est2017TransRev!V9 -> 0 | W9: =Est2017TransRev!W9 -> 0 | X9: =Est2017TransRev!X9 -> 7259168.65 | Y9: =Est2017TransRev!Y9 -> 15381833.08 | Z9: =Est2017TransRev!Z9 -> 0 | AA9: =Est2017TransRev!AA9 -> 0 | AB9: =Est2017TransRev!AB9 -> 0 | AC9: =Est2017TransRev!AC9 -> 0 | AD9: =Est2017TransRev!AD9 -> 0 | AF9: 97567.39307 | AG9: 0 | AH9: 0 | AI9: 0 | AJ9: 0 | AK9: 0 | AL9: 0 | AM9: 0 | AN9: 0 | AO9: 0 | AP9: 0 | AQ9: 0 | AR9: 0 | AS9: 97567.39307
B10: =Est2017TransRev!B10 -> Dedicated circuit | D10: 0 | E10: 0 | F10: 0 | G10: 0 | H10: 0 | I10: 0 | J10: 0 | K10: 0 | L10: 0 | M10: 0 | N10: 0 | O10: 0 | P10: 0 | R10: =Est2017TransRev!R10 -> 667.9 | S10: =Est2017TransRev!S10 -> 0 | T10: =Est2017TransRev!T10 -> 0 | U10: =Est2017TransRev!U10 -> 0 | V10: =Est2017TransRev!V10 -> 0 | W10: =Est2017TransRev!W10 -> 0 | X10: =Est2017TransRev!X10 -> 0 | Y10: =Est2017TransRev!Y10 -> 98711981.43 | Z10: =Est2017TransRev!Z10 -> 0 | AA10: =Est2017TransRev!AA10 -> 0 | AB10: =Est2017TransRev!AB10 -> 0 | AC10: =Est2017TransRev!AC10 -> 0 | AD10: =Est2017TransRev!AD10 -> 0 | AF10: 0 | AG10: 0 | AH10: 0 | AI10: 0 | AJ10: 0 | AK10: 0 | AL10: 0 | AM10: 0 | AN10: 0 | AO10: 0 | AP10: 0 | AQ10: 0 | AR10: 0 | AS10: 0
B11: =Est2017TransRev!B11 -> Low voltage medium 1 rate | D11: 6.247 | E11: 0 | F11: 0 | G11: 0 | H11: 0 | I11: 0 | J11: 0 | K11: 0 | L11: 0 | M11: 0 | N11: 0 | O11: 0 | P11: 0 | R11: =Est2017TransRev!R11 -> 11864291.38 | S11: =Est2017TransRev!S11 -> 155269969.6 | T11: =Est2017TransRev!T11 -> 0 | U11: =Est2017TransRev!U11 -> 0 | V11: =Est2017TransRev!V11 -> 233793484.5 | W11: =Est2017TransRev!W11 -> 0 | X11: =Est2017TransRev!X11 -> 0 | Y11: =Est2017TransRev!Y11 -> 4 | Z11: =Est2017TransRev!Z11 -> 0 | AA11: =Est2017TransRev!AA11 -> 0 | AB11: =Est2017TransRev!AB11 -> 0 | AC11: =Est2017TransRev!AC11 -> 0 | AD11: =Est2017TransRev!AD11 -> 0 | AF11: 741162.2827 | AG11: 0 | AH11: 0 | AI11: 0 | AJ11: 0 | AK11: 0 | AL11: 0 | AM11: 0 | AN11: 0 | AO11: 0 | AP11: 0 | AQ11: 0 | AR11: 0 | AS11: 741162.2827
B12: =Est2017TransRev!B12 -> Low voltage medium 2 rate 5 day | D12: 6.247 | E12: 0 | F12: 0 | G12: 0 | H12: 0 | I12: 0 | J12: 0 | K12: 0 | L12: 0 | M12: 0 | N12: 0 | O12: 0 | P12: 0 | R12: =Est2017TransRev!R12 -> 3762110.124 | S12: =Est2017TransRev!S12 -> 0 | T12: =Est2017TransRev!T12 -> 0 | U12: =Est2017TransRev!U12 -> 52750944.99 | V12: =Est2017TransRev!V12 -> 0 | W12: =Est2017TransRev!W12 -> 0 | X12: =Est2017TransRev!X12 -> 73732469.08 | Y12: =Est2017TransRev!Y12 -> 78832208.17 | Z12: =Est2017TransRev!Z12 -> 0 | AA12: =Est2017TransRev!AA12 -> 0 | AB12: =Est2017TransRev!AB12 -> 0 | AC12: =Est2017TransRev!AC12 -> 0 | AD12: =Est2017TransRev!AD12 -> 0 | AF12: 235019.0194 | AG12: 0 | AH12: 0 | AI12: 0 | AJ12: 0 | AK12: 0 | AL12: 0 | AM12: 0 | AN12: 0 | AO12: 0 | AP12: 0 | AQ12: 0 | AR12: 0 | AS12: 235019.0194
B13: =Est2017TransRev!B13 -> Low voltage medium 2 rate 7 day | D13: 6.247 | E13: 0 | F13: 0 | G13: 0 | H13: 0 | I13: 0 | J13: 0 | K13: 0 | L13: 0 | M13: 0 | N13: 0 | O13: 0 | P13: 0 | R13: =Est2017TransRev!R13 -> 1819379.414 | S13: =Est2017TransRev!S13 -> 0 | T13: =Est2017TransRev!T13 -> 0 | U13: =Est2017TransRev!U13 -> 22682579.56 | V13: =Est2017TransRev!V13 -> 0 | W13: =Est2017TransRev!W13 -> 0 | X13: =Est2017TransRev!X13 -> 34109458.96 | Y13: =Est2017TransRev!Y13 -> 15078122.19 | Z13: =Est2017TransRev!Z13 -> 0 | AA13: =Est2017TransRev!AA13 -> 0 | AB13: =Est2017TransRev!AB13 -> 0 | AC13: =Est2017TransRev!AC13 -> 0 | AD13: =Est2017TransRev!AD13 -> 0 | AF13: 113656.632 | AG13: 0 | AH13: 0 | AI13: 0 | AJ13: 0 | AK13: 0 | AL13: 0 | AM13: 0 | AN13: 0 | AO13: 0 | AP13: 0 | AQ13: 0 | AR13: 0 | AS13: 113656.632
B14: =Est2017TransRev!B14 -> Unmetered supplies | D14: 0 | E14: 0 | F14: 0 | G14: 0 | H14: 0 | I14: 0 | J14: 0 | K14: 0 | L14: 0 | M14: 0 | N14: 0 | O14: 0 | P14: 0 | R14: =Est2017TransRev!R14 -> 1207792.623 | S14: =Est2017TransRev!S14 -> 0 | T14: =Est2017TransRev!T14 -> 0 | U14: =Est2017TransRev!U14 -> 10724484.11 | V14: =Est2017TransRev!V14 -> 0 | W14: =Est2017TransRev!W14 -> 0 | X14: =Est2017TransRev!X14 -> 18203252.79 | Y14: =Est2017TransRev!Y14 -> 66747582.58 | Z14: =Est2017TransRev!Z14 -> 0 | AA14: =Est2017TransRev!AA14 -> 0 | AB14: =Est2017TransRev!AB14 -> 0 | AC14: =Est2017TransRev!AC14 -> 0 | AD14: =Est2017TransRev!AD14 -> 0 | AF14: 0 | AG14: 0 | AH14: 0 | AI14: 0 | AJ14: 0 | AK14: 0 | AL14: 0 | AM14: 0 | AN14: 0 | AO14: 0 | AP14: 0 | AQ14: 0 | AR14: 0 | AS14: 0
B15: =Est2017TransRev!B15 -> Low voltage large 1 rate | D15: 6.247 | E15: 0 | F15: 0 | G15: 0 | H15: 0 | I15: 0 | J15: 0 | K15: 0 | L15: 0 | M15: 0 | N15: 0 | O15: 0 | P15: 0 | R15: =Est2017TransRev!R15 -> 2527.382942 | S15: =Est2017TransRev!S15 -> 597942.0407 | T15: =Est2017TransRev!T15 -> 0 | U15: =Est2017TransRev!U15 -> 0 | V15: =Est2017TransRev!V15 -> 774047.2155 | W15: =Est2017TransRev!W15 -> 0 | X15: =Est2017TransRev!X15 -> 0 | Y15: =Est2017TransRev!Y15 -> 0 | Z15: =Est2017TransRev!Z15 -> 0 | AA15: =Est2017TransRev!AA15 -> 0 | AB15: =Est2017TransRev!AB15 -> 0 | AC15: =Est2017TransRev!AC15 -> 0 | AD15: =Est2017TransRev!AD15 -> 0 | AF15: 157.8856124 | AG15: 0 | AH15: 0 | AI15: 0 | AJ15: 0 | AK15: 0 | AL15: 0 | AM15: 0 | AN15: 0 | AO15: 0 | AP15: 0 | AQ15: 0 | AR15: 0 | AS15: 157.8856124
B16: =Est2017TransRev!B16 -> Low voltage large 2 rate | D16: 6.247 | E16: 0 | F16: 0 | G16: 0 | H16: 0 | I16: 0 | J16: 0 | K16: 0 | L16: 0 | M16: 0 | N16: 0 | O16: 0 | P16: 0 | R16: =Est2017TransRev!R16 -> 8044.888029 | S16: =Est2017TransRev!S16 -> 0 | T16: =Est2017TransRev!T16 -> 0 | U16: =Est2017TransRev!U16 -> 1050283.811 | V16: =Est2017TransRev!V16 -> 0 | W16: =Est2017TransRev!W16 -> 0 | X16: =Est2017TransRev!X16 -> 1490905.35 | Y16: =Est2017TransRev!Y16 -> 1781684.618 | Z16: =Est2017TransRev!Z16 -> 0 | AA16: =Est2017TransRev!AA16 -> 0 | AB16: =Est2017TransRev!AB16 -> 0 | AC16: =Est2017TransRev!AC16 -> 0 | AD16: =Est2017TransRev!AD16 -> 0 | AF16: 502.5641552 | AG16: 0 | AH16: 0 | AI16: 0 | AJ16: 0 | AK16: 0 | AL16: 0 | AM16: 0 | AN16: 0 | AO16: 0 | AP16: 0 | AQ16: 0 | AR16: 0 | AS16: 502.5641552
B17: =Est2017TransRev!B17 -> Low voltage KW time of use | D17: 6.247 | E17: 0 | F17: 0 | G17: 0 | H17: 0 | I17: 0 | J17: 0 | K17: 0 | L17: 0 | M17: 0 | N17: 0 | O17: 0 | P17: 0 | R17: =Est2017TransRev!R17 -> 27933.549 | S17: =Est2017TransRev!S17 -> 0 | T17: =Est2017TransRev!T17 -> 0 | U17: =Est2017TransRev!U17 -> 2946856.879 | V17: =Est2017TransRev!V17 -> 0 | W17: =Est2017TransRev!W17 -> 0 | X17: =Est2017TransRev!X17 -> 4098087.328 | Y17: =Est2017TransRev!Y17 -> 6713595.561 | Z17: =Est2017TransRev!Z17 -> 0 | AA17: =Est2017TransRev!AA17 -> 0 | AB17: =Est2017TransRev!AB17 -> 681904.8849 | AC17: =Est2017TransRev!AC17 -> 0 | AD17: =Est2017TransRev!AD17 -> 0 | AF17: 1745.008806 | AG17: 0 | AH17: 0 | AI17: 0 | AJ17: 0 | AK17: 0 | AL17: 0 | AM17: 0 | AN17: 0 | AO17: 0 | AP17: 0 | AQ17: 0 | AR17: 0 | AS17: 1745.008806
B18: =Est2017TransRev!B18 -> Low voltage KW time of use - HOT | D18: 6.247 | E18: 0 | F18: 0 | G18: 0 | H18: 0 | I18: 0 | J18: 0 | K18: 0 | L18: 0 | M18: 0 | N18: 0 | O18: 0 | P18: 0 | R18: =Est2017TransRev!R18 -> 1211.360167 | S18: =Est2017TransRev!S18 -> 0 | T18: =Est2017TransRev!T18 -> 0 | U18: =Est2017TransRev!U18 -> 528234.4511 | V18: =Est2017TransRev!V18 -> 0 | W18: =Est2017TransRev!W18 -> 0 | X18: =Est2017TransRev!X18 -> 47405.28414 | Y18: =Est2017TransRev!Y18 -> 824959.3551 | Z18: =Est2017TransRev!Z18 -> 0 | AA18: =Est2017TransRev!AA18 -> 0 | AB18: =Est2017TransRev!AB18 -> 147592.397 | AC18: =Est2017TransRev!AC18 -> 0 | AD18: =Est2017TransRev!AD18 -> 0 | AF18: 75.67366961 | AG18: 0 | AH18: 0 | AI18: 0 | AJ18: 0 | AK18: 0 | AL18: 0 | AM18: 0 | AN18: 0 | AO18: 0 | AP18: 0 | AQ18: 0 | AR18: 0 | AS18: 75.67366961
B19: =Est2017TransRev!B19 -> Low voltage large KVA time of use | D19: 6.247 | E19: 0 | F19: 0 | G19: 0 | H19: 0 | I19: 0 | J19: 0 | K19: 0 | L19: 0 | M19: 0 | N19: 0 | O19: 0 | P19: 0 | R19: =Est2017TransRev!R19 -> 393917 | S19: =Est2017TransRev!S19 -> 0 | T19: =Est2017TransRev!T19 -> 0 | U19: =Est2017TransRev!U19 -> 470238596.6 | V19: =Est2017TransRev!V19 -> 0 | W19: =Est2017TransRev!W19 -> 0 | X19: =Est2017TransRev!X19 -> 644313381.3 | Y19: =Est2017TransRev!Y19 -> 1280147668 | Z19: =Est2017TransRev!Z19 -> 0 | AA19: =Est2017TransRev!AA19 -> 326079395.9 | AB19: =Est2017TransRev!AB19 -> 95406197.36 | AC19: =Est2017TransRev!AC19 -> 0 | AD19: =Est2017TransRev!AD19 -> 0 | AF19: 24607.99499 | AG19: 0 | AH19: 0 | AI19: 0 | AJ19: 0 | AK19: 0 | AL19: 0 | AM19: 0 | AN19: 0 | AO19: 0 | AP19: 0 | AQ19: 0 | AR19: 0 | AS19: 24607.99499
B20: =Est2017TransRev!B20 -> Low voltage large KVA time of use - HOT | D20: 6.247 | E20: 0 | F20: 0 | G20: 0 | H20: 0 | I20: 0 | J20: 0 | K20: 0 | L20: 0 | M20: 0 | N20: 0 | O20: 0 | P20: 0 | R20: =Est2017TransRev!R20 -> 122 | S20: =Est2017TransRev!S20 -> 0 | T20: =Est2017TransRev!T20 -> 0 | U20: =Est2017TransRev!U20 -> 188523.4438 | V20: =Est2017TransRev!V20 -> 0 | W20: =Est2017TransRev!W20 -> 0 | X20: =Est2017TransRev!X20 -> 250916.264 | Y20: =Est2017TransRev!Y20 -> 851041.2182 | Z20: =Est2017TransRev!Z20 -> 0 | AA20: =Est2017TransRev!AA20 -> 101243.676 | AB20: =Est2017TransRev!AB20 -> 35569.13953 | AC20: =Est2017TransRev!AC20 -> 0 | AD20: =Est2017TransRev!AD20 -> 0 | AF20: 7.62134 | AG20: 0 | AH20: 0 | AI20: 0 | AJ20: 0 | AK20: 0 | AL20: 0 | AM20: 0 | AN20: 0 | AO20: 0 | AP20: 0 | AQ20: 0 | AR20: 0 | AS20: 7.62134
B21: =Est2017TransRev!B21 -> High voltage KVA time of use | D21: 6.247 | E21: 0 | F21: 0 | G21: 0 | H21: 0 | I21: 0 | J21: 0 | K21: 0 | L21: 0 | M21: 0 | N21: 0 | O21: 0 | P21: 0 | R21: =Est2017TransRev!R21 -> 11224 | S21: =Est2017TransRev!S21 -> 0 | T21: =Est2017TransRev!T21 -> 0 | U21: =Est2017TransRev!U21 -> 170765372.5 | V21: =Est2017TransRev!V21 -> 0 | W21: =Est2017TransRev!W21 -> 0 | X21: =Est2017TransRev!X21 -> 244972690.6 | Y21: =Est2017TransRev!Y21 -> 637251511.6 | Z21: =Est2017TransRev!Z21 -> 0 | AA21: =Est2017TransRev!AA21 -> 102140766.4 | AB21: =Est2017TransRev!AB21 -> 31103115.87 | AC21: =Est2017TransRev!AC21 -> 0 | AD21: =Est2017TransRev!AD21 -> 0 | AF21: 701.16328 | AG21: 0 | AH21: 0 | AI21: 0 | AJ21: 0 | AK21: 0 | AL21: 0 | AM21: 0 | AN21: 0 | AO21: 0 | AP21: 0 | AQ21: 0 | AR21: 0 | AS21: 701.16328
B22: =Est2017TransRev!B22 -> High voltage KVA time of use - HOT | D22: 6.247 | E22: 0 | F22: 0 | G22: 0 | H22: 0 | I22: 0 | J22: 0 | K22: 0 | L22: 0 | M22: 0 | N22: 0 | O22: 0 | P22: 0 | R22: =Est2017TransRev!R22 -> 0 | S22: =Est2017TransRev!S22 -> 0 | T22: =Est2017TransRev!T22 -> 0 | U22: =Est2017TransRev!U22 -> 0 | V22: =Est2017TransRev!V22 -> 0 | W22: =Est2017TransRev!W22 -> 0 | X22: =Est2017TransRev!X22 -> 0 | Y22: =Est2017TransRev!Y22 -> 0 | Z22: =Est2017TransRev!Z22 -> 0 | AA22: =Est2017TransRev!AA22 -> 0 | AB22: =Est2017TransRev!AB22 -> 0 | AC22: =Est2017TransRev!AC22 -> 0 | AD22: =Est2017TransRev!AD22 -> 0 | AF22: 0 | AG22: 0 | AH22: 0 | AI22: 0 | AJ22: 0 | AK22: 0 | AL22: 0 | AM22: 0 | AN22: 0 | AO22: 0 | AP22: 0 | AQ22: 0 | AR22: 0 | AS22: 0
B23: =Est2017TransRev!B23 -> Subtransmission KVA time of use | D23: 6.247 | E23: 0 | F23: 0 | G23: 0 | H23: 0 | I23: 0 | J23: 0 | K23: 0 | L23: 0 | M23: 0 | N23: 0 | O23: 0 | P23: 0 | R23: =Est2017TransRev!R23 -> 122 | S23: =Est2017TransRev!S23 -> 0 | T23: =Est2017TransRev!T23 -> 0 | U23: =Est2017TransRev!U23 -> 8375947.461 | V23: =Est2017TransRev!V23 -> 0 | W23: =Est2017TransRev!W23 -> 0 | X23: =Est2017TransRev!X23 -> 10969980.42 | Y23: =Est2017TransRev!Y23 -> 16019608.1 | Z23: =Est2017TransRev!Z23 -> 0 | AA23: =Est2017TransRev!AA23 -> 4212706.539 | AB23: =Est2017TransRev!AB23 -> 1491519.652 | AC23: =Est2017TransRev!AC23 -> 0 | AD23: =Est2017TransRev!AD23 -> 0 | AF23: 7.62134 | AG23: 0 | AH23: 0 | AI23: 0 | AJ23: 0 | AK23: 0 | AL23: 0 | AM23: 0 | AN23: 0 | AO23: 0 | AP23: 0 | AQ23: 0 | AR23: 0 | AS23: 7.62134
B24: =Est2017TransRev!B24 -> TOD | D24: 6.247 | E24: 0 | F24: 0 | G24: 0 | H24: 0 | I24: 0 | J24: 0 | K24: 0 | L24: 0 | M24: 0 | N24: 0 | O24: 0 | P24: 0 | R24: =Est2017TransRev!R24 -> 15198052 | S24: =Est2017TransRev!S24 -> 0 | T24: =Est2017TransRev!T24 -> 12731795.32 | U24: =Est2017TransRev!U24 -> 23296164.49 | V24: =Est2017TransRev!V24 -> 0 | W24: =Est2017TransRev!W24 -> 0 | X24: =Est2017TransRev!X24 -> 43672101.32 | Y24: =Est2017TransRev!Y24 -> 113014927.8 | Z24: =Est2017TransRev!Z24 -> 25410429.37 | AA24: =Est2017TransRev!AA24 -> 0 | AB24: =Est2017TransRev!AB24 -> 0 | AC24: =Est2017TransRev!AC24 -> 0 | AD24: =Est2017TransRev!AD24 -> 0 | AF24: 949422.3087 | AG24: 0 | AH24: 0 | AI24: 0 | AJ24: 0 | AK24: 0 | AL24: 0 | AM24: 0 | AN24: 0 | AO24: 0 | AP24: 0 | AQ24: 0 | AR24: 0 | AS24: 949422.3087
B25: =Est2017TransRev!B25 -> TOD9 | D25: 6.247 | E25: 0 | F25: 0 | G25: 0 | H25: 0 | I25: 0 | J25: 0 | K25: 0 | L25: 0 | M25: 0 | N25: 0 | O25: 0 | P25: 0 | R25: =Est2017TransRev!R25 -> 507569.125 | S25: =Est2017TransRev!S25 -> 0 | T25: =Est2017TransRev!T25 -> 414508.7721 | U25: =Est2017TransRev!U25 -> 566017.934 | V25: =Est2017TransRev!V25 -> 0 | W25: =Est2017TransRev!W25 -> 0 | X25: =Est2017TransRev!X25 -> 1129836.465 | Y25: =Est2017TransRev!Y25 -> 4122935.413 | Z25: =Est2017TransRev!Z25 -> 837207.5388 | AA25: =Est2017TransRev!AA25 -> 0 | AB25: =Est2017TransRev!AB25 -> 0 | AC25: =Est2017TransRev!AC25 -> 0 | AD25: =Est2017TransRev!AD25 -> 0 | AF25: 31707.84324 | AG25: 0 | AH25: 0 | AI25: 0 | AJ25: 0 | AK25: 0 | AL25: 0 | AM25: 0 | AN25: 0 | AO25: 0 | AP25: 0 | AQ25: 0 | AR25: 0 | AS25: 31707.84324
B26: =Est2017TransRev!B26 -> TOU | D26: 6.247 | E26: 0 | F26: 0 | G26: 0 | H26: 0 | I26: 0 | J26: 0 | K26: 0 | L26: 0 | M26: 0 | N26: 0 | O26: 0 | P26: 0 | R26: =Est2017TransRev!R26 -> 69979.84775 | S26: =Est2017TransRev!S26 -> 0 | T26: =Est2017TransRev!T26 -> 0 | U26: =Est2017TransRev!U26 -> 4185987.602 | V26: =Est2017TransRev!V26 -> 0 | W26: =Est2017TransRev!W26 -> 0 | X26: =Est2017TransRev!X26 -> 6328508.68 | Y26: =Est2017TransRev!Y26 -> 7803457.309 | Z26: =Est2017TransRev!Z26 -> 0 | AA26: =Est2017TransRev!AA26 -> 0 | AB26: =Est2017TransRev!AB26 -> 1107863.227 | AC26: =Est2017TransRev!AC26 -> 0 | AD26: =Est2017TransRev!AD26 -> 0 | AF26: 4371.641089 | AG26: 0 | AH26: 0 | AI26: 0 | AJ26: 0 | AK26: 0 | AL26: 0 | AM26: 0 | AN26: 0 | AO26: 0 | AP26: 0 | AQ26: 0 | AR26: 0 | AS26: 4371.641089
B27: =Est2017TransRev!B27 -> TODFLEX | D27: 6.247 | E27: 0 | F27: 0 | G27: 0 | H27: 0 | I27: 0 | J27: 0 | K27: 0 | L27: 0 | M27: 0 | N27: 0 | O27: 0 | P27: 0 | R27: =Est2017TransRev!R27 -> 737072.0053 | S27: =Est2017TransRev!S27 -> 0 | T27: =Est2017TransRev!T27 -> 1783010.147 | U27: =Est2017TransRev!U27 -> 906586.5433 | V27: =Est2017TransRev!V27 -> 0 | W27: =Est2017TransRev!W27 -> 0 | X27: =Est2017TransRev!X27 -> 1458281.754 | Y27: =Est2017TransRev!Y27 -> 3606690.18 | Z27: =Est2017TransRev!Z27 -> 3051735.809 | AA27: =Est2017TransRev!AA27 -> 0 | AB27: =Est2017TransRev!AB27 -> 0 | AC27: =Est2017TransRev!AC27 -> 0 | AD27: =Est2017TransRev!AD27 -> 0 | AF27: 46044.88817 | AG27: 0 | AH27: 0 | AI27: 0 | AJ27: 0 | AK27: 0 | AL27: 0 | AM27: 0 | AN27: 0 | AO27: 0 | AP27: 0 | AQ27: 0 | AR27: 0 | AS27: 46044.88817
B28: =Est2017TransRev!B28 -> Low Voltage KW 1 rate | D28: 6.247 | E28: 0 | F28: 0 | G28: 0 | H28: 0 | I28: 0 | J28: 0 | K28: 0 | L28: 0 | M28: 0 | N28: 0 | O28: 0 | P28: 0 | R28: =Est2017TransRev!R28 -> 1144.166667 | S28: =Est2017TransRev!S28 -> 0 | T28: =Est2017TransRev!T28 -> 0 | U28: =Est2017TransRev!U28 -> 8858.602203 | V28: =Est2017TransRev!V28 -> 0 | W28: =Est2017TransRev!W28 -> 0 | X28: =Est2017TransRev!X28 -> 15647.93247 | Y28: =Est2017TransRev!Y28 -> 0 | Z28: =Est2017TransRev!Z28 -> 0 | AA28: =Est2017TransRev!AA28 -> 0 | AB28: =Est2017TransRev!AB28 -> 0 | AC28: =Est2017TransRev!AC28 -> 2496.3872 | AD28: =Est2017TransRev!AD28 -> 5053.389136 | AF28: 71.47609167 | AG28: 0 | AH28: 0 | AI28: 0 | AJ28: 0 | AK28: 0 | AL28: 0 | AM28: 0 | AN28: 0 | AO28: 0 | AP28: 0 | AQ28: 0 | AR28: 0 | AS28: 71.47609167
B29: =Est2017TransRev!B29 -> Low voltage medium KW time of use (opt-in) | D29: 6.247 | E29: 0 | F29: 0 | G29: 0 | H29: 0 | I29: 0 | J29: 0 | K29: 0 | L29: 0 | M29: 0 | N29: 0 | O29: 0 | P29: 0 | R29: =Est2017TransRev!R29 -> 47608.16667 | S29: =Est2017TransRev!S29 -> 0 | T29: =Est2017TransRev!T29 -> 0 | U29: =Est2017TransRev!U29 -> 4039834.912 | V29: =Est2017TransRev!V29 -> 0 | W29: =Est2017TransRev!W29 -> 0 | X29: =Est2017TransRev!X29 -> 10179811.63 | Y29: =Est2017TransRev!Y29 -> 0 | Z29: =Est2017TransRev!Z29 -> 0 | AA29: =Est2017TransRev!AA29 -> 0 | AB29: =Est2017TransRev!AB29 -> 0 | AC29: =Est2017TransRev!AC29 -> 250018.8879 | AD29: =Est2017TransRev!AD29 -> 1076707.631 | AF29: 2974.082172 | AG29: 0 | AH29: 0 | AI29: 0 | AJ29: 0 | AK29: 0 | AL29: 0 | AM29: 0 | AN29: 0 | AO29: 0 | AP29: 0 | AQ29: 0 | AR29: 0 | AS29: 2974.082172
B30: =Est2017TransRev!B30 -> Low voltage medium KW 1 rate (mandatory) | D30: 6.247 | E30: 0 | F30: 0 | G30: 0 | H30: 0 | I30: 0 | J30: 0 | K30: 0 | L30: 0 | M30: 0 | N30: 0 | O30: 0 | P30: 0 | R30: =Est2017TransRev!R30 -> 887309.8635 | S30: =Est2017TransRev!S30 -> 0 | T30: =Est2017TransRev!T30 -> 0 | U30: =Est2017TransRev!U30 -> 291747036.8 | V30: =Est2017TransRev!V30 -> 0 | W30: =Est2017TransRev!W30 -> 0 | X30: =Est2017TransRev!X30 -> 385398691.4 | Y30: =Est2017TransRev!Y30 -> 0 | Z30: =Est2017TransRev!Z30 -> 0 | AA30: =Est2017TransRev!AA30 -> 0 | AB30: =Est2017TransRev!AB30 -> 0 | AC30: =Est2017TransRev!AC30 -> 26661191.23 | AD30: =Est2017TransRev!AD30 -> 47275303.63 | AF30: 55430.24717 | AG30: 0 | AH30: 0 | AI30: 0 | AJ30: 0 | AK30: 0 | AL30: 0 | AM30: 0 | AN30: 0 | AO30: 0 | AP30: 0 | AQ30: 0 | AR30: 0 | AS30: 55430.24717
AF31: 0 | AG31: 0 | AH31: 0 | AI31: 0 | AJ31: 0 | AK31: 0 | AL31: 0 | AM31: 0 | AN31: 0 | AO31: 0 | AP31: 0 | AQ31: 0 | AR31: 0 | AS31: 0
AF32: 0 | AG32: 0 | AH32: 0 | AI32: 0 | AJ32: 0 | AK32: 0 | AL32: 0 | AM32: 0 | AN32: 0 | AO32: 0 | AP32: 0 | AQ32: 0 | AR32: 0 | AS32: 0
AF33: 0 | AG33: 0 | AH33: 0 | AI33: 0 | AJ33: 0 | AK33: 0 | AL33: 0 | AM33: 0 | AN33: 0 | AO33: 0 | AP33: 0 | AQ33: 0 | AR33: 0 | AS33: 0
AF34: 0 | AG34: 0 | AH34: 0 | AI34: 0 | AJ34: 0 | AK34: 0 | AL34: 0 | AM34: 0 | AN34: 0 | AO34: 0 | AP34: 0 | AQ34: 0 | AR34: 0 | AS34: 0
AF35: 0 | AG35: 0 | AH35: 0 | AI35: 0 | AJ35: 0 | AK35: 0 | AL35: 0 | AM35: 0 | AN35: 0 | AO35: 0 | AP35: 0 | AQ35: 0 | AR35: 0 | AS35: 0
AF36: 0 | AG36: 0 | AH36: 0 | AI36: 0 | AJ36: 0 | AK36: 0 | AL36: 0 | AM36: 0 | AN36: 0 | AO36: 0 | AP36: 0 | AQ36: 0 | AR36: 0 | AS36: 0
AF37: 0 | AG37: 0 | AH37: 0 | AI37: 0 | AJ37: 0 | AK37: 0 | AL37: 0 | AM37: 0 | AN37: 0 | AO37: 0 | AP37: 0 | AQ37: 0 | AR37: 0 | AS37: 0
AF38: 0 | AG38: 0 | AH38: 0 | AI38: 0 | AJ38: 0 | AK38: 0 | AL38: 0 | AM38: 0 | AN38: 0 | AO38: 0 | AP38: 0 | AQ38: 0 | AR38: 0 | AS38: 0
AF39: 0 | AG39: 0 | AH39: 0 | AI39: 0 | AJ39: 0 | AK39: 0 | AL39: 0 | AM39: 0 | AN39: 0 | AO39: 0 | AP39: 0 | AQ39: 0 | AR39: 0 | AS39: 0
AF40: 0 | AG40: 0 | AH40: 0 | AI40: 0 | AJ40: 0 | AK40: 0 | AL40: 0 | AM40: 0 | AN40: 0 | AO40: 0 | AP40: 0 | AQ40: 0 | AR40: 0 | AS40: 0
AF41: 0 | AG41: 0 | AH41: 0 | AI41: 0 | AJ41: 0 | AK41: 0 | AL41: 0 | AM41: 0 | AN41: 0 | AO41: 0 | AP41: 0 | AQ41: 0 | AR41: 0 | AS41: 0
AF42: 0 | AG42: 0 | AH42: 0 | AI42: 0 | AJ42: 0 | AK42: 0 | AL42: 0 | AM42: 0 | AN42: 0 | AO42: 0 | AP42: 0 | AQ42: 0 | AR42: 0 | AS42: 0
AF43: 0 | AG43: 0 | AH43: 0 | AI43: 0 | AJ43: 0 | AK43: 0 | AL43: 0 | AM43: 0 | AN43: 0 | AO43: 0 | AP43: 0 | AQ43: 0 | AR43: 0 | AS43: 0
AF44: 0 | AG44: 0 | AH44: 0 | AI44: 0 | AJ44: 0 | AK44: 0 | AL44: 0 | AM44: 0 | AN44: 0 | AO44: 0 | AP44: 0 | AQ44: 0 | AR44: 0 | AS44: 0
AF45: 0 | AG45: 0 | AH45: 0 | AI45: 0 | AJ45: 0 | AK45: 0 | AL45: 0 | AM45: 0 | AN45: 0 | AO45: 0 | AP45: 0 | AQ45: 0 | AR45: 0 | AS45: 0
AF46: 0 | AG46: 0 | AH46: 0 | AI46: 0 | AJ46: 0 | AK46: 0 | AL46: 0 | AM46: 0 | AN46: 0 | AO46: 0 | AP46: 0 | AQ46: 0 | AR46: 0 | AS46: 0
AF47: 0 | AG47: 0 | AH47: 0 | AI47: 0 | AJ47: 0 | AK47: 0 | AL47: 0 | AM47: 0 | AN47: 0 | AO47: 0 | AP47: 0 | AQ47: 0 | AR47: 0 | AS47: 0
AF48: 0 | AG48: 0 | AH48: 0 | AI48: 0 | AJ48: 0 | AK48: 0 | AL48: 0 | AM48: 0 | AN48: 0 | AO48: 0 | AP48: 0 | AQ48: 0 | AR48: 0 | AS48: 0
AF49: 0 | AG49: 0 | AH49: 0 | AI49: 0 | AJ49: 0 | AK49: 0 | AL49: 0 | AM49: 0 | AN49: 0 | AO49: 0 | AP49: 0 | AQ49: 0 | AR49: 0 | AS49: 0
AF50: 0 | AG50: 0 | AH50: 0 | AI50: 0 | AJ50: 0 | AK50: 0 | AL50: 0 | AM50: 0 | AN50: 0 | AO50: 0 | AP50: 0 | AQ50: 0 | AR50: 0 | AS50: 0
AF51: 0 | AG51: 0 | AH51: 0 | AI51: 0 | AJ51: 0 | AK51: 0 | AL51: 0 | AM51: 0 | AN51: 0 | AO51: 0 | AP51: 0 | AQ51: 0 | AR51: 0 | AS51: 0
AF52: 0 | AG52: 0 | AH52: 0 | AI52: 0 | AJ52: 0 | AK52: 0 | AL52: 0 | AM52: 0 | AN52: 0 | AO52: 0 | AP52: 0 | AQ52: 0 | AR52: 0 | AS52: 0
AF53: 0 | AG53: 0 | AH53: 0 | AI53: 0 | AJ53: 0 | AK53: 0 | AL53: 0 | AM53: 0 | AN53: 0 | AO53: 0 | AP53: 0 | AQ53: 0 | AR53: 0 | AS53: 0
AF54: 0 | AG54: 0 | AH54: 0 | AI54: 0 | AJ54: 0 | AK54: 0 | AL54: 0 | AM54: 0 | AN54: 0 | AO54: 0 | AP54: 0 | AQ54: 0 | AR54: 0 | AS54: 0
AF55: 0 | AG55: 0 | AH55: 0 | AI55: 0 | AJ55: 0 | AK55: 0 | AL55: 0 | AM55: 0 | AN55: 0 | AO55: 0 | AP55: 0 | AQ55: 0 | AR55: 0 | AS55: 0
AF56: 0 | AG56: 0 | AH56: 0 | AI56: 0 | AJ56: 0 | AK56: 0 | AL56: 0 | AM56: 0 | AN56: 0 | AO56: 0 | AP56: 0 | AQ56: 0 | AR56: 0 | AS56: 0
AF57: 0 | AG57: 0 | AH57: 0 | AI57: 0 | AJ57: 0 | AK57: 0 | AL57: 0 | AM57: 0 | AN57: 0 | AO57: 0 | AP57: 0 | AQ57: 0 | AR57: 0 | AS57: 0
AF58: 0 | AG58: 0 | AH58: 0 | AI58: 0 | AJ58: 0 | AK58: 0 | AL58: 0 | AM58: 0 | AN58: 0 | AO58: 0 | AP58: 0 | AQ58: 0 | AR58: 0 | AS58: 0
AF59: 0 | AG59: 0 | AH59: 0 | AI59: 0 | AJ59: 0 | AK59: 0 | AL59: 0 | AM59: 0 | AN59: 0 | AO59: 0 | AP59: 0 | AQ59: 0 | AR59: 0 | AS59: 0
AF60: 0 | AG60: 0 | AH60: 0 | AI60: 0 | AJ60: 0 | AK60: 0 | AL60: 0 | AM60: 0 | AN60: 0 | AO60: 0 | AP60: 0 | AQ60: 0 | AR60: 0 | AS60: 0
AF61: 0 | AG61: 0 | AH61: 0 | AI61: 0 | AJ61: 0 | AK61: 0 | AL61: 0 | AM61: 0 | AN61: 0 | AO61: 0 | AP61: 0 | AQ61: 0 | AR61: 0 | AS61: 0
AF62: 0 | AG62: 0 | AH62: 0 | AI62: 0 | AJ62: 0 | AK62: 0 | AL62: 0 | AM62: 0 | AN62: 0 | AO62: 0 | AP62: 0 | AQ62: 0 | AR62: 0 | AS62: 0
AF63: 0 | AG63: 0 | AH63: 0 | AI63: 0 | AJ63: 0 | AK63: 0 | AL63: 0 | AM63: 0 | AN63: 0 | AO63: 0 | AP63: 0 | AQ63: 0 | AR63: 0 | AS63: 0
AF64: 0 | AG64: 0 | AH64: 0 | AI64: 0 | AJ64: 0 | AK64: 0 | AL64: 0 | AM64: 0 | AN64: 0 | AO64: 0 | AP64: 0 | AQ64: 0 | AR64: 0 | AS64: 0
AF65: 0 | AG65: 0 | AH65: 0 | AI65: 0 | AJ65: 0 | AK65: 0 | AL65: 0 | AM65: 0 | AN65: 0 | AO65: 0 | AP65: 0 | AQ65: 0 | AR65: 0 | AS65: 0
R66: =SUM(R6:R65) -> 239743213.3 | S66: 1064360535 | T66: 14929314.24 | U66: 1069405241 | V66: 1747906054 | W66: 0 | X66: 1487630595 | Y66: 2346889811 | Z66: 29299372.72 | AA66: 432534112.5 | AB66: 129973762.5 | AC66: 26913706.5 | AD66: 48357064.65 | AF66: =SUM(AF6:AF65) -> 14901266.01 | AG66: 0 | AH66: 0 | AI66: 0 | AJ66: 0 | AK66: 0 | AL66: 0 | AM66: =SUM(AM6:AM65) -> 0 | AN66: 0 | AO66: 0 | AP66: 0 | AQ66: 0 | AR66: 0 | AS66: 14901266.01

Sheet 2018JSRevCont
B2: ="Tariff Approval - "&'Model update'!$C$3 -> Tariff Approval - United Energy
B4: Jurisdictional Scheme Amounts (JSA)
B6: Year (t) | C6: ='Model update'!C5 -> 2018
B8: Table 1- Compliance with JSA Revenue Formula
B9: Revenue from Jurisdictional Scheme Amounts charges for year t | C9: =Prop2018JSTar!AS66 -> 13394244.59
B10: Total JSA related payments for year t | C10: =C17 -> 13394244.59
C11: =IF(C9="","",IF(C10>=C9,"JSA REVENUE FORMULA COMPLIANT","JSA REVENUE FORMULA BREACHED")) -> JSA REVENUE FORMULA COMPLIANT
B13: Table 2 - Total JSA related payments for year t
B14: PFIT & TFIT charges for year t | C14: =C22 -> 15058465.41
B15: JSA revenue under/over recovery approved | C15: =E45 -> -1664220.82
B16: JSA revenue under/over recovery for years 2014 and 2015
B17: Total JSA related payments for year t | C17: =SUM(C14:C16) -> 13394244.59
B19: Table 3 - PFIT & TFIT charges for year t
B20: PFIT | C20: 15058465.41
B21: TFIT | C21: 0
B22: PFIT & TFIT charges | C22: =SUM(C20:C21) -> 15058465.41
B27: Table 4 - JSA Recovery Arrangements
C28: Year t-2 | D28: Year t-1 | E28: Year t
C29: (actual) | D29: (estimate) | E29: (forecast)
C30: =D30-1 -> 2016 | D30: =E30-1 -> 2017 | E30: =C$6 -> 2018
B32: (A) Revenue from JSA proposal charges | C32: 20899860.49 | D32: =Est2017JSRev!AS66 -> 14901266.01 | E32: =C9 -> 13394244.59
B35: (B) Less Total JSA related payments = | C35: =SUM(C37:C39) -> 20584874.6 | D35: =SUM(D37:D39) -> 13652725.4 | E35: =SUM(E37:E39) -> 15058465.41
B37: + JSA revenue under/over recovery for years 2014 and 2015 | C37: 3260108.955 | D37: 317074.7929 | E37: =C16 -> 0
B39: +PFIT & TFIT charges = | C39: =SUM(C40:C41) -> 17324765.64 | D39: =SUM(D40:D41) -> 13335650.6 | E39: =SUM(E40:E41) -> 15058465.41
B40: +PFIT amount | C40: ='JS cost audit template'!F4 -> 12466346.64 | D40: 13335650.6 | E40: =C20 -> 15058465.41
B41: +TFIT amount | C41: ='JS cost audit template'!F5 -> 4858419 | D41: 0 | E41: =C21 -> 0
B45: (A minus B) Under/over recovery of revenue for regulatory year | C45: =C32-C35 -> 314985.8949 | D45: =D32-D35 -> 1248540.608 | E45: =E32-E35 -> -1664220.82
B49: Table 5 - JSA Unders and Overs Account
C50: Year t-2 | D50: Year t-1 | E50: Year t
C51: (actual) | D51: (estimate) | E51: (forecast)
B52: Calendar year | C52: =D52-1 -> 2016 | D52: =E52-1 -> 2017 | E52: =C$6 -> 2018
B54: Nominal WACC | C54: =(1+'Model update'!$B$47)*(1+'Model update'!$C$28)-1 -> 0.05523158166 | D54: =(1+'Model update'!$B$45)*(1+'Model update'!$C$29)-1 -> 0.04959444983 | E54: =(1+'Model update'!$B$43)*(1+'Model update'!$C$30)-1 -> 0.0584712416
B56: Opening balance | C56: 0 | D56: =C60 -> 323567.577 | E56: =D60 -> 1618741.052
B57: Interest on Opening balance | C57: =C56*C54 -> 0 | D57: =D56*D54 -> 16047.15596 | E57: =E56*E54 -> 94649.79914
B58: Under/over recovery of revenue for regulatory year | C58: =C45 -> 314985.8949 | D58: =D45 -> 1248540.608 | E58: =E45 -> -1664220.82
B59: Interest on under/over recovery for regulatory year | C59: =C58*((1+C54)^0.5-1) -> 8581.682103 | D59: =D58*((1+D54)^0.5-1) -> 30585.71061 | E59: =E58*((1+E54)^0.5-1) -> -47963.36911
B60: Closing balance of JSA overs/ (unders) account | C60: =SUM(C56:C59) -> 323567.577 | D60: =SUM(D56:D59) -> 1618741.052 | E60: =SUM(E56:E59) -> 1206.661751
B62: The DNSP is expected to achieve a closing balance as close to zero as practicable in its jurisdictional scheme amount unders and overs account in each forecast year in its annual pricing proposals in the 2016–20 regulatory control period.

Sheet JS cost audit template
B1: ="Tariff Approval - "&'Model update'!C3 -> Tariff Approval - United Energy
B2: Jurisdictional scheme amounts | F2: t-2 actual
B4: PFIT | F4: 12466346.64
B5: TFIT | F5: 4858419
E7: Total | F7: =SUM(F3:F6) -> 17324765.64
B10: Where the following definitions apply
B11: PFIT | C11: Premium feed-in tariff payments
B12: TFIT | C12: Transitional feed-in tariff payments

Sheet Prop2018TSSComp
B1: ="Tariff Approval - "&'Model update'!$C$3 -> Tariff Approval - United Energy
B3: ="COMPARISON OF "&'Model update'!$C$5&" PROPOSED AND TSS INDICATIVE DISTRIBUTION TARIFFS" -> COMPARISON OF 2018 PROPOSED AND TSS INDICATIVE DISTRIBUTION TARIFFS | AT3: Materiality threshold
D4: ="Proposed NUOS Tariffs (Pt) for "&'Model update'!$C$5 -> Proposed NUOS Tariffs (Pt) for 2018 | R4: ="TSS indicative tariffs for "&'Model update'!$C$5 -> TSS indicative tariffs for 2018 | AG4: ="Percentage difference between proposed "&'Model update'!$C$5&" tariffs and indecative TSS tariffs" -> Percentage difference between proposed 2018 tariffs and indecative TSS tariffs | AT4: 0.15
B5: TSS name | C5: Proposal name | D5: PropTar Fixed | E5: PropTar PkBlk1 | F5: PropTar PkBlk2 | G5: PropTar PkBlk3 | H5: PropTar PkBlk4 | I5: PropTar OPkBlk1 | J5: PropTar OPkBlk2 | K5: PropTar OPkBlk3 | L5: PropTar OPkBlk4 | M5: PropTar DemBlk1 | N5: PropTar DemBlk2 | O5: PropTar DemBlk3 | P5: PropTar DemBlk4 | R5: IndTar Fixed | S5: IndTar PkBlk1 | T5: IndTar PkBlk2 | U5: IndTar PkBlk3 | V5: IndTar PkBlk4 | W5: IndTar OPkBlk1 | X5: IndTar OPkBlk2 | Y5: IndTar OPkBlk3 | Z5: IndTar OPkBlk4 | AA5: IndTar DemBlk1 | AB5: IndTar DemBlk2 | AC5: IndTar DemBlk3 | AD5: IndTar DemBlk4 | AG5: Fixed | AH5: PkBlk1 | AI5: PkBlk2 | AJ5: PkBlk3 | AK5: PkBlk4 | AL5: OPkBlk1 | AM5: OPkBlk2 | AN5: OPkBlk3 | AO5: OPkBlk4 | AP5: DemBlk1 | AQ5: DemBlk2 | AR5: DemBlk3 | AS5: DemBlk4 | AT5: Explanation required?
B6: Low voltage small 1 rate | C6: =Prop2018DistTar!C6 -> Low voltage small 1 rate | D6: =SUM(Prop2018DistTar!D6,Prop2018TransTar!D6) -> 6.865 | E6: =SUM(Prop2018DistTar!E6,Prop2018TransTar!E6) -> 10.22 | F6: =SUM(Prop2018DistTar!F6,Prop2018TransTar!F6) -> 0 | G6: =SUM(Prop2018DistTar!G6,Prop2018TransTar!G6) -> 0 | H6: =SUM(Prop2018DistTar!H6,Prop2018TransTar!H6) -> 6.916 | I6: =SUM(Prop2018DistTar!I6,Prop2018TransTar!I6) -> 0 | J6: =SUM(Prop2018DistTar!J6,Prop2018TransTar!J6) -> 0 | K6: =SUM(Prop2018DistTar!K6,Prop2018TransTar!K6) -> 0 | L6: =SUM(Prop2018DistTar!L6,Prop2018TransTar!L6) -> 0 | M6: =SUM(Prop2018DistTar!M6,Prop2018TransTar!M6) -> 0 | N6: =SUM(Prop2018DistTar!N6,Prop2018TransTar!N6) -> 0 | O6: =SUM(Prop2018DistTar!O6,Prop2018TransTar!O6) -> 0 | P6: =SUM(Prop2018DistTar!P6,Prop2018TransTar!P6) -> 0 | R6: 6.136 | S6: 10.248 | V6: 7.056 | AG6: =IFERROR(D6/R6-1,0) -> 0.1188070404 | AH6: =IFERROR(E6/S6-1,0) -> -0.002732240437 | AI6: =IFERROR(F6/T6-1,0) -> 0 | AJ6: =IFERROR(G6/U6-1,0) -> 0 | AK6: =IFERROR(H6/V6-1,0) -> -0.01984126984 | AL6: =IFERROR(I6/W6-1,0) -> 0 | AM6: =IFERROR(J6/X6-1,0) -> 0 | AN6: =IFERROR(K6/Y6-1,0) -> 0 | AO6: =IFERROR(L6/Z6-1,0) -> 0 | AP6: =IFERROR(M6/AA6-1,0) -> 0 | AQ6: =IFERROR(N6/AB6-1,0) -> 0 | AR6: =IFERROR(O6/AC6-1,0) -> 0 | AS6: =IFERROR(P6/AD6-1,0) -> 0 | AT6: =IF(MAX(ABS(AG6:AS6))>$AT$4,"EXPLAIN","") -> 
B7: Winter Energy Tariff | C7: =Prop2018DistTar!C7 -> Winter economy tariff | D7: =SUM(Prop2018DistTar!D7,Prop2018TransTar!D7) -> 8.841 | E7: =SUM(Prop2018DistTar!E7,Prop2018TransTar!E7) -> 8.557 | F7: =SUM(Prop2018DistTar!F7,Prop2018TransTar!F7) -> 0 | G7: =SUM(Prop2018DistTar!G7,Prop2018TransTar!G7) -> 0 | H7: =SUM(Prop2018DistTar!H7,Prop2018TransTar!H7) -> 6.456 | I7: =SUM(Prop2018DistTar!I7,Prop2018TransTar!I7) -> 3.402 | J7: =SUM(Prop2018DistTar!J7,Prop2018TransTar!J7) -> 0 | K7: =SUM(Prop2018DistTar!K7,Prop2018TransTar!K7) -> 0 | L7: =SUM(Prop2018DistTar!L7,Prop2018TransTar!L7) -> 0 | M7: =SUM(Prop2018DistTar!M7,Prop2018TransTar!M7) -> 0 | N7: =SUM(Prop2018DistTar!N7,Prop2018TransTar!N7) -> 0 | O7: =SUM(Prop2018DistTar!O7,Prop2018TransTar!O7) -> 0 | P7: =SUM(Prop2018DistTar!P7,Prop2018TransTar!P7) -> 0 | R7: 7.903 | S7: 8.561 | V7: 6.5 | W7: 3.77 | AG7: 0.1186891054 | AH7: -0.0004672351361 | AI7: 0 | AJ7: 0 | AK7: -0.006769230769 | AL7: -0.0976127321 | AM7: 0 | AN7: 0 | AO7: 0 | AP7: 0 | AQ7: 0 | AR7: 0 | AS7: 0 | AT7: =IF(MAX(ABS(AG7:AS7))>$AT$4,"EXPLAIN","") -> 
B8: Reverse cycle airconditioning time of use | C8: =Prop2018DistTar!C8 -> Reverse cycle airconditioning time of use | D8: =SUM(Prop2018DistTar!D8,Prop2018TransTar!D8) -> 0 | E8: =SUM(Prop2018DistTar!E8,Prop2018TransTar!E8) -> 0 | F8: =SUM(Prop2018DistTar!F8,Prop2018TransTar!F8) -> 0 | G8: =SUM(Prop2018DistTar!G8,Prop2018TransTar!G8) -> 0 | H8: =SUM(Prop2018DistTar!H8,Prop2018TransTar!H8) -> 0 | I8: =SUM(Prop2018DistTar!I8,Prop2018TransTar!I8) -> 0 | J8: =SUM(Prop2018DistTar!J8,Prop2018TransTar!J8) -> 0 | K8: =SUM(Prop2018DistTar!K8,Prop2018TransTar!K8) -> 0 | L8: =SUM(Prop2018DistTar!L8,Prop2018TransTar!L8) -> 0 | M8: =SUM(Prop2018DistTar!M8,Prop2018TransTar!M8) -> 0 | N8: =SUM(Prop2018DistTar!N8,Prop2018TransTar!N8) -> 0 | O8: =SUM(Prop2018DistTar!O8,Prop2018TransTar!O8) -> 0 | P8: =SUM(Prop2018DistTar!P8,Prop2018TransTar!P8) -> 0 | U8: 23.198 | X8: 5.313 | Y8: 1.265 | AB8: 75.82 | AG8: 0 | AH8: 0 | AI8: 0 | AJ8: -1 | AK8: 0 | AL8: 0 | AM8: -1 | AN8: -1 | AO8: 0 | AP8: 0 | AQ8: -1 | AR8: 0 | AS8: 0 | AT8: =IF(MAX(ABS(AG8:AS8))>$AT$4,"EXPLAIN","") -> EXPLAIN | AU8: Tariff discontinued in 2018
B9: Low voltage small 2 rate | C9: =Prop2018DistTar!C9 -> Low voltage small 2 rate | D9: =SUM(Prop2018DistTar!D9,Prop2018TransTar!D9) -> 14.02 | E9: =SUM(Prop2018DistTar!E9,Prop2018TransTar!E9) -> 0 | F9: =SUM(Prop2018DistTar!F9,Prop2018TransTar!F9) -> 0 | G9: =SUM(Prop2018DistTar!G9,Prop2018TransTar!G9) -> 13.01 | H9: =SUM(Prop2018DistTar!H9,Prop2018TransTar!H9) -> 0 | I9: =SUM(Prop2018DistTar!I9,Prop2018TransTar!I9) -> 0 | J9: =SUM(Prop2018DistTar!J9,Prop2018TransTar!J9) -> 9.991 | K9: =SUM(Prop2018DistTar!K9,Prop2018TransTar!K9) -> 1.745 | L9: =SUM(Prop2018DistTar!L9,Prop2018TransTar!L9) -> 0 | M9: =SUM(Prop2018DistTar!M9,Prop2018TransTar!M9) -> 0 | N9: =SUM(Prop2018DistTar!N9,Prop2018TransTar!N9) -> 0 | O9: =SUM(Prop2018DistTar!O9,Prop2018TransTar!O9) -> 0 | P9: =SUM(Prop2018DistTar!P9,Prop2018TransTar!P9) -> 0 | R9: 12.533 | U9: 12.999 | X9: 10.027 | Y9: 1.56 | AG9: 0.1186467725 | AH9: 0 | AI9: 0 | AJ9: 0.0008462189399 | AK9: 0 | AL9: 0 | AM9: -0.003590306173 | AN9: 0.1185897436 | AO9: 0 | AP9: 0 | AQ9: 0 | AR9: 0 | AS9: 0 | AT9: =IF(MAX(ABS(AG9:AS9))>$AT$4,"EXPLAIN","") -> 
B10: Dedicated circuit | C10: =Prop2018DistTar!C10 -> Dedicated circuit | D10: =SUM(Prop2018DistTar!D10,Prop2018TransTar!D10) -> 0 | E10: =SUM(Prop2018DistTar!E10,Prop2018TransTar!E10) -> 0 | F10: =SUM(Prop2018DistTar!F10,Prop2018TransTar!F10) -> 0 | G10: =SUM(Prop2018DistTar!G10,Prop2018TransTar!G10) -> 0 | H10: =SUM(Prop2018DistTar!H10,Prop2018TransTar!H10) -> 0 | I10: =SUM(Prop2018DistTar!I10,Prop2018TransTar!I10) -> 0 | J10: =SUM(Prop2018DistTar!J10,Prop2018TransTar!J10) -> 0 | K10: =SUM(Prop2018DistTar!K10,Prop2018TransTar!K10) -> 1.931 | L10: =SUM(Prop2018DistTar!L10,Prop2018TransTar!L10) -> 0 | M10: =SUM(Prop2018DistTar!M10,Prop2018TransTar!M10) -> 0 | N10: =SUM(Prop2018DistTar!N10,Prop2018TransTar!N10) -> 0 | O10: =SUM(Prop2018DistTar!O10,Prop2018TransTar!O10) -> 0 | P10: =SUM(Prop2018DistTar!P10,Prop2018TransTar!P10) -> 0 | Y10: 1.726 | AG10: 0 | AH10: 0 | AI10: 0 | AJ10: 0 | AK10: 0 | AL10: 0 | AM10: 0 | AN10: 0.1187717265 | AO10: 0 | AP10: 0 | AQ10: 0 | AR10: 0 | AS10: 0 | AT10: =IF(MAX(ABS(AG10:AS10))>$AT$4,"EXPLAIN","") -> 
B11: Low voltage medium 1 rate | C11: =Prop2018DistTar!C11 -> Low voltage medium 1 rate | D11: =SUM(Prop2018DistTar!D11,Prop2018TransTar!D11) -> 11.652 | E11: =SUM(Prop2018DistTar!E11,Prop2018TransTar!E11) -> 12.303 | F11: =SUM(Prop2018DistTar!F11,Prop2018TransTar!F11) -> 0 | G11: =SUM(Prop2018DistTar!G11,Prop2018TransTar!G11) -> 0 | H11: =SUM(Prop2018DistTar!H11,Prop2018TransTar!H11) -> 8.038 | I11: =SUM(Prop2018DistTar!I11,Prop2018TransTar!I11) -> 0 | J11: =SUM(Prop2018DistTar!J11,Prop2018TransTar!J11) -> 0 | K11: =SUM(Prop2018DistTar!K11,Prop2018TransTar!K11) -> 0 | L11: =SUM(Prop2018DistTar!L11,Prop2018TransTar!L11) -> 0 | M11: =SUM(Prop2018DistTar!M11,Prop2018TransTar!M11) -> 0 | N11: =SUM(Prop2018DistTar!N11,Prop2018TransTar!N11) -> 0 | O11: =SUM(Prop2018DistTar!O11,Prop2018TransTar!O11) -> 0 | P11: =SUM(Prop2018DistTar!P11,Prop2018TransTar!P11) -> 0 | R11: 10.557 | S11: 12.109 | V11: 8.05 | AG11: 0.1037226485 | AH11: 0.0160211413 | AI11: 0 | AJ11: 0 | AK11: -0.00149068323 | AL11: 0 | AM11: 0 | AN11: 0 | AO11: 0 | AP11: 0 | AQ11: 0 | AR11: 0 | AS11: 0 | AT11: =IF(MAX(ABS(AG11:AS11))>$AT$4,"EXPLAIN","") -> 
B12: Low voltage medium 2 rate 5 day | C12: =Prop2018DistTar!C12 -> Low voltage medium 2 rate 5 day | D12: =SUM(Prop2018DistTar!D12,Prop2018TransTar!D12) -> 22.303 | E12: =SUM(Prop2018DistTar!E12,Prop2018TransTar!E12) -> 0 | F12: =SUM(Prop2018DistTar!F12,Prop2018TransTar!F12) -> 0 | G12: =SUM(Prop2018DistTar!G12,Prop2018TransTar!G12) -> 12.616 | H12: =SUM(Prop2018DistTar!H12,Prop2018TransTar!H12) -> 0 | I12: =SUM(Prop2018DistTar!I12,Prop2018TransTar!I12) -> 0 | J12: =SUM(Prop2018DistTar!J12,Prop2018TransTar!J12) -> 9.544 | K12: =SUM(Prop2018DistTar!K12,Prop2018TransTar!K12) -> 2.022 | L12: =SUM(Prop2018DistTar!L12,Prop2018TransTar!L12) -> 0 | M12: =SUM(Prop2018DistTar!M12,Prop2018TransTar!M12) -> 0 | N12: =SUM(Prop2018DistTar!N12,Prop2018TransTar!N12) -> 0 | O12: =SUM(Prop2018DistTar!O12,Prop2018TransTar!O12) -> 0 | P12: =SUM(Prop2018DistTar!P12,Prop2018TransTar!P12) -> 0 | R12: 18.862 | U12: 11.269 | X12: 8.55 | Y12: 1.71 | AG12: 0.1824302831 | AH12: 0 | AI12: 0 | AJ12: 0.119531458 | AK12: 0 | AL12: 0 | AM12: 0.1162573099 | AN12: 0.1824561404 | AO12: 0 | AP12: 0 | AQ12: 0 | AR12: 0 | AS12: 0 | AT12: =IF(MAX(ABS(AG12:AS12))>$AT$4,"EXPLAIN","") -> EXPLAIN | AU12: see comment
B13: Low voltage medium 2 rate 5 day | C13: =Prop2018DistTar!C13 -> Low voltage medium 2 rate 7 day | D13: =SUM(Prop2018DistTar!D13,Prop2018TransTar!D13) -> 23.742 | E13: =SUM(Prop2018DistTar!E13,Prop2018TransTar!E13) -> 0 | F13: =SUM(Prop2018DistTar!F13,Prop2018TransTar!F13) -> 0 | G13: =SUM(Prop2018DistTar!G13,Prop2018TransTar!G13) -> 12.433 | H13: =SUM(Prop2018DistTar!H13,Prop2018TransTar!H13) -> 0 | I13: =SUM(Prop2018DistTar!I13,Prop2018TransTar!I13) -> 0 | J13: =SUM(Prop2018DistTar!J13,Prop2018TransTar!J13) -> 9.683 | K13: =SUM(Prop2018DistTar!K13,Prop2018TransTar!K13) -> 1.88 | L13: =SUM(Prop2018DistTar!L13,Prop2018TransTar!L13) -> 0 | M13: =SUM(Prop2018DistTar!M13,Prop2018TransTar!M13) -> 0 | N13: =SUM(Prop2018DistTar!N13,Prop2018TransTar!N13) -> 0 | O13: =SUM(Prop2018DistTar!O13,Prop2018TransTar!O13) -> 0 | P13: =SUM(Prop2018DistTar!P13,Prop2018TransTar!P13) -> 0 | R13: 20.651 | U13: 11.769 | X13: 9.187 | Y13: 1.635 | AG13: 0.1496779817 | AH13: 0 | AI13: 0 | AJ13: 0.05641940692 | AK13: 0 | AL13: 0 | AM13: 0.05398933275 | AN13: 0.1498470948 | AO13: 0 | AP13: 0 | AQ13: 0 | AR13: 0 | AS13: 0 | AT13: =IF(MAX(ABS(AG13:AS13))>$AT$4,"EXPLAIN","") ->  | AU13: see comment
B14: Unmetered supplies | C14: =Prop2018DistTar!C14 -> Unmetered supplies | D14: =SUM(Prop2018DistTar!D14,Prop2018TransTar!D14) -> 0 | E14: =SUM(Prop2018DistTar!E14,Prop2018TransTar!E14) -> 0 | F14: =SUM(Prop2018DistTar!F14,Prop2018TransTar!F14) -> 0 | G14: =SUM(Prop2018DistTar!G14,Prop2018TransTar!G14) -> 11.22 | H14: =SUM(Prop2018DistTar!H14,Prop2018TransTar!H14) -> 0 | I14: =SUM(Prop2018DistTar!I14,Prop2018TransTar!I14) -> 0 | J14: =SUM(Prop2018DistTar!J14,Prop2018TransTar!J14) -> 8.395 | K14: =SUM(Prop2018DistTar!K14,Prop2018TransTar!K14) -> 1.525 | L14: =SUM(Prop2018DistTar!L14,Prop2018TransTar!L14) -> 0 | M14: =SUM(Prop2018DistTar!M14,Prop2018TransTar!M14) -> 0 | N14: =SUM(Prop2018DistTar!N14,Prop2018TransTar!N14) -> 0 | O14: =SUM(Prop2018DistTar!O14,Prop2018TransTar!O14) -> 0 | P14: =SUM(Prop2018DistTar!P14,Prop2018TransTar!P14) -> 0 | U14: 11.313 | X14: 8.529 | Y14: 1.364 | AG14: 0 | AH14: 0 | AI14: 0 | AJ14: -0.008220631132 | AK14: 0 | AL14: 0 | AM14: -0.01571110329 | AN14: 0.1180351906 | AO14: 0 | AP14: 0 | AQ14: 0 | AR14: 0 | AS14: 0 | AT14: =IF(MAX(ABS(AG14:AS14))>$AT$4,"EXPLAIN","") -> 
B15: Low voltage large 1 rate | C15: =Prop2018DistTar!C15 -> Low voltage large 1 rate | D15: =SUM(Prop2018DistTar!D15,Prop2018TransTar!D15) -> 13.641 | E15: =SUM(Prop2018DistTar!E15,Prop2018TransTar!E15) -> 8.303 | F15: =SUM(Prop2018DistTar!F15,Prop2018TransTar!F15) -> 0 | G15: =SUM(Prop2018DistTar!G15,Prop2018TransTar!G15) -> 0 | H15: =SUM(Prop2018DistTar!H15,Prop2018TransTar!H15) -> 6.572 | I15: =SUM(Prop2018DistTar!I15,Prop2018TransTar!I15) -> 0 | J15: =SUM(Prop2018DistTar!J15,Prop2018TransTar!J15) -> 0 | K15: =SUM(Prop2018DistTar!K15,Prop2018TransTar!K15) -> 0 | L15: =SUM(Prop2018DistTar!L15,Prop2018TransTar!L15) -> 0 | M15: =SUM(Prop2018DistTar!M15,Prop2018TransTar!M15) -> 0 | N15: =SUM(Prop2018DistTar!N15,Prop2018TransTar!N15) -> 0 | O15: =SUM(Prop2018DistTar!O15,Prop2018TransTar!O15) -> 0 | P15: =SUM(Prop2018DistTar!P15,Prop2018TransTar!P15) -> 0 | R15: 11.676 | S15: 8.14 | T15: 0 | U15: 0 | V15: 6.451 | W15: 0 | X15: 0 | Y15: 0 | Z15: 0 | AA15: 0 | AB15: 0 | AC15: 0 | AD15: 0 | AG15: 0.1682939363 | AH15: 0.02002457002 | AI15: 0 | AJ15: 0 | AK15: 0.01875678189 | AL15: 0 | AM15: 0 | AN15: 0 | AO15: 0 | AP15: 0 | AQ15: 0 | AR15: 0 | AS15: 0 | AT15: =IF(MAX(ABS(AG15:AS15))>$AT$4,"EXPLAIN","") -> EXPLAIN | AU15: see comment
B16: Low voltage large 2 rate | C16: =Prop2018DistTar!C16 -> Low voltage large 2 rate | D16: =SUM(Prop2018DistTar!D16,Prop2018TransTar!D16) -> 19.678 | E16: =SUM(Prop2018DistTar!E16,Prop2018TransTar!E16) -> 0 | F16: =SUM(Prop2018DistTar!F16,Prop2018TransTar!F16) -> 0 | G16: =SUM(Prop2018DistTar!G16,Prop2018TransTar!G16) -> 11.36 | H16: =SUM(Prop2018DistTar!H16,Prop2018TransTar!H16) -> 0 | I16: =SUM(Prop2018DistTar!I16,Prop2018TransTar!I16) -> 0 | J16: =SUM(Prop2018DistTar!J16,Prop2018TransTar!J16) -> 9.042 | K16: =SUM(Prop2018DistTar!K16,Prop2018TransTar!K16) -> 1.861 | L16: =SUM(Prop2018DistTar!L16,Prop2018TransTar!L16) -> 0 | M16: =SUM(Prop2018DistTar!M16,Prop2018TransTar!M16) -> 0 | N16: =SUM(Prop2018DistTar!N16,Prop2018TransTar!N16) -> 0 | O16: =SUM(Prop2018DistTar!O16,Prop2018TransTar!O16) -> 0 | P16: =SUM(Prop2018DistTar!P16,Prop2018TransTar!P16) -> 0 | R16: 16.842 | S16: 0 | T16: 0 | U16: 10.518 | V16: 0 | W16: 0 | X16: 8.375 | Y16: 1.593 | Z16: 0 | AA16: 0 | AB16: 0 | AC16: 0 | AD16: 0 | AG16: 0.1683885524 | AH16: 0 | AI16: 0 | AJ16: 0.08005324206 | AK16: 0 | AL16: 0 | AM16: 0.07964179104 | AN16: 0.1682360326 | AO16: 0 | AP16: 0 | AQ16: 0 | AR16: 0 | AS16: 0 | AT16: =IF(MAX(ABS(AG16:AS16))>$AT$4,"EXPLAIN","") -> EXPLAIN | AU16: see comment
B17: Low voltage KW time of use | C17: =Prop2018DistTar!C17 -> Low voltage KW time of use | D17: =SUM(Prop2018DistTar!D17,Prop2018TransTar!D17) -> 0 | E17: =SUM(Prop2018DistTar!E17,Prop2018TransTar!E17) -> 0 | F17: =SUM(Prop2018DistTar!F17,Prop2018TransTar!F17) -> 0 | G17: =SUM(Prop2018DistTar!G17,Prop2018TransTar!G17) -> 10.567 | H17: =SUM(Prop2018DistTar!H17,Prop2018TransTar!H17) -> 0 | I17: =SUM(Prop2018DistTar!I17,Prop2018TransTar!I17) -> 0 | J17: =SUM(Prop2018DistTar!J17,Prop2018TransTar!J17) -> 6.545 | K17: =SUM(Prop2018DistTar!K17,Prop2018TransTar!K17) -> 2.075 | L17: =SUM(Prop2018DistTar!L17,Prop2018TransTar!L17) -> 0 | M17: =SUM(Prop2018DistTar!M17,Prop2018TransTar!M17) -> 0 | N17: =SUM(Prop2018DistTar!N17,Prop2018TransTar!N17) -> 50.395 | O17: =SUM(Prop2018DistTar!O17,Prop2018TransTar!O17) -> 0 | P17: =SUM(Prop2018DistTar!P17,Prop2018TransTar!P17) -> 0 | R17: 0 | U17: 9.492 | X17: 5.979 | Y17: 1.756 | AB17: 45.21 | AG17: 0 | AH17: 0 | AI17: 0 | AJ17: 0.1132532659 | AK17: 0 | AL17: 0 | AM17: 0.09466465964 | AN17: 0.1816628702 | AO17: 0 | AP17: 0 | AQ17: 0.1146870161 | AR17: 0 | AS17: 0 | AT17: =IF(MAX(ABS(AG17:AS17))>$AT$4,"EXPLAIN","") -> EXPLAIN | AU17: see comment
B18: Low voltage KW time of use - HOT | C18: =Prop2018DistTar!C18 -> Low voltage KW time of use - HOT | D18: =SUM(Prop2018DistTar!D18,Prop2018TransTar!D18) -> 0 | E18: =SUM(Prop2018DistTar!E18,Prop2018TransTar!E18) -> 0 | F18: =SUM(Prop2018DistTar!F18,Prop2018TransTar!F18) -> 0 | G18: =SUM(Prop2018DistTar!G18,Prop2018TransTar!G18) -> 8.665 | H18: =SUM(Prop2018DistTar!H18,Prop2018TransTar!H18) -> 0 | I18: =SUM(Prop2018DistTar!I18,Prop2018TransTar!I18) -> 0 | J18: =SUM(Prop2018DistTar!J18,Prop2018TransTar!J18) -> 6.688 | K18: =SUM(Prop2018DistTar!K18,Prop2018TransTar!K18) -> 1.753 | L18: =SUM(Prop2018DistTar!L18,Prop2018TransTar!L18) -> 0 | M18: =SUM(Prop2018DistTar!M18,Prop2018TransTar!M18) -> 0 | N18: =SUM(Prop2018DistTar!N18,Prop2018TransTar!N18) -> 76.399 | O18: =SUM(Prop2018DistTar!O18,Prop2018TransTar!O18) -> 0 | P18: =SUM(Prop2018DistTar!P18,Prop2018TransTar!P18) -> 0 | R18: 0 | U18: 7.979 | X18: 6.171 | Y18: 1.525 | AB18: 70.415 | AG18: 0 | AH18: 0 | AI18: 0 | AJ18: 0.08597568618 | AK18: 0 | AL18: 0 | AM18: 0.08377896613 | AN18: 0.1495081967 | AO18: 0 | AP18: 0 | AQ18: 0.08498189306 | AR18: 0 | AS18: 0 | AT18: =IF(MAX(ABS(AG18:AS18))>$AT$4,"EXPLAIN","") -> 
B19: Low voltage large KVA time of use | C19: =Prop2018DistTar!C19 -> Low voltage large KVA time of use | D19: =SUM(Prop2018DistTar!D19,Prop2018TransTar!D19) -> 0 | E19: =SUM(Prop2018DistTar!E19,Prop2018TransTar!E19) -> 0 | F19: =SUM(Prop2018DistTar!F19,Prop2018TransTar!F19) -> 0 | G19: =SUM(Prop2018DistTar!G19,Prop2018TransTar!G19) -> 2.308 | H19: =SUM(Prop2018DistTar!H19,Prop2018TransTar!H19) -> 0 | I19: =SUM(Prop2018DistTar!I19,Prop2018TransTar!I19) -> 0 | J19: =SUM(Prop2018DistTar!J19,Prop2018TransTar!J19) -> 1.915 | K19: =SUM(Prop2018DistTar!K19,Prop2018TransTar!K19) -> 1.18 | L19: =SUM(Prop2018DistTar!L19,Prop2018TransTar!L19) -> 0 | M19: =SUM(Prop2018DistTar!M19,Prop2018TransTar!M19) -> 17.875 | N19: =SUM(Prop2018DistTar!N19,Prop2018TransTar!N19) -> 26.207 | O19: =SUM(Prop2018DistTar!O19,Prop2018TransTar!O19) -> 0 | P19: =SUM(Prop2018DistTar!P19,Prop2018TransTar!P19) -> 0 | R19: 0 | U19: 2.428 | X19: 2.003 | Y19: 1.01 | AA19: 17.149 | AB19: 24.957 | AG19: 0 | AH19: 0 | AI19: 0 | AJ19: -0.04942339374 | AK19: 0 | AL19: 0 | AM19: -0.04393409885 | AN19: 0.1683168317 | AO19: 0 | AP19: 0.04233483002 | AQ19: 0.05008614817 | AR19: 0 | AS19: 0 | AT19: =IF(MAX(ABS(AG19:AS19))>$AT$4,"EXPLAIN","") -> EXPLAIN | AU19: see comment
B20: Low voltage large KVA time of use - HOT | C20: =Prop2018DistTar!C20 -> Low voltage large KVA time of use - HOT | D20: =SUM(Prop2018DistTar!D20,Prop2018TransTar!D20) -> 0 | E20: =SUM(Prop2018DistTar!E20,Prop2018TransTar!E20) -> 0 | F20: =SUM(Prop2018DistTar!F20,Prop2018TransTar!F20) -> 0 | G20: =SUM(Prop2018DistTar!G20,Prop2018TransTar!G20) -> 0 | H20: =SUM(Prop2018DistTar!H20,Prop2018TransTar!H20) -> 0 | I20: =SUM(Prop2018DistTar!I20,Prop2018TransTar!I20) -> 0 | J20: =SUM(Prop2018DistTar!J20,Prop2018TransTar!J20) -> 0 | K20: =SUM(Prop2018DistTar!K20,Prop2018TransTar!K20) -> 0 | L20: =SUM(Prop2018DistTar!L20,Prop2018TransTar!L20) -> 0 | M20: =SUM(Prop2018DistTar!M20,Prop2018TransTar!M20) -> 0 | N20: =SUM(Prop2018DistTar!N20,Prop2018TransTar!N20) -> 0 | O20: =SUM(Prop2018DistTar!O20,Prop2018TransTar!O20) -> 0 | P20: =SUM(Prop2018DistTar!P20,Prop2018TransTar!P20) -> 0 | R20: 0 | U20: 1.824 | X20: 1.489 | Y20: 0.863 | AA20: 15.245 | AB20: 36.813 | AG20: 0 | AH20: 0 | AI20: 0 | AJ20: -1 | AK20: 0 | AL20: 0 | AM20: -1 | AN20: -1 | AO20: 0 | AP20: -1 | AQ20: -1 | AR20: 0 | AS20: 0 | AT20: =IF(MAX(ABS(AG20:AS20))>$AT$4,"EXPLAIN","") -> EXPLAIN | AU20: Tariff discontinued in 2018
B21: High voltage KVA time of use | C21: =Prop2018DistTar!C21 -> High voltage KVA time of use | D21: =SUM(Prop2018DistTar!D21,Prop2018TransTar!D21) -> 0 | E21: =SUM(Prop2018DistTar!E21,Prop2018TransTar!E21) -> 0 | F21: =SUM(Prop2018DistTar!F21,Prop2018TransTar!F21) -> 0 | G21: =SUM(Prop2018DistTar!G21,Prop2018TransTar!G21) -> 1.476 | H21: =SUM(Prop2018DistTar!H21,Prop2018TransTar!H21) -> 0 | I21: =SUM(Prop2018DistTar!I21,Prop2018TransTar!I21) -> 0 | J21: =SUM(Prop2018DistTar!J21,Prop2018TransTar!J21) -> 1.251 | K21: =SUM(Prop2018DistTar!K21,Prop2018TransTar!K21) -> 0.731 | L21: =SUM(Prop2018DistTar!L21,Prop2018TransTar!L21) -> 0 | M21: =SUM(Prop2018DistTar!M21,Prop2018TransTar!M21) -> 12.804 | N21: =SUM(Prop2018DistTar!N21,Prop2018TransTar!N21) -> 16.22 | O21: =SUM(Prop2018DistTar!O21,Prop2018TransTar!O21) -> 0 | P21: =SUM(Prop2018DistTar!P21,Prop2018TransTar!P21) -> 0 | R21: 0 | U21: 1.586 | X21: 1.33 | Y21: 0.63 | AA21: 13.114 | AB21: 16.157 | AG21: 0 | AH21: 0 | AI21: 0 | AJ21: -0.06935687264 | AK21: 0 | AL21: 0 | AM21: -0.05939849624 | AN21: 0.1603174603 | AO21: 0 | AP21: -0.02363885923 | AQ21: 0.00389923872 | AR21: 0 | AS21: 0 | AT21: =IF(MAX(ABS(AG21:AS21))>$AT$4,"EXPLAIN","") -> EXPLAIN | AU21: see comment
B22: High voltage KVA time of use - HOT | C22: =Prop2018DistTar!C22 -> High voltage KVA time of use - HOT | D22: =SUM(Prop2018DistTar!D22,Prop2018TransTar!D22) -> 0 | E22: =SUM(Prop2018DistTar!E22,Prop2018TransTar!E22) -> 0 | F22: =SUM(Prop2018DistTar!F22,Prop2018TransTar!F22) -> 0 | G22: =SUM(Prop2018DistTar!G22,Prop2018TransTar!G22) -> 0 | H22: =SUM(Prop2018DistTar!H22,Prop2018TransTar!H22) -> 0 | I22: =SUM(Prop2018DistTar!I22,Prop2018TransTar!I22) -> 0 | J22: =SUM(Prop2018DistTar!J22,Prop2018TransTar!J22) -> 0 | K22: =SUM(Prop2018DistTar!K22,Prop2018TransTar!K22) -> 0 | L22: =SUM(Prop2018DistTar!L22,Prop2018TransTar!L22) -> 0 | M22: =SUM(Prop2018DistTar!M22,Prop2018TransTar!M22) -> 0 | N22: =SUM(Prop2018DistTar!N22,Prop2018TransTar!N22) -> 0 | O22: =SUM(Prop2018DistTar!O22,Prop2018TransTar!O22) -> 0 | P22: =SUM(Prop2018DistTar!P22,Prop2018TransTar!P22) -> 0 | R22: 0 | U22: 1.246 | X22: 1.015 | Y22: 0.614 | AA22: 11.805 | AB22: 27.266 | AG22: 0 | AH22: 0 | AI22: 0 | AJ22: -1 | AK22: 0 | AL22: 0 | AM22: -1 | AN22: -1 | AO22: 0 | AP22: -1 | AQ22: -1 | AR22: 0 | AS22: 0 | AT22: =IF(MAX(ABS(AG22:AS22))>$AT$4,"EXPLAIN","") -> EXPLAIN | AU22: Tariff discontinued in 2018
B23: Subtransmission KVA time of use | C23: =Prop2018DistTar!C23 -> Subtransmission KVA time of use | D23: =SUM(Prop2018DistTar!D23,Prop2018TransTar!D23) -> 0 | E23: =SUM(Prop2018DistTar!E23,Prop2018TransTar!E23) -> 0 | F23: =SUM(Prop2018DistTar!F23,Prop2018TransTar!F23) -> 0 | G23: =SUM(Prop2018DistTar!G23,Prop2018TransTar!G23) -> 0.907 | H23: =SUM(Prop2018DistTar!H23,Prop2018TransTar!H23) -> 0 | I23: =SUM(Prop2018DistTar!I23,Prop2018TransTar!I23) -> 0 | J23: =SUM(Prop2018DistTar!J23,Prop2018TransTar!J23) -> 0.718 | K23: =SUM(Prop2018DistTar!K23,Prop2018TransTar!K23) -> 0.324 | L23: =SUM(Prop2018DistTar!L23,Prop2018TransTar!L23) -> 0 | M23: =SUM(Prop2018DistTar!M23,Prop2018TransTar!M23) -> 3.87 | N23: =SUM(Prop2018DistTar!N23,Prop2018TransTar!N23) -> 4.907 | O23: =SUM(Prop2018DistTar!O23,Prop2018TransTar!O23) -> 0 | P23: =SUM(Prop2018DistTar!P23,Prop2018TransTar!P23) -> 0 | R23: 0 | U23: 0.993 | X23: 0.79 | Y23: 0.279 | AA23: 4.837 | AB23: 6.052 | AG23: 0 | AH23: 0 | AI23: 0 | AJ23: -0.08660624371 | AK23: 0 | AL23: 0 | AM23: -0.09113924051 | AN23: 0.1612903226 | AO23: 0 | AP23: -0.1999173041 | AQ23: -0.189193655 | AR23: 0 | AS23: 0 | AT23: =IF(MAX(ABS(AG23:AS23))>$AT$4,"EXPLAIN","") -> EXPLAIN | AU23: see comment
B24: Time of Day | C24: =Prop2018DistTar!C24 -> TOD | D24: =SUM(Prop2018DistTar!D24,Prop2018TransTar!D24) -> 6.53 | E24: =SUM(Prop2018DistTar!E24,Prop2018TransTar!E24) -> 0 | F24: =SUM(Prop2018DistTar!F24,Prop2018TransTar!F24) -> 6.837 | G24: =SUM(Prop2018DistTar!G24,Prop2018TransTar!G24) -> 18.541 | H24: =SUM(Prop2018DistTar!H24,Prop2018TransTar!H24) -> 0 | I24: =SUM(Prop2018DistTar!I24,Prop2018TransTar!I24) -> 0 | J24: =SUM(Prop2018DistTar!J24,Prop2018TransTar!J24) -> 11.665 | K24: =SUM(Prop2018DistTar!K24,Prop2018TransTar!K24) -> 3.027 | L24: =SUM(Prop2018DistTar!L24,Prop2018TransTar!L24) -> 5.39 | M24: =SUM(Prop2018DistTar!M24,Prop2018TransTar!M24) -> 0 | N24: =SUM(Prop2018DistTar!N24,Prop2018TransTar!N24) -> 0 | O24: =SUM(Prop2018DistTar!O24,Prop2018TransTar!O24) -> 0 | P24: =SUM(Prop2018DistTar!P24,Prop2018TransTar!P24) -> 0 | R24: 5.837 | S24: 0 | T24: 6.805 | U24: 17.39 | V24: 0 | W24: 0 | X24: 11.12 | Y24: 2.705 | Z24: 5.431 | AA24: 0 | AB24: 0 | AC24: 0 | AD24: 0 | AG24: 0.1187253726 | AH24: 0 | AI24: 0.004702424688 | AJ24: 0.06618746406 | AK24: 0 | AL24: 0 | AM24: 0.04901079137 | AN24: 0.119038817 | AO24: -0.007549254281 | AP24: 0 | AQ24: 0 | AR24: 0 | AS24: 0 | AT24: =IF(MAX(ABS(AG24:AS24))>$AT$4,"EXPLAIN","") -> 
B25: Time of Day 9pm off-peak | C25: =Prop2018DistTar!C25 -> TOD9 | D25: =SUM(Prop2018DistTar!D25,Prop2018TransTar!D25) -> 6.774 | E25: =SUM(Prop2018DistTar!E25,Prop2018TransTar!E25) -> 0 | F25: =SUM(Prop2018DistTar!F25,Prop2018TransTar!F25) -> 9.034 | G25: =SUM(Prop2018DistTar!G25,Prop2018TransTar!G25) -> 21.515 | H25: =SUM(Prop2018DistTar!H25,Prop2018TransTar!H25) -> 0 | I25: =SUM(Prop2018DistTar!I25,Prop2018TransTar!I25) -> 0 | J25: =SUM(Prop2018DistTar!J25,Prop2018TransTar!J25) -> 14.547 | K25: =SUM(Prop2018DistTar!K25,Prop2018TransTar!K25) -> 4.193 | L25: =SUM(Prop2018DistTar!L25,Prop2018TransTar!L25) -> 7.778 | M25: =SUM(Prop2018DistTar!M25,Prop2018TransTar!M25) -> 0 | N25: =SUM(Prop2018DistTar!N25,Prop2018TransTar!N25) -> 0 | O25: =SUM(Prop2018DistTar!O25,Prop2018TransTar!O25) -> 0 | P25: =SUM(Prop2018DistTar!P25,Prop2018TransTar!P25) -> 0 | R25: 6.055 | S25: 0 | T25: 9.723 | U25: 21.004 | V25: 0 | W25: 0 | X25: 14.651 | Y25: 3.748 | Z25: 8.519 | AA25: 0 | AB25: 0 | AC25: 0 | AD25: 0 | AG25: 0.118744839 | AH25: 0 | AI25: -0.0708629024 | AJ25: 0.0243286993 | AK25: 0 | AL25: 0 | AM25: -0.007098491571 | AN25: 0.1187299893 | AO25: -0.08698204015 | AP25: 0 | AQ25: 0 | AR25: 0 | AS25: 0 | AT25: =IF(MAX(ABS(AG25:AS25))>$AT$4,"EXPLAIN","") -> 
B26: Time of Use | C26: =Prop2018DistTar!C26 -> TOU | D26: =SUM(Prop2018DistTar!D26,Prop2018TransTar!D26) -> 0 | E26: =SUM(Prop2018DistTar!E26,Prop2018TransTar!E26) -> 0 | F26: =SUM(Prop2018DistTar!F26,Prop2018TransTar!F26) -> 0 | G26: =SUM(Prop2018DistTar!G26,Prop2018TransTar!G26) -> 11.758 | H26: =SUM(Prop2018DistTar!H26,Prop2018TransTar!H26) -> 0 | I26: =SUM(Prop2018DistTar!I26,Prop2018TransTar!I26) -> 0 | J26: =SUM(Prop2018DistTar!J26,Prop2018TransTar!J26) -> 6.83 | K26: =SUM(Prop2018DistTar!K26,Prop2018TransTar!K26) -> 2.829 | L26: =SUM(Prop2018DistTar!L26,Prop2018TransTar!L26) -> 0 | M26: =SUM(Prop2018DistTar!M26,Prop2018TransTar!M26) -> 0 | N26: =SUM(Prop2018DistTar!N26,Prop2018TransTar!N26) -> 47.425 | O26: =SUM(Prop2018DistTar!O26,Prop2018TransTar!O26) -> 0 | P26: =SUM(Prop2018DistTar!P26,Prop2018TransTar!P26) -> 0 | R26: 0 | S26: 0 | T26: 0 | U26: 11.328 | V26: 0 | W26: 0 | X26: 6.512 | Y26: 2.591 | Z26: 0 | AA26: 0 | AB26: 44.892 | AC26: 0 | AD26: 0 | AG26: 0 | AH26: 0 | AI26: 0 | AJ26: 0.03795903955 | AK26: 0 | AL26: 0 | AM26: 0.04883292383 | AN26: 0.09185642609 | AO26: 0 | AP26: 0 | AQ26: 0.05642430723 | AR26: 0 | AS26: 0 | AT26: =IF(MAX(ABS(AG26:AS26))>$AT$4,"EXPLAIN","") -> 
B27: Time of Day Flexible | C27: =Prop2018DistTar!C27 -> TODFLEX | D27: =SUM(Prop2018DistTar!D27,Prop2018TransTar!D27) -> 7.295 | E27: =SUM(Prop2018DistTar!E27,Prop2018TransTar!E27) -> 0 | F27: =SUM(Prop2018DistTar!F27,Prop2018TransTar!F27) -> 6.341 | G27: =SUM(Prop2018DistTar!G27,Prop2018TransTar!G27) -> 20.64 | H27: =SUM(Prop2018DistTar!H27,Prop2018TransTar!H27) -> 0 | I27: =SUM(Prop2018DistTar!I27,Prop2018TransTar!I27) -> 0 | J27: =SUM(Prop2018DistTar!J27,Prop2018TransTar!J27) -> 13.005 | K27: =SUM(Prop2018DistTar!K27,Prop2018TransTar!K27) -> 4.009 | L27: =SUM(Prop2018DistTar!L27,Prop2018TransTar!L27) -> 6.151 | M27: =SUM(Prop2018DistTar!M27,Prop2018TransTar!M27) -> 0 | N27: =SUM(Prop2018DistTar!N27,Prop2018TransTar!N27) -> 0 | O27: =SUM(Prop2018DistTar!O27,Prop2018TransTar!O27) -> 0 | P27: =SUM(Prop2018DistTar!P27,Prop2018TransTar!P27) -> 0 | R27: 6.521 | S27: 0 | T27: 6.416 | U27: 19.948 | V27: 0 | W27: 0 | X27: 13.023 | Y27: 3.584 | Z27: 6.159 | AA27: 0 | AB27: 0 | AC27: 0 | AD27: 0 | AG27: 0.1186934519 | AH27: 0 | AI27: -0.01168952618 | AJ27: 0.03469019451 | AK27: 0 | AL27: 0 | AM27: -0.001382170007 | AN27: 0.1185825893 | AO27: -0.001298912161 | AP27: 0 | AQ27: 0 | AR27: 0 | AS27: 0 | AT27: =IF(MAX(ABS(AG27:AS27))>$AT$4,"EXPLAIN","") -> 
B28: Seasonal Demand KW 1 rate | C28: =Prop2018DistTar!C28 -> Low Voltage KW 1 rate | D28: =SUM(Prop2018DistTar!D28,Prop2018TransTar!D28) -> 0 | E28: =SUM(Prop2018DistTar!E28,Prop2018TransTar!E28) -> 3.305 | F28: =SUM(Prop2018DistTar!F28,Prop2018TransTar!F28) -> 3.305 | G28: =SUM(Prop2018DistTar!G28,Prop2018TransTar!G28) -> 3.305 | H28: =SUM(Prop2018DistTar!H28,Prop2018TransTar!H28) -> 3.305 | I28: =SUM(Prop2018DistTar!I28,Prop2018TransTar!I28) -> 3.305 | J28: =SUM(Prop2018DistTar!J28,Prop2018TransTar!J28) -> 3.305 | K28: =SUM(Prop2018DistTar!K28,Prop2018TransTar!K28) -> 3.305 | L28: =SUM(Prop2018DistTar!L28,Prop2018TransTar!L28) -> 3.305 | M28: =SUM(Prop2018DistTar!M28,Prop2018TransTar!M28) -> 0 | N28: =SUM(Prop2018DistTar!N28,Prop2018TransTar!N28) -> 0 | O28: =SUM(Prop2018DistTar!O28,Prop2018TransTar!O28) -> 30.571 | P28: =SUM(Prop2018DistTar!P28,Prop2018TransTar!P28) -> 13.198 | R28: 0 | S28: 3.39 | T28: 3.39 | U28: 3.39 | V28: 3.39 | W28: 3.39 | X28: 3.39 | Y28: 3.39 | Z28: 3.39 | AC28: 30.581 | AD28: 13.668 | AG28: 0 | AH28: -0.02507374631 | AI28: -0.02507374631 | AJ28: -0.02507374631 | AK28: -0.02507374631 | AL28: -0.02507374631 | AM28: -0.02507374631 | AN28: -0.02507374631 | AO28: -0.02507374631 | AP28: 0 | AQ28: 0 | AR28: -0.0003270004251 | AS28: -0.03438688908 | AT28: =IF(MAX(ABS(AG28:AS28))>$AT$4,"EXPLAIN","") -> 
B29: Low voltage medium KW time of use | C29: =Prop2018DistTar!C29 -> Low voltage medium KW time of use (opt-in) | D29: =SUM(Prop2018DistTar!D29,Prop2018TransTar!D29) -> 0 | E29: =SUM(Prop2018DistTar!E29,Prop2018TransTar!E29) -> 4.436 | F29: =SUM(Prop2018DistTar!F29,Prop2018TransTar!F29) -> 4.436 | G29: =SUM(Prop2018DistTar!G29,Prop2018TransTar!G29) -> 4.436 | H29: =SUM(Prop2018DistTar!H29,Prop2018TransTar!H29) -> 4.436 | I29: =SUM(Prop2018DistTar!I29,Prop2018TransTar!I29) -> 4.436 | J29: =SUM(Prop2018DistTar!J29,Prop2018TransTar!J29) -> 4.436 | K29: =SUM(Prop2018DistTar!K29,Prop2018TransTar!K29) -> 4.436 | L29: =SUM(Prop2018DistTar!L29,Prop2018TransTar!L29) -> 4.436 | M29: =SUM(Prop2018DistTar!M29,Prop2018TransTar!M29) -> 0 | N29: =SUM(Prop2018DistTar!N29,Prop2018TransTar!N29) -> 0 | O29: =SUM(Prop2018DistTar!O29,Prop2018TransTar!O29) -> 36.69 | P29: =SUM(Prop2018DistTar!P29,Prop2018TransTar!P29) -> 24.46 | R29: 0 | S29: 4.488 | T29: 4.488 | U29: 4.488 | V29: 4.488 | W29: 4.488 | X29: 4.488 | Y29: 4.488 | Z29: 4.488 | AA29: 0 | AB29: 0 | AC29: 46.783 | AD29: 31.189 | AG29: 0 | AH29: -0.01158645276 | AI29: -0.01158645276 | AJ29: -0.01158645276 | AK29: -0.01158645276 | AL29: -0.01158645276 | AM29: -0.01158645276 | AN29: -0.01158645276 | AO29: -0.01158645276 | AP29: 0 | AQ29: 0 | AR29: -0.2157407605 | AS29: -0.2157491423 | AT29: =IF(MAX(ABS(AG29:AS29))>$AT$4,"EXPLAIN","") -> EXPLAIN | AU29: see comment
B30: Low voltage medium KW 1 rate - transitional | C30: =Prop2018DistTar!C30 -> Low voltage medium KW 1 rate (mandatory) | D30: =SUM(Prop2018DistTar!D30,Prop2018TransTar!D30) -> 0 | E30: =SUM(Prop2018DistTar!E30,Prop2018TransTar!E30) -> 6.786 | F30: =SUM(Prop2018DistTar!F30,Prop2018TransTar!F30) -> 6.786 | G30: =SUM(Prop2018DistTar!G30,Prop2018TransTar!G30) -> 6.786 | H30: =SUM(Prop2018DistTar!H30,Prop2018TransTar!H30) -> 6.786 | I30: =SUM(Prop2018DistTar!I30,Prop2018TransTar!I30) -> 6.786 | J30: =SUM(Prop2018DistTar!J30,Prop2018TransTar!J30) -> 6.786 | K30: =SUM(Prop2018DistTar!K30,Prop2018TransTar!K30) -> 6.786 | L30: =SUM(Prop2018DistTar!L30,Prop2018TransTar!L30) -> 6.786 | M30: =SUM(Prop2018DistTar!M30,Prop2018TransTar!M30) -> 0 | N30: =SUM(Prop2018DistTar!N30,Prop2018TransTar!N30) -> 0 | O30: =SUM(Prop2018DistTar!O30,Prop2018TransTar!O30) -> 22.74 | P30: =SUM(Prop2018DistTar!P30,Prop2018TransTar!P30) -> 15.159 | R30: 0 | S30: 6.152 | T30: 6.152 | U30: 6.152 | V30: 6.152 | W30: 6.152 | X30: 6.152 | Y30: 6.152 | Z30: 6.152 | AA30: 0 | AB30: 0 | AC30: 21.374 | AD30: 14.25 | AG30: 0 | AH30: 0.1030559168 | AI30: 0.1030559168 | AJ30: 0.1030559168 | AK30: 0.1030559168 | AL30: 0.1030559168 | AM30: 0.1030559168 | AN30: 0.1030559168 | AO30: 0.1030559168 | AP30: 0 | AQ30: 0 | AR30: 0.06390942266 | AS30: 0.06378947368 | AT30: =IF(MAX(ABS(AG30:AS30))>$AT$4,"EXPLAIN","") -> 
AG31: 0 | AH31: 0 | AI31: 0 | AJ31: 0 | AK31: 0 | AL31: 0 | AM31: 0 | AN31: 0 | AO31: 0 | AP31: 0 | AQ31: 0 | AR31: 0 | AS31: 0 | AT31: =IF(MAX(ABS(AG31:AS31))>$AT$4,"EXPLAIN","") -> 
AG32: 0 | AH32: 0 | AI32: 0 | AJ32: 0 | AK32: 0 | AL32: 0 | AM32: 0 | AN32: 0 | AO32: 0 | AP32: 0 | AQ32: 0 | AR32: 0 | AS32: 0 | AT32: =IF(MAX(ABS(AG32:AS32))>$AT$4,"EXPLAIN","") -> 
AG33: 0 | AH33: 0 | AI33: 0 | AJ33: 0 | AK33: 0 | AL33: 0 | AM33: 0 | AN33: 0 | AO33: 0 | AP33: 0 | AQ33: 0 | AR33: 0 | AS33: 0 | AT33: =IF(MAX(ABS(AG33:AS33))>$AT$4,"EXPLAIN","") -> 
AG34: 0 | AH34: 0 | AI34: 0 | AJ34: 0 | AK34: 0 | AL34: 0 | AM34: 0 | AN34: 0 | AO34: 0 | AP34: 0 | AQ34: 0 | AR34: 0 | AS34: 0 | AT34: =IF(MAX(ABS(AG34:AS34))>$AT$4,"EXPLAIN","") -> 
AG35: 0 | AH35: 0 | AI35: 0 | AJ35: 0 | AK35: 0 | AL35: 0 | AM35: 0 | AN35: 0 | AO35: 0 | AP35: 0 | AQ35: 0 | AR35: 0 | AS35: 0 | AT35: =IF(MAX(ABS(AG35:AS35))>$AT$4,"EXPLAIN","") -> 
AG36: 0 | AH36: 0 | AI36: 0 | AJ36: 0 | AK36: 0 | AL36: 0 | AM36: 0 | AN36: 0 | AO36: 0 | AP36: 0 | AQ36: 0 | AR36: 0 | AS36: 0 | AT36: =IF(MAX(ABS(AG36:AS36))>$AT$4,"EXPLAIN","") -> 
AG37: 0 | AH37: 0 | AI37: 0 | AJ37: 0 | AK37: 0 | AL37: 0 | AM37: 0 | AN37: 0 | AO37: 0 | AP37: 0 | AQ37: 0 | AR37: 0 | AS37: 0 | AT37: =IF(MAX(ABS(AG37:AS37))>$AT$4,"EXPLAIN","") -> 
AG38: =IFERROR(D38/R38-1,0) -> 0 | AH38: =IFERROR(E38/S38-1,0) -> 0 | AI38: =IFERROR(F38/T38-1,0) -> 0 | AJ38: =IFERROR(G38/U38-1,0) -> 0 | AK38: =IFERROR(H38/V38-1,0) -> 0 | AL38: =IFERROR(I38/W38-1,0) -> 0 | AM38: =IFERROR(J38/X38-1,0) -> 0 | AN38: =IFERROR(K38/Y38-1,0) -> 0 | AO38: =IFERROR(L38/Z38-1,0) -> 0 | AP38: =IFERROR(M38/AA38-1,0) -> 0 | AQ38: =IFERROR(N38/AB38-1,0) -> 0 | AR38: =IFERROR(O38/AC38-1,0) -> 0 | AS38: =IFERROR(P38/AD38-1,0) -> 0 | AT38: =IF(MAX(ABS(AG38:AS38))>$AT$4,"EXPLAIN","") -> 
AG39: 0 | AH39: 0 | AI39: 0 | AJ39: 0 | AK39: 0 | AL39: 0 | AM39: 0 | AN39: 0 | AO39: 0 | AP39: 0 | AQ39: 0 | AR39: 0 | AS39: 0 | AT39: =IF(MAX(ABS(AG39:AS39))>$AT$4,"EXPLAIN","") -> 
AG40: 0 | AH40: 0 | AI40: 0 | AJ40: 0 | AK40: 0 | AL40: 0 | AM40: 0 | AN40: 0 | AO40: 0 | AP40: 0 | AQ40: 0 | AR40: 0 | AS40: 0 | AT40: =IF(MAX(ABS(AG40:AS40))>$AT$4,"EXPLAIN","") -> 
AG41: 0 | AH41: 0 | AI41: 0 | AJ41: 0 | AK41: 0 | AL41: 0 | AM41: 0 | AN41: 0 | AO41: 0 | AP41: 0 | AQ41: 0 | AR41: 0 | AS41: 0 | AT41: =IF(MAX(ABS(AG41:AS41))>$AT$4,"EXPLAIN","") -> 
AG42: 0 | AH42: 0 | AI42: 0 | AJ42: 0 | AK42: 0 | AL42: 0 | AM42: 0 | AN42: 0 | AO42: 0 | AP42: 0 | AQ42: 0 | AR42: 0 | AS42: 0 | AT42: =IF(MAX(ABS(AG42:AS42))>$AT$4,"EXPLAIN","") -> 
AG43: 0 | AH43: 0 | AI43: 0 | AJ43: 0 | AK43: 0 | AL43: 0 | AM43: 0 | AN43: 0 | AO43: 0 | AP43: 0 | AQ43: 0 | AR43: 0 | AS43: 0 | AT43: =IF(MAX(ABS(AG43:AS43))>$AT$4,"EXPLAIN","") -> 
AG44: 0 | AH44: 0 | AI44: 0 | AJ44: 0 | AK44: 0 | AL44: 0 | AM44: 0 | AN44: 0 | AO44: 0 | AP44: 0 | AQ44: 0 | AR44: 0 | AS44: 0 | AT44: =IF(MAX(ABS(AG44:AS44))>$AT$4,"EXPLAIN","") -> 
AG45: 0 | AH45: 0 | AI45: 0 | AJ45: 0 | AK45: 0 | AL45: 0 | AM45: 0 | AN45: 0 | AO45: 0 | AP45: 0 | AQ45: 0 | AR45: 0 | AS45: 0 | AT45: =IF(MAX(ABS(AG45:AS45))>$AT$4,"EXPLAIN","") -> 
AG46: 0 | AH46: 0 | AI46: 0 | AJ46: 0 | AK46: 0 | AL46: 0 | AM46: 0 | AN46: 0 | AO46: 0 | AP46: 0 | AQ46: 0 | AR46: 0 | AS46: 0 | AT46: =IF(MAX(ABS(AG46:AS46))>$AT$4,"EXPLAIN","") -> 
AG47: 0 | AH47: 0 | AI47: 0 | AJ47: 0 | AK47: 0 | AL47: 0 | AM47: 0 | AN47: 0 | AO47: 0 | AP47: 0 | AQ47: 0 | AR47: 0 | AS47: 0 | AT47: =IF(MAX(ABS(AG47:AS47))>$AT$4,"EXPLAIN","") -> 
AG48: 0 | AH48: 0 | AI48: 0 | AJ48: 0 | AK48: 0 | AL48: 0 | AM48: 0 | AN48: 0 | AO48: 0 | AP48: 0 | AQ48: 0 | AR48: 0 | AS48: 0 | AT48: =IF(MAX(ABS(AG48:AS48))>$AT$4,"EXPLAIN","") -> 
AG49: 0 | AH49: 0 | AI49: 0 | AJ49: 0 | AK49: 0 | AL49: 0 | AM49: 0 | AN49: 0 | AO49: 0 | AP49: 0 | AQ49: 0 | AR49: 0 | AS49: 0 | AT49: =IF(MAX(ABS(AG49:AS49))>$AT$4,"EXPLAIN","") -> 
AG50: 0 | AH50: 0 | AI50: 0 | AJ50: 0 | AK50: 0 | AL50: 0 | AM50: 0 | AN50: 0 | AO50: 0 | AP50: 0 | AQ50: 0 | AR50: 0 | AS50: 0 | AT50: =IF(MAX(ABS(AG50:AS50))>$AT$4,"EXPLAIN","") -> 
AG51: 0 | AH51: 0 | AI51: 0 | AJ51: 0 | AK51: 0 | AL51: 0 | AM51: 0 | AN51: 0 | AO51: 0 | AP51: 0 | AQ51: 0 | AR51: 0 | AS51: 0 | AT51: =IF(MAX(ABS(AG51:AS51))>$AT$4,"EXPLAIN","") -> 
AG52: 0 | AH52: 0 | AI52: 0 | AJ52: 0 | AK52: 0 | AL52: 0 | AM52: 0 | AN52: 0 | AO52: 0 | AP52: 0 | AQ52: 0 | AR52: 0 | AS52: 0 | AT52: =IF(MAX(ABS(AG52:AS52))>$AT$4,"EXPLAIN","") -> 
AG53: 0 | AH53: 0 | AI53: 0 | AJ53: 0 | AK53: 0 | AL53: 0 | AM53: 0 | AN53: 0 | AO53: 0 | AP53: 0 | AQ53: 0 | AR53: 0 | AS53: 0 | AT53: =IF(MAX(ABS(AG53:AS53))>$AT$4,"EXPLAIN","") -> 
AG54: 0 | AH54: 0 | AI54: 0 | AJ54: 0 | AK54: 0 | AL54: 0 | AM54: 0 | AN54: 0 | AO54: 0 | AP54: 0 | AQ54: 0 | AR54: 0 | AS54: 0 | AT54: =IF(MAX(ABS(AG54:AS54))>$AT$4,"EXPLAIN","") -> 
AG55: 0 | AH55: 0 | AI55: 0 | AJ55: 0 | AK55: 0 | AL55: 0 | AM55: 0 | AN55: 0 | AO55: 0 | AP55: 0 | AQ55: 0 | AR55: 0 | AS55: 0 | AT55: =IF(MAX(ABS(AG55:AS55))>$AT$4,"EXPLAIN","") -> 
AG56: 0 | AH56: 0 | AI56: 0 | AJ56: 0 | AK56: 0 | AL56: 0 | AM56: 0 | AN56: 0 | AO56: 0 | AP56: 0 | AQ56: 0 | AR56: 0 | AS56: 0 | AT56: =IF(MAX(ABS(AG56:AS56))>$AT$4,"EXPLAIN","") -> 
AG57: 0 | AH57: 0 | AI57: 0 | AJ57: 0 | AK57: 0 | AL57: 0 | AM57: 0 | AN57: 0 | AO57: 0 | AP57: 0 | AQ57: 0 | AR57: 0 | AS57: 0 | AT57: =IF(MAX(ABS(AG57:AS57))>$AT$4,"EXPLAIN","") -> 
AG58: 0 | AH58: 0 | AI58: 0 | AJ58: 0 | AK58: 0 | AL58: 0 | AM58: 0 | AN58: 0 | AO58: 0 | AP58: 0 | AQ58: 0 | AR58: 0 | AS58: 0 | AT58: =IF(MAX(ABS(AG58:AS58))>$AT$4,"EXPLAIN","") -> 
AG59: 0 | AH59: 0 | AI59: 0 | AJ59: 0 | AK59: 0 | AL59: 0 | AM59: 0 | AN59: 0 | AO59: 0 | AP59: 0 | AQ59: 0 | AR59: 0 | AS59: 0 | AT59: =IF(MAX(ABS(AG59:AS59))>$AT$4,"EXPLAIN","") -> 
AG60: 0 | AH60: 0 | AI60: 0 | AJ60: 0 | AK60: 0 | AL60: 0 | AM60: 0 | AN60: 0 | AO60: 0 | AP60: 0 | AQ60: 0 | AR60: 0 | AS60: 0 | AT60: =IF(MAX(ABS(AG60:AS60))>$AT$4,"EXPLAIN","") -> 
AG61: 0 | AH61: 0 | AI61: 0 | AJ61: 0 | AK61: 0 | AL61: 0 | AM61: 0 | AN61: 0 | AO61: 0 | AP61: 0 | AQ61: 0 | AR61: 0 | AS61: 0 | AT61: =IF(MAX(ABS(AG61:AS61))>$AT$4,"EXPLAIN","") -> 
AG62: 0 | AH62: 0 | AI62: 0 | AJ62: 0 | AK62: 0 | AL62: 0 | AM62: 0 | AN62: 0 | AO62: 0 | AP62: 0 | AQ62: 0 | AR62: 0 | AS62: 0 | AT62: =IF(MAX(ABS(AG62:AS62))>$AT$4,"EXPLAIN","") -> 
AG63: 0 | AH63: 0 | AI63: 0 | AJ63: 0 | AK63: 0 | AL63: 0 | AM63: 0 | AN63: 0 | AO63: 0 | AP63: 0 | AQ63: 0 | AR63: 0 | AS63: 0 | AT63: =IF(MAX(ABS(AG63:AS63))>$AT$4,"EXPLAIN","") -> 
AG64: 0 | AH64: 0 | AI64: 0 | AJ64: 0 | AK64: 0 | AL64: 0 | AM64: 0 | AN64: 0 | AO64: 0 | AP64: 0 | AQ64: 0 | AR64: 0 | AS64: 0 | AT64: =IF(MAX(ABS(AG64:AS64))>$AT$4,"EXPLAIN","") -> 
AG65: 0 | AH65: 0 | AI65: 0 | AJ65: 0 | AK65: 0 | AL65: 0 | AM65: 0 | AN65: 0 | AO65: 0 | AP65: 0 | AQ65: 0 | AR65: 0 | AS65: 0 | AT65: =IF(MAX(ABS(AG65:AS65))>$AT$4,"EXPLAIN","") -> 
